Workbook

Sheet 地域循環モデル (hidden)
B9: レーダーチャートで見せる指標名 | D9: 考え方 | E9: 地域循環モデル
E10: 再利用（リユース・リファブ等） | M10: 再生利用（リサイクル）
B11: 大項目：→レーダーチャートで見せる指標 | C11: 中項目：最終的に削除 | E11: 市民持ち寄り型 | F11: インパクト | G11: 自治体回収型 | H11: インパクト | I11: シェアリング型 | J11: インパクト | K11: リマニュ型 | L11: インパクト | M11: 市民分別型 | N11: インパクト | O11: 地場企業活用型 | P11: インパクト | Q11: 近隣地域連携型 | R11: インパクト | S11: 大規模型 | T11: インパクト
B12: 大項目 | C12: 中項目 | E12: ①市民持ち寄り品リペア/リユースモデル | G12: ②自治体回収リペア/リユースモデル | I12: ③企業製品シェアリングモデル | K12: ④企業製品リぺア/リマニュモデル | M12: ⑤市民詳細分別リサイクルモデル | O12: ⑥地域資源活用リサイクル | Q12: ⑦近隣地域連携リサイクルモデル | S12: ⑧大規模リサイクルモデル
B13: 入口の循環利用率<%> | D13: 中項目のうち利用資源量について中項目から判断する | K13: 1 | M13: 1 | O13: 1 | Q13: 1 | S13: 1 | V13: =IF(カテゴリ全国比較!$AA$33<0,カテゴリ全国比較!$AA$33,"NaN") -> NaN | W13: =LEFT(B13,FIND("<",B13)-1) -> 入口の循環利用率 | X13: =_xlfn.TEXTJOIN(", ", TRUE, IF($E13:$T13=1, $E$12:$T$12, "")) -> ④企業製品リぺア/リマニュモデル, ⑤市民詳細分別リサイクルモデル, ⑥地域資源活用リサイクル, ⑦近隣地域連携リサイクルモデル, ⑧大規模リサイクルモデル | Y13: =IF(X13="","該当モデルなし",X13) -> ④企業製品リぺア/リマニュモデル, ⑤市民詳細分別リサイクルモデル, ⑥地域資源活用リサイクル, ⑦近隣地域連携リサイクルモデル, ⑧大規模リサイクルモデル | Z13: =IFERROR(IF(SMALL($V$13:$V$59, ROWS(Z$13:Z13))<-25, SMALL($V$13:$V$59, ROWS(Z$13:Z13)),""),"") -> -55.66018923 | AA13: =IFERROR(VLOOKUP(Z13,$V$13:$Y$59,2,FALSE),"") -> 循環資源の利用量 | AB13: =IFERROR(VLOOKUP(Z13,$V$13:$Y$59,4,FALSE),"") -> ④企業製品リぺア/リマニュモデル, ⑤市民詳細分別リサイクルモデル, ⑥地域資源活用リサイクル, ⑦近隣地域連携リサイクルモデル, ⑧大規模リサイクルモデル
C14: 循環資源の利用量<t/円> | D14: 回収されたものが資源として利活用されるモデルは1とする | K14: 1 | M14: 1 | O14: 1 | Q14: 1 | S14: 1 | V14: =IF(カテゴリ全国比較!$AA$34<0,カテゴリ全国比較!$AA$34,"NaN") -> -55.66018923 | W14: =LEFT(C14,FIND("<",C14)-1) -> 循環資源の利用量 | X14: =_xlfn.TEXTJOIN(", ", TRUE, IF($E14:$T14=1, $E$12:$T$12, "")) -> ④企業製品リぺア/リマニュモデル, ⑤市民詳細分別リサイクルモデル, ⑥地域資源活用リサイクル, ⑦近隣地域連携リサイクルモデル, ⑧大規模リサイクルモデル | Y14: =IF(X14="","該当モデルなし",X14) -> ④企業製品リぺア/リマニュモデル, ⑤市民詳細分別リサイクルモデル, ⑥地域資源活用リサイクル, ⑦近隣地域連携リサイクルモデル, ⑧大規模リサイクルモデル | Z14: =IFERROR(IF(SMALL($V$13:$V$59, ROWS(Z$13:Z14))<-25, SMALL($V$13:$V$59, ROWS(Z$13:Z14)),""),"") -> -46.76411294 | AA14: リユース量 | AB14: =IFERROR(VLOOKUP(Z14,$V$13:$Y$59,4,FALSE),"") -> ①市民持ち寄り品リペア/リユースモデル, ②自治体回収リペア/リユースモデル, ④企業製品リぺア/リマニュモデル
C15: 利用資源量<t/円> | D15: 直接的に利用資源量を減らすモデルはなし 製品の製造量減少につながるモデルは▲とする | V15: =IF(カテゴリ全国比較!$AA$35<0,カテゴリ全国比較!$AA$35,"NaN") -> NaN | W15: 地域GDP当たり利用資源量 | X15: =_xlfn.TEXTJOIN(", ", TRUE, IF($E15:$T15=1, $E$12:$T$12, "")) ->  | Y15: 該当モデルなし | Z15: =IFERROR(IF(SMALL($V$13:$V$59, ROWS(Z$13:Z15))<-25, SMALL($V$13:$V$59, ROWS(Z$13:Z15)),""),"") -> -25.68315742 | AA15: 出口の循環率 | AB15: ①市民持ち寄り品リペア/リユースモデル, ②自治体回収リペア/リユースモデル, ③企業製品シェアリングモデル, ④企業製品リぺア/リマニュモデル, ⑤市民詳細分別リサイクルモデル, ⑥地域資源活用リサイクル, ⑦近隣地域連携リサイクルモデル, ⑧大規模リサイクルモデル
B16: 出口の循環率<%> | D16: 中項目は全モデルでいずれかの指標が1のため、当該指標も1とする | E16: 1 | G16: 1 | I16: 1 | K16: 1 | M16: 1 | O16: 1 | Q16: 1 | S16: 1 | V16: =IF(カテゴリ全国比較!$AA$36<0,カテゴリ全国比較!$AA$36,"NaN") -> -25.68315742 | W16: =LEFT(B16,FIND("<",B16)-1) -> 出口の循環率 | X16: =_xlfn.TEXTJOIN(", ", TRUE, IF($E16:$T16=1, $E$12:$T$12, "")) -> ①市民持ち寄り品リペア/リユースモデル, ②自治体回収リペア/リユースモデル, ③企業製品シェアリングモデル, ④企業製品リぺア/リマニュモデル, ⑤市民詳細分別リサイクルモデル, ⑥地域資源活用リサイクル, ⑦近隣地域連携リサイクルモデル, ⑧大規模リサイクルモデル | Y16: ①市民持ち寄り品リペア/リユースモデル, ②自治体回収リペア/リユースモデル, ③企業製品シェアリングモデル, ④企業製品リぺア/リマニュモデル, ⑤市民詳細分別リサイクルモデル, ⑥地域資源活用リサイクル, ⑦近隣地域連携リサイクルモデル, ⑧大規模リサイクルモデル | Z16: =IFERROR(IF(SMALL($V$13:$V$59, ROWS(Z$13:Z16))<-25, SMALL($V$13:$V$59, ROWS(Z$13:Z16)),""),"") ->  | AA16: =IFERROR(VLOOKUP(Z16,$V$13:$Y$59,2,FALSE),"") -> 
C17: リサイクル量<t/人> | D17: リサイクル量が増加するモデルは1とする | M17: 1 | O17: 1 | Q17: 1 | S17: 1 | V17: =IF(カテゴリ全国比較!$AA$37<0,カテゴリ全国比較!$AA$37,"NaN") -> -4.925881305 | W17: =LEFT(C17,FIND("<",C17)-1) -> リサイクル量 | X17: =_xlfn.TEXTJOIN(", ", TRUE, IF($E17:$T17=1, $E$12:$T$12, "")) -> ⑤市民詳細分別リサイクルモデル, ⑥地域資源活用リサイクル, ⑦近隣地域連携リサイクルモデル, ⑧大規模リサイクルモデル | Y17: ⑤市民詳細分別リサイクルモデル, ⑥地域資源活用リサイクル, ⑦近隣地域連携リサイクルモデル, ⑧大規模リサイクルモデル | Z17: =IFERROR(IF(SMALL($V$13:$V$59, ROWS(Z$13:Z17))<-25, SMALL($V$13:$V$59, ROWS(Z$13:Z17)),""),"") -> 
C18: リファブ量<t/人> | D18: リファブ量が増加するモデルは1とする。 ただし全モデルでリファブ量と関連なし | E18: 1 | G18: 1 | K18: 1 | W18: リファブ量 | X18: =_xlfn.TEXTJOIN(", ", TRUE, IF($E18:$T18=1, $E$12:$T$12, "")) -> ①市民持ち寄り品リペア/リユースモデル, ②自治体回収リペア/リユースモデル, ④企業製品リぺア/リマニュモデル | Y18: ①市民持ち寄り品リペア/リユースモデル, ②自治体回収リペア/リユースモデル, ④企業製品リぺア/リマニュモデル | Z18: =IFERROR(IF(SMALL($V$13:$V$59, ROWS(Z$13:Z18))<-25, SMALL($V$13:$V$59, ROWS(Z$13:Z18)),""),"") -> 
C19: リユース量<t/人> | D19: リユース量が増加するモデルは1とする | E19: 1 | G19: 1 | K19: 1 | V19: =IF(カテゴリ全国比較!$AA$38<0,カテゴリ全国比較!$AA$38,"NaN") -> -46.76411294 | W19: リユース量 | X19: =_xlfn.TEXTJOIN(", ", TRUE, IF($E19:$T19=1, $E$12:$T$12, "")) -> ①市民持ち寄り品リペア/リユースモデル, ②自治体回収リペア/リユースモデル, ④企業製品リぺア/リマニュモデル | Y19: ①市民持ち寄り品リペア/リユースモデル, ②自治体回収リペア/リユースモデル, ④企業製品リぺア/リマニュモデル | Z19: =IFERROR(IF(SMALL($V$13:$V$59, ROWS(Z$13:Z19))<-25, SMALL($V$13:$V$59, ROWS(Z$13:Z19)),""),"") -> 
C20: リペア量<t/人> | D20: リペア量が増加するモデルのうち必ずリペア量が増加するモデルは1、増加する可能性があるモデルは▲とする | E20: 1 | G20: 1 | I20: 1 | K20: 1 | W20: リペア量 | X20: =_xlfn.TEXTJOIN(", ", TRUE, IF($E20:$T20=1, $E$12:$T$12, "")) -> ①市民持ち寄り品リペア/リユースモデル, ②自治体回収リペア/リユースモデル, ③企業製品シェアリングモデル, ④企業製品リぺア/リマニュモデル | Y20: ①市民持ち寄り品リペア/リユースモデル, ②自治体回収リペア/リユースモデル, ③企業製品シェアリングモデル, ④企業製品リぺア/リマニュモデル | Z20: =IFERROR(IF(SMALL($V$13:$V$59, ROWS(Z$13:Z20))<-25, SMALL($V$13:$V$59, ROWS(Z$13:Z20)),""),"") -> 
C21: 一般廃棄物量<t/人> | D21: 一般廃棄物量が減少するモデル（＝全モデル）は1とする | E21: 1 | G21: 1 | I21: 1 | K21: 1 | M21: 1 | O21: 1 | Q21: 1 | S21: 1 | V21: =IF(カテゴリ全国比較!$AA$39<0,カテゴリ全国比較!$AA$39,"NaN") -> NaN | W21: 一般廃棄物量 | X21: =_xlfn.TEXTJOIN(", ", TRUE, IF($E21:$T21=1, $E$12:$T$12, "")) -> ①市民持ち寄り品リペア/リユースモデル, ②自治体回収リペア/リユースモデル, ③企業製品シェアリングモデル, ④企業製品リぺア/リマニュモデル, ⑤市民詳細分別リサイクルモデル, ⑥地域資源活用リサイクル, ⑦近隣地域連携リサイクルモデル, ⑧大規模リサイクルモデル | Y21: ①市民持ち寄り品リペア/リユースモデル, ②自治体回収リペア/リユースモデル, ③企業製品シェアリングモデル, ④企業製品リぺア/リマニュモデル, ⑤市民詳細分別リサイクルモデル, ⑥地域資源活用リサイクル, ⑦近隣地域連携リサイクルモデル, ⑧大規模リサイクルモデル | Z21: =IFERROR(IF(SMALL($V$13:$V$59, ROWS(Z$13:Z21))<-25, SMALL($V$13:$V$59, ROWS(Z$13:Z21)),""),"") -> 
C22: 産業廃棄物量<t/円> | D22: 産業廃棄物が減少するモデルは1とする | G22: 1 | I22: 1 | K22: 1 | O22: 1 | Q22: 1 | S22: 1 | V22: =IF(カテゴリ全国比較!$AA$40<0,カテゴリ全国比較!$AA$40,"NaN") -> NaN | W22: 産業廃棄物量 | X22: =_xlfn.TEXTJOIN(", ", TRUE, IF($E22:$T22=1, $E$12:$T$12, "")) -> ②自治体回収リペア/リユースモデル, ③企業製品シェアリングモデル, ④企業製品リぺア/リマニュモデル, ⑥地域資源活用リサイクル, ⑦近隣地域連携リサイクルモデル, ⑧大規模リサイクルモデル | Y22: ②自治体回収リペア/リユースモデル, ③企業製品シェアリングモデル, ④企業製品リぺア/リマニュモデル, ⑥地域資源活用リサイクル, ⑦近隣地域連携リサイクルモデル, ⑧大規模リサイクルモデル | Z22: =IFERROR(IF(SMALL($V$13:$V$59, ROWS(Z$13:Z22))<-25, SMALL($V$13:$V$59, ROWS(Z$13:Z22)),""),"") -> 
B23: 資源生産性<円/t> （地域GDP/利用資源量） | D23: 中項目のうち利用資源量について全モデルで1とするため、当該指標も1とする | V23: =IF(カテゴリ全国比較!$AA$41<0,カテゴリ全国比較!$AA$41,"NaN") -> NaN | W23: =LEFT(B23,FIND("<",B23)-1) -> 資源生産性 | X23: =_xlfn.TEXTJOIN(", ", TRUE, IF($E23:$T23=1, $E$12:$T$12, "")) ->  | Y23: 該当モデルなし | Z23: =IFERROR(IF(SMALL($V$13:$V$59, ROWS(Z$13:Z23))<-25, SMALL($V$13:$V$59, ROWS(Z$13:Z23)),""),"") -> 
C24: 利用資源量<t/人> | D24: 直接的に利用資源量を減らすモデルはなし 製品の製造量減少につながるモデルは▲とする | V24: =IF(カテゴリ全国比較!$AA$42<0,カテゴリ全国比較!$AA$42,"NaN") -> NaN | W24: 一人当たり利用資源量 | X24: =_xlfn.TEXTJOIN(", ", TRUE, IF($E24:$T24=1, $E$12:$T$12, "")) ->  | Y24: 該当モデルなし | Z24: =IFERROR(IF(SMALL($V$13:$V$59, ROWS(Z$13:Z24))<-25, SMALL($V$13:$V$59, ROWS(Z$13:Z24)),""),"") -> 
C25: 地域GDP<円/人> | D25: 全モデルGDPに影響はあるもののリユース・リサイクルによるCE市場拡大でGDP増加/新規製造製品減少でGDP減少のいずれになるかは特定不可のため★とする | V25: =IF(カテゴリ全国比較!$AA$43<0,カテゴリ全国比較!$AA$43,"NaN") -> NaN | W25: =LEFT(C25,FIND("<",C25)-1) -> 地域GDP | X25: =_xlfn.TEXTJOIN(", ", TRUE, IF($E25:$T25=1, $E$12:$T$12, "")) ->  | Y25: 該当モデルなし | Z25: =IFERROR(IF(SMALL($V$13:$V$59, ROWS(Z$13:Z25))<-25, SMALL($V$13:$V$59, ROWS(Z$13:Z25)),""),"") -> 
B26: 一廃最終処分量<t/人> | D26: 一般廃棄物量が減少するモデル（＝全モデル）は1とする | E26: 1 | G26: 1 | I26: 1 | K26: 1 | M26: 1 | O26: 1 | Q26: 1 | S26: 1 | V26: =IF(カテゴリ全国比較!$AA$48<0,カテゴリ全国比較!$AA$48,"NaN") -> -2.789005306 | W26: 一廃最終処分量 | X26: =_xlfn.TEXTJOIN(", ", TRUE, IF($E26:$T26=1, $E$12:$T$12, "")) -> ①市民持ち寄り品リペア/リユースモデル, ②自治体回収リペア/リユースモデル, ③企業製品シェアリングモデル, ④企業製品リぺア/リマニュモデル, ⑤市民詳細分別リサイクルモデル, ⑥地域資源活用リサイクル, ⑦近隣地域連携リサイクルモデル, ⑧大規模リサイクルモデル | Y26: ①市民持ち寄り品リペア/リユースモデル, ②自治体回収リペア/リユースモデル, ③企業製品シェアリングモデル, ④企業製品リぺア/リマニュモデル, ⑤市民詳細分別リサイクルモデル, ⑥地域資源活用リサイクル, ⑦近隣地域連携リサイクルモデル, ⑧大規模リサイクルモデル | Z26: =IFERROR(IF(SMALL($V$13:$V$59, ROWS(Z$13:Z26))<-25, SMALL($V$13:$V$59, ROWS(Z$13:Z26)),""),"") -> 
B27: 産廃最終処分量<t/円> | D27: 産業廃棄物が減少するモデル（産廃を対象とするモデル）は1とする | G27: 1 | I27: 1 | K27: 1 | O27: 1 | Q27: 1 | S27: 1 | V27: =IF(カテゴリ全国比較!$AA$49<0,カテゴリ全国比較!$AA$49,"NaN") -> NaN | W27: 産廃最終処分量 | X27: =_xlfn.TEXTJOIN(", ", TRUE, IF($E27:$T27=1, $E$12:$T$12, "")) -> ②自治体回収リペア/リユースモデル, ③企業製品シェアリングモデル, ④企業製品リぺア/リマニュモデル, ⑥地域資源活用リサイクル, ⑦近隣地域連携リサイクルモデル, ⑧大規模リサイクルモデル | Y27: ②自治体回収リペア/リユースモデル, ③企業製品シェアリングモデル, ④企業製品リぺア/リマニュモデル, ⑥地域資源活用リサイクル, ⑦近隣地域連携リサイクルモデル, ⑧大規模リサイクルモデル | Z27: =IFERROR(IF(SMALL($V$13:$V$59, ROWS(Z$13:Z27))<-25, SMALL($V$13:$V$59, ROWS(Z$13:Z27)),""),"") -> 
B28: エネルギー使用量<TJ/人 or TJ/円> | D28: 廃棄物処理量の減少によって処理等のエネルギー減少するケース/回収品の移動や修繕、リサイクル処理等でエネルギーが増加するケースのどちらになるか判断がつかないモデルは★とする 明らかにリユース・リサイクルにかかるエネルギーが小規模のモデルは▲とする | V28: =IF(カテゴリ全国比較!$AA$50<0,カテゴリ全国比較!$AA$50,"NaN") -> NaN | W28: 一人当たりエネルギー使用量 | X28: =_xlfn.TEXTJOIN(", ", TRUE, IF($E28:$T28=1, $E$12:$T$12, "")) ->  | Y28: 該当モデルなし | Z28: =IFERROR(IF(SMALL($V$13:$V$59, ROWS(Z$13:Z28))<-25, SMALL($V$13:$V$59, ROWS(Z$13:Z28)),""),"") -> 
D29: 廃棄物処理量の減少によって処理等のエネルギー減少するケース/回収品の移動や修繕、リサイクル処理等でエネルギーが増加するケースのどちらになるか判断がつかないモデルは★とする 明らかにリユース・リサイクルにかかるエネルギーが小規模のモデルは▲とする | V29: =IF(カテゴリ全国比較!$AA$51<0,カテゴリ全国比較!$AA$51,"NaN") -> NaN | W29: 地域GDP当たりエネルギー使用量 | X29: =_xlfn.TEXTJOIN(", ", TRUE, IF($E29:$T29=1, $E$12:$T$12, "")) ->  | Y29: 該当モデルなし | Z29: =IFERROR(IF(SMALL($V$13:$V$59, ROWS(Z$13:Z29))<-25, SMALL($V$13:$V$59, ROWS(Z$13:Z29)),""),"") -> 
B30: CO2排出量<tCO2/人 or tCO2/円> | D30: 廃棄物処理量の減少によって処理等でのGHG排出量が減少するケース/回収品の移動や修繕、リサイクル処理等でGHG排出量が増加するケースのどちらになるか判断がつかないモデルは★とする 明らかにリユース・リサイクルにかかるGHG排出量が小規模のモデルは▲とする | V30: =IF(カテゴリ全国比較!$AA$52<0,カテゴリ全国比較!$AA$52,"NaN") -> NaN | W30: 一人当たりCO2排出量 | X30: =_xlfn.TEXTJOIN(", ", TRUE, IF($E30:$T30=1, $E$12:$T$12, "")) ->  | Y30: 該当モデルなし | Z30: =IFERROR(IF(SMALL($V$13:$V$59, ROWS(Z$13:Z30))<-25, SMALL($V$13:$V$59, ROWS(Z$13:Z30)),""),"") -> 
D31: 廃棄物処理量の減少によって処理等でのGHG排出量が減少するケース/回収品の移動や修繕、リサイクル処理等でGHG排出量が増加するケースのどちらになるか判断がつかないモデルは★とする 明らかにリユース・リサイクルにかかるGHG排出量が小規模のモデルは▲とする | V31: =IF(カテゴリ全国比較!$AA$53<0,カテゴリ全国比較!$AA$53,"NaN") -> NaN | W31: 地域GDP当たりCO2排出量 | X31: =_xlfn.TEXTJOIN(", ", TRUE, IF($E31:$T31=1, $E$12:$T$12, "")) ->  | Y31: 該当モデルなし | Z31: =IFERROR(IF(SMALL($V$13:$V$59, ROWS(Z$13:Z31))<-25, SMALL($V$13:$V$59, ROWS(Z$13:Z31)),""),"") -> 
B32: エコロジカルフットプリント<gha/人> | D32: 直接的に利用資源量を減らすモデルはなし 製品の製造量減少につながるモデルは▲とする | W32: =LEFT(B32,FIND("<",B32)-1) -> エコロジカルフットプリント | X32: =_xlfn.TEXTJOIN(", ", TRUE, IF($E32:$T32=1, $E$12:$T$12, "")) ->  | Y32: 該当モデルなし | Z32: =IFERROR(IF(SMALL($V$13:$V$59, ROWS(Z$13:Z32))<-25, SMALL($V$13:$V$59, ROWS(Z$13:Z32)),""),"") -> 
B33: 水の循環率<％> | D33: ー | V33: =IF(カテゴリ全国比較!$AA$54<0,カテゴリ全国比較!$AA$54,"NaN") -> NaN | W33: 水の循環率 | X33: =_xlfn.TEXTJOIN(", ", TRUE, IF($E33:$T33=1, $E$12:$T$12, "")) ->  | Y33: 該当モデルなし | Z33: =IFERROR(IF(SMALL($V$13:$V$59, ROWS(Z$13:Z33))<-25, SMALL($V$13:$V$59, ROWS(Z$13:Z33)),""),"") -> 
B34: 自然資本<百万円/人> | D34: 全モデル自然資本の利用量削減には関連するものの、その影響度は自然資本の域内/域外利用量に依存するため、★で記載 | W34: 自然資本 | X34: =_xlfn.TEXTJOIN(", ", TRUE, IF($E34:$T34=1, $E$12:$T$12, "")) ->  | Y34: 該当モデルなし | Z34: =IFERROR(IF(SMALL($V$13:$V$59, ROWS(Z$13:Z34))<-25, SMALL($V$13:$V$59, ROWS(Z$13:Z34)),""),"") -> 
B35: CE関連売上高<円/人> | D35: CE関連売上高があがるモデル（＝全モデル）は1とする | E35: 1 | G35: 1 | I35: 1 | K35: 1 | M35: 1 | O35: 1 | Q35: 1 | S35: 1 | V35: =IF(ISNA(カテゴリ全国比較!$AA$62),"NaN",IF(カテゴリ全国比較!$AA$62<0,カテゴリ全国比較!$AA$62,"NaN")) -> NaN | W35: =LEFT(B35,FIND("<",B35)-1) -> CE関連売上高 | X35: =_xlfn.TEXTJOIN(", ", TRUE, IF($E35:$T35=1, $E$12:$T$12, "")) -> ①市民持ち寄り品リペア/リユースモデル, ②自治体回収リペア/リユースモデル, ③企業製品シェアリングモデル, ④企業製品リぺア/リマニュモデル, ⑤市民詳細分別リサイクルモデル, ⑥地域資源活用リサイクル, ⑦近隣地域連携リサイクルモデル, ⑧大規模リサイクルモデル | Y35: ①市民持ち寄り品リペア/リユースモデル, ②自治体回収リペア/リユースモデル, ③企業製品シェアリングモデル, ④企業製品リぺア/リマニュモデル, ⑤市民詳細分別リサイクルモデル, ⑥地域資源活用リサイクル, ⑦近隣地域連携リサイクルモデル, ⑧大規模リサイクルモデル | Z35: =IFERROR(IF(SMALL($V$13:$V$59, ROWS(Z$13:Z35))<-25, SMALL($V$13:$V$59, ROWS(Z$13:Z35)),""),"") -> 
B36: CE関連雇用創出数<人> | D36: CE関連売上高があがるモデル（＝全モデル）は1とする | E36: 1 | G36: 1 | I36: 1 | K36: 1 | M36: 1 | O36: 1 | Q36: 1 | S36: 1 | V36: =IF(ISNA(カテゴリ全国比較!$AA$63),"NaN",IF(カテゴリ全国比較!$AA$63<0,カテゴリ全国比較!$AA$63,"NaN")) -> NaN | W36: CE関連雇用創出数 | X36: =_xlfn.TEXTJOIN(", ", TRUE, IF($E36:$T36=1, $E$12:$T$12, "")) -> ①市民持ち寄り品リペア/リユースモデル, ②自治体回収リペア/リユースモデル, ③企業製品シェアリングモデル, ④企業製品リぺア/リマニュモデル, ⑤市民詳細分別リサイクルモデル, ⑥地域資源活用リサイクル, ⑦近隣地域連携リサイクルモデル, ⑧大規模リサイクルモデル | Y36: ①市民持ち寄り品リペア/リユースモデル, ②自治体回収リペア/リユースモデル, ③企業製品シェアリングモデル, ④企業製品リぺア/リマニュモデル, ⑤市民詳細分別リサイクルモデル, ⑥地域資源活用リサイクル, ⑦近隣地域連携リサイクルモデル, ⑧大規模リサイクルモデル | Z36: =IFERROR(IF(SMALL($V$13:$V$59, ROWS(Z$13:Z36))<-25, SMALL($V$13:$V$59, ROWS(Z$13:Z36)),""),"") -> 
B37: CE関連への民間投資額<円＞ | D37: サービス提供のため確実に投資が必要なシェアリングモデルは1、その他モデルは自治体の所有設備等によって投資の必要性が変わるため▲とする | W37: CE関連への民間投資額 | X37: =_xlfn.TEXTJOIN(", ", TRUE, IF($E37:$T37=1, $E$12:$T$12, "")) ->  | Y37: 該当モデルなし | Z37: =IFERROR(IF(SMALL($V$13:$V$59, ROWS(Z$13:Z37))<-25, SMALL($V$13:$V$59, ROWS(Z$13:Z37)),""),"") -> 
B38: CE関連への公共投資額<円＞ | D38: 市民が主体的に関与するモデルは1とする。企業が主体となるモデルは自治体が企業に補助金を出すかどうかに依存するため▲で記載 | W38: CE関連への公共投資額 | X38: =_xlfn.TEXTJOIN(", ", TRUE, IF($E38:$T38=1, $E$12:$T$12, "")) ->  | Y38: 該当モデルなし | Z38: =IFERROR(IF(SMALL($V$13:$V$59, ROWS(Z$13:Z38))<-25, SMALL($V$13:$V$59, ROWS(Z$13:Z38)),""),"") -> 
B39: CE関連事業の地域経済付加価値<-> | D39: 中項目が全モデルで▲なため、当該指標も▲とする | E39: 1 | G39: 1 | I39: 1 | K39: 1 | M39: 1 | O39: 1 | Q39: 1 | S39: 1 | W39: CE関連事業の地域経済付加価値 | X39: =_xlfn.TEXTJOIN(", ", TRUE, IF($E39:$T39=1, $E$12:$T$12, "")) -> ①市民持ち寄り品リペア/リユースモデル, ②自治体回収リペア/リユースモデル, ③企業製品シェアリングモデル, ④企業製品リぺア/リマニュモデル, ⑤市民詳細分別リサイクルモデル, ⑥地域資源活用リサイクル, ⑦近隣地域連携リサイクルモデル, ⑧大規模リサイクルモデル | Y39: ①市民持ち寄り品リペア/リユースモデル, ②自治体回収リペア/リユースモデル, ③企業製品シェアリングモデル, ④企業製品リぺア/リマニュモデル, ⑤市民詳細分別リサイクルモデル, ⑥地域資源活用リサイクル, ⑦近隣地域連携リサイクルモデル, ⑧大規模リサイクルモデル | Z39: =IFERROR(IF(SMALL($V$13:$V$59, ROWS(Z$13:Z39))<-25, SMALL($V$13:$V$59, ROWS(Z$13:Z39)),""),"") -> 
C40: 従業員可処分所得<円> | D40: CE市場規模が成長するモデル（＝全モデル）で影響があるものの、市場の成長と可処分所得の増加は間接的な関係のため▲とする | W40: =LEFT(C40,FIND("<",C40)-1) -> 従業員可処分所得 | X40: =_xlfn.TEXTJOIN(", ", TRUE, IF($E40:$T40=1, $E$12:$T$12, "")) ->  | Y40: 該当モデルなし | Z40: =IFERROR(IF(SMALL($V$13:$V$59, ROWS(Z$13:Z40))<-25, SMALL($V$13:$V$59, ROWS(Z$13:Z40)),""),"") -> 
C41: CE関連の地方税<円> | D41: CE市場規模が成長するモデル（＝全モデル）に影響があるため1とする | E41: 1 | G41: 1 | I41: 1 | K41: 1 | M41: 1 | O41: 1 | Q41: 1 | S41: 1 | W41: =LEFT(C41,FIND("<",C41)-1) -> CE関連の地方税 | X41: =_xlfn.TEXTJOIN(", ", TRUE, IF($E41:$T41=1, $E$12:$T$12, "")) -> ①市民持ち寄り品リペア/リユースモデル, ②自治体回収リペア/リユースモデル, ③企業製品シェアリングモデル, ④企業製品リぺア/リマニュモデル, ⑤市民詳細分別リサイクルモデル, ⑥地域資源活用リサイクル, ⑦近隣地域連携リサイクルモデル, ⑧大規模リサイクルモデル | Y41: ①市民持ち寄り品リペア/リユースモデル, ②自治体回収リペア/リユースモデル, ③企業製品シェアリングモデル, ④企業製品リぺア/リマニュモデル, ⑤市民詳細分別リサイクルモデル, ⑥地域資源活用リサイクル, ⑦近隣地域連携リサイクルモデル, ⑧大規模リサイクルモデル | Z41: =IFERROR(IF(SMALL($V$13:$V$59, ROWS(Z$13:Z41))<-25, SMALL($V$13:$V$59, ROWS(Z$13:Z41)),""),"") -> 
C42: CE関連の地域事業者純利益<円> | D42: CE市場規模が成長するモデル（＝全モデル）に影響があるため1とする | E42: 1 | G42: 1 | I42: 1 | K42: 1 | M42: 1 | O42: 1 | Q42: 1 | S42: 1 | W42: =LEFT(C42,FIND("<",C42)-1) -> CE関連の地域事業者純利益 | X42: =_xlfn.TEXTJOIN(", ", TRUE, IF($E42:$T42=1, $E$12:$T$12, "")) -> ①市民持ち寄り品リペア/リユースモデル, ②自治体回収リペア/リユースモデル, ③企業製品シェアリングモデル, ④企業製品リぺア/リマニュモデル, ⑤市民詳細分別リサイクルモデル, ⑥地域資源活用リサイクル, ⑦近隣地域連携リサイクルモデル, ⑧大規模リサイクルモデル | Y42: ①市民持ち寄り品リペア/リユースモデル, ②自治体回収リペア/リユースモデル, ③企業製品シェアリングモデル, ④企業製品リぺア/リマニュモデル, ⑤市民詳細分別リサイクルモデル, ⑥地域資源活用リサイクル, ⑦近隣地域連携リサイクルモデル, ⑧大規模リサイクルモデル | Z42: =IFERROR(IF(SMALL($V$13:$V$59, ROWS(Z$13:Z42))<-25, SMALL($V$13:$V$59, ROWS(Z$13:Z42)),""),"") -> 
B43: 自治体でのCE取り組み度<ー> | D43: 中項目の影響度を反映 | E43: 1 | G43: 1 | I43: 1 | K43: 1 | M43: 1 | O43: 1 | Q43: 1 | S43: 1 | V43: =IF(ISNA(カテゴリ全国比較!$AA$65),"NaN",IF(カテゴリ全国比較!$AA$65<0,カテゴリ全国比較!$AA$65,"NaN")) -> NaN | W43: 自治体でのCE取り組み度 | X43: =_xlfn.TEXTJOIN(", ", TRUE, IF($E43:$T43=1, $E$12:$T$12, "")) -> ①市民持ち寄り品リペア/リユースモデル, ②自治体回収リペア/リユースモデル, ③企業製品シェアリングモデル, ④企業製品リぺア/リマニュモデル, ⑤市民詳細分別リサイクルモデル, ⑥地域資源活用リサイクル, ⑦近隣地域連携リサイクルモデル, ⑧大規模リサイクルモデル | Y43: ①市民持ち寄り品リペア/リユースモデル, ②自治体回収リペア/リユースモデル, ③企業製品シェアリングモデル, ④企業製品リぺア/リマニュモデル, ⑤市民詳細分別リサイクルモデル, ⑥地域資源活用リサイクル, ⑦近隣地域連携リサイクルモデル, ⑧大規模リサイクルモデル | Z43: =IFERROR(IF(SMALL($V$13:$V$59, ROWS(Z$13:Z43))<-25, SMALL($V$13:$V$59, ROWS(Z$13:Z43)),""),"") -> 
C44: CE実現に向けた中長期計画の立案<-> | D44: モデルに着手する前提であるためモデルによっては変動しない | V44: =IF(ISNA(カテゴリ全国比較!$AA$66),"NaN",IF(カテゴリ全国比較!$AA$66<0,カテゴリ全国比較!$AA$66,"NaN")) -> NaN | W44: =LEFT(C44,FIND("<",C44)-1) -> CE実現に向けた中長期計画の立案 | X44: =_xlfn.TEXTJOIN(", ", TRUE, IF($E44:$T44=1, $E$12:$T$12, "")) ->  | Y44: 該当モデルなし | Z44: =IFERROR(IF(SMALL($V$13:$V$59, ROWS(Z$13:Z44))<-25, SMALL($V$13:$V$59, ROWS(Z$13:Z44)),""),"") -> 
C45: 地域住民<-> | D45: 市民が主体的に関与するモデルは1とする | E45: 1 | G45: 1 | M45: 1 | O45: 1 | Q45: 1 | S45: 1 | V45: =IF(ISNA(カテゴリ全国比較!$AA$67),"NaN",IF(カテゴリ全国比較!$AA$67<0,カテゴリ全国比較!$AA$67,"NaN")) -> NaN | W45: =LEFT(C45,FIND("<",C45)-1) -> 地域住民 | X45: =_xlfn.TEXTJOIN(", ", TRUE, IF($E45:$T45=1, $E$12:$T$12, "")) -> ①市民持ち寄り品リペア/リユースモデル, ②自治体回収リペア/リユースモデル, ⑤市民詳細分別リサイクルモデル, ⑥地域資源活用リサイクル, ⑦近隣地域連携リサイクルモデル, ⑧大規模リサイクルモデル | Y45: ①市民持ち寄り品リペア/リユースモデル, ②自治体回収リペア/リユースモデル, ⑤市民詳細分別リサイクルモデル, ⑥地域資源活用リサイクル, ⑦近隣地域連携リサイクルモデル, ⑧大規模リサイクルモデル | Z45: =IFERROR(IF(SMALL($V$13:$V$59, ROWS(Z$13:Z45))<-25, SMALL($V$13:$V$59, ROWS(Z$13:Z45)),""),"") -> 
C46: 地域企業<-> | D46: 企業が主体的に関与するモデルは1とする。 | I46: 1 | K46: 1 | M46: 1 | O46: 1 | Q46: 1 | S46: 1 | V46: =IF(ISNA(カテゴリ全国比較!$AA$68),"NaN",IF(カテゴリ全国比較!$AA$68<0,カテゴリ全国比較!$AA$68,"NaN")) -> NaN | W46: =LEFT(C46,FIND("<",C46)-1) -> 地域企業 | X46: =_xlfn.TEXTJOIN(", ", TRUE, IF($E46:$T46=1, $E$12:$T$12, "")) -> ③企業製品シェアリングモデル, ④企業製品リぺア/リマニュモデル, ⑤市民詳細分別リサイクルモデル, ⑥地域資源活用リサイクル, ⑦近隣地域連携リサイクルモデル, ⑧大規模リサイクルモデル | Y46: ③企業製品シェアリングモデル, ④企業製品リぺア/リマニュモデル, ⑤市民詳細分別リサイクルモデル, ⑥地域資源活用リサイクル, ⑦近隣地域連携リサイクルモデル, ⑧大規模リサイクルモデル | Z46: =IFERROR(IF(SMALL($V$13:$V$59, ROWS(Z$13:Z46))<-25, SMALL($V$13:$V$59, ROWS(Z$13:Z46)),""),"") -> 
C47: 外部発信<-> | D47: 広報的取り組みのためモデルによっては変動しない | V47: =IF(ISNA(カテゴリ全国比較!$AA$69),"NaN",IF(カテゴリ全国比較!$AA$69<0,カテゴリ全国比較!$AA$69,"NaN")) -> NaN | W47: =LEFT(C47,FIND("<",C47)-1) -> 外部発信 | X47: =_xlfn.TEXTJOIN(", ", TRUE, IF($E47:$T47=1, $E$12:$T$12, "")) ->  | Y47: 該当モデルなし | Z47: =IFERROR(IF(SMALL($V$13:$V$59, ROWS(Z$13:Z47))<-25, SMALL($V$13:$V$59, ROWS(Z$13:Z47)),""),"") -> 
C48: インフラ<-> | D48: 大・中規模設備を必要とするモデルは▲とする。（自治体が補助・支援するかに依存するため1とはしない） | V48: =IF(ISNA(カテゴリ全国比較!$AA$70),"NaN",IF(カテゴリ全国比較!$AA$70<0,カテゴリ全国比較!$AA$70,"NaN")) -> -0.1925715225 | W48: =LEFT(C48,FIND("<",C48)-1) -> インフラ | X48: =_xlfn.TEXTJOIN(", ", TRUE, IF($E48:$T48=1, $E$12:$T$12, "")) ->  | Y48: 該当モデルなし | Z48: =IFERROR(IF(SMALL($V$13:$V$59, ROWS(Z$13:Z48))<-25, SMALL($V$13:$V$59, ROWS(Z$13:Z48)),""),"") -> 
B49: 環境配慮への意識度<%> | D49: 市民が主体となる取り組みは1、企業が主体となる取り組みは▲とする | E49: 1 | G49: 1 | I49: 1 | M49: 1 | V49: =IF(カテゴリ全国比較!$AA$71<0,カテゴリ全国比較!$AA$70,"NaN") -> -0.1925715225 | W49: 環境配慮への意識度 | X49: =_xlfn.TEXTJOIN(", ", TRUE, IF($E49:$T49=1, $E$12:$T$12, "")) -> ①市民持ち寄り品リペア/リユースモデル, ②自治体回収リペア/リユースモデル, ③企業製品シェアリングモデル, ⑤市民詳細分別リサイクルモデル | Y49: ①市民持ち寄り品リペア/リユースモデル, ②自治体回収リペア/リユースモデル, ③企業製品シェアリングモデル, ⑤市民詳細分別リサイクルモデル | Z49: =IFERROR(IF(SMALL($V$13:$V$59, ROWS(Z$13:Z49))<-25, SMALL($V$13:$V$59, ROWS(Z$13:Z49)),""),"") -> 
B50: 日常生活における環境配慮行動<-> | D50: 市民が主体となる取り組みは1、企業が主体となる取り組みは▲とする | E50: 1 | G50: 1 | I50: 1 | M50: 1 | W50: 日常生活における環境配慮行動 | X50: =_xlfn.TEXTJOIN(", ", TRUE, IF($E50:$T50=1, $E$12:$T$12, "")) -> ①市民持ち寄り品リペア/リユースモデル, ②自治体回収リペア/リユースモデル, ③企業製品シェアリングモデル, ⑤市民詳細分別リサイクルモデル | Y50: ①市民持ち寄り品リペア/リユースモデル, ②自治体回収リペア/リユースモデル, ③企業製品シェアリングモデル, ⑤市民詳細分別リサイクルモデル | Z50: =IFERROR(IF(SMALL($V$13:$V$59, ROWS(Z$13:Z50))<-25, SMALL($V$13:$V$59, ROWS(Z$13:Z50)),""),"") -> 
B51: 人工資本<百万円/人> | D51: CE市場規模が成長するモデル（＝全モデル）に影響があるものの、必ずしも県民総生産増加が生じるとは言い切れないため▲とする | W51: 人工資本 | X51: =_xlfn.TEXTJOIN(", ", TRUE, IF($E51:$T51=1, $E$12:$T$12, "")) ->  | Y51: 該当モデルなし | Z51: =IFERROR(IF(SMALL($V$13:$V$59, ROWS(Z$13:Z51))<-25, SMALL($V$13:$V$59, ROWS(Z$13:Z51)),""),"") -> 
B52: 人的資本<百万円/人> | D52: 中項目が全モデルで×なため、当該指標も×とする | W52: 人的資本 | X52: =_xlfn.TEXTJOIN(", ", TRUE, IF($E52:$T52=1, $E$12:$T$12, "")) ->  | Y52: 該当モデルなし | Z52: =IFERROR(IF(SMALL($V$13:$V$59, ROWS(Z$13:Z52))<-25, SMALL($V$13:$V$59, ROWS(Z$13:Z52)),""),"") -> 
C53: 教育資本<-> | D53: 各モデルでは変動しない | W53: =LEFT(C53,FIND("<",C53)-1) -> 教育資本 | X53: =_xlfn.TEXTJOIN(", ", TRUE, IF($E53:$T53=1, $E$12:$T$12, "")) ->  | Y53: 該当モデルなし | Z53: =IFERROR(IF(SMALL($V$13:$V$59, ROWS(Z$13:Z53))<-25, SMALL($V$13:$V$59, ROWS(Z$13:Z53)),""),"") -> 
C54: 健康資本<-> | D54: 各モデルでは変動しない | W54: =LEFT(C54,FIND("<",C54)-1) -> 健康資本 | X54: =_xlfn.TEXTJOIN(", ", TRUE, IF($E54:$T54=1, $E$12:$T$12, "")) ->  | Y54: 該当モデルなし | Z54: =IFERROR(IF(SMALL($V$13:$V$59, ROWS(Z$13:Z54))<-25, SMALL($V$13:$V$59, ROWS(Z$13:Z54)),""),"") -> 
B55: 地域コミュニティの成熟度<-> | D55: 市民が主体的に関与するモデルは1とする | E55: 1 | G55: 1 | M55: 1 | V55: =IF(カテゴリ全国比較!$AA$80<0,カテゴリ全国比較!$AA$80,"NaN") -> -0.8660248899 | W55: 地域コミュニティの成熟度 | X55: =_xlfn.TEXTJOIN(", ", TRUE, IF($E55:$T55=1, $E$12:$T$12, "")) -> ①市民持ち寄り品リペア/リユースモデル, ②自治体回収リペア/リユースモデル, ⑤市民詳細分別リサイクルモデル | Y55: ①市民持ち寄り品リペア/リユースモデル, ②自治体回収リペア/リユースモデル, ⑤市民詳細分別リサイクルモデル | Z55: =IFERROR(IF(SMALL($V$13:$V$59, ROWS(Z$13:Z55))<-25, SMALL($V$13:$V$59, ROWS(Z$13:Z55)),""),"") -> 
B56: 地域住民の満足度<-> | D56: 中項目のうち市民の満足度と同様の影響度とする | E56: 1 | G56: 1 | K56: 1 | M56: 1 | O56: 1 | Q56: 1 | S56: 1 | V56: =IF(カテゴリ全国比較!$AA$81<0,カテゴリ全国比較!$AA$81,"NaN") -> -0.7928375425 | W56: 地域住民の満足度 | X56: =_xlfn.TEXTJOIN(", ", TRUE, IF($E56:$T56=1, $E$12:$T$12, "")) -> ①市民持ち寄り品リペア/リユースモデル, ②自治体回収リペア/リユースモデル, ④企業製品リぺア/リマニュモデル, ⑤市民詳細分別リサイクルモデル, ⑥地域資源活用リサイクル, ⑦近隣地域連携リサイクルモデル, ⑧大規模リサイクルモデル | Y56: ①市民持ち寄り品リペア/リユースモデル, ②自治体回収リペア/リユースモデル, ④企業製品リぺア/リマニュモデル, ⑤市民詳細分別リサイクルモデル, ⑥地域資源活用リサイクル, ⑦近隣地域連携リサイクルモデル, ⑧大規模リサイクルモデル | Z56: =IFERROR(IF(SMALL($V$13:$V$59, ROWS(Z$13:Z56))<-25, SMALL($V$13:$V$59, ROWS(Z$13:Z56)),""),"") -> 
C57: 自然との接触度<-> | D57: 各モデルでは変動しない | W57: =LEFT(C57,FIND("<",C57)-1) -> 自然との接触度 | X57: =_xlfn.TEXTJOIN(", ", TRUE, IF($E57:$T57=1, $E$12:$T$12, "")) ->  | Y57: 該当モデルなし | Z57: =IFERROR(IF(SMALL($V$13:$V$59, ROWS(Z$13:Z57))<-25, SMALL($V$13:$V$59, ROWS(Z$13:Z57)),""),"") -> 
C58: 市民の満足度<-> | D58: 環境系の改善があるモデル（＝全モデル）に影響があり、特に市民が主体的に関与するモデルは1、企業が中心のモデルは▲とする | E58: 1 | G58: 1 | M58: 1 | O58: 1 | W58: =LEFT(C58,FIND("<",C58)-1) -> 市民の満足度 | X58: =_xlfn.TEXTJOIN(", ", TRUE, IF($E58:$T58=1, $E$12:$T$12, "")) -> ①市民持ち寄り品リペア/リユースモデル, ②自治体回収リペア/リユースモデル, ⑤市民詳細分別リサイクルモデル, ⑥地域資源活用リサイクル | Y58: ①市民持ち寄り品リペア/リユースモデル, ②自治体回収リペア/リユースモデル, ⑤市民詳細分別リサイクルモデル, ⑥地域資源活用リサイクル | Z58: =IFERROR(IF(SMALL($V$13:$V$59, ROWS(Z$13:Z58))<-25, SMALL($V$13:$V$59, ROWS(Z$13:Z58)),""),"") -> 
B59: 地域愛着度<-> | D59: 利便性や環境改善が市民に実感できるモデルは影響があり、市民が主体的に関与するモデルは1、企業が主体的に関与するモデルは▲とする | E59: 1 | G59: 1 | M59: 1 | O59: 1 | V59: =IF(カテゴリ全国比較!$AA$82<0,カテゴリ全国比較!$AA$82,"NaN") -> -0.087784275 | W59: 地域愛着度 | X59: =_xlfn.TEXTJOIN(", ", TRUE, IF($E59:$T59=1, $E$12:$T$12, "")) -> ①市民持ち寄り品リペア/リユースモデル, ②自治体回収リペア/リユースモデル, ⑤市民詳細分別リサイクルモデル, ⑥地域資源活用リサイクル | Y59: ①市民持ち寄り品リペア/リユースモデル, ②自治体回収リペア/リユースモデル, ⑤市民詳細分別リサイクルモデル, ⑥地域資源活用リサイクル | Z59: =IFERROR(IF(SMALL($V$13:$V$59, ROWS(Z$13:Z59))<-25, SMALL($V$13:$V$59, ROWS(Z$13:Z59)),""),"") -> 
B60: * | C60: * | E60: * | F60: * | G60: * | H60: * | I60: * | J60: * | K60: * | L60: * | M60: * | N60: * | O60: * | P60: * | Q60: * | R60: * | S60: * | T60: *

Sheet 自治体様向けご入力シート（サンプル）
B2: 市区町村対象 | E2: 都道府県対象
B3: 都道府県名 | C3: 北海道 | E3: 都道府県名 | F3: 北海道
B4: 市区町村名 | C4: 札幌市
B5: 説明 | C5: =IFERROR(VLOOKUP(C8,市区町村_カテゴリID!$AN$4:$AO$12,2,FALSE), "該当する都市がありません。") -> 人口:大規模, 主要産業: 三次産業
B6: 地域名連結 | C6: =C3&" "&C4 -> 北海道 札幌市
B7: 地域コード | C7: =IFERROR(VLOOKUP(C6,市町村リスト!$A$2:$B$1742,2,FALSE),"") -> 1100
B8: カテゴリID | C8: =IFERROR(VLOOKUP(C7,市区町村_カテゴリID!$B$4:$AA$1919,26,FALSE),"") -> 7
B10: ※ 自治体様の方でお持ちの情報を入力できるシートとなりますが、公開版においては動作しませんので、サンプルのイメージとしてご理解ください。
B11: 指標名 | C11: 入力値 | E11: 指標名 | F11: 入力値
B12: 入口の循環利用率<%> | E12: 入口の循環利用率<%>
B13: 循環資源の利用量<t> | E13: 循環資源の利用量<t>
B14: 利用資源量<t> | E14: 利用資源量<t>
B15: 出口の循環利用率<%> | E15: 出口の循環利用率<%>
B16: リサイクル量（一般廃棄物）<t> | E16: リサイクル量（一般廃棄物）<t>
B17: リユース量（一般廃棄物）<t> | E17: リユース量（一般廃棄物）<t>
B18: 一般廃棄物量<t> | E18: 一般廃棄物量<t>
B19: 産業廃棄物量<t> | E19: 産業廃棄物量<t>
B20: 資源生産性<円/t> | E20: 資源生産性<円/t>
B21: 利用資源量<t> | E21: 利用資源量<t>
B22: 地域GDP<百万円> | E22: 地域GDP<百万円>
B23: 一般廃棄物最終処分量<t> | E23: 一般廃棄物最終処分量<t>
B24: 産業廃棄物最終処分量<t> | E24: 産業廃棄物最終処分量<t>
B25: エネルギー使用量<TJ> | E25: エネルギー使用量<TJ>
B26: CO2排出量<tCO2> | E26: CO2排出量<tCO2>
B27: 水の循環利用率<%> | E27: エコロジカルフットプリント<gha/人>
B28: 自然資本<-> | E28: 水の循環利用率<%>
B29: CE関連売上高<円> | E29: 自然資本<->
B30: CE関連雇用創出数<人> | E30: CE関連売上高<円>
B31: CE取り組み度（中長期立案）<-> | E31: CE関連雇用創出数<人>
B32: CE取り組み度（地域住民）<-> | E32: CE取り組み度（中長期立案）<->
B33: CE取り組み度（地域企業）<-> | E33: CE取り組み度（地域住民）<->
B34: CE取り組み度（外部発信）<-> | E34: CE取り組み度（地域企業）<->
B35: CE取り組み度（インフラ） | E35: CE取り組み度（外部発信）<->
B36: 環境配慮への意識度<%> | E36: CE取り組み度（インフラ）
B37: 人工資本<-> | E37: 環境配慮への意識度<%>
B38: 人的資本<-> | E38: 人工資本<->
B39: 地域コミュニティの成熟度<-> | E39: 人的資本<->
B40: 地域住民の生活満足度<-> | E40: 地域コミュニティの成熟度<->
B41: 地域愛着度<-> | E41: 地域住民の生活満足度<->
E42: 地域愛着度<->

Sheet カテゴリ全国比較
B2: 分析対象自治体 | J2: 基礎情報 | K2: 対象カテゴリ | L2: 全国平均 | X2: 指標全体のレーダーチャート
B3: 都道府県名 | C3: 市区町村名 | D3: 説明 | F3: 地域名連結 | G3: 地域コード | H3: カテゴリID | J3: 人口＜人＞ | K3: =VLOOKUP($H$4,'カテゴリ_基礎指標 '!$A$2:$I$11,2,FALSE) -> 1112551 | L3: =VLOOKUP("全国",'カテゴリ_基礎指標 '!$A$2:$I$11,2,FALSE) -> 72497.75805 | X3: 指標名 | Y3: 分析対象 | Z3: カテゴリ平均値 | AA3: カテゴリとの乖離度(%)
B4: 北海道 | C4: 札幌市 | D4: =IFERROR(VLOOKUP(H4,市区町村_カテゴリID!$AN$4:$AO$12,2,FALSE), "該当する都市がありません。") -> 人口:大規模, 主要産業: 三次産業 | F4: =B4&" "&C4 -> 北海道 札幌市 | G4: =IFERROR(VLOOKUP(F4,市町村リスト!$A$2:$B$1742,2,FALSE),"") -> 1100 | H4: =IFERROR(VLOOKUP(G4,市区町村_カテゴリID!$B$4:$AA$1919,26,FALSE),"") -> 7 | J4: 総面積＜km2＞ | K4: =VLOOKUP($H$4,'カテゴリ_基礎指標 '!$A$2:$I$11,3,FALSE) -> 257.8919188 | L4: =VLOOKUP("全国",'カテゴリ_基礎指標 '!$A$2:$I$11,3,FALSE) -> 214.2043911 | W4: =LEFT(X4,FIND("<",X4)-1) -> 入口の循環利用率 | X4: 入口の循環利用率<%> | Y4: =_xlfn.XLOOKUP($H$4,市区町村_現在_カテゴリ_単位換算!$A$3:$A$12,_xlfn.XLOOKUP(カテゴリ全国比較!$X4,市区町村_現在_カテゴリ_単位換算!$B$2:$AS$2,市区町村_現在_カテゴリ_単位換算!$B$3:$AS$12)) -> 20.72664387 | Z4: =_xlfn.XLOOKUP("全国",市区町村_現在_カテゴリ_単位換算!$A$3:$A$12,_xlfn.XLOOKUP(カテゴリ全国比較!$X4,市区町村_現在_カテゴリ_単位換算!$B$2:$AS$2,市区町村_現在_カテゴリ_単位換算!$B$3:$AS$12)) -> 15.62078167 | AA4: =IFERROR((Y4/Z4-1)*100,"Null") -> 32.68634252 | AL4: =IF(ISNA(AA4),NA(),0) -> 0
B5: ※ 公開版においては選択された自治体の属するカテゴリと全国平均との比較をしております。正規版においては、選択された自治体（複数選択可能）と属するカテゴリ平均との比較が示されます。公開版ではサンプルのイメージとしてご理解ください。 | J5: 人口密度＜人/km2＞ | K5: =VLOOKUP($H$4,'カテゴリ_基礎指標 '!$A$2:$I$11,4,FALSE) -> 4314.020406 | L5: =VLOOKUP("全国",'カテゴリ_基礎指標 '!$A$2:$I$11,4,FALSE) -> 338.451316 | W5: =LEFT(X5,FIND("<",X5)-1) -> 出口の循環利用率 | X5: 出口の循環利用率<%> | Y5: =_xlfn.XLOOKUP($H$4,市区町村_現在_カテゴリ_単位換算!$A$3:$A$12,_xlfn.XLOOKUP(カテゴリ全国比較!$X5,市区町村_現在_カテゴリ_単位換算!$B$2:$AS$2,市区町村_現在_カテゴリ_単位換算!$B$3:$AS$12)) -> 37.76689813 | Z5: =_xlfn.XLOOKUP("全国",市区町村_現在_カテゴリ_単位換算!$A$3:$A$12,_xlfn.XLOOKUP(カテゴリ全国比較!$X5,市区町村_現在_カテゴリ_単位換算!$B$2:$AS$2,市区町村_現在_カテゴリ_単位換算!$B$3:$AS$12)) -> 50.81876034 | AA5: =IFERROR((Y5/Z5-1)*100,"Null") -> -25.68315742 | AL5: 0
J6: 労働人口＜人＞ | K6: =VLOOKUP($H$4,'カテゴリ_基礎指標 '!$A$2:$I$11,5,FALSE) -> 499020.3125 | L6: =VLOOKUP("全国",'カテゴリ_基礎指標 '!$A$2:$I$11,5,FALSE) -> 34453.88908 | W6: 資源生産性 | X6: 資源生産性<百万円/t> | Y6: =_xlfn.XLOOKUP($H$4,市区町村_現在_カテゴリ_単位換算!$A$3:$A$12,_xlfn.XLOOKUP(カテゴリ全国比較!$X6,市区町村_現在_カテゴリ_単位換算!$B$2:$AS$2,市区町村_現在_カテゴリ_単位換算!$B$3:$AS$12)) -> 1.267997142 | Z6: =_xlfn.XLOOKUP("全国",市区町村_現在_カテゴリ_単位換算!$A$3:$A$12,_xlfn.XLOOKUP(カテゴリ全国比較!$X6,市区町村_現在_カテゴリ_単位換算!$B$2:$AS$2,市区町村_現在_カテゴリ_単位換算!$B$3:$AS$12)) -> 0.423726755 | AA6: =IFERROR((Y6/Z6-1)*100,"Null") -> 199.2487793 | AL6: 0
J7: 地域GDP＜百万円＞ | K7: =VLOOKUP($H$4,'カテゴリ_基礎指標 '!$A$2:$I$11,6,FALSE) -> 6176642.5 | L7: =VLOOKUP("全国",'カテゴリ_基礎指標 '!$A$2:$I$11,6,FALSE) -> 326222.7339 | W7: 一般廃棄物最終処分量 | X7: 一般廃棄物最終処分量 <t/人> | Y7: =_xlfn.XLOOKUP($H$4,市区町村_現在_カテゴリ_単位換算!$A$3:$A$12,_xlfn.XLOOKUP(カテゴリ全国比較!$X7,市区町村_現在_カテゴリ_単位換算!$B$2:$AS$2,市区町村_現在_カテゴリ_単位換算!$B$3:$AS$12)) -> 0.0278979653 | Z7: =_xlfn.XLOOKUP("全国",市区町村_現在_カテゴリ_単位換算!$A$3:$A$12,_xlfn.XLOOKUP(カテゴリ全国比較!$X7,市区町村_現在_カテゴリ_単位換算!$B$2:$AS$2,市区町村_現在_カテゴリ_単位換算!$B$3:$AS$12)) -> 0.02714100133 | AA7: =IFERROR((1-Y7/Z7)*100,"Null") -> -2.789005306 | AL7: 0
J8: 第一次産業算出額＜百万円＞ | K8: =VLOOKUP($H$4,'カテゴリ_基礎指標 '!$A$2:$I$11,7,FALSE) -> 5660 | L8: =VLOOKUP("全国",'カテゴリ_基礎指標 '!$A$2:$I$11,7,FALSE) -> 5030.927114 | W8: 産業廃棄物最終処分量 | X8: 産業廃棄物最終処分量 <t/地域GDP(百万円)> | Y8: =_xlfn.XLOOKUP($H$4,市区町村_現在_カテゴリ_単位換算!$A$3:$A$12,_xlfn.XLOOKUP(カテゴリ全国比較!$X8,市区町村_現在_カテゴリ_単位換算!$B$2:$AS$2,市区町村_現在_カテゴリ_単位換算!$B$3:$AS$12)) -> 0.008769184907 | Z8: =_xlfn.XLOOKUP("全国",市区町村_現在_カテゴリ_単位換算!$A$3:$A$12,_xlfn.XLOOKUP(カテゴリ全国比較!$X8,市区町村_現在_カテゴリ_単位換算!$B$2:$AS$2,市区町村_現在_カテゴリ_単位換算!$B$3:$AS$12)) -> 0.01553753193 | AA8: 43.56127509 | AL8: 0
J9: 第二次産業算出額＜百万円＞ | K9: =VLOOKUP($H$4,'カテゴリ_基礎指標 '!$A$2:$I$11,8,FALSE) -> 802866.375 | L9: =VLOOKUP("全国",'カテゴリ_基礎指標 '!$A$2:$I$11,8,FALSE) -> 198514.1167 | W9: 一人当たりエネルギー使用量 | X9: エネルギー使用量 <TJ/人> | Y9: =_xlfn.XLOOKUP($H$4,市区町村_現在_カテゴリ_単位換算!$A$3:$A$12,_xlfn.XLOOKUP(カテゴリ全国比較!$X9,市区町村_現在_カテゴリ_単位換算!$B$2:$AS$2,市区町村_現在_カテゴリ_単位換算!$B$3:$AS$12)) -> 0.06039583972 | Z9: =_xlfn.XLOOKUP("全国",市区町村_現在_カテゴリ_単位換算!$A$3:$A$12,_xlfn.XLOOKUP(カテゴリ全国比較!$X9,市区町村_現在_カテゴリ_単位換算!$B$2:$AS$2,市区町村_現在_カテゴリ_単位換算!$B$3:$AS$12)) -> 0.1008570388 | AA9: 40.11737758 | AL9: 0
J10: 第三次産業算出額＜百万円＞ | K10: =VLOOKUP($H$4,'カテゴリ_基礎指標 '!$A$2:$I$11,9,FALSE) -> 8127047.812 | L10: =VLOOKUP("全国",'カテゴリ_基礎指標 '!$A$2:$I$11,9,FALSE) -> 315244.4242 | W10: 地域GDP当たりエネルギー使用量 | X10: エネルギー使用量 <TJ/地域GDP(百万円)> | Y10: =_xlfn.XLOOKUP($H$4,市区町村_現在_カテゴリ_単位換算!$A$3:$A$12,_xlfn.XLOOKUP(カテゴリ全国比較!$X10,市区町村_現在_カテゴリ_単位換算!$B$2:$AS$2,市区町村_現在_カテゴリ_単位換算!$B$3:$AS$12)) -> 0.01087863704 | Z10: =_xlfn.XLOOKUP("全国",市区町村_現在_カテゴリ_単位換算!$A$3:$A$12,_xlfn.XLOOKUP(カテゴリ全国比較!$X10,市区町村_現在_カテゴリ_単位換算!$B$2:$AS$2,市区町村_現在_カテゴリ_単位換算!$B$3:$AS$12)) -> 0.02240200931 | AA10: 51.43901206 | AL10: 0
W11: 一人当たりCO2排出量 | X11: CO2排出量 <tCO2/人> | Y11: =_xlfn.XLOOKUP($H$4,市区町村_現在_カテゴリ_単位換算!$A$3:$A$12,_xlfn.XLOOKUP(カテゴリ全国比較!$X11,市区町村_現在_カテゴリ_単位換算!$B$2:$AS$2,市区町村_現在_カテゴリ_単位換算!$B$3:$AS$12)) -> 4.393822396 | Z11: =_xlfn.XLOOKUP("全国",市区町村_現在_カテゴリ_単位換算!$A$3:$A$12,_xlfn.XLOOKUP(カテゴリ全国比較!$X11,市区町村_現在_カテゴリ_単位換算!$B$2:$AS$2,市区町村_現在_カテゴリ_単位換算!$B$3:$AS$12)) -> 7.350936658 | AA11: 40.22772063 | AL11: 0
W12: 地域GDP当たりCO2排出量 | X12: CO2排出量 <tCO2/地域GDP(百万円)> | Y12: =_xlfn.XLOOKUP($H$4,市区町村_現在_カテゴリ_単位換算!$A$3:$A$12,_xlfn.XLOOKUP(カテゴリ全国比較!$X12,市区町村_現在_カテゴリ_単位換算!$B$2:$AS$2,市区町村_現在_カテゴリ_単位換算!$B$3:$AS$12)) -> 0.7914253577 | Z12: =_xlfn.XLOOKUP("全国",市区町村_現在_カテゴリ_単位換算!$A$3:$A$12,_xlfn.XLOOKUP(カテゴリ全国比較!$X12,市区町村_現在_カテゴリ_単位換算!$B$2:$AS$2,市区町村_現在_カテゴリ_単位換算!$B$3:$AS$12)) -> 1.632764093 | AA12: 51.52849324 | AL12: 0
W13: 水の循環利用率 | X13: 水の循環利用率<%> | Y13: =_xlfn.XLOOKUP($H$4,市区町村_現在_カテゴリ_単位換算!$A$3:$A$12,_xlfn.XLOOKUP(カテゴリ全国比較!$X13,市区町村_現在_カテゴリ_単位換算!$B$2:$AS$2,市区町村_現在_カテゴリ_単位換算!$B$3:$AS$12)) -> 63.17792301 | Z13: =_xlfn.XLOOKUP("全国",市区町村_現在_カテゴリ_単位換算!$A$3:$A$12,_xlfn.XLOOKUP(カテゴリ全国比較!$X13,市区町村_現在_カテゴリ_単位換算!$B$2:$AS$2,市区町村_現在_カテゴリ_単位換算!$B$3:$AS$12)) -> 79.31820255 | AA13: =IFERROR((Y13/Z13-1)*100,"Null") -> -20.34877117 | AL13: 0
W14: 自然資本 | X14: 自然資本 <百万円/人> | Y14: =_xlfn.XLOOKUP($H$4,市区町村_現在_カテゴリ_単位換算!$A$3:$A$12,_xlfn.XLOOKUP(カテゴリ全国比較!$X14,市区町村_現在_カテゴリ_単位換算!$B$2:$AS$2,市区町村_現在_カテゴリ_単位換算!$B$3:$AS$12)) -> 0.008987690729 | Z14: =_xlfn.XLOOKUP("全国",市区町村_現在_カテゴリ_単位換算!$A$3:$A$12,_xlfn.XLOOKUP(カテゴリ全国比較!$X14,市区町村_現在_カテゴリ_単位換算!$B$2:$AS$2,市区町村_現在_カテゴリ_単位換算!$B$3:$AS$12)) -> 0.1937549176 | AA14: -95.36130962 | AL14: 0
W15: CE関連売上高 | X15: CE関連売上高 <円/人> | Y15: =_xlfn.XLOOKUP($H$4,市区町村_現在_カテゴリ_単位換算!$A$3:$A$12,_xlfn.XLOOKUP(カテゴリ全国比較!$X15,市区町村_現在_カテゴリ_単位換算!$B$2:$AS$2,市区町村_現在_カテゴリ_単位換算!$B$3:$AS$12)) ->  | Z15: =_xlfn.XLOOKUP("全国",市区町村_現在_カテゴリ_単位換算!$A$3:$A$12,_xlfn.XLOOKUP(カテゴリ全国比較!$X15,市区町村_現在_カテゴリ_単位換算!$B$2:$AS$2,市区町村_現在_カテゴリ_単位換算!$B$3:$AS$12)) ->  | AA15: =IFERROR(IF(Y15="","Null",(Y15/Z15-1)*100),NA()) -> 
W16: CE関連雇用創出数 | X16: CE関連雇用創出数 <人/労働人口> | Y16: =_xlfn.XLOOKUP($H$4,市区町村_現在_カテゴリ_単位換算!$A$3:$A$12,_xlfn.XLOOKUP(カテゴリ全国比較!$X16,市区町村_現在_カテゴリ_単位換算!$B$2:$AS$2,市区町村_現在_カテゴリ_単位換算!$B$3:$AS$12)) ->  | Z16: =_xlfn.XLOOKUP("全国",市区町村_現在_カテゴリ_単位換算!$A$3:$A$12,_xlfn.XLOOKUP(カテゴリ全国比較!$X16,市区町村_現在_カテゴリ_単位換算!$B$2:$AS$2,市区町村_現在_カテゴリ_単位換算!$B$3:$AS$12)) ->  | AA16: =IFERROR(IF(Y16="","Null",(Y16/Z16-1)*100),NA()) -> 
W17: 自治体でのCE取り組み度 | X17: 自治体でのCE取り組み度<%> | Y17: =_xlfn.XLOOKUP($H$4,市区町村_現在_カテゴリ_単位換算!$A$3:$A$12,_xlfn.XLOOKUP(カテゴリ全国比較!$X17,市区町村_現在_カテゴリ_単位換算!$B$2:$AS$2,市区町村_現在_カテゴリ_単位換算!$B$3:$AS$12)) ->  | Z17: =_xlfn.XLOOKUP("全国",市区町村_現在_カテゴリ_単位換算!$A$3:$A$12,_xlfn.XLOOKUP(カテゴリ全国比較!$X17,市区町村_現在_カテゴリ_単位換算!$B$2:$AS$2,市区町村_現在_カテゴリ_単位換算!$B$3:$AS$12)) ->  | AA17: =IFERROR(IF(Y17="","Null",(Y17/Z17-1)*100),NA()) -> 
W18: 環境配慮への意識度 | X18: 環境配慮への意識度<%> | Y18: =_xlfn.XLOOKUP($H$4,市区町村_現在_カテゴリ_単位換算!$A$3:$A$12,_xlfn.XLOOKUP(カテゴリ全国比較!$X18,市区町村_現在_カテゴリ_単位換算!$B$2:$AS$2,市区町村_現在_カテゴリ_単位換算!$B$3:$AS$12)) -> 49.90371424 | Z18: =_xlfn.XLOOKUP("全国",市区町村_現在_カテゴリ_単位換算!$A$3:$A$12,_xlfn.XLOOKUP(カテゴリ全国比較!$X18,市区町村_現在_カテゴリ_単位換算!$B$2:$AS$2,市区町村_現在_カテゴリ_単位換算!$B$3:$AS$12)) -> 50 | AA18: =IFERROR((Y18/Z18-1)*100,NA()) -> -0.1925715225 | AL18: 0
W19: 人工資本 | X19: 人工資本 <百万円/人> | Y19: =_xlfn.XLOOKUP($H$4,市区町村_現在_カテゴリ_単位換算!$A$3:$A$12,_xlfn.XLOOKUP(カテゴリ全国比較!$X19,市区町村_現在_カテゴリ_単位換算!$B$2:$AS$2,市区町村_現在_カテゴリ_単位換算!$B$3:$AS$12)) -> 18.80208187 | Z19: =_xlfn.XLOOKUP("全国",市区町村_現在_カテゴリ_単位換算!$A$3:$A$12,_xlfn.XLOOKUP(カテゴリ全国比較!$X19,市区町村_現在_カテゴリ_単位換算!$B$2:$AS$2,市区町村_現在_カテゴリ_単位換算!$B$3:$AS$12)) -> 21.21025808 | AA19: =IFERROR((Y19/Z19-1)*100,NA()) -> -11.35382794 | AL19: 0
W20: 人的資本 | X20: 人的資本 <百万円/人> | Y20: =_xlfn.XLOOKUP($H$4,市区町村_現在_カテゴリ_単位換算!$A$3:$A$12,_xlfn.XLOOKUP(カテゴリ全国比較!$X20,市区町村_現在_カテゴリ_単位換算!$B$2:$AS$2,市区町村_現在_カテゴリ_単位換算!$B$3:$AS$12)) -> 31.38314122 | Z20: =_xlfn.XLOOKUP("全国",市区町村_現在_カテゴリ_単位換算!$A$3:$A$12,_xlfn.XLOOKUP(カテゴリ全国比較!$X20,市区町村_現在_カテゴリ_単位換算!$B$2:$AS$2,市区町村_現在_カテゴリ_単位換算!$B$3:$AS$12)) -> 32.08768192 | AA20: -2.195673417 | AL20: 0
W21: 地域コミュニティの成熟度 | X21: 地域コミュニティの成熟度<-> | Y21: =_xlfn.XLOOKUP($H$4,市区町村_現在_カテゴリ_単位換算!$A$3:$A$12,_xlfn.XLOOKUP(カテゴリ全国比較!$X21,市区町村_現在_カテゴリ_単位換算!$B$2:$AS$2,市区町村_現在_カテゴリ_単位換算!$B$3:$AS$12)) -> 49.56698756 | Z21: =_xlfn.XLOOKUP("全国",市区町村_現在_カテゴリ_単位換算!$A$3:$A$12,_xlfn.XLOOKUP(カテゴリ全国比較!$X21,市区町村_現在_カテゴリ_単位換算!$B$2:$AS$2,市区町村_現在_カテゴリ_単位換算!$B$3:$AS$12)) -> 50 | AA21: -0.8660248899 | AL21: 0
W22: 地域住民の生活満足度 | X22: 地域住民の生活満足度<-> | Y22: =_xlfn.XLOOKUP($H$4,市区町村_現在_カテゴリ_単位換算!$A$3:$A$12,_xlfn.XLOOKUP(カテゴリ全国比較!$X22,市区町村_現在_カテゴリ_単位換算!$B$2:$AS$2,市区町村_現在_カテゴリ_単位換算!$B$3:$AS$12)) -> 49.60358123 | Z22: =_xlfn.XLOOKUP("全国",市区町村_現在_カテゴリ_単位換算!$A$3:$A$12,_xlfn.XLOOKUP(カテゴリ全国比較!$X22,市区町村_現在_カテゴリ_単位換算!$B$2:$AS$2,市区町村_現在_カテゴリ_単位換算!$B$3:$AS$12)) -> 50 | AA22: -0.7928375425 | AL22: 0
W23: 地域愛着度 | X23: 地域愛着度<-> | Y23: =_xlfn.XLOOKUP($H$4,市区町村_現在_カテゴリ_単位換算!$A$3:$A$12,_xlfn.XLOOKUP(カテゴリ全国比較!$X23,市区町村_現在_カテゴリ_単位換算!$B$2:$AS$2,市区町村_現在_カテゴリ_単位換算!$B$3:$AS$12)) -> 49.95610786 | Z23: =_xlfn.XLOOKUP("全国",市区町村_現在_カテゴリ_単位換算!$A$3:$A$12,_xlfn.XLOOKUP(カテゴリ全国比較!$X23,市区町村_現在_カテゴリ_単位換算!$B$2:$AS$2,市区町村_現在_カテゴリ_単位換算!$B$3:$AS$12)) -> 50 | AA23: -0.087784275 | AL23: 0
AL24: 0
AL25: 0
AL26: 0
AL27: 0
AL28: 0
X31: 資源制約
X32: 指標名 | Y32: 分析対象 | Z32: カテゴリ平均値 | AA32: カテゴリとの乖離度(%)
W33: =LEFT(X33,FIND("<",X33)-1) -> 入口の循環利用率 | X33: 入口の循環利用率<%> | Y33: =_xlfn.XLOOKUP($H$4,市区町村_現在_カテゴリ_単位換算!$A$3:$A$12,_xlfn.XLOOKUP(カテゴリ全国比較!$X33,市区町村_現在_カテゴリ_単位換算!$B$2:$AS$2,市区町村_現在_カテゴリ_単位換算!$B$3:$AS$12)) -> 20.72664387 | Z33: =_xlfn.XLOOKUP("全国",市区町村_現在_カテゴリ_単位換算!$A$3:$A$12,_xlfn.XLOOKUP(カテゴリ全国比較!$X33,市区町村_現在_カテゴリ_単位換算!$B$2:$AS$2,市区町村_現在_カテゴリ_単位換算!$B$3:$AS$12)) -> 15.62078167 | AA33: =IFERROR((Y33/Z33-1)*100,"Null") -> 32.68634252 | AL33: =IF(ISNA(AA33),NA(),0) -> 0
W34: 循環資源の利用量 | X34: 循環資源の利用量 <t/地域GDP(百万円)> | Y34: =_xlfn.XLOOKUP($H$4,市区町村_現在_カテゴリ_単位換算!$A$3:$A$12,_xlfn.XLOOKUP(カテゴリ全国比較!$X34,市区町村_現在_カテゴリ_単位換算!$B$2:$AS$2,市区町村_現在_カテゴリ_単位換算!$B$3:$AS$12)) -> 0.163459705 | Z34: =_xlfn.XLOOKUP("全国",市区町村_現在_カテゴリ_単位換算!$A$3:$A$12,_xlfn.XLOOKUP(カテゴリ全国比較!$X34,市区町村_現在_カテゴリ_単位換算!$B$2:$AS$2,市区町村_現在_カテゴリ_単位換算!$B$3:$AS$12)) -> 0.3686522386 | AA34: =IFERROR((Y34/Z34-1)*100,"Null") -> -55.66018923 | AL34: 0
W35: 地域GDP当たり利用資源量 | X35: 利用資源量<t/地域GDP(百万円)> | Y35: =_xlfn.XLOOKUP($H$4,市区町村_現在_カテゴリ_単位換算!$A$3:$A$12,_xlfn.XLOOKUP(カテゴリ全国比較!$X35,市区町村_現在_カテゴリ_単位換算!$B$2:$AS$2,市区町村_現在_カテゴリ_単位換算!$B$3:$AS$12)) -> 0.7886453108 | Z35: =_xlfn.XLOOKUP("全国",市区町村_現在_カテゴリ_単位換算!$A$3:$A$12,_xlfn.XLOOKUP(カテゴリ全国比較!$X35,市区町村_現在_カテゴリ_単位換算!$B$2:$AS$2,市区町村_現在_カテゴリ_単位換算!$B$3:$AS$12)) -> 2.360011465 | AA35: =IFERROR((1-Y35/Z35)*100,"Null") -> 66.58298816 | AL35: 0
W36: 出口の循環利用率 | X36: 出口の循環利用率<%> | Y36: =_xlfn.XLOOKUP($H$4,市区町村_現在_カテゴリ_単位換算!$A$3:$A$12,_xlfn.XLOOKUP(カテゴリ全国比較!$X36,市区町村_現在_カテゴリ_単位換算!$B$2:$AS$2,市区町村_現在_カテゴリ_単位換算!$B$3:$AS$12)) -> 37.76689813 | Z36: =_xlfn.XLOOKUP("全国",市区町村_現在_カテゴリ_単位換算!$A$3:$A$12,_xlfn.XLOOKUP(カテゴリ全国比較!$X36,市区町村_現在_カテゴリ_単位換算!$B$2:$AS$2,市区町村_現在_カテゴリ_単位換算!$B$3:$AS$12)) -> 50.81876034 | AA36: =IFERROR((Y36/Z36-1)*100,"Null") -> -25.68315742 | AL36: 0
W37: リサイクル量 （一般廃棄物） | X37: リサイクル量 （一般廃棄物）<t/人> | Y37: =_xlfn.XLOOKUP($H$4,市区町村_現在_カテゴリ_単位換算!$A$3:$A$12,_xlfn.XLOOKUP(カテゴリ全国比較!$X37,市区町村_現在_カテゴリ_単位換算!$B$2:$AS$2,市区町村_現在_カテゴリ_単位換算!$B$3:$AS$12)) -> 0.06147499755 | Z37: =_xlfn.XLOOKUP("全国",市区町村_現在_カテゴリ_単位換算!$A$3:$A$12,_xlfn.XLOOKUP(カテゴリ全国比較!$X37,市区町村_現在_カテゴリ_単位換算!$B$2:$AS$2,市区町村_現在_カテゴリ_単位換算!$B$3:$AS$12)) -> 0.06466007615 | AA37: =IFERROR((Y37/Z37-1)*100,"Null") -> -4.925881305 | AL37: 0
W38: リユース量 （一般廃棄物） | X38: リユース量 （一般廃棄物）<t/人> | Y38: =_xlfn.XLOOKUP($H$4,市区町村_現在_カテゴリ_単位換算!$A$3:$A$12,_xlfn.XLOOKUP(カテゴリ全国比較!$X38,市区町村_現在_カテゴリ_単位換算!$B$2:$AS$2,市区町村_現在_カテゴリ_単位換算!$B$3:$AS$12)) -> 0.859704051 | Z38: =_xlfn.XLOOKUP("全国",市区町村_現在_カテゴリ_単位換算!$A$3:$A$12,_xlfn.XLOOKUP(カテゴリ全国比較!$X38,市区町村_現在_カテゴリ_単位換算!$B$2:$AS$2,市区町村_現在_カテゴリ_単位換算!$B$3:$AS$12)) -> 1.6148957 | AA38: =IFERROR((Y38/Z38-1)*100,"Null") -> -46.76411294 | AL38: 0
W39: 一般廃棄物量 | X39: 一般廃棄物量<t/人> | Y39: =_xlfn.XLOOKUP($H$4,市区町村_現在_カテゴリ_単位換算!$A$3:$A$12,_xlfn.XLOOKUP(カテゴリ全国比較!$X39,市区町村_現在_カテゴリ_単位換算!$B$2:$AS$2,市区町村_現在_カテゴリ_単位換算!$B$3:$AS$12)) -> 0.3204419786 | Z39: =_xlfn.XLOOKUP("全国",市区町村_現在_カテゴリ_単位換算!$A$3:$A$12,_xlfn.XLOOKUP(カテゴリ全国比較!$X39,市区町村_現在_カテゴリ_単位換算!$B$2:$AS$2,市区町村_現在_カテゴリ_単位換算!$B$3:$AS$12)) -> 0.3251173377 | AA39: =IFERROR((1-Y39/Z39)*100,"Null") -> 1.438052827 | AL39: 0
W40: 産業廃棄物量 | X40: 産業廃棄物量 <t/地域GDP(百万円)> | Y40: =_xlfn.XLOOKUP($H$4,市区町村_現在_カテゴリ_単位換算!$A$3:$A$12,_xlfn.XLOOKUP(カテゴリ全国比較!$X40,市区町村_現在_カテゴリ_単位換算!$B$2:$AS$2,市区町村_現在_カテゴリ_単位換算!$B$3:$AS$12)) -> 0.3604432454 | Z40: =_xlfn.XLOOKUP("全国",市区町村_現在_カテゴリ_単位換算!$A$3:$A$12,_xlfn.XLOOKUP(カテゴリ全国比較!$X40,市区町村_現在_カテゴリ_単位換算!$B$2:$AS$2,市区町村_現在_カテゴリ_単位換算!$B$3:$AS$12)) -> 0.6618791555 | AA40: =IFERROR((1-Y40/Z40)*100,"Null") -> 45.54243892 | AL40: 0
W41: 資源生産性 | X41: 資源生産性<百万円/t> | Y41: =_xlfn.XLOOKUP($H$4,市区町村_現在_カテゴリ_単位換算!$A$3:$A$12,_xlfn.XLOOKUP(カテゴリ全国比較!$X41,市区町村_現在_カテゴリ_単位換算!$B$2:$AS$2,市区町村_現在_カテゴリ_単位換算!$B$3:$AS$12)) -> 1.267997142 | Z41: =_xlfn.XLOOKUP("全国",市区町村_現在_カテゴリ_単位換算!$A$3:$A$12,_xlfn.XLOOKUP(カテゴリ全国比較!$X41,市区町村_現在_カテゴリ_単位換算!$B$2:$AS$2,市区町村_現在_カテゴリ_単位換算!$B$3:$AS$12)) -> 0.423726755 | AA41: =IFERROR((Y41/Z41-1)*100,"Null") -> 199.2487793 | AL41: 0
W42: 一人当たり利用資源量 | X42: 利用資源量<t/人> | Y42: =_xlfn.XLOOKUP($H$4,市区町村_現在_カテゴリ_単位換算!$A$3:$A$12,_xlfn.XLOOKUP(カテゴリ全国比較!$X42,市区町村_現在_カテゴリ_単位換算!$B$2:$AS$2,市区町村_現在_カテゴリ_単位換算!$B$3:$AS$12)) -> 4.378388176 | Z42: =_xlfn.XLOOKUP("全国",市区町村_現在_カテゴリ_単位換算!$A$3:$A$12,_xlfn.XLOOKUP(カテゴリ全国比較!$X42,市区町村_現在_カテゴリ_単位換算!$B$2:$AS$2,市区町村_現在_カテゴリ_単位換算!$B$3:$AS$12)) -> 10.62510798 | AA42: =IFERROR((1-Y42/Z42)*100,"Null") -> 58.79205948 | AL42: 0
W43: 地域GDP | X43: 地域GDP<百万円/人> | Y43: =_xlfn.XLOOKUP($H$4,市区町村_現在_カテゴリ_単位換算!$A$3:$A$12,_xlfn.XLOOKUP(カテゴリ全国比較!$X43,市区町村_現在_カテゴリ_単位換算!$B$2:$AS$2,市区町村_現在_カテゴリ_単位換算!$B$3:$AS$12)) -> 5.551783694 | Z43: =_xlfn.XLOOKUP("全国",市区町村_現在_カテゴリ_単位換算!$A$3:$A$12,_xlfn.XLOOKUP(カテゴリ全国比較!$X43,市区町村_現在_カテゴリ_単位換算!$B$2:$AS$2,市区町村_現在_カテゴリ_単位換算!$B$3:$AS$12)) -> 4.502142526 | AA43: =IFERROR((Y43/Z43-1)*100,"Null") -> 23.31425896 | AL43: 0
E45: カテゴリ比較にてマイナスの指標一覧 | J45: カテゴリとの乖離度(%) | K45: 直接的な影響のあるモデル
E46: =地域循環モデル!AA13 -> 循環資源の利用量 | J46: =地域循環モデル!Z13 -> -55.66018923 | K46: =地域循環モデル!AB13 -> ④企業製品リぺア/リマニュモデル, ⑤市民詳細分別リサイクルモデル, ⑥地域資源活用リサイクル, ⑦近隣地域連携リサイクルモデル, ⑧大規模リサイクルモデル | X46: 環境制約
E47: =地域循環モデル!AA14 -> リユース量 | J47: =地域循環モデル!Z14 -> -46.76411294 | K47: =地域循環モデル!AB14 -> ①市民持ち寄り品リペア/リユースモデル, ②自治体回収リペア/リユースモデル, ④企業製品リぺア/リマニュモデル | X47: 指標名 | Y47: 分析対象 | Z47: カテゴリ平均値 | AA47: カテゴリとの乖離度(%)
E48: =地域循環モデル!AA15 -> 出口の循環率 | J48: =地域循環モデル!Z15 -> -25.68315742 | K48: =地域循環モデル!AB15 -> ①市民持ち寄り品リペア/リユースモデル, ②自治体回収リペア/リユースモデル, ③企業製品シェアリングモデル, ④企業製品リぺア/リマニュモデル, ⑤市民詳細分別リサイクルモデル, ⑥地域資源活用リサイクル, ⑦近隣地域連携リサイクルモデル, ⑧大規模リサイクルモデル | W48: =LEFT(X48,FIND("<",X48)-1) -> 一般廃棄物最終処分量 | X48: 一般廃棄物最終処分量 <t/人> | Y48: =_xlfn.XLOOKUP($H$4,市区町村_現在_カテゴリ_単位換算!$A$3:$A$12,_xlfn.XLOOKUP(カテゴリ全国比較!$X48,市区町村_現在_カテゴリ_単位換算!$B$2:$AS$2,市区町村_現在_カテゴリ_単位換算!$B$3:$AS$12)) -> 0.0278979653 | Z48: =_xlfn.XLOOKUP("全国",市区町村_現在_カテゴリ_単位換算!$A$3:$A$12,_xlfn.XLOOKUP(カテゴリ全国比較!$X48,市区町村_現在_カテゴリ_単位換算!$B$2:$AS$2,市区町村_現在_カテゴリ_単位換算!$B$3:$AS$12)) -> 0.02714100133 | AA48: =IFERROR((1-Y48/Z48)*100,"Null") -> -2.789005306 | AL48: =IF(ISNA(AA48),NA(),0) -> 0
E49: =地域循環モデル!AA16 ->  | J49: =地域循環モデル!Z16 ->  | K49: =地域循環モデル!AB16 ->  | W49: 産業廃棄物最終処分量 | X49: 産業廃棄物最終処分量 <t/地域GDP(百万円)> | Y49: =_xlfn.XLOOKUP($H$4,市区町村_現在_カテゴリ_単位換算!$A$3:$A$12,_xlfn.XLOOKUP(カテゴリ全国比較!$X49,市区町村_現在_カテゴリ_単位換算!$B$2:$AS$2,市区町村_現在_カテゴリ_単位換算!$B$3:$AS$12)) -> 0.008769184907 | Z49: =_xlfn.XLOOKUP("全国",市区町村_現在_カテゴリ_単位換算!$A$3:$A$12,_xlfn.XLOOKUP(カテゴリ全国比較!$X49,市区町村_現在_カテゴリ_単位換算!$B$2:$AS$2,市区町村_現在_カテゴリ_単位換算!$B$3:$AS$12)) -> 0.01553753193 | AA49: 43.56127509 | AL49: 0
E50: =地域循環モデル!AA17 ->  | J50: =地域循環モデル!Z17 ->  | K50: =地域循環モデル!AB17 ->  | W50: 一人当たりエネルギー使用量 | X50: エネルギー使用量 <TJ/人> | Y50: =_xlfn.XLOOKUP($H$4,市区町村_現在_カテゴリ_単位換算!$A$3:$A$12,_xlfn.XLOOKUP(カテゴリ全国比較!$X50,市区町村_現在_カテゴリ_単位換算!$B$2:$AS$2,市区町村_現在_カテゴリ_単位換算!$B$3:$AS$12)) -> 0.06039583972 | Z50: =_xlfn.XLOOKUP("全国",市区町村_現在_カテゴリ_単位換算!$A$3:$A$12,_xlfn.XLOOKUP(カテゴリ全国比較!$X50,市区町村_現在_カテゴリ_単位換算!$B$2:$AS$2,市区町村_現在_カテゴリ_単位換算!$B$3:$AS$12)) -> 0.1008570388 | AA50: 40.11737758 | AL50: 0
E51: =地域循環モデル!AA18 ->  | J51: =地域循環モデル!Z18 ->  | K51: =地域循環モデル!AB18 ->  | W51: 地域GDP当たりエネルギー使用量 | X51: エネルギー使用量 <TJ/地域GDP(百万円)> | Y51: =_xlfn.XLOOKUP($H$4,市区町村_現在_カテゴリ_単位換算!$A$3:$A$12,_xlfn.XLOOKUP(カテゴリ全国比較!$X51,市区町村_現在_カテゴリ_単位換算!$B$2:$AS$2,市区町村_現在_カテゴリ_単位換算!$B$3:$AS$12)) -> 0.01087863704 | Z51: =_xlfn.XLOOKUP("全国",市区町村_現在_カテゴリ_単位換算!$A$3:$A$12,_xlfn.XLOOKUP(カテゴリ全国比較!$X51,市区町村_現在_カテゴリ_単位換算!$B$2:$AS$2,市区町村_現在_カテゴリ_単位換算!$B$3:$AS$12)) -> 0.02240200931 | AA51: 51.43901206 | AL51: 0
E52: =地域循環モデル!AA19 ->  | J52: =地域循環モデル!Z19 ->  | K52: =地域循環モデル!AB19 ->  | W52: 一人当たりCO2排出量 | X52: CO2排出量 <tCO2/人> | Y52: =_xlfn.XLOOKUP($H$4,市区町村_現在_カテゴリ_単位換算!$A$3:$A$12,_xlfn.XLOOKUP(カテゴリ全国比較!$X52,市区町村_現在_カテゴリ_単位換算!$B$2:$AS$2,市区町村_現在_カテゴリ_単位換算!$B$3:$AS$12)) -> 4.393822396 | Z52: =_xlfn.XLOOKUP("全国",市区町村_現在_カテゴリ_単位換算!$A$3:$A$12,_xlfn.XLOOKUP(カテゴリ全国比較!$X52,市区町村_現在_カテゴリ_単位換算!$B$2:$AS$2,市区町村_現在_カテゴリ_単位換算!$B$3:$AS$12)) -> 7.350936658 | AA52: 40.22772063 | AL52: 0
E53: =地域循環モデル!AA20 ->  | J53: =地域循環モデル!Z20 ->  | K53: =地域循環モデル!AB20 ->  | W53: 地域GDP当たりCO2排出量 | X53: CO2排出量 <tCO2/地域GDP(百万円)> | Y53: =_xlfn.XLOOKUP($H$4,市区町村_現在_カテゴリ_単位換算!$A$3:$A$12,_xlfn.XLOOKUP(カテゴリ全国比較!$X53,市区町村_現在_カテゴリ_単位換算!$B$2:$AS$2,市区町村_現在_カテゴリ_単位換算!$B$3:$AS$12)) -> 0.7914253577 | Z53: =_xlfn.XLOOKUP("全国",市区町村_現在_カテゴリ_単位換算!$A$3:$A$12,_xlfn.XLOOKUP(カテゴリ全国比較!$X53,市区町村_現在_カテゴリ_単位換算!$B$2:$AS$2,市区町村_現在_カテゴリ_単位換算!$B$3:$AS$12)) -> 1.632764093 | AA53: 51.52849324 | AL53: 0
E54: =地域循環モデル!AA21 ->  | J54: =地域循環モデル!Z21 ->  | K54: =地域循環モデル!AB21 ->  | W54: 水の循環利用率 | X54: 水の循環利用率<%> | Y54: =_xlfn.XLOOKUP($H$4,市区町村_現在_カテゴリ_単位換算!$A$3:$A$12,_xlfn.XLOOKUP(カテゴリ全国比較!$X54,市区町村_現在_カテゴリ_単位換算!$B$2:$AS$2,市区町村_現在_カテゴリ_単位換算!$B$3:$AS$12)) -> 63.17792301 | Z54: =_xlfn.XLOOKUP("全国",市区町村_現在_カテゴリ_単位換算!$A$3:$A$12,_xlfn.XLOOKUP(カテゴリ全国比較!$X54,市区町村_現在_カテゴリ_単位換算!$B$2:$AS$2,市区町村_現在_カテゴリ_単位換算!$B$3:$AS$12)) -> 79.31820255 | AA54: 20.34877117 | AL54: 0
E55: =地域循環モデル!AA22 ->  | J55: =地域循環モデル!Z22 ->  | K55: =地域循環モデル!AB22 ->  | W55: 一人当たり自然資本 | X55: 自然資本 <百万円/人> | Y55: =_xlfn.XLOOKUP($H$4,市区町村_現在_カテゴリ_単位換算!$A$3:$A$12,_xlfn.XLOOKUP(カテゴリ全国比較!$X55,市区町村_現在_カテゴリ_単位換算!$B$2:$AS$2,市区町村_現在_カテゴリ_単位換算!$B$3:$AS$12)) -> 0.008987690729 | Z55: =_xlfn.XLOOKUP("全国",市区町村_現在_カテゴリ_単位換算!$A$3:$A$12,_xlfn.XLOOKUP(カテゴリ全国比較!$X55,市区町村_現在_カテゴリ_単位換算!$B$2:$AS$2,市区町村_現在_カテゴリ_単位換算!$B$3:$AS$12)) -> 0.1937549176 | AA55: =IFERROR((Y55/Z55-1)*100,"Null") -> -95.36130962 | AL55: 0
E56: =地域循環モデル!AA23 ->  | J56: =地域循環モデル!Z23 ->  | K56: =地域循環モデル!AB23 ->  | W56: 単位面積当たり自然資本 | X56: 自然資本 <百万円/km2> | Y56: =_xlfn.XLOOKUP($H$4,市区町村_現在_カテゴリ_単位換算!$A$3:$A$12,_xlfn.XLOOKUP(カテゴリ全国比較!$X56,市区町村_現在_カテゴリ_単位換算!$B$2:$AS$2,市区町村_現在_カテゴリ_単位換算!$B$3:$AS$12)) -> 38.77308121 | Z56: =_xlfn.XLOOKUP("全国",市区町村_現在_カテゴリ_単位換算!$A$3:$A$12,_xlfn.XLOOKUP(カテゴリ全国比較!$X56,市区町村_現在_カテゴリ_単位換算!$B$2:$AS$2,市区町村_現在_カテゴリ_単位換算!$B$3:$AS$12)) -> 64.66699457 | AA56: =IFERROR((Y56/Z56-1)*100,"Null") -> -40.04193103 | AL56: 0
E57: =地域循環モデル!AA24 ->  | J57: =地域循環モデル!Z24 ->  | K57: =地域循環モデル!AB24 ->  | AL57: 0
E58: =地域循環モデル!AA25 ->  | J58: =地域循環モデル!Z25 ->  | K58: =地域循環モデル!AB25 -> 
E59: =地域循環モデル!AA26 ->  | J59: =地域循環モデル!Z26 ->  | K59: =地域循環モデル!AB26 -> 
E60: =地域循環モデル!AA27 ->  | J60: =地域循環モデル!Z27 ->  | K60: =地域循環モデル!AB27 ->  | X60: 成長機会
E61: =地域循環モデル!AA29 ->  | J61: =地域循環モデル!Z29 ->  | K61: =地域循環モデル!AB29 ->  | X61: 指標名 | Y61: 分析対象 | Z61: カテゴリ平均値 | AA61: カテゴリとの乖離度(%)
E62: =地域循環モデル!AA31 ->  | J62: =地域循環モデル!Z31 ->  | K62: =地域循環モデル!AB31 ->  | W62: =LEFT(X62,FIND("<",X62)-1) -> CE関連売上高 | X62: CE関連売上高 <円/人> | Y62: =_xlfn.XLOOKUP($H$4,市区町村_現在_カテゴリ_単位換算!$A$3:$A$12,_xlfn.XLOOKUP(カテゴリ全国比較!$X62,市区町村_現在_カテゴリ_単位換算!$B$2:$AS$2,市区町村_現在_カテゴリ_単位換算!$B$3:$AS$12)) ->  | Z62: =_xlfn.XLOOKUP("全国",市区町村_現在_カテゴリ_単位換算!$A$3:$A$12,_xlfn.XLOOKUP(カテゴリ全国比較!$X62,市区町村_現在_カテゴリ_単位換算!$B$2:$AS$2,市区町村_現在_カテゴリ_単位換算!$B$3:$AS$12)) ->  | AA62: =IFERROR(IF(Y62="","Null",(Y62/Z62-1)*100),NA()) ->  | AL62: =IF(ISNA(AA62),NA(),0) -> 
E63: =地域循環モデル!AA32 ->  | J63: =地域循環モデル!Z32 ->  | K63: =地域循環モデル!AB32 ->  | W63: CE関連雇用創出数 | X63: CE関連雇用創出数 <人/労働人口> | Y63: =_xlfn.XLOOKUP($H$4,市区町村_現在_カテゴリ_単位換算!$A$3:$A$12,_xlfn.XLOOKUP(カテゴリ全国比較!$X63,市区町村_現在_カテゴリ_単位換算!$B$2:$AS$2,市区町村_現在_カテゴリ_単位換算!$B$3:$AS$12)) ->  | Z63: =_xlfn.XLOOKUP("全国",市区町村_現在_カテゴリ_単位換算!$A$3:$A$12,_xlfn.XLOOKUP(カテゴリ全国比較!$X63,市区町村_現在_カテゴリ_単位換算!$B$2:$AS$2,市区町村_現在_カテゴリ_単位換算!$B$3:$AS$12)) ->  | AA63: =IFERROR(IF(Y63="","Null",(Y63/Z63-1)*100),NA()) -> 
E64: =地域循環モデル!AA33 ->  | J64: =地域循環モデル!Z33 ->  | K64: =地域循環モデル!AB33 ->  | W64: 自治体でのCE取り組み度 | X64: 自治体でのCE取り組み度<%> | Y64: =_xlfn.XLOOKUP($H$4,市区町村_現在_カテゴリ_単位換算!$A$3:$A$12,_xlfn.XLOOKUP(カテゴリ全国比較!$X64,市区町村_現在_カテゴリ_単位換算!$B$2:$AS$2,市区町村_現在_カテゴリ_単位換算!$B$3:$AS$12)) ->  | Z64: =_xlfn.XLOOKUP("全国",市区町村_現在_カテゴリ_単位換算!$A$3:$A$12,_xlfn.XLOOKUP(カテゴリ全国比較!$X64,市区町村_現在_カテゴリ_単位換算!$B$2:$AS$2,市区町村_現在_カテゴリ_単位換算!$B$3:$AS$12)) ->  | AA64: =IFERROR((Y64/Z64-1)*100,NA()) -> 
E65: =地域循環モデル!AA34 ->  | J65: =地域循環モデル!Z34 ->  | K65: =地域循環モデル!AB34 ->  | W65: CE取り組み度（中長期立案） | X65: CE取り組み度（中長期立案）<-> | Y65: =_xlfn.XLOOKUP($H$4,市区町村_現在_カテゴリ_単位換算!$A$3:$A$12,_xlfn.XLOOKUP(カテゴリ全国比較!$X65,市区町村_現在_カテゴリ_単位換算!$B$2:$AS$2,市区町村_現在_カテゴリ_単位換算!$B$3:$AS$12)) ->  | Z65: =_xlfn.XLOOKUP("全国",市区町村_現在_カテゴリ_単位換算!$A$3:$A$12,_xlfn.XLOOKUP(カテゴリ全国比較!$X65,市区町村_現在_カテゴリ_単位換算!$B$2:$AS$2,市区町村_現在_カテゴリ_単位換算!$B$3:$AS$12)) -> 
E66: =地域循環モデル!AA35 ->  | J66: =地域循環モデル!Z35 ->  | K66: =地域循環モデル!AB35 ->  | W66: CE取り組み度（地域住民） | X66: CE取り組み度（地域住民）<-> | Y66: =_xlfn.XLOOKUP($H$4,市区町村_現在_カテゴリ_単位換算!$A$3:$A$12,_xlfn.XLOOKUP(カテゴリ全国比較!$X66,市区町村_現在_カテゴリ_単位換算!$B$2:$AS$2,市区町村_現在_カテゴリ_単位換算!$B$3:$AS$12)) ->  | Z66: =_xlfn.XLOOKUP("全国",市区町村_現在_カテゴリ_単位換算!$A$3:$A$12,_xlfn.XLOOKUP(カテゴリ全国比較!$X66,市区町村_現在_カテゴリ_単位換算!$B$2:$AS$2,市区町村_現在_カテゴリ_単位換算!$B$3:$AS$12)) -> 
E67: =地域循環モデル!AA36 ->  | J67: =地域循環モデル!Z36 ->  | K67: =地域循環モデル!AB36 ->  | W67: CE取り組み度（地域企業） | X67: CE取り組み度（地域企業）<-> | Y67: =_xlfn.XLOOKUP($H$4,市区町村_現在_カテゴリ_単位換算!$A$3:$A$12,_xlfn.XLOOKUP(カテゴリ全国比較!$X67,市区町村_現在_カテゴリ_単位換算!$B$2:$AS$2,市区町村_現在_カテゴリ_単位換算!$B$3:$AS$12)) ->  | Z67: =_xlfn.XLOOKUP("全国",市区町村_現在_カテゴリ_単位換算!$A$3:$A$12,_xlfn.XLOOKUP(カテゴリ全国比較!$X67,市区町村_現在_カテゴリ_単位換算!$B$2:$AS$2,市区町村_現在_カテゴリ_単位換算!$B$3:$AS$12)) -> 
W68: CE取り組み度（外部発信） | X68: CE取り組み度（外部発信）<-> | Y68: =_xlfn.XLOOKUP($H$4,市区町村_現在_カテゴリ_単位換算!$A$3:$A$12,_xlfn.XLOOKUP(カテゴリ全国比較!$X68,市区町村_現在_カテゴリ_単位換算!$B$2:$AS$2,市区町村_現在_カテゴリ_単位換算!$B$3:$AS$12)) ->  | Z68: =_xlfn.XLOOKUP("全国",市区町村_現在_カテゴリ_単位換算!$A$3:$A$12,_xlfn.XLOOKUP(カテゴリ全国比較!$X68,市区町村_現在_カテゴリ_単位換算!$B$2:$AS$2,市区町村_現在_カテゴリ_単位換算!$B$3:$AS$12)) -> 
W69: CE取り組み度（インフラ） | X69: CE取り組み度（インフラ）<-> | Y69: =_xlfn.XLOOKUP($H$4,市区町村_現在_カテゴリ_単位換算!$A$3:$A$12,_xlfn.XLOOKUP(カテゴリ全国比較!$X69,市区町村_現在_カテゴリ_単位換算!$B$2:$AS$2,市区町村_現在_カテゴリ_単位換算!$B$3:$AS$12)) ->  | Z69: =_xlfn.XLOOKUP("全国",市区町村_現在_カテゴリ_単位換算!$A$3:$A$12,_xlfn.XLOOKUP(カテゴリ全国比較!$X69,市区町村_現在_カテゴリ_単位換算!$B$2:$AS$2,市区町村_現在_カテゴリ_単位換算!$B$3:$AS$12)) -> 
W70: 環境配慮への意識度 | X70: 環境配慮への意識度<%> | Y70: =_xlfn.XLOOKUP($H$4,市区町村_現在_カテゴリ_単位換算!$A$3:$A$12,_xlfn.XLOOKUP(カテゴリ全国比較!$X70,市区町村_現在_カテゴリ_単位換算!$B$2:$AS$2,市区町村_現在_カテゴリ_単位換算!$B$3:$AS$12)) -> 49.90371424 | Z70: =_xlfn.XLOOKUP("全国",市区町村_現在_カテゴリ_単位換算!$A$3:$A$12,_xlfn.XLOOKUP(カテゴリ全国比較!$X70,市区町村_現在_カテゴリ_単位換算!$B$2:$AS$2,市区町村_現在_カテゴリ_単位換算!$B$3:$AS$12)) -> 50 | AA70: -0.1925715225 | AL70: 0
W71: 一人当たり人工資本 | X71: 人工資本 <百万円/人> | Y71: =_xlfn.XLOOKUP($H$4,市区町村_現在_カテゴリ_単位換算!$A$3:$A$12,_xlfn.XLOOKUP(カテゴリ全国比較!$X71,市区町村_現在_カテゴリ_単位換算!$B$2:$AS$2,市区町村_現在_カテゴリ_単位換算!$B$3:$AS$12)) -> 18.80208187 | Z71: =_xlfn.XLOOKUP("全国",市区町村_現在_カテゴリ_単位換算!$A$3:$A$12,_xlfn.XLOOKUP(カテゴリ全国比較!$X71,市区町村_現在_カテゴリ_単位換算!$B$2:$AS$2,市区町村_現在_カテゴリ_単位換算!$B$3:$AS$12)) -> 21.21025808 | AA71: -11.35382794 | AL71: 0
W72: 単位面積当たり人工資本 | X72: 人工資本 <百万円/km2> | Y72: =_xlfn.XLOOKUP($H$4,市区町村_現在_カテゴリ_単位換算!$A$3:$A$12,_xlfn.XLOOKUP(カテゴリ全国比較!$X72,市区町村_現在_カテゴリ_単位換算!$B$2:$AS$2,市区町村_現在_カテゴリ_単位換算!$B$3:$AS$12)) -> 81112.56486 | Z72: =_xlfn.XLOOKUP("全国",市区町村_現在_カテゴリ_単位換算!$A$3:$A$12,_xlfn.XLOOKUP(カテゴリ全国比較!$X72,市区町村_現在_カテゴリ_単位換算!$B$2:$AS$2,市区町村_現在_カテゴリ_単位換算!$B$3:$AS$12)) -> 7079.064941 | AA72: 1045.809023 | AL72: 0
W73: 一人当たり人的資本 | X73: 人的資本 <百万円/人> | Y73: =_xlfn.XLOOKUP($H$4,市区町村_現在_カテゴリ_単位換算!$A$3:$A$12,_xlfn.XLOOKUP(カテゴリ全国比較!$X73,市区町村_現在_カテゴリ_単位換算!$B$2:$AS$2,市区町村_現在_カテゴリ_単位換算!$B$3:$AS$12)) -> 31.38314122 | Z73: =_xlfn.XLOOKUP("全国",市区町村_現在_カテゴリ_単位換算!$A$3:$A$12,_xlfn.XLOOKUP(カテゴリ全国比較!$X73,市区町村_現在_カテゴリ_単位換算!$B$2:$AS$2,市区町村_現在_カテゴリ_単位換算!$B$3:$AS$12)) -> 32.08768192 | AA73: -2.195673417 | AL73: 0
W74: 単位面積当たり人的資本 | X74: 人的資本 <百万円/km2> | Y74: =_xlfn.XLOOKUP($H$4,市区町村_現在_カテゴリ_単位換算!$A$3:$A$12,_xlfn.XLOOKUP(カテゴリ全国比較!$X74,市区町村_現在_カテゴリ_単位換算!$B$2:$AS$2,市区町村_現在_カテゴリ_単位換算!$B$3:$AS$12)) -> 135387.5116 | Z74: =_xlfn.XLOOKUP("全国",市区町村_現在_カテゴリ_単位換算!$A$3:$A$12,_xlfn.XLOOKUP(カテゴリ全国比較!$X74,市区町村_現在_カテゴリ_単位換算!$B$2:$AS$2,市区町村_現在_カテゴリ_単位換算!$B$3:$AS$12)) -> 10709.47762 | AA74: 1164.184085 | AL74: 0
AL77: =IF(ISNA(AA77),NA(),0) -> 0
X78: ウェルビーイング
X79: 指標名 | Y79: 分析対象 | Z79: カテゴリ平均値 | AA79: カテゴリとの乖離度(%)
W80: =LEFT(X80,FIND("<",X80)-1) -> 地域コミュニティの成熟度 | X80: 地域コミュニティの成熟度<-> | Y80: =_xlfn.XLOOKUP($H$4,市区町村_現在_カテゴリ_単位換算!$A$3:$A$12,_xlfn.XLOOKUP(カテゴリ全国比較!$X80,市区町村_現在_カテゴリ_単位換算!$B$2:$AS$2,市区町村_現在_カテゴリ_単位換算!$B$3:$AS$12)) -> 49.56698756 | Z80: =_xlfn.XLOOKUP("全国",市区町村_現在_カテゴリ_単位換算!$A$3:$A$12,_xlfn.XLOOKUP(カテゴリ全国比較!$X80,市区町村_現在_カテゴリ_単位換算!$B$2:$AS$2,市区町村_現在_カテゴリ_単位換算!$B$3:$AS$12)) -> 50 | AA80: =IFERROR((Y80/Z80-1)*100,"Null") -> -0.8660248899 | AL80: =IF(ISNA(AA80),NA(),0) -> 0
W81: 地域住民の生活満足度 | X81: 地域住民の生活満足度<-> | Y81: =_xlfn.XLOOKUP($H$4,市区町村_現在_カテゴリ_単位換算!$A$3:$A$12,_xlfn.XLOOKUP(カテゴリ全国比較!$X81,市区町村_現在_カテゴリ_単位換算!$B$2:$AS$2,市区町村_現在_カテゴリ_単位換算!$B$3:$AS$12)) -> 49.60358123 | Z81: =_xlfn.XLOOKUP("全国",市区町村_現在_カテゴリ_単位換算!$A$3:$A$12,_xlfn.XLOOKUP(カテゴリ全国比較!$X81,市区町村_現在_カテゴリ_単位換算!$B$2:$AS$2,市区町村_現在_カテゴリ_単位換算!$B$3:$AS$12)) -> 50 | AA81: =IFERROR((Y81/Z81-1)*100,"Null") -> -0.7928375425 | AL81: =IF(ISNA(AA81),NA(),0) -> 0
W82: 地域愛着度 | X82: 地域愛着度<-> | Y82: =_xlfn.XLOOKUP($H$4,市区町村_現在_カテゴリ_単位換算!$A$3:$A$12,_xlfn.XLOOKUP(カテゴリ全国比較!$X82,市区町村_現在_カテゴリ_単位換算!$B$2:$AS$2,市区町村_現在_カテゴリ_単位換算!$B$3:$AS$12)) -> 49.95610786 | Z82: =_xlfn.XLOOKUP("全国",市区町村_現在_カテゴリ_単位換算!$A$3:$A$12,_xlfn.XLOOKUP(カテゴリ全国比較!$X82,市区町村_現在_カテゴリ_単位換算!$B$2:$AS$2,市区町村_現在_カテゴリ_単位換算!$B$3:$AS$12)) -> 50 | AA82: =IFERROR((Y82/Z82-1)*100,"Null") -> -0.087784275 | AL82: =IF(ISNA(AA82),NA(),0) -> 0

Sheet カテゴリ経年比較
B2: 分析対象自治体 | J2: 基礎情報 | K2: 対象カテゴリ 現在 | L2: 対象カテゴリ 過去 | X2: 指標全体のレーダーチャート
B3: 都道府県名 | C3: 市区町村名 | D3: 説明 | F3: 地域名連結 | G3: 地域コード | H3: カテゴリID | J3: 人口＜人＞ | K3: =VLOOKUP($H$4,'カテゴリ_基礎指標 '!$A$15:$H$23,2,FALSE) -> 1112551 | L3: =VLOOKUP($H$4,'カテゴリ_基礎指標 '!$A$15:$H$23,5,FALSE) -> 1082432.312 | X3: 指標名 | Y3: カテゴリ 現在 | Z3: カテゴリ 過去 | AA3: 過去との乖離度(%)
B4: 北海道 | C4: 札幌市 | D4: =IFERROR(VLOOKUP(H4,市区町村_カテゴリID!$AN$4:$AO$12,2,FALSE), "該当する都市がありません。") -> 人口:大規模, 主要産業: 三次産業 | F4: =B4&" "&C4 -> 北海道 札幌市 | G4: =VLOOKUP(F4,市町村リスト!$A$2:$B$1742,2,FALSE) -> 1100 | H4: =IFERROR(VLOOKUP(G4,市区町村_カテゴリID!$B$4:$AA$1919,26,FALSE),"") -> 7 | J4: 総面積＜km2＞ | K4: =VLOOKUP($H$4,'カテゴリ_基礎指標 '!$A$15:$H$23,8,FALSE) -> 257.8919188 | W4: =LEFT(X4,FIND("<",X4)-1) -> 入口の循環利用率 | X4: 入口の循環利用率<%> | Y4: =_xlfn.XLOOKUP($H$4,市区町村_現在_カテゴリ!$A$4:$A$13,_xlfn.XLOOKUP($X4,市区町村_現在_カテゴリ!$B$3:$AP$3,市区町村_現在_カテゴリ!$B$4:$AP$13)) -> 20.72664387 | Z4: =_xlfn.XLOOKUP($H$4,市区町村_過去_カテゴリ!$A$4:$A$13,_xlfn.XLOOKUP($X4,市区町村_過去_カテゴリ!$B$3:$AP$3,市区町村_過去_カテゴリ!$B$4:$AP$13)) -> 18.67813441 | AA4: =IFERROR((Y4/Z4-1)*100,NA()) -> 10.96742005 | AL4: =IF(ISNA(AA4),NA(),0) -> 0
B5: ※ 公開版においては選択された自治体の属するカテゴリの現在と過去の比較をしております。正規版においては、選択された自治体（複数選択可能）の現在と過去との比較が示されます。公開版ではサンプルのイメージとしてご理解ください。 | J5: 人口密度＜人/km2＞ | K5: =K3/K4 -> 4314.020406 | L5: =L3/K4 -> 4197.232382 | W5: =LEFT(X5,FIND("<",X5)-1) -> 出口の循環利用率 | X5: 出口の循環利用率<%> | Y5: =_xlfn.XLOOKUP($H$4,市区町村_現在_カテゴリ!$A$4:$A$13,_xlfn.XLOOKUP($X5,市区町村_現在_カテゴリ!$B$3:$AP$3,市区町村_現在_カテゴリ!$B$4:$AP$13)) -> 37.76689813 | Z5: =_xlfn.XLOOKUP($H$4,市区町村_過去_カテゴリ!$A$4:$A$13,_xlfn.XLOOKUP($X5,市区町村_過去_カテゴリ!$B$3:$AP$3,市区町村_過去_カテゴリ!$B$4:$AP$13)) -> 36.39358062 | AA5: =IFERROR((Y5/Z5-1)*100,NA()) -> 3.773515759 | AL5: 0
J6: 労働人口＜人＞ | K6: =VLOOKUP($H$4,'カテゴリ_基礎指標 '!$A$15:$H$23,3,FALSE) -> 499020.3125 | L6: =VLOOKUP($H$4,'カテゴリ_基礎指標 '!$A$15:$H$23,6,FALSE) -> 495841.1875 | W6: 資源生産性 | X6: 資源生産性<百万円/t> | Y6: =_xlfn.XLOOKUP($H$4,市区町村_現在_カテゴリ!$A$4:$A$13,_xlfn.XLOOKUP($X6,市区町村_現在_カテゴリ!$B$3:$AP$3,市区町村_現在_カテゴリ!$B$4:$AP$13)) -> 1.267997142 | Z6: =_xlfn.XLOOKUP($H$4,市区町村_過去_カテゴリ!$A$4:$A$13,_xlfn.XLOOKUP($X6,市区町村_過去_カテゴリ!$B$3:$AP$3,市区町村_過去_カテゴリ!$B$4:$AP$13)) -> 1.147034063 | AA6: =IFERROR((Y6/Z6-1)*100,NA()) -> 10.54572678 | AL6: 0
J7: 地域GDP＜百万円＞ | K7: =VLOOKUP($H$4,'カテゴリ_基礎指標 '!$A$15:$H$23,4,FALSE) -> 6176642.5 | L7: =VLOOKUP($H$4,'カテゴリ_基礎指標 '!$A$15:$H$23,7,FALSE) -> 6139775 | W7: 一般廃棄物最終処分量 | X7: 一般廃棄物最終処分量<t> | Y7: =_xlfn.XLOOKUP($H$4,市区町村_現在_カテゴリ!$A$4:$A$13,_xlfn.XLOOKUP($X7,市区町村_現在_カテゴリ!$B$3:$AP$3,市区町村_現在_カテゴリ!$B$4:$AP$13)) -> 31037.90919 | Z7: =_xlfn.XLOOKUP($H$4,市区町村_過去_カテゴリ!$A$4:$A$13,_xlfn.XLOOKUP($X7,市区町村_過去_カテゴリ!$B$3:$AP$3,市区町村_過去_カテゴリ!$B$4:$AP$13)) -> 42367.85621 | AA7: =IFERROR((1-Y7/Z7)*100,NA()) -> 26.74184637 | AL7: 0
W8: 産業廃棄物最終処分量 | X8: 産業廃棄物最終処分量<t> | Y8: =_xlfn.XLOOKUP($H$4,市区町村_現在_カテゴリ!$A$4:$A$13,_xlfn.XLOOKUP($X8,市区町村_現在_カテゴリ!$B$3:$AP$3,市区町村_現在_カテゴリ!$B$4:$AP$13)) -> 54164.12019 | Z8: =_xlfn.XLOOKUP($H$4,市区町村_過去_カテゴリ!$A$4:$A$13,_xlfn.XLOOKUP($X8,市区町村_過去_カテゴリ!$B$3:$AP$3,市区町村_過去_カテゴリ!$B$4:$AP$13)) -> 58106.80013 | AA8: =IFERROR((1-Y8/Z8)*100,NA()) -> 6.785229834 | AL8: 0
W9: エネルギー使用量 | X9: エネルギー使用量<TJ> | Y9: =_xlfn.XLOOKUP($H$4,市区町村_現在_カテゴリ!$A$4:$A$13,_xlfn.XLOOKUP($X9,市区町村_現在_カテゴリ!$B$3:$AP$3,市区町村_現在_カテゴリ!$B$4:$AP$13)) -> 67193.45187 | Z9: =_xlfn.XLOOKUP($H$4,市区町村_過去_カテゴリ!$A$4:$A$13,_xlfn.XLOOKUP($X9,市区町村_過去_カテゴリ!$B$3:$AP$3,市区町村_過去_カテゴリ!$B$4:$AP$13)) -> 80352.51875 | AA9: =IFERROR((1-Y9/Z9)*100,NA()) -> 16.37667005 | AL9: 0
W10: CO2排出量 | X10: CO2排出量<tCO2> | Y10: =_xlfn.XLOOKUP($H$4,市区町村_現在_カテゴリ!$A$4:$A$13,_xlfn.XLOOKUP($X10,市区町村_現在_カテゴリ!$B$3:$AP$3,市区町村_現在_カテゴリ!$B$4:$AP$13)) -> 4888351.5 | Z10: =_xlfn.XLOOKUP($H$4,市区町村_過去_カテゴリ!$A$4:$A$13,_xlfn.XLOOKUP($X10,市区町村_過去_カテゴリ!$B$3:$AP$3,市区町村_過去_カテゴリ!$B$4:$AP$13)) -> 6255395.786 | AA10: =IFERROR((1-Y10/Z10)*100,NA()) -> 21.85384159 | AL10: 0
W11: 水の循環利用率 | X11: 水の循環利用率<%> | Y11: =_xlfn.XLOOKUP($H$4,市区町村_現在_カテゴリ!$A$4:$A$13,_xlfn.XLOOKUP($X11,市区町村_現在_カテゴリ!$B$3:$AP$3,市区町村_現在_カテゴリ!$B$4:$AP$13)) -> 63.17792301 | Z11: =_xlfn.XLOOKUP($H$4,市区町村_過去_カテゴリ!$A$4:$A$13,_xlfn.XLOOKUP($X11,市区町村_過去_カテゴリ!$B$3:$AP$3,市区町村_過去_カテゴリ!$B$4:$AP$13)) ->  | AA11: =IFERROR((Y11/Z11-1)*100,NA()) -> 
W12: 自然資本 | X12: 自然資本<百万円> | Y12: =_xlfn.XLOOKUP($H$4,市区町村_現在_カテゴリ!$A$4:$A$13,_xlfn.XLOOKUP($X12,市区町村_現在_カテゴリ!$B$3:$AP$3,市区町村_現在_カテゴリ!$B$4:$AP$13)) -> 9999.264308 | Z12: =_xlfn.XLOOKUP($H$4,市区町村_過去_カテゴリ!$A$4:$A$13,_xlfn.XLOOKUP($X12,市区町村_過去_カテゴリ!$B$3:$AP$3,市区町村_過去_カテゴリ!$B$4:$AP$13)) -> 10320.34737 | AA12: -3.111165214 | AL12: 0
W13: CE関連売上高 | X13: CE関連売上高<円> | Y13: =_xlfn.XLOOKUP($H$4,市区町村_現在_カテゴリ!$A$4:$A$13,_xlfn.XLOOKUP($X13,市区町村_現在_カテゴリ!$B$3:$AP$3,市区町村_現在_カテゴリ!$B$4:$AP$13)) ->  | Z13: =_xlfn.XLOOKUP($H$4,市区町村_過去_カテゴリ!$A$4:$A$13,_xlfn.XLOOKUP($X13,市区町村_過去_カテゴリ!$B$3:$AP$3,市区町村_過去_カテゴリ!$B$4:$AP$13)) -> 
W14: CE関連雇用創出数 | X14: CE関連雇用創出数<人> | Y14: =_xlfn.XLOOKUP($H$4,市区町村_現在_カテゴリ!$A$4:$A$13,_xlfn.XLOOKUP($X14,市区町村_現在_カテゴリ!$B$3:$AP$3,市区町村_現在_カテゴリ!$B$4:$AP$13)) ->  | Z14: =_xlfn.XLOOKUP($H$4,市区町村_過去_カテゴリ!$A$4:$A$13,_xlfn.XLOOKUP($X14,市区町村_過去_カテゴリ!$B$3:$AP$3,市区町村_過去_カテゴリ!$B$4:$AP$13)) -> 
W15: 自治体でのCE取り組み度 | X15: 自治体でのCE取り組み度<%> | Y15: =_xlfn.XLOOKUP($H$4,市区町村_現在_カテゴリ!$A$4:$A$13,_xlfn.XLOOKUP($X15,市区町村_現在_カテゴリ!$B$3:$AP$3,市区町村_現在_カテゴリ!$B$4:$AP$13)) ->  | Z15: =_xlfn.XLOOKUP($H$4,市区町村_過去_カテゴリ!$A$4:$A$13,_xlfn.XLOOKUP($X15,市区町村_過去_カテゴリ!$B$3:$AP$3,市区町村_過去_カテゴリ!$B$4:$AP$13)) -> 
W16: 環境配慮への意識度 | X16: 環境配慮への意識度<%> | Y16: =_xlfn.XLOOKUP($H$4,市区町村_現在_カテゴリ!$A$4:$A$13,_xlfn.XLOOKUP($X16,市区町村_現在_カテゴリ!$B$3:$AP$3,市区町村_現在_カテゴリ!$B$4:$AP$13)) -> 49.90371424 | Z16: =_xlfn.XLOOKUP($H$4,市区町村_過去_カテゴリ!$A$4:$A$13,_xlfn.XLOOKUP($X16,市区町村_過去_カテゴリ!$B$3:$AP$3,市区町村_過去_カテゴリ!$B$4:$AP$13)) -> 49.85749445 | AA16: 0.09270380364 | AL16: 0
W17: 人工資本 | X17: 人工資本<百万円> | Y17: =_xlfn.XLOOKUP($H$4,市区町村_現在_カテゴリ!$A$4:$A$13,_xlfn.XLOOKUP($X17,市区町村_現在_カテゴリ!$B$3:$AP$3,市区町村_現在_カテゴリ!$B$4:$AP$13)) -> 20918274.99 | Z17: =_xlfn.XLOOKUP($H$4,市区町村_過去_カテゴリ!$A$4:$A$13,_xlfn.XLOOKUP($X17,市区町村_過去_カテゴリ!$B$3:$AP$3,市区町村_過去_カテゴリ!$B$4:$AP$13)) -> 18336711.62 | AA17: 14.07866045 | AL17: 0
W18: 人的資本 | X18: 人的資本<百万円> | Y18: =_xlfn.XLOOKUP($H$4,市区町村_現在_カテゴリ!$A$4:$A$13,_xlfn.XLOOKUP($X18,市区町村_現在_カテゴリ!$B$3:$AP$3,市区町村_現在_カテゴリ!$B$4:$AP$13)) -> 34915345.15 | Z18: =_xlfn.XLOOKUP($H$4,市区町村_過去_カテゴリ!$A$4:$A$13,_xlfn.XLOOKUP($X18,市区町村_過去_カテゴリ!$B$3:$AP$3,市区町村_過去_カテゴリ!$B$4:$AP$13)) -> 36587045.23 | AA18: -4.56910383 | AL18: 0
W19: 地域コミュニティの成熟度 | X19: 地域コミュニティの成熟度<-> | Y19: =_xlfn.XLOOKUP($H$4,市区町村_現在_カテゴリ!$A$4:$A$13,_xlfn.XLOOKUP($X19,市区町村_現在_カテゴリ!$B$3:$AP$3,市区町村_現在_カテゴリ!$B$4:$AP$13)) -> 49.56698756 | Z19: =_xlfn.XLOOKUP($H$4,市区町村_過去_カテゴリ!$A$4:$A$13,_xlfn.XLOOKUP($X19,市区町村_過去_カテゴリ!$B$3:$AP$3,市区町村_過去_カテゴリ!$B$4:$AP$13)) -> 49.62549375 | AA19: -0.1178954415 | AL19: 0
W20: 地域住民の生活満足度 | X20: 地域住民の生活満足度<-> | Y20: =_xlfn.XLOOKUP($H$4,市区町村_現在_カテゴリ!$A$4:$A$13,_xlfn.XLOOKUP($X20,市区町村_現在_カテゴリ!$B$3:$AP$3,市区町村_現在_カテゴリ!$B$4:$AP$13)) -> 49.60358123 | Z20: =_xlfn.XLOOKUP($H$4,市区町村_過去_カテゴリ!$A$4:$A$13,_xlfn.XLOOKUP($X20,市区町村_過去_カテゴリ!$B$3:$AP$3,市区町村_過去_カテゴリ!$B$4:$AP$13)) -> 49.6675125 | AA20: -0.1287184883 | AL20: 0
W21: 地域愛着度 | X21: 地域愛着度<-> | Y21: =_xlfn.XLOOKUP($H$4,市区町村_現在_カテゴリ!$A$4:$A$13,_xlfn.XLOOKUP($X21,市区町村_現在_カテゴリ!$B$3:$AP$3,市区町村_現在_カテゴリ!$B$4:$AP$13)) -> 49.95610786 | Z21: =_xlfn.XLOOKUP($H$4,市区町村_過去_カテゴリ!$A$4:$A$13,_xlfn.XLOOKUP($X21,市区町村_過去_カテゴリ!$B$3:$AP$3,市区町村_過去_カテゴリ!$B$4:$AP$13)) -> 49.93893558 | AA21: 0.0343865584 | AL21: 0
X25: 資源制約
X26: 指標名 | Y26: カテゴリ 現在 | Z26: カテゴリ 過去 | AA26: 過去との乖離度(%)
W27: =LEFT(X27,FIND("<",X27)-1) -> 入口の循環利用率 | X27: 入口の循環利用率<%> | Y27: =_xlfn.XLOOKUP($H$4,市区町村_現在_カテゴリ!$A$4:$A$13,_xlfn.XLOOKUP($X27,市区町村_現在_カテゴリ!$B$3:$AP$3,市区町村_現在_カテゴリ!$B$4:$AP$13)) -> 20.72664387 | Z27: =_xlfn.XLOOKUP($H$4,市区町村_過去_カテゴリ!$A$4:$A$13,_xlfn.XLOOKUP($X27,市区町村_過去_カテゴリ!$B$3:$AP$3,市区町村_過去_カテゴリ!$B$4:$AP$13)) -> 18.67813441 | AA27: =IFERROR((Y27/Z27-1)*100,NA()) -> 10.96742005 | AL27: =IF(ISNA(AA27),NA(),0) -> 0
W28: 循環資源の利用量 | X28: 循環資源の利用量<t> | Y28: =_xlfn.XLOOKUP($H$4,市区町村_現在_カテゴリ!$A$4:$A$13,_xlfn.XLOOKUP($X28,市区町村_現在_カテゴリ!$B$3:$AP$3,市区町村_現在_カテゴリ!$B$4:$AP$13)) -> 1009632.161 | Z28: =_xlfn.XLOOKUP($H$4,市区町村_過去_カテゴリ!$A$4:$A$13,_xlfn.XLOOKUP($X28,市区町村_過去_カテゴリ!$B$3:$AP$3,市区町村_過去_カテゴリ!$B$4:$AP$13)) -> 999791.9537 | AA28: =IFERROR((Y28/Z28-1)*100,NA()) -> 0.984225477 | AL28: 0
W29: 利用資源量 | X29: 利用資源量<t> | Y29: =_xlfn.XLOOKUP($H$4,市区町村_現在_カテゴリ!$A$4:$A$13,_xlfn.XLOOKUP($X29,市区町村_現在_カテゴリ!$B$3:$AP$3,市区町村_現在_カテゴリ!$B$4:$AP$13)) -> 4871180.144 | Z29: =_xlfn.XLOOKUP($H$4,市区町村_過去_カテゴリ!$A$4:$A$13,_xlfn.XLOOKUP($X29,市区町村_過去_カテゴリ!$B$3:$AP$3,市区町村_過去_カテゴリ!$B$4:$AP$13)) -> 5352739.902 | AA29: =IFERROR((1-Y29/Z29)*100,NA()) -> 8.996509576 | AL29: 0
W30: 出口の循環利用率 | X30: 出口の循環利用率<%> | Y30: =_xlfn.XLOOKUP($H$4,市区町村_現在_カテゴリ!$A$4:$A$13,_xlfn.XLOOKUP($X30,市区町村_現在_カテゴリ!$B$3:$AP$3,市区町村_現在_カテゴリ!$B$4:$AP$13)) -> 37.76689813 | Z30: =_xlfn.XLOOKUP($H$4,市区町村_過去_カテゴリ!$A$4:$A$13,_xlfn.XLOOKUP($X30,市区町村_過去_カテゴリ!$B$3:$AP$3,市区町村_過去_カテゴリ!$B$4:$AP$13)) -> 36.39358062 | AA30: =IFERROR((Y30/Z30-1)*100,NA()) -> 3.773515759 | AL30: 0
W31: リサイクル量（一般廃棄物） | X31: リサイクル量（一般廃棄物）<t> | Y31: =_xlfn.XLOOKUP($H$4,市区町村_現在_カテゴリ!$A$4:$A$13,_xlfn.XLOOKUP($X31,市区町村_現在_カテゴリ!$B$3:$AP$3,市区町村_現在_カテゴリ!$B$4:$AP$13)) -> 68394.07 | Z31: =_xlfn.XLOOKUP($H$4,市区町村_過去_カテゴリ!$A$4:$A$13,_xlfn.XLOOKUP($X31,市区町村_過去_カテゴリ!$B$3:$AP$3,市区町村_過去_カテゴリ!$B$4:$AP$13)) -> 69378.20375 | AA31: =IFERROR((Y31/Z31-1)*100,NA()) -> -1.418505664 | AL31: 0
W32: リユース量（一般廃棄物） | X32: リユース量（一般廃棄物）<t> | Y32: =_xlfn.XLOOKUP($H$4,市区町村_現在_カテゴリ!$A$4:$A$13,_xlfn.XLOOKUP($X32,市区町村_現在_カテゴリ!$B$3:$AP$3,市区町村_現在_カテゴリ!$B$4:$AP$13)) -> 956464.6017 | Z32: =_xlfn.XLOOKUP($H$4,市区町村_過去_カテゴリ!$A$4:$A$13,_xlfn.XLOOKUP($X32,市区町村_過去_カテゴリ!$B$3:$AP$3,市区町村_過去_カテゴリ!$B$4:$AP$13)) -> 930413.75 | AA32: =IFERROR((Y32/Z32-1)*100,NA()) -> 2.799921184 | AL32: 0
W33: 一般廃棄物量 | X33: 一般廃棄物量<t> | Y33: =_xlfn.XLOOKUP($H$4,市区町村_現在_カテゴリ!$A$4:$A$13,_xlfn.XLOOKUP($X33,市区町村_現在_カテゴリ!$B$3:$AP$3,市区町村_現在_カテゴリ!$B$4:$AP$13)) -> 356508.0437 | Z33: =_xlfn.XLOOKUP($H$4,市区町村_過去_カテゴリ!$A$4:$A$13,_xlfn.XLOOKUP($X33,市区町村_過去_カテゴリ!$B$3:$AP$3,市区町村_過去_カテゴリ!$B$4:$AP$13)) -> 386164.3937 | AA33: =IFERROR((1-Y33/Z33)*100,NA()) -> 7.679721507 | AL33: 0
W34: 産業廃棄物量 | X34: 産業廃棄物量<t> | Y34: =_xlfn.XLOOKUP($H$4,市区町村_現在_カテゴリ!$A$4:$A$13,_xlfn.XLOOKUP($X34,市区町村_現在_カテゴリ!$B$3:$AP$3,市区町村_現在_カテゴリ!$B$4:$AP$13)) -> 2226329.068 | Z34: =_xlfn.XLOOKUP($H$4,市区町村_過去_カテゴリ!$A$4:$A$13,_xlfn.XLOOKUP($X34,市区町村_過去_カテゴリ!$B$3:$AP$3,市区町村_過去_カテゴリ!$B$4:$AP$13)) -> 2275718.95 | AA34: =IFERROR((1-Y34/Z34)*100,NA()) -> 2.170297946 | AL34: 0
W35: 資源生産性 | X35: 資源生産性<百万円/t> | Y35: =_xlfn.XLOOKUP($H$4,市区町村_現在_カテゴリ!$A$4:$A$13,_xlfn.XLOOKUP($X35,市区町村_現在_カテゴリ!$B$3:$AP$3,市区町村_現在_カテゴリ!$B$4:$AP$13)) -> 1.267997142 | Z35: =_xlfn.XLOOKUP($H$4,市区町村_過去_カテゴリ!$A$4:$A$13,_xlfn.XLOOKUP($X35,市区町村_過去_カテゴリ!$B$3:$AP$3,市区町村_過去_カテゴリ!$B$4:$AP$13)) -> 1.147034063 | AA35: =IFERROR((Y35/Z35-1)*100,NA()) -> 10.54572678 | AL35: 0
W36: 利用資源量 | X36: 利用資源量<t> | Y36: =_xlfn.XLOOKUP($H$4,市区町村_現在_カテゴリ!$A$4:$A$13,_xlfn.XLOOKUP($X36,市区町村_現在_カテゴリ!$B$3:$AP$3,市区町村_現在_カテゴリ!$B$4:$AP$13)) -> 4871180.144 | Z36: =_xlfn.XLOOKUP($H$4,市区町村_過去_カテゴリ!$A$4:$A$13,_xlfn.XLOOKUP($X36,市区町村_過去_カテゴリ!$B$3:$AP$3,市区町村_過去_カテゴリ!$B$4:$AP$13)) -> 5352739.902 | AA36: =IFERROR((1-Y36/Z36)*100,NA()) -> 8.996509576 | AL36: 0
W37: 地域GDP | X37: 地域GDP<百万円> | Y37: =_xlfn.XLOOKUP($H$4,市区町村_現在_カテゴリ!$A$4:$A$13,_xlfn.XLOOKUP($X37,市区町村_現在_カテゴリ!$B$3:$AP$3,市区町村_現在_カテゴリ!$B$4:$AP$13)) -> 6176642.5 | Z37: =_xlfn.XLOOKUP($H$4,市区町村_過去_カテゴリ!$A$4:$A$13,_xlfn.XLOOKUP($X37,市区町村_過去_カテゴリ!$B$3:$AP$3,市区町村_過去_カテゴリ!$B$4:$AP$13)) -> 6139775 | AA37: =IFERROR((Y37/Z37-1)*100,NA()) -> 0.6004698869 | AL37: 0
X40: 環境制約
X41: 指標名 | Y41: カテゴリ 現在 | Z41: カテゴリ 過去 | AA41: 過去との乖離度(%)
W42: =LEFT(X42,FIND("<",X42)-1) -> 一般廃棄物最終処分量 | X42: 一般廃棄物最終処分量<t> | Y42: =_xlfn.XLOOKUP($H$4,市区町村_現在_カテゴリ!$A$4:$A$13,_xlfn.XLOOKUP($X42,市区町村_現在_カテゴリ!$B$3:$AP$3,市区町村_現在_カテゴリ!$B$4:$AP$13)) -> 31037.90919 | Z42: =_xlfn.XLOOKUP($H$4,市区町村_過去_カテゴリ!$A$4:$A$13,_xlfn.XLOOKUP($X42,市区町村_過去_カテゴリ!$B$3:$AP$3,市区町村_過去_カテゴリ!$B$4:$AP$13)) -> 42367.85621 | AA42: =IFERROR((1-Y42/Z42)*100,NA()) -> 26.74184637 | AL42: =IF(ISNA(AA42),NA(),0) -> 0
W43: 産業廃棄物最終処分量 | X43: 産業廃棄物最終処分量<t> | Y43: =_xlfn.XLOOKUP($H$4,市区町村_現在_カテゴリ!$A$4:$A$13,_xlfn.XLOOKUP($X43,市区町村_現在_カテゴリ!$B$3:$AP$3,市区町村_現在_カテゴリ!$B$4:$AP$13)) -> 54164.12019 | Z43: =_xlfn.XLOOKUP($H$4,市区町村_過去_カテゴリ!$A$4:$A$13,_xlfn.XLOOKUP($X43,市区町村_過去_カテゴリ!$B$3:$AP$3,市区町村_過去_カテゴリ!$B$4:$AP$13)) -> 58106.80013 | AA43: =IFERROR((1-Y43/Z43)*100,NA()) -> 6.785229834 | AL43: 0
W44: エネルギー使用量 | X44: エネルギー使用量<TJ> | Y44: =_xlfn.XLOOKUP($H$4,市区町村_現在_カテゴリ!$A$4:$A$13,_xlfn.XLOOKUP($X44,市区町村_現在_カテゴリ!$B$3:$AP$3,市区町村_現在_カテゴリ!$B$4:$AP$13)) -> 67193.45187 | Z44: =_xlfn.XLOOKUP($H$4,市区町村_過去_カテゴリ!$A$4:$A$13,_xlfn.XLOOKUP($X44,市区町村_過去_カテゴリ!$B$3:$AP$3,市区町村_過去_カテゴリ!$B$4:$AP$13)) -> 80352.51875 | AA44: =IFERROR((1-Y44/Z44)*100,NA()) -> 16.37667005 | AL44: 0
W45: CO2排出量 | X45: CO2排出量<tCO2> | Y45: =_xlfn.XLOOKUP($H$4,市区町村_現在_カテゴリ!$A$4:$A$13,_xlfn.XLOOKUP($X45,市区町村_現在_カテゴリ!$B$3:$AP$3,市区町村_現在_カテゴリ!$B$4:$AP$13)) -> 4888351.5 | Z45: =_xlfn.XLOOKUP($H$4,市区町村_過去_カテゴリ!$A$4:$A$13,_xlfn.XLOOKUP($X45,市区町村_過去_カテゴリ!$B$3:$AP$3,市区町村_過去_カテゴリ!$B$4:$AP$13)) -> 6255395.786 | AA45: =IFERROR((1-Y45/Z45)*100,NA()) -> 21.85384159 | AL45: 0
W46: 水の循環利用率 | X46: 水の循環利用率<%> | Y46: =_xlfn.XLOOKUP($H$4,市区町村_現在_カテゴリ!$A$4:$A$13,_xlfn.XLOOKUP($X46,市区町村_現在_カテゴリ!$B$3:$AP$3,市区町村_現在_カテゴリ!$B$4:$AP$13)) -> 63.17792301 | Z46: =_xlfn.XLOOKUP($H$4,市区町村_過去_カテゴリ!$A$4:$A$13,_xlfn.XLOOKUP($X46,市区町村_過去_カテゴリ!$B$3:$AP$3,市区町村_過去_カテゴリ!$B$4:$AP$13)) ->  | AA46: =IFERROR((Y46/Z46-1)*100,NA()) -> 
W47: 自然資本 | X47: 自然資本<百万円> | Y47: =_xlfn.XLOOKUP($H$4,市区町村_現在_カテゴリ!$A$4:$A$13,_xlfn.XLOOKUP($X47,市区町村_現在_カテゴリ!$B$3:$AP$3,市区町村_現在_カテゴリ!$B$4:$AP$13)) -> 9999.264308 | Z47: =_xlfn.XLOOKUP($H$4,市区町村_過去_カテゴリ!$A$4:$A$13,_xlfn.XLOOKUP($X47,市区町村_過去_カテゴリ!$B$3:$AP$3,市区町村_過去_カテゴリ!$B$4:$AP$13)) -> 10320.34737 | AA47: =IFERROR((Y47/Z47-1)*100,NA()) -> -3.111165214 | AL47: 0
AL48: 0
X51: 成長機会
X52: 指標名 | Y52: カテゴリ 現在 | Z52: カテゴリ 過去 | AA52: 過去との乖離度(%)
W53: =LEFT(X53,FIND("<",X53)-1) -> CE関連売上高 | X53: CE関連売上高<円> | Y53: =_xlfn.XLOOKUP($H$4,市区町村_現在_カテゴリ!$A$4:$A$13,_xlfn.XLOOKUP($X53,市区町村_現在_カテゴリ!$B$3:$AP$3,市区町村_現在_カテゴリ!$B$4:$AP$13)) ->  | Z53: =_xlfn.XLOOKUP($H$4,市区町村_過去_カテゴリ!$A$4:$A$13,_xlfn.XLOOKUP($X53,市区町村_過去_カテゴリ!$B$3:$AP$3,市区町村_過去_カテゴリ!$B$4:$AP$13)) ->  | AA53: =IFERROR((Y53/Z53-1)*100,NA()) ->  | AL53: =IF(ISNA(AA53),NA(),0) -> 
W54: CE関連雇用創出数 | X54: CE関連雇用創出数<人> | Y54: =_xlfn.XLOOKUP($H$4,市区町村_現在_カテゴリ!$A$4:$A$13,_xlfn.XLOOKUP($X54,市区町村_現在_カテゴリ!$B$3:$AP$3,市区町村_現在_カテゴリ!$B$4:$AP$13)) ->  | Z54: =_xlfn.XLOOKUP($H$4,市区町村_過去_カテゴリ!$A$4:$A$13,_xlfn.XLOOKUP($X54,市区町村_過去_カテゴリ!$B$3:$AP$3,市区町村_過去_カテゴリ!$B$4:$AP$13)) -> 
W55: 自治体でのCE取り組み度 | X55: 自治体でのCE取り組み度<%> | Y55: =_xlfn.XLOOKUP($H$4,市区町村_現在_カテゴリ!$A$4:$A$13,_xlfn.XLOOKUP($X55,市区町村_現在_カテゴリ!$B$3:$AP$3,市区町村_現在_カテゴリ!$B$4:$AP$13)) ->  | Z55: =_xlfn.XLOOKUP($H$4,市区町村_過去_カテゴリ!$A$4:$A$13,_xlfn.XLOOKUP($X55,市区町村_過去_カテゴリ!$B$3:$AP$3,市区町村_過去_カテゴリ!$B$4:$AP$13)) -> 
W56: CE取り組み度（中長期立案） | X56: CE取り組み度（中長期立案）<-> | Y56: =_xlfn.XLOOKUP($H$4,市区町村_現在_カテゴリ!$A$4:$A$13,_xlfn.XLOOKUP($X56,市区町村_現在_カテゴリ!$B$3:$AP$3,市区町村_現在_カテゴリ!$B$4:$AP$13)) ->  | Z56: =_xlfn.XLOOKUP($H$4,市区町村_過去_カテゴリ!$A$4:$A$13,_xlfn.XLOOKUP($X56,市区町村_過去_カテゴリ!$B$3:$AP$3,市区町村_過去_カテゴリ!$B$4:$AP$13)) -> 
W57: CE取り組み度（地域住民） | X57: CE取り組み度（地域住民）<-> | Y57: =_xlfn.XLOOKUP($H$4,市区町村_現在_カテゴリ!$A$4:$A$13,_xlfn.XLOOKUP($X57,市区町村_現在_カテゴリ!$B$3:$AP$3,市区町村_現在_カテゴリ!$B$4:$AP$13)) ->  | Z57: =_xlfn.XLOOKUP($H$4,市区町村_過去_カテゴリ!$A$4:$A$13,_xlfn.XLOOKUP($X57,市区町村_過去_カテゴリ!$B$3:$AP$3,市区町村_過去_カテゴリ!$B$4:$AP$13)) -> 
W58: CE取り組み度（地域企業） | X58: CE取り組み度（地域企業）<-> | Y58: =_xlfn.XLOOKUP($H$4,市区町村_現在_カテゴリ!$A$4:$A$13,_xlfn.XLOOKUP($X58,市区町村_現在_カテゴリ!$B$3:$AP$3,市区町村_現在_カテゴリ!$B$4:$AP$13)) ->  | Z58: =_xlfn.XLOOKUP($H$4,市区町村_過去_カテゴリ!$A$4:$A$13,_xlfn.XLOOKUP($X58,市区町村_過去_カテゴリ!$B$3:$AP$3,市区町村_過去_カテゴリ!$B$4:$AP$13)) -> 
W59: CE取り組み度（外部発信） | X59: CE取り組み度（外部発信）<-> | Y59: =_xlfn.XLOOKUP($H$4,市区町村_現在_カテゴリ!$A$4:$A$13,_xlfn.XLOOKUP($X59,市区町村_現在_カテゴリ!$B$3:$AP$3,市区町村_現在_カテゴリ!$B$4:$AP$13)) ->  | Z59: =_xlfn.XLOOKUP($H$4,市区町村_過去_カテゴリ!$A$4:$A$13,_xlfn.XLOOKUP($X59,市区町村_過去_カテゴリ!$B$3:$AP$3,市区町村_過去_カテゴリ!$B$4:$AP$13)) -> 
W60: CE取り組み度（インフラ） | X60: CE取り組み度（インフラ）<-> | Y60: =_xlfn.XLOOKUP($H$4,市区町村_現在_カテゴリ!$A$4:$A$13,_xlfn.XLOOKUP($X60,市区町村_現在_カテゴリ!$B$3:$AP$3,市区町村_現在_カテゴリ!$B$4:$AP$13)) ->  | Z60: =_xlfn.XLOOKUP($H$4,市区町村_過去_カテゴリ!$A$4:$A$13,_xlfn.XLOOKUP($X60,市区町村_過去_カテゴリ!$B$3:$AP$3,市区町村_過去_カテゴリ!$B$4:$AP$13)) -> 
W61: 環境配慮への意識度 | X61: 環境配慮への意識度<%> | Y61: =_xlfn.XLOOKUP($H$4,市区町村_現在_カテゴリ!$A$4:$A$13,_xlfn.XLOOKUP($X61,市区町村_現在_カテゴリ!$B$3:$AP$3,市区町村_現在_カテゴリ!$B$4:$AP$13)) -> 49.90371424 | Z61: =_xlfn.XLOOKUP($H$4,市区町村_過去_カテゴリ!$A$4:$A$13,_xlfn.XLOOKUP($X61,市区町村_過去_カテゴリ!$B$3:$AP$3,市区町村_過去_カテゴリ!$B$4:$AP$13)) -> 49.85749445 | AA61: 0.09270380364 | AL61: 0
W62: 人工資本 | X62: 人工資本<百万円> | Y62: =_xlfn.XLOOKUP($H$4,市区町村_現在_カテゴリ!$A$4:$A$13,_xlfn.XLOOKUP($X62,市区町村_現在_カテゴリ!$B$3:$AP$3,市区町村_現在_カテゴリ!$B$4:$AP$13)) -> 20918274.99 | Z62: =_xlfn.XLOOKUP($H$4,市区町村_過去_カテゴリ!$A$4:$A$13,_xlfn.XLOOKUP($X62,市区町村_過去_カテゴリ!$B$3:$AP$3,市区町村_過去_カテゴリ!$B$4:$AP$13)) -> 18336711.62 | AA62: 14.07866045 | AL62: 0
W63: 人的資本 | X63: 人的資本<百万円> | Y63: =_xlfn.XLOOKUP($H$4,市区町村_現在_カテゴリ!$A$4:$A$13,_xlfn.XLOOKUP($X63,市区町村_現在_カテゴリ!$B$3:$AP$3,市区町村_現在_カテゴリ!$B$4:$AP$13)) -> 34915345.15 | Z63: =_xlfn.XLOOKUP($H$4,市区町村_過去_カテゴリ!$A$4:$A$13,_xlfn.XLOOKUP($X63,市区町村_過去_カテゴリ!$B$3:$AP$3,市区町村_過去_カテゴリ!$B$4:$AP$13)) -> 36587045.23 | AA63: =IFERROR((Y63/Z63-1)*100,NA()) -> -4.56910383 | AL63: 0
AL64: =IF(ISNA(AA64),NA(),0) -> 0
AL65: =IF(ISNA(AA65),NA(),0) -> 0
X67: ウェルビーイング
X68: 指標名 | Y68: カテゴリ 現在 | Z68: カテゴリ 過去 | AA68: 過去との乖離度(%)
W69: =LEFT(X69,FIND("<",X69)-1) -> 地域コミュニティの成熟度 | X69: 地域コミュニティの成熟度<-> | Y69: =_xlfn.XLOOKUP($H$4,市区町村_現在_カテゴリ!$A$4:$A$13,_xlfn.XLOOKUP($X69,市区町村_現在_カテゴリ!$B$3:$AP$3,市区町村_現在_カテゴリ!$B$4:$AP$13)) -> 49.56698756 | Z69: =_xlfn.XLOOKUP($H$4,市区町村_過去_カテゴリ!$A$4:$A$13,_xlfn.XLOOKUP($X69,市区町村_過去_カテゴリ!$B$3:$AP$3,市区町村_過去_カテゴリ!$B$4:$AP$13)) -> 49.62549375 | AA69: =IFERROR((Y69/Z69-1)*100,NA()) -> -0.1178954415 | AL69: =IF(ISNA(AA69),NA(),0) -> 0
W70: 地域住民の生活満足度 | X70: 地域住民の生活満足度<-> | Y70: =_xlfn.XLOOKUP($H$4,市区町村_現在_カテゴリ!$A$4:$A$13,_xlfn.XLOOKUP($X70,市区町村_現在_カテゴリ!$B$3:$AP$3,市区町村_現在_カテゴリ!$B$4:$AP$13)) -> 49.60358123 | Z70: =_xlfn.XLOOKUP($H$4,市区町村_過去_カテゴリ!$A$4:$A$13,_xlfn.XLOOKUP($X70,市区町村_過去_カテゴリ!$B$3:$AP$3,市区町村_過去_カテゴリ!$B$4:$AP$13)) -> 49.6675125 | AA70: =IFERROR((Y70/Z70-1)*100,NA()) -> -0.1287184883 | AL70: =IF(ISNA(AA70),NA(),0) -> 0
W71: 地域愛着度 | X71: 地域愛着度<-> | Y71: =_xlfn.XLOOKUP($H$4,市区町村_現在_カテゴリ!$A$4:$A$13,_xlfn.XLOOKUP($X71,市区町村_現在_カテゴリ!$B$3:$AP$3,市区町村_現在_カテゴリ!$B$4:$AP$13)) -> 49.95610786 | Z71: =_xlfn.XLOOKUP($H$4,市区町村_過去_カテゴリ!$A$4:$A$13,_xlfn.XLOOKUP($X71,市区町村_過去_カテゴリ!$B$3:$AP$3,市区町村_過去_カテゴリ!$B$4:$AP$13)) -> 49.93893558 | AA71: =IFERROR((Y71/Z71-1)*100,NA()) -> 0.0343865584 | AL71: =IF(ISNA(AA71),NA(),0) -> 0

Sheet 指標関連情報=>

Sheet 01_地域CE指標一覧
B3: 地域循環の 4つの目的 | C3: No. | D3: 指標名（大項目） | E3: 指標名（中項目） | F3: レーダーチャートへの表示 | G3: 割り戻しに使用する指標 ※自治体間を比較可能にするため、絶対量のデータについては一人当たりもしくは地域GDP当たりに変換している（なお、一部指標は人口・地域GDPどちらにも影響を受けると判断し、両者を採用） | H3: 算定カテゴリ | J3: 今年度、非表示にした理由 | K3: 出所 | M3: データ取得年度 | Q3: *
M4: 市区町村 | O4: 都道府県 | Q4: *
H5: 都道府県 | I5: 市区町村 | K5: 出展元 | L5: 出展名/リンク | M5: 過去 | N5: 現在 | O5: 過去 | P5: 現在 | Q5: *
B6: 資源制約への対応 | C6: 1 | D6: 入口の循環利用率<%> | F6: 表示 | G6: ー | H6: 推計 | I6: 推計 | J6: ー | K6: ー | L6: ー | M6: ー | N6: ー | O6: ー | P6: ー | Q6: *
C7: 2 | E7: 循環資源の利用量<t> | F7: 表示 | G7: 循環資源の利用量/人口 循環資源の利用量/地域GDP | H7: 按分 | I7: 按分 | J7: ー | K7: 一般社団法人 産業管理協会 | L7: https://www.cjc.or.jp/data/pdf/book2024.pdf | M7: 2015 | N7: 2021 | O7: 2015 | P7: 2021 | Q7: *
C8: 3 | E8: 利用資源量<t> | F8: 表示 | G8: 利用資源の利用量<t>/地域GDP | H8: 按分 | I8: 按分 | J8: ー | K8: 一般社団法人 産業管理協会 | L8: https://www.cjc.or.jp/data/pdf/book2024.pdf | M8: 2015 | N8: 2021 | O8: 2015 | P8: 2021 | Q8: *
C9: 4 | D9: 出口の循環率<%> | F9: 表示 | G9: ー | H9: 推計 | I9: 推計 | J9: ー | K9: ー | L9: ー | M9: ー | N9: ー | O9: ー | P9: ー | Q9: *
C10: 5 | E10: リサイクル量<t> | F10: 表示 | G10: リサイクル量/人口 | H10: 一部のみ データ取得 | I10: 一部のみ データ取得 | J10: ー | K10: 環境省 | L10: https://www.env.go.jp/recycle/waste_tech/ippan/r3/index.html | M10: 2015 | N10: 2021 | O10: 2015 | P10: 2021 | Q10: *
C11: ー | E11: リファブ量<t> | F11: 非表示 | G11: ー | H11: 非表示化 | I11: 非表示化 | J11: 市区町村・都道府県ごとの統計データがないため、非表示とした | K11: ー | L11: ー | M11: ー | N11: ー | O11: ー | P11: ー | Q11: *
C12: 6 | E12: リユース量<t> | F12: 表示 | G12: リユース量/人口 | H12: 一部のみ データ取得 | I12: 一部のみ データ取得 | J12: ー | K12: 環境省 | L12: https://www.e-stat.go.jp/stat-search/files?page=1&query=%E3%83%AA%E3%83%A6%E3%83%BC%E3%82%B9%E3%83%BB%E3%83%AA%E3%83%9A%E3%82%A2&layout=dataset&stat_infid=000040107511&metadata=1&data=1 | M12: 2015 | N12: 2021 | O12: 2015 | P12: 2021 | Q12: *
C13: ー | E13: リペア量<t> | F13: 非表示 | G13: ー | H13: 非表示化 | I13: 非表示化 | J13: 市区町村・都道府県ごとの統計データがないため、非表示とした | K13: ー | L13: ー | M13: ー | N13: ー | O13: ー | P13: ー | Q13: *
C14: 7 | E14: 一般廃棄物量<t> | F14: 表示 | G14: 一般廃棄物量/人口 | H14: 統計データ | I14: 統計データ | J14: ー | K14: 環境省 | L14: https://www.env.go.jp/recycle/waste_tech/ippan/r3/index.html | M14: 2015 | N14: 2021 | O14: 2015 | P14: 2021 | Q14: *
C15: 8 | E15: 産業廃棄物量<t> | F15: 表示 | G15: 産業廃棄物量/地域GDP | H15: 統計データ | I15: 按分 | J15: ー | K15: 環境省 | L15: https://www.e-stat.go.jp/stat-search/files?page=1&layout=datalist&toukei=00650102&tstat=000001165306&cycle=8&tclass1val=0 | M15: 2015 | N15: 2021 | O15: 2015 | P15: 2021 | Q15: *
C16: 9 | D16: 資源生産性<円/t> | F16: 表示 | G16: ー | H16: 推計 | I16: 推計 | J16: ー | K16: ー | L16: ー | M16: ー | N16: ー | O16: ー | P16: ー | Q16: *
C17: 10 | E17: 利用資源量<t> | F17: 表示 | G17: 利用資源量/人口 | H17: 按分 | I17: 按分 | J17: ー | K17: 一般社団法人 産業管理協会 | L17: https://www.cjc.or.jp/data/pdf/book2024.pdf | M17: 2015 | N17: 2021 | O17: 2015 | P17: 2021 | Q17: *
C18: 11 | E18: 地域GDP<円> | F18: 表示 | G18: 地域GDP/人口 | H18: 統計データ | I18: 按分 | J18: ー | K18: 内閣府 | L18: https://www.esri.cao.go.jp/jp/sna/data/data_list/kenmin/files/contents/main_2021.html | M18: 2015 | N18: 2021 | O18: 2015 | P18: 2021 | Q18: *
C19: ー | D19: 最終処分量<t> | F19: 非表示 | G19: ー | H19: 非表示化 | I19: 非表示化 | J19: 本ツールでは各自治体間の比較を行うために、比較可能な単位に換算することが必要であり、最終処分量として換算することは難しいと判断した。最終処分量には、産業廃棄物由来と一般廃棄物由来が存在し、それぞれ量が変動する因子が異なる。（産業廃棄物は企業活動量、一般廃棄物は人口） よって、本ツールでは最終処分量の合計値は非表示とし、産業廃棄物と一般廃棄物に分けたもののみ表示している | K19: ー | L19: ー | M19: ー | N19: ー | O19: ー | P19: ー | Q19: *
C20: 12 | E20: 一般廃棄物最終処分量<t> | F20: 表示 | G20: 一般廃棄物最終処分量/人口 | H20: 統計データ | I20: 統計データ | J20: ー | K20: 環境省 | L20: https://www.env.go.jp/recycle/waste_tech/ippan/r3/index.html | M20: 2015 | N20: 2021 | O20: 2015 | P20: 2021 | Q20: *
C21: 13 | E21: 産業廃棄物最終処分量<t> | F21: 表示 | G21: 産業廃棄物最終処分量/地域GDP | H21: 推計 | I21: 推計 | J21: ー | K21: 環境省 | L21: https://www.e-stat.go.jp/stat-search/files?page=1&layout=datalist&toukei=00650102&tstat=000001165306&cycle=8&tclass1val=0 | M21: 2015 | N21: 2021 | O21: 2015 | P21: 2021 | Q21: *
B22: 環境制約への対応 | C22: 14 | D22: エネルギー使用量<TJ> | F22: 表示 | G22: エネルギー使用量/人口 エネルギー使用量/地域GDP | H22: 統計データ | I22: 統計データ | J22: ー | K22: 内閣府 | L22: https://energy-sustainability.jp/consumption/ | M22: 2015 | N22: 2021 | O22: 2015 | P22: 2021 | Q22: *
C23: ー | E23: 再生エネルギー導入量・率<TJ・％> | F23: 非表示 | G23: ー | H23: 非表示化 | I23: 非表示化 | J23: 市区町村・都道府県ごとの統計データがないため、非表示とした | K23: ー | L23: ー | M23: ー | N23: ー | O23: ー | P23: ー | Q23: *
C24: ー | E24: 再生エネルギー発電量・率<TJ・％> | F24: 非表示 | G24: ー | H24: 非表示化 | I24: 非表示化 | K24: ー | L24: ー | M24: ー | N24: ー | O24: ー | P24: ー | Q24: *
C25: ー | E25: 再生エネルギー資源利用量・率<TJ・％> | F25: 非表示 | G25: ー | H25: 非表示化 | I25: 非表示化 | K25: ー | L25: ー | M25: ー | N25: ー | O25: ー | P25: ー | Q25: *
C26: ー | E26: 化石燃料などの導入量・率<TJ・％> | F26: 非表示 | G26: ー | H26: 非表示化 | I26: 非表示化 | J26: 市区町村・都道府県ごとの統計データがないため、非表示とした | K26: ー | L26: ー | M26: ー | N26: ー | O26: ー | P26: ー | Q26: *
C27: ー | E27: 化石燃料などの発電量・率<TJ・％> | F27: 非表示 | G27: ー | H27: 非表示化 | I27: 非表示化 | K27: ー | L27: ー | M27: ー | N27: ー | O27: ー | P27: ー | Q27: *
C28: ー | E28: 化石燃料等の資源利用量・率<TJ・％> | F28: 非表示 | G28: ー | H28: 非表示化 | I28: 非表示化 | K28: ー | L28: ー | M28: ー | N28: ー | O28: ー | P28: ー | Q28: *
C29: 15 | D29: CO2排出量<tCO2> | F29: 表示 | G29: CO2排出量/人口 CO2排出量/地域GDP | H29: 統計データ | I29: 統計データ | J29: ー | K29: 環境省 | L29: https://www.env.go.jp/policy/local_keikaku/tools/suikei.html | M29: 2015 | N29: 2021 | O29: 2015 | P29: 2021 | Q29: *
C30: ー | E30: 昨年度のCO2排出量<tCO2> | F30: 非表示 | G30: ー | H30: 非表示化 | I30: 非表示化 | J30: ツールに経年比較の機能がありその中で削減量は見ることができると考え、非表示とした | K30: ー | L30: ー | M30: ー | N30: ー | O30: ー | P30: ー | Q30: *
C31: ー | E31: 削減量<tCO2> | F31: 非表示 | G31: ー | H31: 非表示化 | I31: 非表示化 | K31: ー | L31: ー | M31: ー | N31: ー | O31: ー | P31: ー | Q31: *
C32: ー | E32: 吸収量<tCO2> | F32: 非表示 | G32: ー | H32: 非表示化 | I32: 非表示化 | K32: ー | L32: ー | M32: ー | N32: ー | O32: ー | P32: ー | Q32: *
C33: ー | D33: エコロジカルフットプリント<gha/人> | F33: 表示 | G33: エコロジカルフットプリント/人口 | H33: 統計データ | I33: 非表示化 | J33: ー | K33: WWF | L33: https://www.footprintnetwork.org/content/uploads/2019/09/WWF-Ecological-Footprint-2019_2019911.pdf | M33: ー | N33: ー | O33: ー | P33: 2014 | Q33: *
C34: 16 | D34: 水の循環率<％> | F34: 表示 | G34: ー | H34: 推計 | I34: 推計 | J34: ー | K34: 経産省 | L34: https://www.meti.go.jp/statistics/tyo/kougyo/result-2.html | M34: ー | N34: 2014 | O34: ー | P34: 2014 | Q34: *
C35: 17 | D35: 自然資本<円/人> | F35: 表示 | G35: ー | H35: 推計 | I35: 推計 | J35: ー | K35: aiESG社保有データ | L35: ー | M35: 2010 | N35: 2020 | O35: 2010 | P35: 2020 | Q35: *
C36: ー | E36: 森林資本（市場）<円/人> | F36: 非表示 | G36: ー | H36: 非表示化 | I36: 非表示化 | J36: 自然資本の合計値は表示されること、また自然資本の改善については短期的には取り組むことが難しいため、自然資本の合計値のみの表示とした | K36: aiESG社保有データ | L36: ー | M36: 2010 | N36: 2020 | O36: 2010 | P36: 2020 | Q36: *
C37: ー | E37: 森林資本（非市場）<円/人> | F37: 非表示 | G37: ー | H37: 非表示化 | I37: 非表示化 | K37: aiESG社保有データ | L37: ー | M37: 2010 | N37: 2020 | O37: 2010 | P37: 2020 | Q37: *
C38: ー | E38: 農地資本<円/人> | F38: 非表示 | G38: ー | H38: 非表示化 | I38: 非表示化 | K38: aiESG社保有データ | L38: ー | M38: 2010 | N38: 2020 | O38: 2010 | P38: 2020 | Q38: *
C39: ー | E39: 漁業資本<円/人> | F39: 非表示 | G39: ー | H39: 非表示化 | I39: 非表示化 | K39: aiESG社保有データ | L39: ー | M39: 2010 | N39: 2020 | O39: 2010 | P39: 2020 | Q39: *
C40: ー | E40: 鉱物資本<円/人> | F40: 非表示 | G40: ー | H40: 非表示化 | I40: 非表示化 | K40: aiESG社保有データ | L40: ー | M40: 2010 | N40: 2020 | O40: 2010 | P40: 2020 | Q40: *
B41: 成長機会への対応 | C41: 18 | D41: CE関連売上高＜円＞ | F41: 表示 | G41: CE関連売上高/労働人口 | H41: 一部のみ データ取得 | I41: 一部のみ データ取得 | J41: ー | K41: 地域経済分析システム「RESAS」 | L41: 生産分析 / 産業別グラフ - RESAS 地域経済分析システム | M41: ー | N41: 2021 | O41: ー | P41: 2021 | Q41: *
C42: 19 | D42: CE関連雇用者数 <人> | F42: 表示 | G42: CE関連雇用者数/労働人口 | H42: 一部のみ データ取得 | I42: 一部のみ データ取得 | J42: ー | K42: 環境省 | L42: 環境産業の市場規模・雇用規模等に関する報告書の公表について | 報道発表資料 | 環境省 | M42: ー | N42: 2021 | O42: ー | P42: 2021 | Q42: *
C43: ー | D43: CE関連への投資額<円> | F43: 非表示 | G43: ー | H43: 非表示化 | I43: 非表示化 | J43: 民間投資額・公共投資額ともにデータ取得ができなかったため、非表示とした | K43: ー | L43: ー | M43: ー | N43: ー | O43: ー | P43: ー | Q43: *
C44: ー | E44: CE関連への民間投資額<円＞ | F44: 非表示 | G44: ー | H44: 非表示化 | I44: 非表示化 | J44: 市区町村・都道府県ごとの統計データがないため、非表示とした | K44: ー | L44: ー | M44: ー | N44: ー | O44: ー | P44: ー | Q44: *
C45: ー | E45: CE関連への公共投資額<円＞ | F45: 非表示 | G45: ー | H45: 非表示化 | I45: 非表示化 | J45: 予算表から取得できないか検討したが、各自治体にて記載粒度が異なることから、本年度は非表示とした | K45: ー | L45: ー | M45: ー | N45: ー | O45: ー | P45: ー | Q45: *
C46: ー | D46: CE関連事業の地域経済付加価値<円> | F46: 非表示 | G46: ー | H46: 非表示化 | I46: 非表示化 | J46: CE関連事業の従業員可処分所得・地方税・地域事業者純利益に関するデータ取得ができなかったため、非表示とした | K46: ー | L46: ー | M46: ー | N46: ー | O46: ー | P46: ー | Q46: *
C47: ー | E47: CE関連事業の従業員可処分所得 <円> | F47: 非表示 | G47: ー | H47: 非表示化 | I47: 非表示化 | J47: 市区町村・都道府県ごとの統計データがないため、非表示とした | K47: ー | L47: ー | M47: ー | N47: ー | O47: ー | P47: ー | Q47: *
C48: ー | E48: CE関連事業の地方税<円> | F48: 非表示 | G48: ー | H48: 非表示化 | I48: 非表示化 | J48: 市区町村・都道府県ごとの統計データがないため、非表示とした | K48: ー | L48: ー | M48: ー | N48: ー | O48: ー | P48: ー | Q48: *
C49: ー | E49: CE関連事業の地域事業者純利益<円> | F49: 非表示 | G49: ー | H49: 非表示化 | I49: 非表示化 | J49: 市区町村・都道府県ごとの統計データがないため、非表示とした | K49: ー | L49: ー | M49: ー | N49: ー | O49: ー | P49: ー | Q49: *
C50: 20 | D50: 自治体でのCE取り組み度（目標値等）<-> | F50: 表示 | G50: ー | H50: アンケート実施 | I50: アンケート実施 | J50: ー | K50: 事務局にて実施したアンケート | L50: 事務局にて実施したアンケート | M50: ー | N50: 2024 | O50: ー | P50: 2024 | Q50: *
C51: 21 | E51: 中長期計画 | F51: 表示 | G51: ー | H51: アンケート実施 | I51: アンケート実施 | J51: ー | K51: 事務局にて実施したアンケート | L51: 事務局にて実施したアンケート | M51: ー | N51: 2024 | O51: ー | P51: 2024 | Q51: *
C52: 22 | E52: 地域住民施策 | F52: 表示 | G52: ー | H52: アンケート実施 | I52: アンケート実施 | J52: ー | K52: 事務局にて実施したアンケート | L52: 事務局にて実施したアンケート | M52: ー | N52: 2024 | O52: ー | P52: 2024 | Q52: *
C53: 23 | E53: 地域企業施策 | F53: 表示 | G53: ー | H53: アンケート実施 | I53: アンケート実施 | J53: ー | K53: 事務局にて実施したアンケート | L53: 事務局にて実施したアンケート | M53: ー | N53: 2024 | O53: ー | P53: 2024 | Q53: *
C54: 24 | E54: 外部発信 | F54: 表示 | G54: ー | H54: アンケート実施 | I54: アンケート実施 | J54: ー | K54: 事務局にて実施したアンケート | L54: 事務局にて実施したアンケート | M54: ー | N54: 2024 | O54: ー | P54: 2024 | Q54: *
C55: 25 | E55: インフラ設備 | F55: 表示 | G55: ー | H55: アンケート実施 | I55: アンケート実施 | J55: ー | K55: 事務局にて実施したアンケート | L55: 事務局にて実施したアンケート | M55: ー | N55: 2024 | O55: ー | P55: 2024 | Q55: *
C56: ー | D56: 環境配慮意識・行動の浸透度<％> | F56: 非表示 | G56: ー | H56: 非表示化 | I56: 非表示化 | J56: ー | K56: ー | L56: ー | M56: ー | N56: ー | O56: ー | P56: ー | Q56: *
C57: 26 | E57: 環境配慮への意識度<%> | F57: 表示 | G57: ー | H57: 推計 | I57: 推計 | J57: ー | K57: aiESG社保有データ | L57: ー | M57: 2015 | N57: 2015年のデータを基に推計 | O57: 2015 | P57: 2015年のデータを基に推計 | Q57: *
C58: ー | E58: 日常生活における環境配慮行動<%> | F58: 非表示 | G58: ー | H58: 非表示化 | I58: 非表示化 | J58: 市区町村・都道府県ごとの統計データがないため、非表示とした | K58: ー | L58: ー | M58: ー | N58: ー | O58: ー | P58: ー | Q58: *
C59: 27 | D59: 人工資本<円/人> | F59: 表示 | G59: ー | H59: 推計 | I59: 推計 | J59: ー | K59: aiESG社保有データ | L59: ー | M59: 2010 | N59: 2020 | O59: 2010 | P59: 2020 | Q59: *
C60: 28 | D60: 人的資本<円/人> | F60: 表示 | G60: ー | H60: 推計 | I60: 推計 | J60: ー | K60: aiESG社保有データ | L60: ー | M60: 2010 | N60: 2020 | O60: 2010 | P60: 2020 | Q60: *
C61: ー | E61: 教育資本<-> | F61: 非表示 | G61: ー | H61: 非表示化 | I61: 非表示化 | J61: 人的資本の合計値は表示されること、また人的資本の改善については短期的には取り組むことが難しいため、人的資本の合計値のみの表示とした | K61: ー | L61: ー | M61: ー | N61: ー | O61: ー | P61: ー | Q61: *
C62: ー | E62: 健康資本<-> | F62: 非表示 | G62: ー | H62: 非表示化 | I62: 非表示化 | K62: ー | L62: ー | M62: ー | N62: ー | O62: ー | P62: ー | Q62: *
B63: ウェルビーイングの実現 | C63: 29 | D63: 地域コミュニティの成熟度<-> | F63: 表示 | G63: ー | H63: 推計 | I63: 推計 | J63: ー | K63: aiESG社保有データ | L63: ー | M63: 2015 | N63: 2015年のデータを基に推計 | O63: 2015 | P63: 2015年のデータを基に推計 | Q63: *
C64: 30 | D64: 地域住民の生活満足度<-> | F64: 表示 | G64: ー | H64: 推計 | I64: 推計 | J64: ー | K64: aiESG社保有データ | L64: ー | M64: 2015 | N64: 2015年のデータを基に推計 | O64: 2015 | P64: 2015年のデータを基に推計 | Q64: *
C65: 31 | D65: 地域愛着度<-> | F65: 表示 | G65: ー | H65: 推計 | I65: 推計 | J65: ー | K65: aiESG社保有データ | L65: ー | M65: 2015 | N65: 2015年のデータを基に推計 | O65: 2015 | P65: 2015年のデータを基に推計 | Q65: *
A66: * | B66: * | C66: * | D66: * | E66: * | F66: * | G66: * | H66: * | I66: * | K66: * | L66: * | M66: * | N66: * | O66: * | P66: * | Q66: *

Sheet 02_基礎指標一覧
B3: No. | C3: 基礎指標名 | D3: 出所 | F3: データ取得年度 | H3: *
D4: 出展元 | E4: 出展名/リンク | F4: 過去 | G4: 現在 | H4: *
B5: 1 | C5: 人口＜人＞ | D5: 国勢調査 | E5: https://www.e-stat.go.jp/stat-search/files?page=1&layout=datalist&toukei=00200521&tstat=000001136464&cycle=0&year=20200&month=24101210&tclass1=000001136467 | F5: 2015 | G5: 2020 | H5: *
B6: 2 | C6: 総面積＜km2＞ | D6: 国土地理院 | E6: https://www.gsi.go.jp/KOKUJYOHO/OLD-MENCHO-title.htm#csv | F6: ー | G6: 2020 | H6: *
B7: 3 | C7: 人口密度＜人/km2＞ | D7: 上記データ利用 人口密度＝人口/総面積 | E7: ー | F7: ー | G7: ー | H7: *
B8: 4 | C8: 労働人口＜人＞ | D8: 国勢調査 | E8: https://www.e-stat.go.jp/stat-search/files?page=1&layout=datalist&toukei=00200521&tstat=000001136464&cycle=0&year=20200&month=24101210&tclass1=000001136467 | F8: 2015 | G8: 2020 | H8: *
B9: 5 | C9: 地域GDP＜円＞ | D9: 内閣府 | E9: https://www.esri.cao.go.jp/jp/sna/data/data_list/kenmin/files/contents/main_2021.html | F9: 2015 | G9: 2021 | H9: *
B10: 6 | C10: 第一次産業算出額＜百万円＞ | D10: 総務省 | E10: https://www.stat.go.jp/data/ssds/index.html | F10: ー | G10: 2006 | H10: *
B11: 7 | C11: 第二次産業算出額＜百万円＞ | D11: 総務省 | E11: https://www.stat.go.jp/data/ssds/index.html | F11: ー | G11: 2018 | H11: *
B12: 8 | C12: 第三次産業算出額＜百万円＞ | D12: 総務省 | E12: https://www.stat.go.jp/data/ssds/index.html | F12: ー | G12: 2015 | H12: *
A13: * | B13: * | C13: * | D13: * | E13: * | F13: * | G13: *

Sheet データ格納用シート=> (hidden)

Sheet 市区町村_カテゴリID (hidden)
H1: 平均値→ | I1: =AVERAGE(I4:I1919) -> 0.08853889322 | J1: =AVERAGE(J4:J1919) -> 0.4423737293 | K1: =AVERAGE(K4:K1919) -> 0.4690873775 | X1: =#REF! ->  | Y1: =#REF! ->  | Z1: =#REF! -> 
F2: =COUNTBLANK(F4:F1919) -> 201 | H2: 標準偏差→ | I2: =_xlfn.STDEV.P(I1891:I1919) -> 0.2726027817 | J2: =_xlfn.STDEV.P(J1891:J1919) -> 0.1433268461 | K2: =_xlfn.STDEV.P(K1891:K1919) -> 0.2913760612 | W2: =SUM(X2:Z2) -> 1644 | X2: =COUNTIF(X4:X1919,"=1") -> 240 | Y2: =COUNTIF(Y4:Y1919,"=1") -> 874 | Z2: =COUNTIF(Z4:Z1919,"=1") -> 530
B3: 地域 コード | C3: 地域 | D3: 総人口【人】(2020) | E3: 総面積（北方地域及び竹島を除く）【ｈａ】(2020) | F3: C3101_農業産出額【百万円】(2006) | G3: 製造品出荷額等【百万円】（2018） | H3: C3501_商業年間商品販売額（卸売業＋小売業）【百万円】（2015） | I3: 一次産業割合 | J3: 二次産業割合 | K3: 三次産業割合 | L3: 1-3次産業の最大値 | M3: 人口分布/50万人基準の場合 | N3: 一次標準化変量 | O3: 二次標準化変量 | P3: 三次標準化変量 | Q3: 各産業のうち 標準化変量の 最大値 | R3: 標準化変量最大値が一次産業 | S3: 標準化変量最大値が二次産業 | T3: 標準化変量最大値が三次産業 | U3: 一次標準変化量 | V3: 二次標準変化量 | W3: 三次標準変化量 | X3: 一次産業フラグ | Y3: 二次産業フラグ | Z3: 三次産業フラグ | AA3: カテゴリID | AN3: ID | AO3: 説明
B4: 1100 | C4: 北海道 札幌市 | D4: 1973395 | E4: 112126 | F4: 3840 | G4: 574861 | H4: 9956011 | I4: =F4/SUM($F4:$H4) -> 0.0003645092528 | J4: =G4/SUM($F4:$H4) -> 0.05456826917 | K4: =H4/SUM($F4:$H4) -> 0.9450672216 | L4: =MAX(I4:K4) -> 0.9450672216 | M4: =IF(D4>500000,"大規模",IF(D4>50000,"中小規模","極小規模")) -> 大規模 | N4: =STANDARDIZE(I4,$AC$15,$AC$16) -> -0.5445070638 | O4: =STANDARDIZE(J4,$AD$15,$AD$16) -> -1.109486939 | P4: =STANDARDIZE(K4,$AE$15,$AE$16) -> 1.118289454 | Q4: =MAX(N4:P4) -> 1.118289454 | R4: =IF(Q4=N4,"〇","") ->  | S4: =IF(Q4=O4,"〇","") ->  | T4: =IF(Q4=P4,"〇","") -> 〇 | U4: =STANDARDIZE(I4,I$1,I$2) -> -0.3234537205 | V4: -2.705741949 | W4: 1.633558509 | X4: =IF(COUNTBLANK($F4:$H4)>0,"",IF(U4>V4,IF(U4>W4,1,0),0)) -> 0 | Y4: =IF(COUNTBLANK($F4:$H4)>0,"",IF(V4>W4,IF(V4>U4,1,0),0)) -> 0 | Z4: =IF(COUNTBLANK($F4:$H4)>0,"",IF(W4>U4,IF(W4>V4,1,0),0)) -> 1 | AA4: =_xlfn.IFS(AND(M4="大規模", R4="〇"), 1, AND(M4="大規模", S4="〇"), 4, AND(M4="大規模", T4="〇"), 7, AND(M4="中小規模", R4="〇"), 2, AND(M4="中小規模", S4="〇"), 5, AND(M4="中小規模", T4="〇"), 8, AND(M4="極小規模", R4="〇"), 3, AND(M4="極小規模", S4="〇"), 6, AND(M4="極小規模", T4="〇"), 9) -> 7 | AN4: 1 | AO4: 人口: 大規模, 主要産業: 一次産業
B5: 1101 | C5: 北海道 札幌市 中央区 | D5: 248680 | E5: 4642 | G5: 22266 | H5: 4979870 | I5: =F5/SUM($F5:$H5) -> 0 | J5: 0.004451298405 | K5: 0.9955487016 | L5: =MAX(I5:K5) -> 0.9955487016 | M5: =IF(D5>500000,"大規模",IF(D5>50000,"中小規模","極小規模")) -> 中小規模 | N5: =STANDARDIZE(I4,$AF$15,$AF$16) -> -0.5434408086 | O5: =STANDARDIZE(J4,$AG$15,$AG$16) -> -1.527506224 | P5: =STANDARDIZE(K4,$AH$15,$AH$16) -> 1.559905426 | Q5: =MAX(N5:P5) -> 1.559905426 | R5: =IF(Q5=N5,"〇","") ->  | S5: =IF(Q5=O5,"〇","") ->  | T5: =IF(Q5=P5,"〇","") -> 〇 | U5: -0.3247908648 | V5: -3.05541106 | W5: 1.806810491 | X5: =IF(COUNTBLANK($F5:$H5)>0,"",IF(U5>V5,IF(U5>W5,1,0),0)) ->  | Y5: =IF(COUNTBLANK($F5:$H5)>0,"",IF(V5>W5,IF(V5>U5,1,0),0)) ->  | Z5: =IF(COUNTBLANK($F5:$H5)>0,"",IF(W5>U5,IF(W5>V5,1,0),0)) ->  | AA5: =_xlfn.IFS(AND(M5="大規模", R5="〇"), 1, AND(M5="大規模", S5="〇"), 4, AND(M5="大規模", T5="〇"), 7, AND(M5="中小規模", R5="〇"), 2, AND(M5="中小規模", S5="〇"), 5, AND(M5="中小規模", T5="〇"), 8, AND(M5="極小規模", R5="〇"), 3, AND(M5="極小規模", S5="〇"), 6, AND(M5="極小規模", T5="〇"), 9) -> 8 | AN5: 2 | AO5: 人口:中小規模, 主要産業: 一次産業
B6: 1102 | C6: 北海道 札幌市 北区 | D6: 289323 | E6: 6357 | G6: 21593 | H6: 806281 | I6: 0 | J6: 0.02608247149 | K6: 0.9739175285 | L6: =MAX(I6:K6) -> 0.9739175285 | M6: 中小規模 | N6: -0.5607328178 | O6: -1.731286299 | P6: 1.763318539 | Q6: 1.763318539 | T6: 〇 | U6: -0.3247908648 | V6: -2.904489068 | W6: 1.732572501 | AA6: =_xlfn.IFS(AND(M6="大規模", R6="〇"), 1, AND(M6="大規模", S6="〇"), 4, AND(M6="大規模", T6="〇"), 7, AND(M6="中小規模", R6="〇"), 2, AND(M6="中小規模", S6="〇"), 5, AND(M6="中小規模", T6="〇"), 8, AND(M6="極小規模", R6="〇"), 3, AND(M6="極小規模", S6="〇"), 6, AND(M6="極小規模", T6="〇"), 9) -> 8 | AB6: 同規模自治体間の相対評価による算出 | AN6: 3 | AO6: 人口:極小規模, 主要産業: 一次産業
B7: 1103 | C7: 北海道 札幌市 東区 | D7: 265379 | E7: 5697 | G7: 110795 | H7: 1014912 | I7: 0 | J7: 0.09842259131 | K7: 0.9015774087 | L7: 0.9015774087 | M7: 中小規模 | N7: -0.5607328178 | O7: -1.643332019 | P7: 1.676156589 | Q7: 1.676156589 | T7: 〇 | U7: -0.3247908648 | V7: -2.399767714 | W7: 1.484301865 | AA7: =_xlfn.IFS(AND(M7="大規模", R7="〇"), 1, AND(M7="大規模", S7="〇"), 4, AND(M7="大規模", T7="〇"), 7, AND(M7="中小規模", R7="〇"), 2, AND(M7="中小規模", S7="〇"), 5, AND(M7="中小規模", T7="〇"), 8, AND(M7="極小規模", R7="〇"), 3, AND(M7="極小規模", S7="〇"), 6, AND(M7="極小規模", T7="〇"), 9) -> 8 | AC7: 大規模 | AD7: 中小規模 | AE7: 極小規模 | AN7: 4 | AO7: 人口:大規模, 主要産業: 二次産業
B8: 1104 | C8: 北海道 札幌市 白石区 | D8: 211835 | E8: 3447 | G8: 117135 | H8: 1180012 | I8: 0 | J8: 0.09030202437 | K8: 0.9096979756 | L8: 0.9096979756 | M8: 中小規模 | N8: -0.5607328178 | O8: -1.349190637 | P8: 1.384664956 | Q8: 1.384664956 | T8: 〇 | U8: -0.3247908648 | V8: -2.456425397 | W8: 1.512171578 | AA8: =_xlfn.IFS(AND(M8="大規模", R8="〇"), 1, AND(M8="大規模", S8="〇"), 4, AND(M8="大規模", T8="〇"), 7, AND(M8="中小規模", R8="〇"), 2, AND(M8="中小規模", S8="〇"), 5, AND(M8="中小規模", T8="〇"), 8, AND(M8="極小規模", R8="〇"), 3, AND(M8="極小規模", S8="〇"), 6, AND(M8="極小規模", T8="〇"), 9) -> 8 | AB8: 一次産業 | AC8: =COUNTIFS($M$4:$M$1919,$AC$7,$R$4:$R$1919,"〇") -> 5 | AD8: =COUNTIFS($M$4:$M$1919,$AD$7,$R$4:$R$1919,"〇") -> 135 | AE8: =COUNTIFS($M$4:$M$1919,$AE$7,$R$4:$R$1919,"〇") -> 241 | AN8: 5 | AO8: 人口:中小規模, 主要産業: 二次産業
B9: 1105 | C9: 北海道 札幌市 豊平区 | D9: 225298 | E9: 4623 | G9: 22917 | H9: 457051 | I9: 0 | J9: 0.04774693313 | K9: 0.9522530669 | L9: 0.9522530669 | M9: 中小規模 | N9: -0.5607328178 | O9: -1.382209587 | P9: 1.417386457 | Q9: 1.417386457 | T9: 〇 | U9: -0.3247908648 | V9: -2.75333482 | W9: 1.658220265 | AA9: =_xlfn.IFS(AND(M9="大規模", R9="〇"), 1, AND(M9="大規模", S9="〇"), 4, AND(M9="大規模", T9="〇"), 7, AND(M9="中小規模", R9="〇"), 2, AND(M9="中小規模", S9="〇"), 5, AND(M9="中小規模", T9="〇"), 8, AND(M9="極小規模", R9="〇"), 3, AND(M9="極小規模", S9="〇"), 6, AND(M9="極小規模", T9="〇"), 9) -> 8 | AB9: 二次産業 | AC9: =COUNTIFS($M$4:$M$1919,$AC$7,$S$4:$S$1919,"〇") -> 14 | AD9: =COUNTIFS($M$4:$M$1919,$AD$7,$S$4:$S$1919,"〇") -> 262 | AE9: =COUNTIFS($M$4:$M$1919,$AE$7,$S$4:$S$1919,"〇") -> 536 | AN9: 6 | AO9: 人口:極小規模, 主要産業: 二次産業
B10: 1106 | C10: 北海道 札幌市 南区 | D10: 135777 | E10: 65748 | G10: 3559 | H10: 112979 | I10: 0 | J10: 0.03053939488 | K10: 0.9694606051 | L10: 0.9694606051 | M10: 中小規模 | N10: -0.5607328178 | O10: -1.555242385 | P10: 1.588860503 | Q10: 1.588860503 | T10: 〇 | U10: -0.3247908648 | V10: -2.873392846 | W10: 1.71727638 | AA10: =_xlfn.IFS(AND(M10="大規模", R10="〇"), 1, AND(M10="大規模", S10="〇"), 4, AND(M10="大規模", T10="〇"), 7, AND(M10="中小規模", R10="〇"), 2, AND(M10="中小規模", S10="〇"), 5, AND(M10="中小規模", T10="〇"), 8, AND(M10="極小規模", R10="〇"), 3, AND(M10="極小規模", S10="〇"), 6, AND(M10="極小規模", T10="〇"), 9) -> 8 | AB10: 三次産業 | AC10: =COUNTIFS($M$4:$M$1919,$AC$7,$T$4:$T$1919,"〇") -> 16 | AD10: =COUNTIFS($M$4:$M$1919,$AD$7,$T$4:$T$1919,"〇") -> 264 | AE10: =COUNTIFS($M$4:$M$1919,$AE$7,$T$4:$T$1919,"〇") -> 443 | AN10: 7 | AO10: 人口:大規模, 主要産業: 三次産業
B11: 1107 | C11: 北海道 札幌市 西区 | D11: 217040 | E11: 7510 | G11: 163987 | H11: 754254 | I11: 0 | J11: 0.178588192 | K11: 0.821411808 | L11: 0.821411808 | M11: 中小規模 | N11: -0.5607328178 | O11: -1.625209771 | P11: 1.658197593 | Q11: 1.658197593 | T11: 〇 | U11: -0.3247908648 | V11: -1.840447511 | W11: 1.209174251 | AA11: =_xlfn.IFS(AND(M11="大規模", R11="〇"), 1, AND(M11="大規模", S11="〇"), 4, AND(M11="大規模", T11="〇"), 7, AND(M11="中小規模", R11="〇"), 2, AND(M11="中小規模", S11="〇"), 5, AND(M11="中小規模", T11="〇"), 8, AND(M11="極小規模", R11="〇"), 3, AND(M11="極小規模", S11="〇"), 6, AND(M11="極小規模", T11="〇"), 9) -> 8 | AN11: 8 | AO11: 人口:中小規模, 主要産業: 三次産業
B12: 1108 | C12: 北海道 札幌市 厚別区 | D12: 125083 | E12: 2438 | G12: 51205 | H12: 268126 | I12: 0 | J12: 0.1603508585 | K12: 0.8396491415 | L12: 0.8396491415 | M12: 中小規模 | N12: -0.5607328178 | O12: -1.023230152 | P12: 1.06164086 | Q12: 1.06164086 | T12: 〇 | U12: -0.3247908648 | V12: -1.96769048 | W12: 1.271764614 | AA12: =_xlfn.IFS(AND(M12="大規模", R12="〇"), 1, AND(M12="大規模", S12="〇"), 4, AND(M12="大規模", T12="〇"), 7, AND(M12="中小規模", R12="〇"), 2, AND(M12="中小規模", S12="〇"), 5, AND(M12="中小規模", T12="〇"), 8, AND(M12="極小規模", R12="〇"), 3, AND(M12="極小規模", S12="〇"), 6, AND(M12="極小規模", T12="〇"), 9) -> 8 | AN12: 9 | AO12: 人口:極小規模, 主要産業: 三次産業
B13: 1109 | C13: 北海道 札幌市 手稲区 | D13: 142625 | E13: 5677 | G13: 46553 | H13: 163507 | I13: 0 | J13: 0.2216176331 | K13: 0.7783823669 | L13: 0.7783823669 | M13: 中小規模 | N13: -0.5607328178 | O13: -1.097384777 | P13: 1.135127469 | Q13: 1.135127469 | T13: 〇 | U13: -0.3247908648 | V13: -1.540228521 | W13: 1.061497599 | AA13: =_xlfn.IFS(AND(M13="大規模", R13="〇"), 1, AND(M13="大規模", S13="〇"), 4, AND(M13="大規模", T13="〇"), 7, AND(M13="中小規模", R13="〇"), 2, AND(M13="中小規模", S13="〇"), 5, AND(M13="中小規模", T13="〇"), 8, AND(M13="極小規模", R13="〇"), 3, AND(M13="極小規模", S13="〇"), 6, AND(M13="極小規模", T13="〇"), 9) -> 8 | AC13: 大規模 | AF13: 中小規模 | AI13: 極小規模
B14: 1110 | C14: 北海道 札幌市 清田区 | D14: 112355 | E14: 5987 | G14: 14851 | H14: 219018 | I14: 0 | J14: 0.06350136187 | K14: 0.9364986381 | L14: 0.9364986381 | M14: 中小規模 | N14: -0.5607328178 | O14: -0.8482686057 | P14: 0.8882554403 | Q14: 0.8882554403 | T14: 〇 | U14: -0.3247908648 | V14: -2.643415226 | W14: 1.604151208 | AA14: =_xlfn.IFS(AND(M14="大規模", R14="〇"), 1, AND(M14="大規模", S14="〇"), 4, AND(M14="大規模", T14="〇"), 7, AND(M14="中小規模", R14="〇"), 2, AND(M14="中小規模", S14="〇"), 5, AND(M14="中小規模", T14="〇"), 8, AND(M14="極小規模", R14="〇"), 3, AND(M14="極小規模", S14="〇"), 6, AND(M14="極小規模", T14="〇"), 9) -> 8 | AC14: 一次産業 | AD14: 二次産業 | AE14: 三次産業 | AF14: 一次産業 | AG14: 二次産業 | AH14: 三次産業 | AI14: 一次産業 | AJ14: 二次産業 | AK14: 三次産業
B15: 1202 | C15: 北海道 函館市 | D15: 251084 | E15: 67787 | F15: 2630 | G15: 174311 | H15: 780214 | I15: 0.002747726335 | J15: 0.1821136598 | K15: 0.8151386139 | L15: 0.8151386139 | M15: 中小規模 | N15: -0.5607328178 | O15: -1.491183472 | P15: 1.52537866 | Q15: 1.52537866 | T15: 〇 | U15: -0.3147112672 | V15: -1.815850111 | W15: 1.187644706 | X15: 0 | Y15: 0 | Z15: 1 | AA15: =_xlfn.IFS(AND(M15="大規模", R15="〇"), 1, AND(M15="大規模", S15="〇"), 4, AND(M15="大規模", T15="〇"), 7, AND(M15="中小規模", R15="〇"), 2, AND(M15="中小規模", S15="〇"), 5, AND(M15="中小規模", T15="〇"), 8, AND(M15="極小規模", R15="〇"), 3, AND(M15="極小規模", S15="〇"), 6, AND(M15="極小規模", T15="〇"), 9) -> 8 | AB15: 構成比の平均値 | AC15: =AVERAGEIFS($I$4:$I$1919,$M$4:$M$1919,$AC$13) -> 0.002568264898 | AD15: =AVERAGEIFS($J$4:$J$1919,$M$4:$M$1919,$AC$13) -> 0.2539182364 | AE15: =AVERAGEIFS($K$4:$K$1919,$M$4:$M$1919,$AC$13) -> 0.7435134987 | AF15: =AVERAGEIFS($I$4:$I$1919,$M$4:$M$1919,$AF$13) -> 0.01182004342 | AG15: =AVERAGEIFS($J$4:$J$1919,$M$4:$M$1919,$AF$13) -> 0.4302378966 | AH15: =AVERAGEIFS($K$4:$K$1919,$M$4:$M$1919,$AF$13) -> 0.5579420599 | AI15: =AVERAGEIFS($I$4:$I$1919,$M$4:$M$1919,$AI$13) -> 0.1325717881 | AJ15: =AVERAGEIFS($J$4:$J$1919,$M$4:$M$1919,$AI$13) -> 0.4543554732 | AK15: =AVERAGEIFS($K$4:$K$1919,$M$4:$M$1919,$AI$13) -> 0.4130727387
B16: 1203 | C16: 北海道 小樽市 | D16: 111299 | E16: 24383 | F16: 750 | G16: 175073 | H16: 260260 | I16: 0.001719856082 | J16: 0.4014671519 | K16: 0.596812992 | L16: 0.596812992 | M16: 中小規模 | N16: -0.4303830149 | O16: -1.008895286 | P16: 1.036363274 | Q16: 1.036363274 | T16: 〇 | U16: -0.3184818459 | V16: -0.2854076432 | W16: 0.4383531508 | X16: 0 | Y16: 0 | Z16: 1 | AA16: =_xlfn.IFS(AND(M16="大規模", R16="〇"), 1, AND(M16="大規模", S16="〇"), 4, AND(M16="大規模", T16="〇"), 7, AND(M16="中小規模", R16="〇"), 2, AND(M16="中小規模", S16="〇"), 5, AND(M16="中小規模", T16="〇"), 8, AND(M16="極小規模", R16="〇"), 3, AND(M16="極小規模", S16="〇"), 6, AND(M16="極小規模", T16="〇"), 9) -> 8 | AB16: 標準偏差 | AC16: =STDEV(IF(M4:M1919=AC13,I4:I1919)) -> 0.004047248955 | AD16: =STDEV(IF(M4:M1919=AC13,J4:J1919)) -> 0.1796776151 | AE16: =STDEV(IF(M4:M1919=AC13,K4:K1919)) -> 0.1802339476 | AF16: =STDEV(IF(M4:M1919=AF13,I4:I1919)) -> 0.02107963552 | AG16: =STDEV(IF(M4:M1919=AF13,J4:J1919)) -> 0.2459365609 | AH16: =STDEV(IF(M4:M1919=AF13,K4:K1919)) -> 0.2481722003 | AI16: =STDEV(IF(M4:M1919=AI13,I4:I1919)) -> 0.1778405395 | AJ16: =STDEV(IF(M4:M1919=AI13,J4:J1919)) -> 0.2683613369 | AK16: =STDEV(IF(M4:M1919=AI13,K4:K1919)) -> 0.223411725
B17: 1204 | C17: 北海道 旭川市 | D17: 329306 | E17: 74766 | F17: 14990 | G17: 218751 | H17: 1063246 | I17: 0.01155755609 | J17: 0.1686609041 | K17: 0.8197815398 | L17: 0.8197815398 | M17: 中小規模 | N17: -0.4791443064 | O17: -0.1169844152 | P17: 0.1566288732 | Q17: 0.1566288732 | T17: 〇 | U17: -0.2823938063 | V17: -1.909710794 | W17: 1.203579185 | X17: 0 | Y17: 0 | Z17: 1 | AA17: =_xlfn.IFS(AND(M17="大規模", R17="〇"), 1, AND(M17="大規模", S17="〇"), 4, AND(M17="大規模", T17="〇"), 7, AND(M17="中小規模", R17="〇"), 2, AND(M17="中小規模", S17="〇"), 5, AND(M17="中小規模", T17="〇"), 8, AND(M17="極小規模", R17="〇"), 3, AND(M17="極小規模", S17="〇"), 6, AND(M17="極小規模", T17="〇"), 9) -> 8
B18: 1205 | C18: 北海道 室蘭市 | D18: 82383 | E18: 8101 | F18: 250 | G18: 704410 | H18: 229900 | I18: 0.0002675055641 | J18: 0.7537343777 | K18: 0.2459981168 | L18: 0.7537343777 | M18: 中小規模 | N18: -0.01245217604 | O18: -1.063595391 | P18: 1.055071759 | Q18: 1.055071759 | T18: 〇 | U18: -0.3238095631 | V18: 2.172381914 | W18: -0.7656403201 | X18: 0 | Y18: 1 | Z18: 0 | AA18: =_xlfn.IFS(AND(M18="大規模", R18="〇"), 1, AND(M18="大規模", S18="〇"), 4, AND(M18="大規模", T18="〇"), 7, AND(M18="中小規模", R18="〇"), 2, AND(M18="中小規模", S18="〇"), 5, AND(M18="中小規模", T18="〇"), 8, AND(M18="極小規模", R18="〇"), 3, AND(M18="極小規模", S18="〇"), 6, AND(M18="極小規模", T18="〇"), 9) -> 8
B19: 1206 | C19: 北海道 釧路市 | D19: 165077 | E19: 136329 | F19: 7020 | G19: 239619 | H19: 534749 | I19: 0.008984013064 | J19: 0.3066581519 | K19: 0.684357835 | L19: 0.684357835 | M19: 中小規模 | N19: -0.5480425811 | O19: 1.315365556 | P19: -1.256965699 | Q19: 1.315365556 | S19: 〇 | U19: -0.29183444 | V19: -0.9468957213 | W19: 0.7388062582 | X19: 0 | Y19: 0 | Z19: 1 | AA19: =_xlfn.IFS(AND(M19="大規模", R19="〇"), 1, AND(M19="大規模", S19="〇"), 4, AND(M19="大規模", T19="〇"), 7, AND(M19="中小規模", R19="〇"), 2, AND(M19="中小規模", S19="〇"), 5, AND(M19="中小規模", T19="〇"), 8, AND(M19="極小規模", R19="〇"), 3, AND(M19="極小規模", S19="〇"), 6, AND(M19="極小規模", T19="〇"), 9) -> 5
B20: 1207 | C20: 北海道 帯広市 | D20: 166536 | E20: 61934 | F20: 26090 | G20: 166397 | H20: 651038 | I20: 0.03092972941 | J20: 0.197263863 | K20: 0.7718064076 | L20: 0.7718064076 | M20: 中小規模 | N20: -0.1345388707 | O20: -0.5024862684 | P20: 0.5093873325 | Q20: 0.5093873325 | T20: 〇 | U20: -0.2113300658 | V20: -1.710146235 | W20: 1.038928966 | X20: 0 | Y20: 0 | Z20: 1 | AA20: =_xlfn.IFS(AND(M20="大規模", R20="〇"), 1, AND(M20="大規模", S20="〇"), 4, AND(M20="大規模", T20="〇"), 7, AND(M20="中小規模", R20="〇"), 2, AND(M20="中小規模", S20="〇"), 5, AND(M20="中小規模", T20="〇"), 8, AND(M20="極小規模", R20="〇"), 3, AND(M20="極小規模", S20="〇"), 6, AND(M20="極小規模", T20="〇"), 9) -> 8
B21: 1208 | C21: 北海道 北見市 | D21: 115480 | E21: 142741 | F21: 30840 | G21: 112257 | H21: 353092 | I21: =F21/SUM($F21:$H21) -> 0.06215373577 | J21: 0.226238389 | K21: 0.7116078752 | L21: 0.7116078752 | M21: 中小規模 | N21: 0.906547268 | O21: -0.9472932079 | P21: 0.8617578741 | Q21: 0.906547268 | R21: 〇 | U21: -0.09678975864 | V21: -1.507989229 | W21: 0.8323281491 | X21: 0 | Y21: 0 | Z21: 1 | AA21: =_xlfn.IFS(AND(M21="大規模", R21="〇"), 1, AND(M21="大規模", S21="〇"), 4, AND(M21="大規模", T21="〇"), 7, AND(M21="中小規模", R21="〇"), 2, AND(M21="中小規模", S21="〇"), 5, AND(M21="中小規模", T21="〇"), 8, AND(M21="極小規模", R21="〇"), 3, AND(M21="極小規模", S21="〇"), 6, AND(M21="極小規模", T21="〇"), 9) -> 2
B22: 1209 | C22: 北海道 夕張市 | D22: 7334 | E22: 76307 | F22: 2800 | G22: 9495 | H22: 8373 | I22: 0.1354751306 | J22: 0.4594058448 | K22: 0.4051190246 | L22: 0.4594058448 | M22: 極小規模 | N22: =STANDARDIZE(I22,$AI$15,$AI$16) -> 0.01632553847 | O22: =STANDARDIZE(J20,$AJ$15,$AJ$16) -> -0.9580054013 | P22: =STANDARDIZE(K20,$AK$15,$AK$16) -> 1.605706545 | Q22: 1.605706545 | T22: 〇 | U22: 0.1721781308 | V22: 0.1188340913 | W22: -0.2195388073 | X22: 1 | Y22: 0 | Z22: 0 | AA22: =_xlfn.IFS(AND(M22="大規模", R22="〇"), 1, AND(M22="大規模", S22="〇"), 4, AND(M22="大規模", T22="〇"), 7, AND(M22="中小規模", R22="〇"), 2, AND(M22="中小規模", S22="〇"), 5, AND(M22="中小規模", T22="〇"), 8, AND(M22="極小規模", R22="〇"), 3, AND(M22="極小規模", S22="〇"), 6, AND(M22="極小規模", T22="〇"), 9) -> 9
B23: 1210 | C23: 北海道 岩見沢市 | D23: 79306 | E23: 48102 | F23: 18810 | G23: 79765 | H23: 155733 | I23: 0.07396542775 | J23: 0.3136550954 | K23: 0.6123794769 | L23: 0.6123794769 | M23: 中小規模 | N23: =STANDARDIZE(I22,$AF$15,$AF$16) -> 5.866092282 | O23: =STANDARDIZE(J22,$AG$15,$AG$16) -> 0.1185994796 | P23: =STANDARDIZE(K22,$AH$15,$AH$16) -> -0.6157943363 | Q23: 5.866092282 | R23: 〇 | U23: -0.053460443 | V23: -0.898077627 | W23: 0.4917771856 | X23: 0 | Y23: 0 | Z23: 1 | AA23: =_xlfn.IFS(AND(M23="大規模", R23="〇"), 1, AND(M23="大規模", S23="〇"), 4, AND(M23="大規模", T23="〇"), 7, AND(M23="中小規模", R23="〇"), 2, AND(M23="中小規模", S23="〇"), 5, AND(M23="中小規模", T23="〇"), 8, AND(M23="極小規模", R23="〇"), 3, AND(M23="極小規模", S23="〇"), 6, AND(M23="極小規模", T23="〇"), 9) -> 2
B24: 1211 | C24: 北海道 網走市 | D24: 35759 | E24: 47100 | F24: 20320 | G24: 43731 | H24: 63938 | I24: 0.1587636438 | J24: 0.3416778004 | K24: 0.4995585558 | L24: 0.4995585558 | M24: 極小規模 | N24: =STANDARDIZE(I24,$AI$15,$AI$16) -> 0.1472771942 | O24: =STANDARDIZE(J22,$AJ$15,$AJ$16) -> 0.01881929657 | P24: =STANDARDIZE(K22,$AK$15,$AK$16) -> -0.03560114921 | Q24: 0.1472771942 | R24: 〇 | U24: 0.2576083416 | V24: -0.7025615335 | W24: 0.1045768076 | X24: 1 | Y24: 0 | Z24: 0 | AA24: =_xlfn.IFS(AND(M24="大規模", R24="〇"), 1, AND(M24="大規模", S24="〇"), 4, AND(M24="大規模", T24="〇"), 7, AND(M24="中小規模", R24="〇"), 2, AND(M24="中小規模", S24="〇"), 5, AND(M24="中小規模", T24="〇"), 8, AND(M24="極小規模", R24="〇"), 3, AND(M24="極小規模", S24="〇"), 6, AND(M24="極小規模", T24="〇"), 9) -> 3
B25: 1212 | C25: 北海道 留萌市 | D25: 20114 | E25: 29784 | F25: 790 | G25: 8696 | H25: 51477 | I25: 0.01295867985 | J25: 0.1426438988 | K25: 0.8443974214 | L25: 0.8443974214 | M25: 極小規模 | N25: =STANDARDIZE(I25,$AI$15,$AI$16) -> -0.6725862873 | O25: =STANDARDIZE(J23,$AJ$15,$AJ$16) -> -0.5242945181 | P25: =STANDARDIZE(K23,$AK$15,$AK$16) -> 0.892105095 | Q25: 0.892105095 | T25: 〇 | U25: -0.2772540063 | V25: -2.091233 | W25: 1.288060667 | X25: 0 | Y25: 0 | Z25: 1 | AA25: =_xlfn.IFS(AND(M25="大規模", R25="〇"), 1, AND(M25="大規模", S25="〇"), 4, AND(M25="大規模", T25="〇"), 7, AND(M25="中小規模", R25="〇"), 2, AND(M25="中小規模", S25="〇"), 5, AND(M25="中小規模", T25="〇"), 8, AND(M25="極小規模", R25="〇"), 3, AND(M25="極小規模", S25="〇"), 6, AND(M25="極小規模", T25="〇"), 9) -> 9
B26: 1213 | C26: 北海道 苫小牧市 | D26: 170113 | E26: 56157 | F26: 1670 | G26: 1304059 | H26: 528486 | I26: 0.000910471237 | J26: 0.7109630005 | K26: 0.2881265282 | L26: 0.7109630005 | M26: 中小規模 | N26: =STANDARDIZE(I25,$AF$15,$AF$16) -> 0.05401594502 | O26: =STANDARDIZE(J25,$AG$15,$AG$16) -> -1.169382856 | P26: =STANDARDIZE(K25,$AH$15,$AH$16) -> 1.154260474 | Q26: 1.154260474 | T26: 〇 | U26: -0.3214509457 | V26: 1.873963451 | W26: -0.6210559939 | X26: 0 | Y26: 1 | Z26: 0 | AA26: =_xlfn.IFS(AND(M26="大規模", R26="〇"), 1, AND(M26="大規模", S26="〇"), 4, AND(M26="大規模", T26="〇"), 7, AND(M26="中小規模", R26="〇"), 2, AND(M26="中小規模", S26="〇"), 5, AND(M26="中小規模", T26="〇"), 8, AND(M26="極小規模", R26="〇"), 3, AND(M26="極小規模", S26="〇"), 6, AND(M26="極小規模", T26="〇"), 9) -> 8
B27: 1214 | C27: 北海道 稚内市 | D27: 33563 | E27: 76147 | F27: 6540 | G27: 49721 | H27: 132134 | I27: 0.03471429709 | J27: 0.2639188938 | K27: 0.7013668091 | L27: 0.7013668091 | M27: 極小規模 | N27: =STANDARDIZE(I27,$AI$15,$AI$16) -> -0.5502541279 | O27: =STANDARDIZE(J25,$AJ$15,$AJ$16) -> -1.161536822 | P27: =STANDARDIZE(K25,$AK$15,$AK$16) -> 1.930626885 | Q27: 1.930626885 | T27: 〇 | U27: -0.1974469805 | V27: -1.245090088 | W27: 0.797180903 | X27: 0 | Y27: 0 | Z27: 1 | AA27: =_xlfn.IFS(AND(M27="大規模", R27="〇"), 1, AND(M27="大規模", S27="〇"), 4, AND(M27="大規模", T27="〇"), 7, AND(M27="中小規模", R27="〇"), 2, AND(M27="中小規模", S27="〇"), 5, AND(M27="中小規模", T27="〇"), 8, AND(M27="極小規模", R27="〇"), 3, AND(M27="極小規模", S27="〇"), 6, AND(M27="極小規模", T27="〇"), 9) -> 9
B28: 1215 | C28: 北海道 美唄市 | D28: 20413 | E28: 27769 | F28: 7150 | G28: 15943 | H28: 26022 | I28: 0.1455767077 | J28: 0.3246055177 | K28: 0.5298177746 | L28: 0.5298177746 | M28: 極小規模 | N28: =STANDARDIZE(I28,$AI$15,$AI$16) -> 0.07312685675 | O28: =STANDARDIZE(J26,$AJ$15,$AJ$16) -> 0.9562015538 | P28: =STANDARDIZE(K26,$AK$15,$AK$16) -> -0.5592643381 | Q28: 0.9562015538 | S28: 〇 | U28: 0.2092341617 | V28: -0.8216758742 | W28: 0.2084261722 | X28: 1 | Y28: 0 | Z28: 0 | AA28: =_xlfn.IFS(AND(M28="大規模", R28="〇"), 1, AND(M28="大規模", S28="〇"), 4, AND(M28="大規模", T28="〇"), 7, AND(M28="中小規模", R28="〇"), 2, AND(M28="中小規模", S28="〇"), 5, AND(M28="中小規模", T28="〇"), 8, AND(M28="極小規模", R28="〇"), 3, AND(M28="極小規模", S28="〇"), 6, AND(M28="極小規模", T28="〇"), 9) -> 6
B29: 1216 | C29: 北海道 芦別市 | D29: 12555 | E29: 86504 | F29: 2850 | G29: 17632 | H29: 12754 | I29: 0.08575039114 | J29: 0.5305090865 | K29: 0.3837405223 | L29: 0.5305090865 | M29: 極小規模 | N29: =STANDARDIZE(I29,$AI$15,$AI$16) -> -0.2632774116 | O29: =STANDARDIZE(J27,$AJ$15,$AJ$16) -> -0.7096274806 | P29: =STANDARDIZE(K27,$AK$15,$AK$16) -> 1.290416026 | Q29: 1.290416026 | T29: 〇 | U29: -0.01022917691 | V29: 0.6149256727 | W29: -0.2929096332 | X29: 0 | Y29: 1 | Z29: 0 | AA29: =_xlfn.IFS(AND(M29="大規模", R29="〇"), 1, AND(M29="大規模", S29="〇"), 4, AND(M29="大規模", T29="〇"), 7, AND(M29="中小規模", R29="〇"), 2, AND(M29="中小規模", S29="〇"), 5, AND(M29="中小規模", T29="〇"), 8, AND(M29="極小規模", R29="〇"), 3, AND(M29="極小規模", S29="〇"), 6, AND(M29="極小規模", T29="〇"), 9) -> 9
B30: 1217 | C30: 北海道 江別市 | D30: 121056 | E30: 18738 | F30: 6140 | G30: 95505 | H30: 140267 | I30: 0.02538113033 | J30: 0.3947923212 | K30: 0.5798265485 | L30: 0.5798265485 | M30: 中小規模 | N30: =STANDARDIZE(I29,$AF$15,$AF$16) -> 3.507192886 | O30: =STANDARDIZE(J29,$AG$15,$AG$16) -> 0.4077116047 | P30: =STANDARDIZE(K29,$AH$15,$AH$16) -> -0.70193816 | Q30: 3.507192886 | R30: 〇 | U30: -0.2316842201 | V30: -0.3319783374 | W30: 0.3800558307 | X30: 0 | Y30: 0 | Z30: 1 | AA30: =_xlfn.IFS(AND(M30="大規模", R30="〇"), 1, AND(M30="大規模", S30="〇"), 4, AND(M30="大規模", T30="〇"), 7, AND(M30="中小規模", R30="〇"), 2, AND(M30="中小規模", S30="〇"), 5, AND(M30="中小規模", T30="〇"), 8, AND(M30="極小規模", R30="〇"), 3, AND(M30="極小規模", S30="〇"), 6, AND(M30="極小規模", T30="〇"), 9) -> 2
B31: 1218 | C31: 北海道 赤平市 | D31: 9698 | E31: 12988 | F31: 770 | G31: 22031 | H31: 10402 | I31: 0.02319067554 | J31: 0.6635243803 | K31: 0.3132849441 | L31: 0.6635243803 | M31: 極小規模 | N31: =STANDARDIZE(I31,$AI$15,$AI$16) -> -0.6150516233 | O31: =STANDARDIZE(J29,$AJ$15,$AJ$16) -> 0.2837726709 | P31: =STANDARDIZE(K29,$AK$15,$AK$16) -> -0.1312921979 | Q31: 0.2837726709 | S31: 〇 | U31: -0.2397195555 | V31: 1.542981354 | W31: -0.5347125387 | X31: 0 | Y31: 1 | Z31: 0 | AA31: =_xlfn.IFS(AND(M31="大規模", R31="〇"), 1, AND(M31="大規模", S31="〇"), 4, AND(M31="大規模", T31="〇"), 7, AND(M31="中小規模", R31="〇"), 2, AND(M31="中小規模", S31="〇"), 5, AND(M31="中小規模", T31="〇"), 8, AND(M31="極小規模", R31="〇"), 3, AND(M31="極小規模", S31="〇"), 6, AND(M31="極小規模", T31="〇"), 9) -> 6
B32: 1219 | C32: 北海道 紋別市 | D32: 21215 | E32: 83067 | F32: 6390 | G32: 51589 | H32: 91340 | I32: 0.04279428606 | J32: 0.3454952149 | K32: 0.611710499 | L32: 0.611710499 | M32: 極小規模 | N32: -0.5048202297 | O32: -0.2219513165 | P32: 0.7463968589 | Q32: 0.7463968589 | T32: 〇 | U32: -0.1678068245 | V32: -0.6759272036 | W32: 0.4894812597 | X32: 0 | Y32: 0 | Z32: 1 | AA32: =_xlfn.IFS(AND(M32="大規模", R32="〇"), 1, AND(M32="大規模", S32="〇"), 4, AND(M32="大規模", T32="〇"), 7, AND(M32="中小規模", R32="〇"), 2, AND(M32="中小規模", S32="〇"), 5, AND(M32="中小規模", T32="〇"), 8, AND(M32="極小規模", R32="〇"), 3, AND(M32="極小規模", S32="〇"), 6, AND(M32="極小規模", T32="〇"), 9) -> 9
B33: 1220 | C33: 北海道 士別市 | D33: 17858 | E33: 111922 | F33: 11780 | G33: 13024 | H33: 34542 | I33: 0.1984969501 | J33: 0.2194587672 | K33: 0.5820442827 | L33: 0.5820442827 | M33: 極小規模 | N33: 0.370698167 | O33: 0.779430113 | P33: -0.4466542417 | Q33: 0.779430113 | S33: 〇 | U33: 0.403363664 | V33: -1.555291057 | W33: 0.3876670743 | X33: 1 | Y33: 0 | Z33: 0 | AA33: =_xlfn.IFS(AND(M33="大規模", R33="〇"), 1, AND(M33="大規模", S33="〇"), 4, AND(M33="大規模", T33="〇"), 7, AND(M33="中小規模", R33="〇"), 2, AND(M33="中小規模", S33="〇"), 5, AND(M33="中小規模", T33="〇"), 8, AND(M33="極小規模", R33="〇"), 3, AND(M33="極小規模", S33="〇"), 6, AND(M33="極小規模", T33="〇"), 9) -> 6
B34: 1221 | C34: 北海道 名寄市 | D34: 27282 | E34: 53520 | F34: 8840 | G34: 17619 | H34: 62290 | I34: 0.09960675613 | J34: 0.1985261806 | K34: 0.7018670633 | L34: 0.7018670633 | M34: 極小規模 | N34: -0.1853628651 | O34: -0.4056480696 | P34: 0.8891107228 | Q34: 0.8891107228 | T34: 〇 | U34: 0.04060069687 | V34: -1.701338969 | W34: 0.7988977709 | X34: 0 | Y34: 0 | Z34: 1 | AA34: =_xlfn.IFS(AND(M34="大規模", R34="〇"), 1, AND(M34="大規模", S34="〇"), 4, AND(M34="大規模", T34="〇"), 7, AND(M34="中小規模", R34="〇"), 2, AND(M34="中小規模", S34="〇"), 5, AND(M34="中小規模", T34="〇"), 8, AND(M34="極小規模", R34="〇"), 3, AND(M34="極小規模", S34="〇"), 6, AND(M34="極小規模", T34="〇"), 9) -> 9
B35: 1222 | C35: 北海道 三笠市 | D35: 8040 | E35: 30252 | F35: 1440 | G35: 11371 | H35: 14720 | I35: 0.05230467473 | J35: 0.4130253169 | K35: 0.5346700084 | L35: 0.5346700084 | M35: 極小規模 | N35: -0.4513431727 | O35: -0.8753001035 | P35: 0.7563235277 | Q35: 0.7563235277 | T35: 〇 | U35: -0.1329194745 | V35: -0.2047656328 | W35: 0.2250789944 | X35: 0 | Y35: 0 | Z35: 1 | AA35: =_xlfn.IFS(AND(M35="大規模", R35="〇"), 1, AND(M35="大規模", S35="〇"), 4, AND(M35="大規模", T35="〇"), 7, AND(M35="中小規模", R35="〇"), 2, AND(M35="中小規模", S35="〇"), 5, AND(M35="中小規模", T35="〇"), 8, AND(M35="極小規模", R35="〇"), 3, AND(M35="極小規模", S35="〇"), 6, AND(M35="極小規模", T35="〇"), 9) -> 9
B36: 1223 | C36: 北海道 根室市 | D36: 24636 | E36: 41141 | F36: 4690 | G36: 51367 | H36: 112093 | I36: 0.02789176331 | J36: 0.3054831995 | K36: 0.6666250372 | L36: 0.6666250372 | M36: 極小規模 | N36: -0.5886173369 | O36: -0.9533016029 | P36: 1.292655185 | Q36: 1.292655185 | T36: 〇 | U36: -0.2224743619 | V36: -0.9550934345 | W36: 0.6779474568 | X36: 0 | Y36: 0 | Z36: 1 | AA36: =_xlfn.IFS(AND(M36="大規模", R36="〇"), 1, AND(M36="大規模", S36="〇"), 4, AND(M36="大規模", T36="〇"), 7, AND(M36="中小規模", R36="〇"), 2, AND(M36="中小規模", S36="〇"), 5, AND(M36="中小規模", T36="〇"), 8, AND(M36="極小規模", R36="〇"), 3, AND(M36="極小規模", S36="〇"), 6, AND(M36="極小規模", T36="〇"), 9) -> 9
B37: 1224 | C37: 北海道 千歳市 | D37: 97950 | E37: 59450 | F37: 13130 | G37: 253469 | H37: 192567 | I37: 0.02859532282 | J37: 0.5520204022 | K37: 0.419384275 | L37: 0.5520204022 | M37: 中小規模 | N37: =STANDARDIZE(I36,$AF$15,$AF$16) -> 0.7624287371 | O37: =STANDARDIZE(J36,$AG$15,$AG$16) -> -0.5072637296 | P37: =STANDARDIZE(K36,$AH$15,$AH$16) -> 0.4379337296 | Q37: 0.7624287371 | R37: 〇 | U37: -0.2198934656 | V37: 0.765011412 | W37: -0.1705805973 | X37: 0 | Y37: 1 | Z37: 0 | AA37: =_xlfn.IFS(AND(M37="大規模", R37="〇"), 1, AND(M37="大規模", S37="〇"), 4, AND(M37="大規模", T37="〇"), 7, AND(M37="中小規模", R37="〇"), 2, AND(M37="中小規模", S37="〇"), 5, AND(M37="中小規模", T37="〇"), 8, AND(M37="極小規模", R37="〇"), 3, AND(M37="極小規模", S37="〇"), 6, AND(M37="極小規模", T37="〇"), 9) -> 2
B38: 1225 | C38: 北海道 滝川市 | D38: 39490 | E38: 11590 | F38: 3970 | G38: 13120 | H38: 91816 | I38: 0.03645345527 | J38: 0.1204708648 | K38: 0.8430756799 | L38: 0.8430756799 | M38: 極小規模 | N38: =STANDARDIZE(I38,$AI$15,$AI$16) -> -0.5404748155 | O38: =STANDARDIZE(J36,$AJ$15,$AJ$16) -> -0.5547456105 | P38: =STANDARDIZE(K36,$AK$15,$AK$16) -> 1.134910437 | Q38: 1.134910437 | T38: 〇 | U38: -0.191067155 | V38: -2.245935588 | W38: 1.283524463 | X38: 0 | Y38: 0 | Z38: 1 | AA38: =_xlfn.IFS(AND(M38="大規模", R38="〇"), 1, AND(M38="大規模", S38="〇"), 4, AND(M38="大規模", T38="〇"), 7, AND(M38="中小規模", R38="〇"), 2, AND(M38="中小規模", S38="〇"), 5, AND(M38="中小規模", T38="〇"), 8, AND(M38="極小規模", R38="〇"), 3, AND(M38="極小規模", S38="〇"), 6, AND(M38="極小規模", T38="〇"), 9) -> 9
B39: 1226 | C39: 北海道 砂川市 | D39: 16486 | E39: 7868 | F39: 2080 | G39: 26410 | H39: 47138 | I39: 0.0275030412 | J39: 0.3492092876 | K39: 0.6232876712 | L39: 0.6232876712 | M39: 極小規模 | N39: -0.590803127 | O39: 0.3639306993 | P39: 0.0282506938 | Q39: 0.3639306993 | S39: 〇 | U39: -0.2239003272 | V39: -0.6500138962 | W39: 0.5292140098 | X39: 0 | Y39: 0 | Z39: 1 | AA39: =_xlfn.IFS(AND(M39="大規模", R39="〇"), 1, AND(M39="大規模", S39="〇"), 4, AND(M39="大規模", T39="〇"), 7, AND(M39="中小規模", R39="〇"), 2, AND(M39="中小規模", S39="〇"), 5, AND(M39="中小規模", T39="〇"), 8, AND(M39="極小規模", R39="〇"), 3, AND(M39="極小規模", S39="〇"), 6, AND(M39="極小規模", T39="〇"), 9) -> 6
B40: 1227 | C40: 北海道 歌志内市 | D40: 2989 | E40: 5595 | H40: 5763 | I40: 0 | J40: 0 | K40: 1 | L40: 1 | M40: 極小規模 | N40: -0.745453137 | O40: -1.244160624 | P40: 1.924710716 | Q40: 1.924710716 | T40: 〇 | U40: -0.3247908648 | V40: -3.086468036 | W40: 1.822087306 | AA40: =_xlfn.IFS(AND(M40="大規模", R40="〇"), 1, AND(M40="大規模", S40="〇"), 4, AND(M40="大規模", T40="〇"), 7, AND(M40="中小規模", R40="〇"), 2, AND(M40="中小規模", S40="〇"), 5, AND(M40="中小規模", T40="〇"), 8, AND(M40="極小規模", R40="〇"), 3, AND(M40="極小規模", S40="〇"), 6, AND(M40="極小規模", T40="〇"), 9) -> 9
B41: 1228 | C41: 北海道 深川市 | D41: 20039 | E41: 52942 | F41: 11390 | G41: 4107 | H41: 38833 | I41: 0.2096447635 | J41: 0.0755935947 | K41: 0.7147616418 | L41: 0.7147616418 | M41: 極小規模 | N41: 0.4333824876 | O41: -0.3918082495 | P41: 0.9409306183 | Q41: 0.9409306183 | T41: 〇 | U41: 0.4442576465 | V41: -2.559046992 | W41: 0.8431518475 | X41: 0 | Y41: 0 | Z41: 1 | AA41: =_xlfn.IFS(AND(M41="大規模", R41="〇"), 1, AND(M41="大規模", S41="〇"), 4, AND(M41="大規模", T41="〇"), 7, AND(M41="中小規模", R41="〇"), 2, AND(M41="中小規模", S41="〇"), 5, AND(M41="中小規模", T41="〇"), 8, AND(M41="極小規模", R41="〇"), 3, AND(M41="極小規模", S41="〇"), 6, AND(M41="極小規模", T41="〇"), 9) -> 9
B42: 1229 | C42: 北海道 富良野市 | D42: 21131 | E42: 60071 | F42: 18840 | G42: 6506 | H42: 40418 | I42: 0.2864789246 | J42: 0.0989295055 | K42: 0.6145915699 | L42: 0.6145915699 | M42: 極小規模 | N42: 0.8654221191 | O42: -1.69307352 | P42: 2.627110378 | Q42: 2.627110378 | T42: 〇 | U42: 0.7261115611 | V42: -2.396230943 | W42: 0.4993690688 | X42: 1 | Y42: 0 | Z42: 0 | AA42: =_xlfn.IFS(AND(M42="大規模", R42="〇"), 1, AND(M42="大規模", S42="〇"), 4, AND(M42="大規模", T42="〇"), 7, AND(M42="中小規模", R42="〇"), 2, AND(M42="中小規模", S42="〇"), 5, AND(M42="中小規模", T42="〇"), 8, AND(M42="極小規模", R42="〇"), 3, AND(M42="極小規模", S42="〇"), 6, AND(M42="極小規模", T42="〇"), 9) -> 9
B43: 1230 | C43: 北海道 登別市 | D43: 46391 | E43: 21221 | F43: 2100 | G43: 21423 | H43: 55225 | I43: 0.02666734393 | J43: 0.2720450043 | K43: 0.7012876517 | L43: 0.7012876517 | M43: 極小規模 | N43: -0.5955022652 | O43: -1.411387657 | P43: 1.350371844 | Q43: 1.350371844 | T43: 〇 | U43: -0.2269659498 | V43: -1.188393728 | W43: 0.7969092357 | X43: 0 | Y43: 0 | Z43: 1 | AA43: =_xlfn.IFS(AND(M43="大規模", R43="〇"), 1, AND(M43="大規模", S43="〇"), 4, AND(M43="大規模", T43="〇"), 7, AND(M43="中小規模", R43="〇"), 2, AND(M43="中小規模", S43="〇"), 5, AND(M43="中小規模", T43="〇"), 8, AND(M43="極小規模", R43="〇"), 3, AND(M43="極小規模", S43="〇"), 6, AND(M43="極小規模", T43="〇"), 9) -> 9
B44: 1231 | C44: 北海道 恵庭市 | D44: 70331 | E44: 29465 | F44: 5600 | G44: 155164 | H44: 121924 | I44: 0.01980982567 | J44: 0.5488878198 | K44: 0.4313023545 | L44: 0.5488878198 | M44: 中小規模 | N44: =STANDARDIZE(I43,$AF$15,$AF$16) -> 0.7043433222 | O44: =STANDARDIZE(J43,$AG$15,$AG$16) -> -0.6432264148 | P44: =STANDARDIZE(K43,$AH$15,$AH$16) -> 0.577605355 | Q44: 0.7043433222 | R44: 〇 | U44: -0.2521216662 | V44: 0.7431551966 | W44: -0.1296778563 | X44: 0 | Y44: 1 | Z44: 0 | AA44: =_xlfn.IFS(AND(M44="大規模", R44="〇"), 1, AND(M44="大規模", S44="〇"), 4, AND(M44="大規模", T44="〇"), 7, AND(M44="中小規模", R44="〇"), 2, AND(M44="中小規模", S44="〇"), 5, AND(M44="中小規模", T44="〇"), 8, AND(M44="極小規模", R44="〇"), 3, AND(M44="極小規模", S44="〇"), 6, AND(M44="極小規模", T44="〇"), 9) -> 2
B45: 1233 | C45: 北海道 伊達市 | D45: 32826 | E45: 44421 | F45: 9080 | G45: 21173 | H45: 45023 | I45: 0.1206227749 | J45: 0.2812715872 | K45: 0.5981056379 | L45: 0.5981056379 | M45: 極小規模 | N45: =STANDARDIZE(I45,$AI$15,$AI$16) -> -0.06718947909 | O45: =STANDARDIZE(J43,$AJ$15,$AJ$16) -> -0.679346999 | P45: =STANDARDIZE(K43,$AK$15,$AK$16) -> 1.290061715 | Q45: 1.290061715 | T45: 〇 | U45: 0.117694623 | V45: -1.124019305 | W45: 0.4427894998 | X45: 0 | Y45: 0 | Z45: 1 | AA45: =_xlfn.IFS(AND(M45="大規模", R45="〇"), 1, AND(M45="大規模", S45="〇"), 4, AND(M45="大規模", T45="〇"), 7, AND(M45="中小規模", R45="〇"), 2, AND(M45="中小規模", S45="〇"), 5, AND(M45="中小規模", T45="〇"), 8, AND(M45="極小規模", R45="〇"), 3, AND(M45="極小規模", S45="〇"), 6, AND(M45="極小規模", T45="〇"), 9) -> 9
B46: 1234 | C46: 北海道 北広島市 | D46: 58171 | E46: 11905 | F46: 4480 | G46: 97066 | H46: 209562 | I46: 0.014400144 | J46: 0.3120009772 | K46: 0.6735988788 | L46: 0.6735988788 | M46: 中小規模 | N46: =STANDARDIZE(I45,$AF$15,$AF$16) -> 5.161509142 | O46: =STANDARDIZE(J45,$AG$15,$AG$16) -> -0.6057103055 | P46: =STANDARDIZE(K45,$AH$15,$AH$16) -> 0.1618375384 | Q46: 5.161509142 | R46: 〇 | U46: -0.2719662241 | V46: -0.9096185091 | W46: 0.7018816182 | X46: 0 | Y46: 0 | Z46: 1 | AA46: =_xlfn.IFS(AND(M46="大規模", R46="〇"), 1, AND(M46="大規模", S46="〇"), 4, AND(M46="大規模", T46="〇"), 7, AND(M46="中小規模", R46="〇"), 2, AND(M46="中小規模", S46="〇"), 5, AND(M46="中小規模", T46="〇"), 8, AND(M46="極小規模", R46="〇"), 3, AND(M46="極小規模", S46="〇"), 6, AND(M46="極小規模", T46="〇"), 9) -> 2
B47: 1235 | C47: 北海道 石狩市 | D47: 56869 | E47: 72242 | F47: 4300 | G47: 124218 | H47: 204237 | I47: 0.0129224204 | J47: 0.3733016784 | K47: 0.6137759012 | L47: 0.6137759012 | M47: 中小規模 | N47: =STANDARDIZE(I46,$AF$15,$AF$16) -> 0.1223977795 | O47: =STANDARDIZE(J46,$AG$15,$AG$16) -> -0.4807618642 | P47: =STANDARDIZE(K46,$AH$15,$AH$16) -> 0.466034547 | Q47: 0.466034547 | T47: 〇 | U47: -0.2773870184 | V47: -0.4819198406 | W47: 0.4965697013 | X47: 0 | Y47: 0 | Z47: 1 | AA47: =_xlfn.IFS(AND(M47="大規模", R47="〇"), 1, AND(M47="大規模", S47="〇"), 4, AND(M47="大規模", T47="〇"), 7, AND(M47="中小規模", R47="〇"), 2, AND(M47="中小規模", S47="〇"), 5, AND(M47="中小規模", T47="〇"), 8, AND(M47="極小規模", R47="〇"), 3, AND(M47="極小規模", S47="〇"), 6, AND(M47="極小規模", T47="〇"), 9) -> 8
B48: 1236 | C48: 北海道 北斗市 | D48: 44302 | E48: 39744 | F48: 5380 | G48: 68805 | H48: 112198 | I48: 0.02886529351 | J48: 0.3691592044 | K48: 0.6019755021 | L48: 0.6019755021 | M48: 極小規模 | N48: =STANDARDIZE(I48,$AI$15,$AI$16) -> -0.5831431621 | O48: =STANDARDIZE(J46,$AJ$15,$AJ$16) -> -0.5304582906 | P48: =STANDARDIZE(K46,$AK$15,$AK$16) -> 1.166125637 | Q48: 1.166125637 | T48: 〇 | U48: -0.218903121 | V48: -0.5108221299 | W48: 0.4560708385 | X48: 0 | Y48: 0 | Z48: 1 | AA48: =_xlfn.IFS(AND(M48="大規模", R48="〇"), 1, AND(M48="大規模", S48="〇"), 4, AND(M48="大規模", T48="〇"), 7, AND(M48="中小規模", R48="〇"), 2, AND(M48="中小規模", S48="〇"), 5, AND(M48="中小規模", T48="〇"), 8, AND(M48="極小規模", R48="〇"), 3, AND(M48="極小規模", S48="〇"), 6, AND(M48="極小規模", T48="〇"), 9) -> 9
B49: 1303 | C49: 北海道 当別町 | D49: 15916 | E49: 42286 | F49: 6890 | G49: 37984 | H49: 19215 | I49: 0.1075067484 | J49: 0.5926758102 | K49: 0.2998174414 | L49: 0.5926758102 | M49: 極小規模 | N49: -0.1409410909 | O49: -0.3020323111 | P49: 0.8983555473 | Q49: 0.8983555473 | T49: 〇 | U49: 0.06958056364 | V49: 1.048666631 | W49: -0.580932886 | X49: 0 | Y49: 1 | Z49: 0 | AA49: =_xlfn.IFS(AND(M49="大規模", R49="〇"), 1, AND(M49="大規模", S49="〇"), 4, AND(M49="大規模", T49="〇"), 7, AND(M49="中小規模", R49="〇"), 2, AND(M49="中小規模", S49="〇"), 5, AND(M49="中小規模", T49="〇"), 8, AND(M49="極小規模", R49="〇"), 3, AND(M49="極小規模", S49="〇"), 6, AND(M49="極小規模", T49="〇"), 9) -> 9
B50: 1304 | C50: 北海道 新篠津村 | D50: 3044 | E50: 7804 | F50: 4950 | H50: 2173 | I50: 0.6949319107 | J50: 0 | K50: 0.3050680893 | L50: 0.6949319107 | M50: 極小規模 | N50: 3.162159338 | O50: -0.3174684914 | P50: 0.8455364791 | Q50: 3.162159338 | R50: 〇 | U50: 2.224456455 | V50: -3.086468036 | W50: -0.56291271 | AA50: =_xlfn.IFS(AND(M50="大規模", R50="〇"), 1, AND(M50="大規模", S50="〇"), 4, AND(M50="大規模", T50="〇"), 7, AND(M50="中小規模", R50="〇"), 2, AND(M50="中小規模", S50="〇"), 5, AND(M50="中小規模", T50="〇"), 8, AND(M50="極小規模", R50="〇"), 3, AND(M50="極小規模", S50="〇"), 6, AND(M50="極小規模", T50="〇"), 9) -> 3
B51: 1331 | C51: 北海道 松前町 | D51: 6260 | E51: 29325 | F51: 160 | G51: 3625 | H51: 6849 | I51: 0.01504607862 | J51: 0.3408877186 | K51: 0.6440662027 | L51: 0.6440662027 | M51: 極小規模 | N51: -0.660848813 | O51: 0.5154257264 | P51: -0.5069353338 | Q51: 0.5154257264 | S51: 〇 | U51: -0.2695967155 | V51: -0.7080739816 | W51: 0.6005257416 | X51: 0 | Y51: 0 | Z51: 1 | AA51: =_xlfn.IFS(AND(M51="大規模", R51="〇"), 1, AND(M51="大規模", S51="〇"), 4, AND(M51="大規模", T51="〇"), 7, AND(M51="中小規模", R51="〇"), 2, AND(M51="中小規模", S51="〇"), 5, AND(M51="中小規模", T51="〇"), 8, AND(M51="極小規模", R51="〇"), 3, AND(M51="極小規模", S51="〇"), 6, AND(M51="極小規模", T51="〇"), 9) -> 6
B52: 1332 | C52: 北海道 福島町 | D52: 3794 | E52: 18725 | F52: 770 | G52: 2708 | H52: 3696 | I52: 0.1073320323 | J52: 0.3774742124 | K52: 0.5151937552 | L52: 0.5151937552 | M52: 極小規模 | N52: -0.141923522 | O52: -1.69307352 | P52: -0.4834332194 | Q52: -0.141923522 | R52: 〇 | U52: 0.06893964542 | V52: -0.4528078205 | W52: 0.1582366702 | X52: 0 | Y52: 0 | Z52: 1 | AA52: =_xlfn.IFS(AND(M52="大規模", R52="〇"), 1, AND(M52="大規模", S52="〇"), 4, AND(M52="大規模", T52="〇"), 7, AND(M52="中小規模", R52="〇"), 2, AND(M52="中小規模", S52="〇"), 5, AND(M52="中小規模", T52="〇"), 8, AND(M52="極小規模", R52="〇"), 3, AND(M52="極小規模", S52="〇"), 6, AND(M52="極小規模", T52="〇"), 9) -> 3
B53: 1333 | C53: 北海道 知内町 | D53: 4167 | E53: 19675 | F53: 1610 | G53: 5823 | H53: 4865 | I53: 0.130915596 | J53: 0.4734916247 | K53: 0.3955927793 | L53: 0.4734916247 | M53: 極小規模 | N53: -0.009312792462 | O53: -0.4228170715 | P53: 1.033936173 | Q53: 1.033936173 | T53: 〇 | U53: 0.1554522024 | V53: 0.2171114221 | W53: -0.2522327946 | X53: 0 | Y53: 1 | Z53: 0 | AA53: =_xlfn.IFS(AND(M53="大規模", R53="〇"), 1, AND(M53="大規模", S53="〇"), 4, AND(M53="大規模", T53="〇"), 7, AND(M53="中小規模", R53="〇"), 2, AND(M53="中小規模", S53="〇"), 5, AND(M53="中小規模", T53="〇"), 8, AND(M53="極小規模", R53="〇"), 3, AND(M53="極小規模", S53="〇"), 6, AND(M53="極小規模", T53="〇"), 9) -> 9
B54: 1334 | C54: 北海道 木古内町 | D54: 3832 | E54: 22187 | F54: 740 | G54: 987 | H54: 5293 | I54: 0.1054131054 | J54: 0.1405982906 | K54: 0.753988604 | L54: 0.753988604 | M54: 極小規模 | N54: -0.1527136767 | O54: -0.2864841175 | P54: 0.4570978381 | Q54: 0.4570978381 | T54: 〇 | U54: 0.06190036683 | V54: -2.105505331 | W54: 0.9777784259 | X54: 0 | Y54: 0 | Z54: 1 | AA54: =_xlfn.IFS(AND(M54="大規模", R54="〇"), 1, AND(M54="大規模", S54="〇"), 4, AND(M54="大規模", T54="〇"), 7, AND(M54="中小規模", R54="〇"), 2, AND(M54="中小規模", S54="〇"), 5, AND(M54="中小規模", T54="〇"), 8, AND(M54="極小規模", R54="〇"), 3, AND(M54="極小規模", S54="〇"), 6, AND(M54="極小規模", T54="〇"), 9) -> 9
B55: 1337 | C55: 北海道 七飯町 | D55: 27686 | E55: 21675 | F55: 6130 | G55: 24130 | H55: 19308 | I55: 0.1236684958 | J55: 0.4868060039 | K55: 0.3895255003 | L55: 0.4868060039 | M55: 極小規模 | N55: -0.05006334488 | O55: 0.07130740843 | P55: -0.07824101185 | Q55: 0.07130740843 | S55: 〇 | U55: 0.1288673665 | V55: 0.3100066443 | W55: -0.2730556411 | X55: 0 | Y55: 1 | Z55: 0 | AA55: =_xlfn.IFS(AND(M55="大規模", R55="〇"), 1, AND(M55="大規模", S55="〇"), 4, AND(M55="大規模", T55="〇"), 7, AND(M55="中小規模", R55="〇"), 2, AND(M55="中小規模", S55="〇"), 5, AND(M55="中小規模", T55="〇"), 8, AND(M55="極小規模", R55="〇"), 3, AND(M55="極小規模", S55="〇"), 6, AND(M55="極小規模", T55="〇"), 9) -> 6
B56: 1343 | C56: 北海道 鹿部町 | D56: 3760 | E56: 11063 | F56: 390 | G56: 6792 | H56: 6434 | I56: 0.02864277321 | J56: 0.4988249119 | K56: 0.4725323149 | L56: 0.4988249119 | M56: 極小規模 | N56: -0.584394397 | O56: -1.169159411 | P56: 1.525953328 | Q56: 1.525953328 | T56: 〇 | U56: -0.2197194014 | V56: 0.3938632861 | W56: 0.01182299394 | X56: 0 | Y56: 1 | Z56: 0 | AA56: =_xlfn.IFS(AND(M56="大規模", R56="〇"), 1, AND(M56="大規模", S56="〇"), 4, AND(M56="大規模", T56="〇"), 7, AND(M56="中小規模", R56="〇"), 2, AND(M56="中小規模", S56="〇"), 5, AND(M56="中小規模", T56="〇"), 8, AND(M56="極小規模", R56="〇"), 3, AND(M56="極小規模", S56="〇"), 6, AND(M56="極小規模", T56="〇"), 9) -> 9
B57: 1345 | C57: 北海道 森町 | D57: 14338 | E57: 36879 | F57: 7850 | G57: 48571 | H57: 40190 | I57: 0.08125368747 | J57: 0.5027481343 | K57: 0.4159981783 | L57: 0.5027481343 | M57: 極小規模 | N57: -0.2885624433 | O57: 0.1209210352 | P57: -0.1053984003 | Q57: 0.1209210352 | S57: 〇 | U57: -0.02672462001 | V57: 0.4212358441 | W57: -0.1822016505 | X57: 0 | Y57: 1 | Z57: 0 | AA57: =_xlfn.IFS(AND(M57="大規模", R57="〇"), 1, AND(M57="大規模", S57="〇"), 4, AND(M57="大規模", T57="〇"), 7, AND(M57="中小規模", R57="〇"), 2, AND(M57="中小規模", S57="〇"), 5, AND(M57="中小規模", T57="〇"), 8, AND(M57="極小規模", R57="〇"), 3, AND(M57="極小規模", S57="〇"), 6, AND(M57="極小規模", T57="〇"), 9) -> 6
B58: 1346 | C58: 北海道 八雲町 | D58: 15826 | E58: 95608 | F58: 6650 | G58: 32116 | H58: 25672 | I58: 0.1031999752 | J58: 0.4984015643 | K58: 0.3983984605 | L58: 0.4984015643 | M58: 極小規模 | N58: -0.165158141 | O58: 0.1657073228 | P58: 0.26614349 | Q58: 0.26614349 | T58: 〇 | U58: 0.05378185011 | V58: 0.3909095647 | W58: -0.2426037221 | X58: 0 | Y58: 1 | Z58: 0 | AA58: =_xlfn.IFS(AND(M58="大規模", R58="〇"), 1, AND(M58="大規模", S58="〇"), 4, AND(M58="大規模", T58="〇"), 7, AND(M58="中小規模", R58="〇"), 2, AND(M58="中小規模", S58="〇"), 5, AND(M58="中小規模", T58="〇"), 8, AND(M58="極小規模", R58="〇"), 3, AND(M58="極小規模", S58="〇"), 6, AND(M58="極小規模", T58="〇"), 9) -> 9
B59: 1347 | C59: 北海道 長万部町 | D59: 5109 | E59: 31076 | F59: 1440 | G59: 9153 | H59: 5764 | I59: 0.08803570337 | J59: 0.5595769395 | K59: 0.3523873571 | L59: 0.5595769395 | M59: 極小規模 | N59: -0.250427067 | O59: 0.1803265017 | P59: 0.01309438673 | Q59: 0.1803265017 | S59: 〇 | U59: -0.001845872047 | V59: 0.8177338261 | W59: -0.4005134119 | X59: 0 | Y59: 1 | Z59: 0 | AA59: =_xlfn.IFS(AND(M59="大規模", R59="〇"), 1, AND(M59="大規模", S59="〇"), 4, AND(M59="大規模", T59="〇"), 7, AND(M59="中小規模", R59="〇"), 2, AND(M59="中小規模", S59="〇"), 5, AND(M59="中小規模", T59="〇"), 8, AND(M59="極小規模", R59="〇"), 3, AND(M59="極小規模", S59="〇"), 6, AND(M59="極小規模", T59="〇"), 9) -> 6
B60: 1361 | C60: 北海道 江差町 | D60: 7428 | E60: 10948 | F60: 770 | G60: 1328 | H60: 15271 | I60: 0.0443318556 | J60: 0.07645805746 | K60: 0.8792100869 | L60: 0.8792100869 | M60: 極小規模 | N60: -0.4961744532 | O60: 0.1641297946 | P60: -0.06568266818 | Q60: 0.1641297946 | S60: 〇 | U60: -0.1621664949 | V60: -2.553015584 | W60: 1.40753742 | X60: 0 | Y60: 0 | Z60: 1 | AA60: =_xlfn.IFS(AND(M60="大規模", R60="〇"), 1, AND(M60="大規模", S60="〇"), 4, AND(M60="大規模", T60="〇"), 7, AND(M60="中小規模", R60="〇"), 2, AND(M60="中小規模", S60="〇"), 5, AND(M60="中小規模", T60="〇"), 8, AND(M60="極小規模", R60="〇"), 3, AND(M60="極小規模", S60="〇"), 6, AND(M60="極小規模", T60="〇"), 9) -> 6
B61: 1362 | C61: 北海道 上ノ国町 | D61: 4306 | E61: 54771 | F61: 670 | G61: 2093 | H61: 3143 | I61: 0.1134439553 | J61: 0.3543853708 | K61: 0.5321706739 | L61: 0.5321706739 | M61: 極小規模 | N61: -0.1075560883 | O61: 0.3920887694 | P61: -0.2716302452 | Q61: 0.3920887694 | S61: 〇 | U61: 0.09136026388 | V61: -0.613900053 | W61: 0.2165013012 | X61: 0 | Y61: 0 | Z61: 1 | AA61: =_xlfn.IFS(AND(M61="大規模", R61="〇"), 1, AND(M61="大規模", S61="〇"), 4, AND(M61="大規模", T61="〇"), 7, AND(M61="中小規模", R61="〇"), 2, AND(M61="中小規模", S61="〇"), 5, AND(M61="中小規模", T61="〇"), 8, AND(M61="極小規模", R61="〇"), 3, AND(M61="極小規模", S61="〇"), 6, AND(M61="極小規模", T61="〇"), 9) -> 6
B62: 1363 | C62: 北海道 厚沢部町 | D62: 3592 | E62: 46058 | F62: 3470 | G62: 2418 | H62: 3372 | I62: 0.3747300216 | J62: 0.2611231102 | K62: 0.3641468683 | L62: 0.3747300216 | M62: 極小規模 | N62: 1.36165935 | O62: -1.408166393 | P62: 2.086449797 | Q62: 2.086449797 | T62: 〇 | U62: 1.049846691 | V62: -1.264596438 | W62: -0.3601548763 | X62: 1 | Y62: 0 | Z62: 0 | AA62: =_xlfn.IFS(AND(M62="大規模", R62="〇"), 1, AND(M62="大規模", S62="〇"), 4, AND(M62="大規模", T62="〇"), 7, AND(M62="中小規模", R62="〇"), 2, AND(M62="中小規模", S62="〇"), 5, AND(M62="中小規模", T62="〇"), 8, AND(M62="極小規模", R62="〇"), 3, AND(M62="極小規模", S62="〇"), 6, AND(M62="極小規模", T62="〇"), 9) -> 9
B63: 1364 | C63: 北海道 乙部町 | D63: 3403 | E63: 16259 | F63: 700 | G63: 4550 | H63: 2694 | I63: 0.08811681772 | J63: 0.5727593152 | K63: 0.3391238671 | L63: 0.5727593152 | M63: 極小規模 | N63: -0.2499709597 | O63: -0.3725205111 | P63: 0.533087219 | Q63: 0.533087219 | T63: 〇 | U63: -0.00154831692 | V63: 0.9097080516 | W63: -0.4460335894 | X63: 0 | Y63: 1 | Z63: 0 | AA63: =_xlfn.IFS(AND(M63="大規模", R63="〇"), 1, AND(M63="大規模", S63="〇"), 4, AND(M63="大規模", T63="〇"), 7, AND(M63="中小規模", R63="〇"), 2, AND(M63="中小規模", S63="〇"), 5, AND(M63="中小規模", T63="〇"), 8, AND(M63="極小規模", R63="〇"), 3, AND(M63="極小規模", S63="〇"), 6, AND(M63="極小規模", T63="〇"), 9) -> 9
B64: 1367 | C64: 北海道 奥尻町 | D64: 2410 | E64: 14299 | F64: 130 | G64: 249 | H64: 2561 | I64: 0.04421768707 | J64: 0.08469387755 | K64: 0.8710884354 | L64: 0.8710884354 | M64: 極小規模 | N64: -0.4968164246 | O64: -0.7200454629 | P64: -0.2189941933 | Q64: -0.2189941933 | T64: 〇 | U64: -0.162585304 | V64: -2.495553773 | W64: 1.379663985 | X64: 0 | Y64: 0 | Z64: 1 | AA64: =_xlfn.IFS(AND(M64="大規模", R64="〇"), 1, AND(M64="大規模", S64="〇"), 4, AND(M64="大規模", T64="〇"), 7, AND(M64="中小規模", R64="〇"), 2, AND(M64="中小規模", S64="〇"), 5, AND(M64="中小規模", T64="〇"), 8, AND(M64="極小規模", R64="〇"), 3, AND(M64="極小規模", S64="〇"), 6, AND(M64="極小規模", T64="〇"), 9) -> 9
B65: 1370 | C65: 北海道 今金町 | D65: 5072 | E65: 56825 | F65: 4850 | G65: 390 | H65: 7367 | I65: 0.3847069089 | J65: 0.03093519473 | K65: 0.5843578964 | L65: 0.5843578964 | M65: 極小規模 | N65: 1.417759536 | O65: 0.4412105089 | P65: -0.330998168 | Q65: 1.417759536 | R65: 〇 | U65: 1.086445317 | V65: -2.870631327 | W65: 0.3956073756 | X65: 1 | Y65: 0 | Z65: 0 | AA65: =_xlfn.IFS(AND(M65="大規模", R65="〇"), 1, AND(M65="大規模", S65="〇"), 4, AND(M65="大規模", T65="〇"), 7, AND(M65="中小規模", R65="〇"), 2, AND(M65="中小規模", S65="〇"), 5, AND(M65="中小規模", T65="〇"), 8, AND(M65="極小規模", R65="〇"), 3, AND(M65="極小規模", S65="〇"), 6, AND(M65="極小規模", T65="〇"), 9) -> 3
B66: 1371 | C66: 北海道 せたな町 | D66: 7398 | E66: 63868 | F66: 4070 | G66: 1042 | H66: 9832 | I66: 0.2723501071 | J66: 0.06972698073 | K66: 0.6579229122 | L66: 0.6579229122 | M66: 極小規模 | N66: 0.7859755676 | O66: -1.377477098 | P66: 2.050096953 | Q66: 2.050096953 | T66: 〇 | U66: 0.6742822383 | V66: -2.59997871 | W66: 0.6480818428 | X66: 1 | Y66: 0 | Z66: 0 | AA66: =_xlfn.IFS(AND(M66="大規模", R66="〇"), 1, AND(M66="大規模", S66="〇"), 4, AND(M66="大規模", T66="〇"), 7, AND(M66="中小規模", R66="〇"), 2, AND(M66="中小規模", S66="〇"), 5, AND(M66="中小規模", T66="〇"), 8, AND(M66="極小規模", R66="〇"), 3, AND(M66="極小規模", S66="〇"), 6, AND(M66="極小規模", T66="〇"), 9) -> 9
B67: 1391 | C67: 北海道 島牧村 | D67: 1356 | E67: 43718 | F67: 100 | G67: 0 | H67: 671 | I67: 0.1297016861 | J67: 0 | K67: 0.8702983139 | L67: 0.8702983139 | M67: 極小規模 | N67: -0.01613862595 | O67: -1.57779911 | P67: 0.7666793571 | Q67: 0.7666793571 | T67: 〇 | U67: 0.1509991668 | V67: -3.086468036 | W67: 1.376952296 | X67: 0 | Y67: 0 | Z67: 1 | AA67: =_xlfn.IFS(AND(M67="大規模", R67="〇"), 1, AND(M67="大規模", S67="〇"), 4, AND(M67="大規模", T67="〇"), 7, AND(M67="中小規模", R67="〇"), 2, AND(M67="中小規模", S67="〇"), 5, AND(M67="中小規模", T67="〇"), 8, AND(M67="極小規模", R67="〇"), 3, AND(M67="極小規模", S67="〇"), 6, AND(M67="極小規模", T67="〇"), 9) -> 9
B68: 1392 | C68: 北海道 寿都町 | D68: 2838 | E68: 9525 | F68: 140 | G68: 3200 | H68: 3620 | I68: 0.02011494253 | J68: 0.4597701149 | K68: 0.5201149425 | L68: 0.5201149425 | M68: 極小規模 | N68: -0.6323465158 | O68: -1.433248533 | P68: 1.095959371 | Q68: 1.095959371 | T68: 〇 | U68: =STANDARDIZE(I68,I$1,I$2) -> -0.2510023935 | V68: 0.1213756261 | W68: 0.1751261404 | X68: 0 | Y68: 0 | Z68: 1 | AA68: =_xlfn.IFS(AND(M68="大規模", R68="〇"), 1, AND(M68="大規模", S68="〇"), 4, AND(M68="大規模", T68="〇"), 7, AND(M68="中小規模", R68="〇"), 2, AND(M68="中小規模", S68="〇"), 5, AND(M68="中小規模", T68="〇"), 8, AND(M68="極小規模", R68="〇"), 3, AND(M68="極小規模", S68="〇"), 6, AND(M68="極小規模", T68="〇"), 9) -> 9
B69: 1393 | C69: 北海道 黒松内町 | D69: 2791 | E69: 34565 | F69: 2310 | H69: 1845 | I69: =F69/SUM($F69:$H69) -> 0.5559566787 | J69: 0 | K69: 0.4440433213 | L69: =MAX(I69:K69) -> 0.5559566787 | M69: =IF(D69>500000,"大規模",IF(D69>50000,"中小規模","極小規模")) -> 極小規模 | N69: 2.38069954 | O69: -1.69307352 | P69: 2.046560337 | Q69: =MAX(N69:P69) -> 2.38069954 | R69: =IF(Q69=N69,"〇","") -> 〇 | S69: =IF(Q69=O69,"〇","") ->  | T69: =IF(Q69=P69,"〇","") ->  | U69: 1.714647893 | V69: -3.086468036 | W69: -0.08595097386 | X69: =IF(COUNTBLANK($F69:$H69)>0,"",IF(U69>V69,IF(U69>W69,1,0),0)) ->  | Y69: =IF(COUNTBLANK($F69:$H69)>0,"",IF(V69>W69,IF(V69>U69,1,0),0)) ->  | Z69: =IF(COUNTBLANK($F69:$H69)>0,"",IF(W69>U69,IF(W69>V69,1,0),0)) ->  | AA69: =_xlfn.IFS(AND(M69="大規模", R69="〇"), 1, AND(M69="大規模", S69="〇"), 4, AND(M69="大規模", T69="〇"), 7, AND(M69="中小規模", R69="〇"), 2, AND(M69="中小規模", S69="〇"), 5, AND(M69="中小規模", T69="〇"), 8, AND(M69="極小規模", R69="〇"), 3, AND(M69="極小規模", S69="〇"), 6, AND(M69="極小規模", T69="〇"), 9) -> 3
B70: 1394 | C70: 北海道 蘭越町 | D70: 4568 | E70: 44978 | F70: 2920 | G70: 46 | H70: 7787 | I70: 0.271552125 | J70: 0.004277875942 | K70: 0.7241699991 | L70: 0.7241699991 | M70: 極小規模 | N70: 0.7814885025 | O70: 0.02017668345 | P70: 0.4791252734 | Q70: 0.7814885025 | R70: 〇 | U70: 0.6713549678 | V70: -3.056621039 | W70: 0.8754412442 | X70: 0 | Y70: 0 | Z70: 1 | AA70: =_xlfn.IFS(AND(M70="大規模", R70="〇"), 1, AND(M70="大規模", S70="〇"), 4, AND(M70="大規模", T70="〇"), 7, AND(M70="中小規模", R70="〇"), 2, AND(M70="中小規模", S70="〇"), 5, AND(M70="中小規模", T70="〇"), 8, AND(M70="極小規模", R70="〇"), 3, AND(M70="極小規模", S70="〇"), 6, AND(M70="極小規模", T70="〇"), 9) -> 3
B71: 1395 | C71: 北海道 ニセコ町 | D71: 5074 | E71: 19713 | F71: 2290 | G71: 1906 | H71: 2513 | I71: 0.3413325384 | J71: 0.2840959905 | K71: 0.3745714712 | L71: 0.3745714712 | M71: 極小規模 | N71: 1.173864805 | O71: -1.69307352 | P71: 0.1386255917 | Q71: 1.173864805 | R71: 〇 | U71: 0.9273333292 | V71: -1.104313275 | W71: -0.3243777336 | X71: 1 | Y71: 0 | Z71: 0 | AA71: =_xlfn.IFS(AND(M71="大規模", R71="〇"), 1, AND(M71="大規模", S71="〇"), 4, AND(M71="大規模", T71="〇"), 7, AND(M71="中小規模", R71="〇"), 2, AND(M71="中小規模", S71="〇"), 5, AND(M71="中小規模", T71="〇"), 8, AND(M71="極小規模", R71="〇"), 3, AND(M71="極小規模", S71="〇"), 6, AND(M71="極小規模", T71="〇"), 9) -> 3
B72: 1396 | C72: 北海道 真狩村 | D72: 2045 | E72: 11425 | F72: 4170 | G72: 289 | H72: 5407 | I72: 0.4226636935 | J72: 0.02929251976 | K72: 0.5480437867 | L72: 0.5480437867 | M72: 極小規模 | N72: 1.631191101 | O72: -1.677132788 | P72: 1.392484035 | Q72: 1.631191101 | R72: 〇 | U72: 1.225683752 | V72: -2.882092369 | W72: 0.2709776805 | X72: 1 | Y72: 0 | Z72: 0 | AA72: =_xlfn.IFS(AND(M72="大規模", R72="〇"), 1, AND(M72="大規模", S72="〇"), 4, AND(M72="大規模", T72="〇"), 7, AND(M72="中小規模", R72="〇"), 2, AND(M72="中小規模", S72="〇"), 5, AND(M72="中小規模", T72="〇"), 8, AND(M72="極小規模", R72="〇"), 3, AND(M72="極小規模", S72="〇"), 6, AND(M72="極小規模", T72="〇"), 9) -> 3
B73: 1397 | C73: 北海道 留寿都村 | D73: 1911 | E73: 11984 | F73: 3360 | G73: 1121 | H73: 1879 | I73: 0.5283018868 | J73: 0.1762578616 | K73: 0.2954402516 | L73: 0.5283018868 | M73: 極小規模 | N73: 2.225196234 | O73: -0.6344411781 | P73: -0.1723332452 | Q73: 2.225196234 | R73: 〇 | U73: 1.613200682 | V73: -1.856706366 | W73: -0.5959553617 | X73: 1 | Y73: 0 | Z73: 0 | AA73: =_xlfn.IFS(AND(M73="大規模", R73="〇"), 1, AND(M73="大規模", S73="〇"), 4, AND(M73="大規模", T73="〇"), 7, AND(M73="中小規模", R73="〇"), 2, AND(M73="中小規模", S73="〇"), 5, AND(M73="中小規模", T73="〇"), 8, AND(M73="極小規模", R73="〇"), 3, AND(M73="極小規模", S73="〇"), 6, AND(M73="極小規模", T73="〇"), 9) -> 3
B74: 1398 | C74: 北海道 喜茂別町 | D74: 2156 | E74: 18941 | F74: 1380 | H74: 2275 | I74: 0.3775649795 | J74: 0 | K74: 0.6224350205 | L74: 0.6224350205 | M74: 極小規模 | N74: 1.377600361 | O74: -1.583920241 | P74: 0.60413592 | Q74: 1.377600361 | R74: 〇 | U74: 1.060246284 | V74: -3.086468036 | W74: 0.5262877203 | AA74: =_xlfn.IFS(AND(M74="大規模", R74="〇"), 1, AND(M74="大規模", S74="〇"), 4, AND(M74="大規模", T74="〇"), 7, AND(M74="中小規模", R74="〇"), 2, AND(M74="中小規模", S74="〇"), 5, AND(M74="中小規模", T74="〇"), 8, AND(M74="極小規模", R74="〇"), 3, AND(M74="極小規模", S74="〇"), 6, AND(M74="極小規模", T74="〇"), 9) -> 3
B75: 1399 | C75: 北海道 京極町 | D75: 2941 | E75: 23149 | F75: 2660 | G75: 5598 | H75: 2347 | I75: 0.2508250825 | J75: 0.527864215 | K75: 0.2213107025 | L75: 0.527864215 | M75: 極小規模 | N75: 0.6649400342 | O75: -1.036280467 | P75: -0.526527814 | Q75: 0.6649400342 | R75: 〇 | U75: 0.5953211051 | V75: 0.5964722453 | W75: -0.850367302 | X75: 0 | Y75: 1 | Z75: 0 | AA75: =_xlfn.IFS(AND(M75="大規模", R75="〇"), 1, AND(M75="大規模", S75="〇"), 4, AND(M75="大規模", T75="〇"), 7, AND(M75="中小規模", R75="〇"), 2, AND(M75="中小規模", S75="〇"), 5, AND(M75="中小規模", T75="〇"), 8, AND(M75="極小規模", R75="〇"), 3, AND(M75="極小規模", S75="〇"), 6, AND(M75="極小規模", T75="〇"), 9) -> 3
B76: 1400 | C76: 北海道 倶知安町 | D76: 15129 | E76: 26134 | F76: 4440 | G76: 6953 | H76: 45073 | I76: 0.0786313888 | J76: 0.1231360465 | K76: 0.7982325647 | L76: 0.7982325647 | M76: 極小規模 | N76: -0.3033076677 | O76: -1.69307352 | P76: 0.9371141189 | Q76: 0.9371141189 | T76: 〇 | U76: -0.0363441061 | V76: -2.227340456 | W76: 1.129623298 | X76: 0 | Y76: 0 | Z76: 1 | AA76: =_xlfn.IFS(AND(M76="大規模", R76="〇"), 1, AND(M76="大規模", S76="〇"), 4, AND(M76="大規模", T76="〇"), 7, AND(M76="中小規模", R76="〇"), 2, AND(M76="中小規模", S76="〇"), 5, AND(M76="中小規模", T76="〇"), 8, AND(M76="極小規模", R76="〇"), 3, AND(M76="極小規模", S76="〇"), 6, AND(M76="極小規模", T76="〇"), 9) -> 9
B77: 1401 | C77: 北海道 共和町 | D77: 5772 | E77: 30492 | F77: 6090 | G77: 5521 | H77: 8707 | I77: 0.2997342258 | J77: 0.2717295009 | K77: 0.4285362733 | L77: 0.4285362733 | M77: 極小規模 | N77: 0.9399568748 | O77: 0.2739170353 | P77: -0.8583347014 | Q77: 0.9399568748 | R77: 〇 | U77: 0.7747365277 | V77: -1.190595014 | W77: -0.1391710221 | X77: 1 | Y77: 0 | Z77: 0 | AA77: =_xlfn.IFS(AND(M77="大規模", R77="〇"), 1, AND(M77="大規模", S77="〇"), 4, AND(M77="大規模", T77="〇"), 7, AND(M77="中小規模", R77="〇"), 2, AND(M77="中小規模", S77="〇"), 5, AND(M77="中小規模", T77="〇"), 8, AND(M77="極小規模", R77="〇"), 3, AND(M77="極小規模", S77="〇"), 6, AND(M77="極小規模", T77="〇"), 9) -> 3
B78: 1402 | C78: 北海道 岩内町 | D78: 11648 | E78: 7060 | F78: 190 | G78: 6830 | H78: 15519 | I78: 0.008429832734 | J78: 0.303030303 | K78: 0.6885398642 | L78: 0.6885398642 | M78: 極小規模 | N78: -0.6980520621 | O78: -1.234229307 | P78: 1.723991102 | Q78: 1.723991102 | T78: 〇 | U78: -0.2938673625 | V78: -0.9722074404 | W78: 0.7531589446 | X78: 0 | Y78: 0 | Z78: 1 | AA78: =_xlfn.IFS(AND(M78="大規模", R78="〇"), 1, AND(M78="大規模", S78="〇"), 4, AND(M78="大規模", T78="〇"), 7, AND(M78="中小規模", R78="〇"), 2, AND(M78="中小規模", S78="〇"), 5, AND(M78="中小規模", T78="〇"), 8, AND(M78="極小規模", R78="〇"), 3, AND(M78="極小規模", S78="〇"), 6, AND(M78="極小規模", T78="〇"), 9) -> 9
B79: 1403 | C79: 北海道 泊村 | D79: 1569 | E79: 8227 | F79: 0 | H79: 2134 | I79: 0 | J79: 0 | K79: 1 | L79: 1 | M79: 極小規模 | N79: -0.745453137 | O79: -0.6805226654 | P79: 0.06921541169 | Q79: 0.06921541169 | T79: 〇 | U79: -0.3247908648 | V79: -3.086468036 | W79: 1.822087306 | AA79: =_xlfn.IFS(AND(M79="大規模", R79="〇"), 1, AND(M79="大規模", S79="〇"), 4, AND(M79="大規模", T79="〇"), 7, AND(M79="中小規模", R79="〇"), 2, AND(M79="中小規模", S79="〇"), 5, AND(M79="中小規模", T79="〇"), 8, AND(M79="極小規模", R79="〇"), 3, AND(M79="極小規模", S79="〇"), 6, AND(M79="極小規模", T79="〇"), 9) -> 9
B80: 1404 | C80: 北海道 神恵内村 | D80: 870 | E80: 14779 | F80: 0 | H80: 373 | I80: 0 | J80: 0 | K80: 1 | L80: 1 | M80: 極小規模 | N80: =STANDARDIZE(I80,$AI$15,$AI$16) -> -0.745453137 | O80: =STANDARDIZE(J78,$AJ$15,$AJ$16) -> -0.5638858858 | P80: =STANDARDIZE(K78,$AK$15,$AK$16) -> 1.233002098 | Q80: 1.233002098 | T80: 〇 | U80: -0.3247908648 | V80: -3.086468036 | W80: 1.822087306 | AA80: =_xlfn.IFS(AND(M80="大規模", R80="〇"), 1, AND(M80="大規模", S80="〇"), 4, AND(M80="大規模", T80="〇"), 7, AND(M80="中小規模", R80="〇"), 2, AND(M80="中小規模", S80="〇"), 5, AND(M80="中小規模", T80="〇"), 8, AND(M80="極小規模", R80="〇"), 3, AND(M80="極小規模", S80="〇"), 6, AND(M80="極小規模", T80="〇"), 9) -> 9
B81: 1405 | C81: 北海道 積丹町 | D81: 1831 | E81: 23813 | F81: 560 | H81: 1924 | I81: 0.2254428341 | J81: 0 | K81: 0.7745571659 | L81: 0.7745571659 | M81: 極小規模 | N81: 0.522215274 | O81: -1.69307352 | P81: 2.627110378 | Q81: 2.627110378 | T81: 〇 | U81: 0.5022103591 | V81: -3.086468036 | W81: 1.048369544 | AA81: =_xlfn.IFS(AND(M81="大規模", R81="〇"), 1, AND(M81="大規模", S81="〇"), 4, AND(M81="大規模", T81="〇"), 7, AND(M81="中小規模", R81="〇"), 2, AND(M81="中小規模", S81="〇"), 5, AND(M81="中小規模", T81="〇"), 8, AND(M81="極小規模", R81="〇"), 3, AND(M81="極小規模", S81="〇"), 6, AND(M81="極小規模", T81="〇"), 9) -> 9
B82: 1406 | C82: 北海道 古平町 | D82: 2745 | E82: 18836 | F82: 190 | G82: 4061 | H82: 1482 | I82: 0.03314146171 | J82: 0.7083551369 | K82: 0.2585034014 | L82: 0.7083551369 | M82: 極小規模 | N82: -0.5590982046 | O82: -1.69307352 | P82: 2.627110378 | Q82: 2.627110378 | T82: 〇 | U82: -0.2032166772 | V82: 1.855768231 | W82: -0.7227222967 | X82: 0 | Y82: 1 | Z82: 0 | AA82: =_xlfn.IFS(AND(M82="大規模", R82="〇"), 1, AND(M82="大規模", S82="〇"), 4, AND(M82="大規模", T82="〇"), 7, AND(M82="中小規模", R82="〇"), 2, AND(M82="中小規模", S82="〇"), 5, AND(M82="中小規模", T82="〇"), 8, AND(M82="極小規模", R82="〇"), 3, AND(M82="極小規模", S82="〇"), 6, AND(M82="極小規模", T82="〇"), 9) -> 9
B83: 1407 | C83: 北海道 仁木町 | D83: 3180 | E83: 16796 | F83: 3740 | G83: 9686 | H83: 2159 | I83: 0.2399743343 | J83: 0.6214950273 | K83: 0.1385306384 | L83: 0.6214950273 | M83: 極小規模 | N83: 0.6039261156 | O83: -1.69307352 | P83: 1.618019051 | Q83: 1.618019051 | T83: 〇 | U83: 0.555516859 | V83: 1.249740037 | W83: -1.134467731 | X83: 0 | Y83: 1 | Z83: 0 | AA83: =_xlfn.IFS(AND(M83="大規模", R83="〇"), 1, AND(M83="大規模", S83="〇"), 4, AND(M83="大規模", T83="〇"), 7, AND(M83="中小規模", R83="〇"), 2, AND(M83="中小規模", S83="〇"), 5, AND(M83="中小規模", T83="〇"), 8, AND(M83="極小規模", R83="〇"), 3, AND(M83="極小規模", S83="〇"), 6, AND(M83="極小規模", T83="〇"), 9) -> 9
B84: 1408 | C84: 北海道 余市町 | D84: 18000 | E84: 14059 | F84: 4380 | G84: 8502 | H84: 32042 | I84: 0.09749799662 | J84: 0.1892529606 | K84: 0.7132490428 | L84: 0.7132490428 | M84: 極小規模 | N84: -0.1972204512 | O84: 0.9464838217 | P84: -0.6918586632 | Q84: 0.9464838217 | S84: 〇 | U84: 0.03286504758 | V84: -1.766038781 | W84: 0.8379606214 | X84: 0 | Y84: 0 | Z84: 1 | AA84: =_xlfn.IFS(AND(M84="大規模", R84="〇"), 1, AND(M84="大規模", S84="〇"), 4, AND(M84="大規模", T84="〇"), 7, AND(M84="中小規模", R84="〇"), 2, AND(M84="中小規模", S84="〇"), 5, AND(M84="中小規模", T84="〇"), 8, AND(M84="極小規模", R84="〇"), 3, AND(M84="極小規模", S84="〇"), 6, AND(M84="極小規模", T84="〇"), 9) -> 6
B85: 1409 | C85: 北海道 赤井川村 | D85: 1165 | E85: 28009 | F85: 1500 | H85: 523 | I85: 0.7414730598 | J85: 0 | K85: 0.2585269402 | L85: 0.7414730598 | M85: 極小規模 | N85: 3.423860911 | O85: 0.622815328 | P85: -1.228861647 | Q85: 3.423860911 | R85: 〇 | U85: 2.395185267 | V85: -3.086468036 | W85: -0.7226415117 | AA85: =_xlfn.IFS(AND(M85="大規模", R85="〇"), 1, AND(M85="大規模", S85="〇"), 4, AND(M85="大規模", T85="〇"), 7, AND(M85="中小規模", R85="〇"), 2, AND(M85="中小規模", S85="〇"), 5, AND(M85="中小規模", T85="〇"), 8, AND(M85="極小規模", R85="〇"), 3, AND(M85="極小規模", S85="〇"), 6, AND(M85="極小規模", T85="〇"), 9) -> 3
B86: 1423 | C86: 北海道 南幌町 | D86: 7319 | E86: 8136 | F86: 4940 | G86: 5568 | H86: 6745 | I86: 0.2863270156 | J86: 0.3227264824 | K86: 0.3909465021 | L86: 0.3909465021 | M86: 極小規模 | N86: 0.8645679322 | O86: -0.9878565806 | P86: 1.34360139 | Q86: 1.34360139 | T86: 〇 | U86: 0.7255543069 | V86: -0.8347860162 | W86: -0.268178776 | X86: 1 | Y86: 0 | Z86: 0 | AA86: =_xlfn.IFS(AND(M86="大規模", R86="〇"), 1, AND(M86="大規模", S86="〇"), 4, AND(M86="大規模", T86="〇"), 7, AND(M86="中小規模", R86="〇"), 2, AND(M86="中小規模", S86="〇"), 5, AND(M86="中小規模", T86="〇"), 8, AND(M86="極小規模", R86="〇"), 3, AND(M86="極小規模", S86="〇"), 6, AND(M86="極小規模", T86="〇"), 9) -> 9
B87: 1424 | C87: 北海道 奈井江町 | D87: 5120 | E87: 8819 | F87: 1900 | G87: 28873 | H87: 4318 | I87: 0.05414493745 | J87: 0.8228035679 | K87: 0.1230514947 | L87: 0.8228035679 | M87: 極小規模 | N87: -0.440995348 | O87: -1.69307352 | P87: -0.6917533024 | Q87: -0.440995348 | R87: 〇 | U87: -0.126168763 | V87: 2.654281796 | W87: -1.187592012 | X87: 0 | Y87: 1 | Z87: 0 | AA87: =_xlfn.IFS(AND(M87="大規模", R87="〇"), 1, AND(M87="大規模", S87="〇"), 4, AND(M87="大規模", T87="〇"), 7, AND(M87="中小規模", R87="〇"), 2, AND(M87="中小規模", S87="〇"), 5, AND(M87="中小規模", T87="〇"), 8, AND(M87="極小規模", R87="〇"), 3, AND(M87="極小規模", S87="〇"), 6, AND(M87="極小規模", T87="〇"), 9) -> 3
B88: 1425 | C88: 北海道 上砂川町 | D88: 2841 | E88: 3998 | G88: 4574 | H88: 1060 | I88: 0 | J88: 0.811856585 | K88: 0.188143415 | L88: 0.811856585 | M88: 極小規模 | N88: -0.745453137 | O88: -0.4904916348 | P88: -0.0990379385 | Q88: -0.0990379385 | T88: 〇 | U88: -0.3247908648 | V88: 2.57790404 | W88: -0.964197132 | AA88: =_xlfn.IFS(AND(M88="大規模", R88="〇"), 1, AND(M88="大規模", S88="〇"), 4, AND(M88="大規模", T88="〇"), 7, AND(M88="中小規模", R88="〇"), 2, AND(M88="中小規模", S88="〇"), 5, AND(M88="中小規模", T88="〇"), 8, AND(M88="極小規模", R88="〇"), 3, AND(M88="極小規模", S88="〇"), 6, AND(M88="極小規模", T88="〇"), 9) -> 9
B89: 1427 | C89: 北海道 由仁町 | D89: 4822 | E89: 13374 | F89: 6950 | G89: 7487 | H89: 10475 | I89: 0.2789820167 | J89: 0.3005378934 | K89: 0.4204800899 | L89: 0.4204800899 | M89: 極小規模 | N89: 0.8232668942 | O89: 1.372955206 | P89: -1.298146926 | Q89: 1.372955206 | S89: 〇 | U89: 0.6986103453 | V89: -0.989597132 | W89: -0.1668197703 | X89: 1 | Y89: 0 | Z89: 0 | AA89: =_xlfn.IFS(AND(M89="大規模", R89="〇"), 1, AND(M89="大規模", S89="〇"), 4, AND(M89="大規模", T89="〇"), 7, AND(M89="中小規模", R89="〇"), 2, AND(M89="中小規模", S89="〇"), 5, AND(M89="中小規模", T89="〇"), 8, AND(M89="極小規模", R89="〇"), 3, AND(M89="極小規模", S89="〇"), 6, AND(M89="極小規模", T89="〇"), 9) -> 6
B90: 1428 | C90: 北海道 長沼町 | D90: 10289 | E90: 16852 | F90: 9410 | G90: 2740 | H90: 17145 | I90: 0.3212152244 | J90: 0.09353131934 | K90: 0.5852534562 | L90: 0.5852534562 | M90: 極小規模 | N90: 1.06074485 | O90: 1.332163254 | P90: -1.006792834 | Q90: 1.332163254 | S90: 〇 | U90: 0.8535361588 | V90: -2.433894412 | W90: 0.3986809288 | X90: 1 | Y90: 0 | Z90: 0 | AA90: =_xlfn.IFS(AND(M90="大規模", R90="〇"), 1, AND(M90="大規模", S90="〇"), 4, AND(M90="大規模", T90="〇"), 7, AND(M90="中小規模", R90="〇"), 2, AND(M90="中小規模", S90="〇"), 5, AND(M90="中小規模", T90="〇"), 8, AND(M90="極小規模", R90="〇"), 3, AND(M90="極小規模", S90="〇"), 6, AND(M90="極小規模", T90="〇"), 9) -> 6
B91: 1429 | C91: 北海道 栗山町 | D91: 11272 | E91: 20393 | F91: 6500 | G91: 13454 | H91: 20395 | I91: 0.1610944509 | J91: 0.3334407296 | K91: 0.5054648195 | L91: 0.5054648195 | M91: 極小規模 | N91: 0.1603833576 | O91: -0.5731733997 | P91: 0.03315560624 | Q91: 0.1603833576 | R91: 〇 | U91: 0.2661585374 | V91: -0.7600320705 | W91: 0.1248470509 | X91: 1 | Y91: 0 | Z91: 0 | AA91: =_xlfn.IFS(AND(M91="大規模", R91="〇"), 1, AND(M91="大規模", S91="〇"), 4, AND(M91="大規模", T91="〇"), 7, AND(M91="中小規模", R91="〇"), 2, AND(M91="中小規模", S91="〇"), 5, AND(M91="中小規模", T91="〇"), 8, AND(M91="極小規模", R91="〇"), 3, AND(M91="極小規模", S91="〇"), 6, AND(M91="極小規模", T91="〇"), 9) -> 3
B92: 1430 | C92: 北海道 月形町 | D92: 3691 | E92: 15040 | F92: 3060 | H92: 4180 | I92: 0.4226519337 | J92: 0 | K92: 0.5773480663 | L92: 0.5773480663 | M92: 極小規模 | N92: 1.631124975 | O92: -1.344545969 | P92: 0.7706879194 | Q92: 1.631124975 | R92: 〇 | U92: 1.225640613 | V92: -3.086468036 | W92: 0.3715497023 | AA92: =_xlfn.IFS(AND(M92="大規模", R92="〇"), 1, AND(M92="大規模", S92="〇"), 4, AND(M92="大規模", T92="〇"), 7, AND(M92="中小規模", R92="〇"), 2, AND(M92="中小規模", S92="〇"), 5, AND(M92="中小規模", T92="〇"), 8, AND(M92="極小規模", R92="〇"), 3, AND(M92="極小規模", S92="〇"), 6, AND(M92="極小規模", T92="〇"), 9) -> 3
B93: 1431 | C93: 北海道 浦臼町 | D93: 1732 | E93: 10183 | F93: 2850 | H93: 1758 | I93: 0.6184895833 | J93: 0 | K93: 0.3815104167 | L93: 0.6184895833 | M93: 極小規模 | N93: 2.732322993 | O93: -0.4505669295 | P93: 0.4135507245 | Q93: 2.732322993 | R93: 〇 | U93: 1.94403992 | V93: -3.086468036 | W93: -0.3005633355 | AA93: =_xlfn.IFS(AND(M93="大規模", R93="〇"), 1, AND(M93="大規模", S93="〇"), 4, AND(M93="大規模", T93="〇"), 7, AND(M93="中小規模", R93="〇"), 2, AND(M93="中小規模", S93="〇"), 5, AND(M93="中小規模", T93="〇"), 8, AND(M93="極小規模", R93="〇"), 3, AND(M93="極小規模", S93="〇"), 6, AND(M93="極小規模", T93="〇"), 9) -> 3
B94: 1432 | C94: 北海道 新十津川町 | D94: 6484 | E94: 49547 | F94: 5130 | G94: 427 | H94: 5064 | I94: 0.4830053667 | J94: 0.04020337068 | K94: 0.4767912626 | L94: 0.4830053667 | M94: 極小規模 | N94: 1.970493227 | O94: -1.69307352 | P94: 0.7353030714 | Q94: 1.970493227 | R94: 〇 | U94: 1.447037594 | V94: -2.805966708 | W94: 0.02643966372 | X94: 1 | Y94: 0 | Z94: 0 | AA94: =_xlfn.IFS(AND(M94="大規模", R94="〇"), 1, AND(M94="大規模", S94="〇"), 4, AND(M94="大規模", T94="〇"), 7, AND(M94="中小規模", R94="〇"), 2, AND(M94="中小規模", S94="〇"), 5, AND(M94="中小規模", T94="〇"), 8, AND(M94="極小規模", R94="〇"), 3, AND(M94="極小規模", S94="〇"), 6, AND(M94="極小規模", T94="〇"), 9) -> 3
B95: 1433 | C95: 北海道 妹背牛町 | D95: 2693 | E95: 4864 | F95: 3200 | G95: 5425 | H95: 4482 | I95: 0.2441443503 | J95: 0.4139009689 | K95: 0.3419546807 | L95: 0.4139009689 | M95: 極小規模 | N95: 0.6273741779 | O95: -1.69307352 | P95: -0.1412742419 | Q95: 0.6273741779 | R95: 〇 | U95: 0.5708139004 | V95: -0.198656156 | W95: -0.4363182627 | X95: 1 | Y95: 0 | Z95: 0 | AA95: =_xlfn.IFS(AND(M95="大規模", R95="〇"), 1, AND(M95="大規模", S95="〇"), 4, AND(M95="大規模", T95="〇"), 7, AND(M95="中小規模", R95="〇"), 2, AND(M95="中小規模", S95="〇"), 5, AND(M95="中小規模", T95="〇"), 8, AND(M95="極小規模", R95="〇"), 3, AND(M95="極小規模", S95="〇"), 6, AND(M95="極小規模", T95="〇"), 9) -> 3
B96: 1434 | C96: 北海道 秩父別町 | D96: 2329 | E96: 4718 | F96: 2660 | G96: 586 | H96: 3298 | I96: 0.4064792176 | J96: 0.08954767726 | K96: 0.5039731051 | L96: 0.5039731051 | M96: 極小規模 | N96: 1.540185552 | O96: -1.543262928 | P96: 0.2852067136 | Q96: 1.540185552 | R96: 〇 | U96: 1.166313573 | V96: -2.461688522 | W96: 0.1197275009 | X96: 1 | Y96: 0 | Z96: 0 | AA96: =_xlfn.IFS(AND(M96="大規模", R96="〇"), 1, AND(M96="大規模", S96="〇"), 4, AND(M96="大規模", T96="〇"), 7, AND(M96="中小規模", R96="〇"), 2, AND(M96="中小規模", S96="〇"), 5, AND(M96="中小規模", T96="〇"), 8, AND(M96="極小規模", R96="〇"), 3, AND(M96="極小規模", S96="〇"), 6, AND(M96="極小規模", T96="〇"), 9) -> 3
B97: 1436 | C97: 北海道 雨竜町 | D97: 2389 | E97: 19115 | F97: 2990 | G97: 0 | H97: 2638 | I97: 0.5312722104 | J97: 0 | K97: 0.4687277896 | L97: 0.5312722104 | M97: 極小規模 | N97: 2.241898407 | O97: -0.1507463956 | P97: -0.3183273306 | Q97: 2.241898407 | R97: 〇 | U97: 1.624096843 | V97: -3.086468036 | W97: -0.001234102395 | X97: 1 | Y97: 0 | Z97: 0 | AA97: =_xlfn.IFS(AND(M97="大規模", R97="〇"), 1, AND(M97="大規模", S97="〇"), 4, AND(M97="大規模", T97="〇"), 7, AND(M97="中小規模", R97="〇"), 2, AND(M97="中小規模", S97="〇"), 5, AND(M97="中小規模", T97="〇"), 8, AND(M97="極小規模", R97="〇"), 3, AND(M97="極小規模", S97="〇"), 6, AND(M97="極小規模", T97="〇"), 9) -> 3
B98: 1437 | C98: 北海道 北竜町 | D98: 1724 | E98: 15870 | F98: 2760 | H98: 1744 | I98: 0.6127886323 | J98: 0 | K98: 0.3872113677 | L98: 0.6127886323 | M98: 極小規模 | N98: 2.700266461 | O98: -1.359390291 | P98: 0.4068737503 | Q98: 2.700266461 | R98: 〇 | U98: 1.923126887 | V98: -3.086468036 | W98: -0.2809977234 | AA98: =_xlfn.IFS(AND(M98="大規模", R98="〇"), 1, AND(M98="大規模", S98="〇"), 4, AND(M98="大規模", T98="〇"), 7, AND(M98="中小規模", R98="〇"), 2, AND(M98="中小規模", S98="〇"), 5, AND(M98="中小規模", T98="〇"), 8, AND(M98="極小規模", R98="〇"), 3, AND(M98="極小規模", S98="〇"), 6, AND(M98="極小規模", T98="〇"), 9) -> 3
B99: 1438 | C99: 北海道 沼田町 | D99: 2909 | E99: 28335 | F99: 3430 | G99: 626 | H99: 5265 | I99: 0.3679862676 | J99: 0.06716017595 | K99: 0.5648535565 | L99: 0.5648535565 | M99: 極小規模 | N99: 1.323739121 | O99: -1.69307352 | P99: 0.2491142795 | Q99: 1.323739121 | R99: 〇 | U99: 1.025108301 | V99: -2.617887461 | W99: 0.3286686579 | X99: 1 | Y99: 0 | Z99: 0 | AA99: =_xlfn.IFS(AND(M99="大規模", R99="〇"), 1, AND(M99="大規模", S99="〇"), 4, AND(M99="大規模", T99="〇"), 7, AND(M99="中小規模", R99="〇"), 2, AND(M99="中小規模", S99="〇"), 5, AND(M99="中小規模", T99="〇"), 8, AND(M99="極小規模", R99="〇"), 3, AND(M99="極小規模", S99="〇"), 6, AND(M99="極小規模", T99="〇"), 9) -> 3
B100: 1452 | C100: 北海道 鷹栖町 | D100: 6567 | E100: 13942 | F100: 4280 | G100: 4138 | H100: 16720 | I100: 0.1702601639 | J100: 0.1646113454 | K100: 0.6651284907 | L100: 0.6651284907 | M100: 極小規模 | N100: 0.2119222981 | O100: -1.69307352 | P100: -0.1157565525 | Q100: 0.2119222981 | R100: 〇 | U100: 0.2997814995 | V100: -1.937964808 | W100: 0.672811323 | X100: 0 | Y100: 0 | Z100: 1 | AA100: =_xlfn.IFS(AND(M100="大規模", R100="〇"), 1, AND(M100="大規模", S100="〇"), 4, AND(M100="大規模", T100="〇"), 7, AND(M100="中小規模", R100="〇"), 2, AND(M100="中小規模", S100="〇"), 5, AND(M100="中小規模", T100="〇"), 8, AND(M100="極小規模", R100="〇"), 3, AND(M100="極小規模", S100="〇"), 6, AND(M100="極小規模", T100="〇"), 9) -> 3
B101: 1453 | C101: 北海道 東神楽町 | D101: 10127 | E101: 6850 | F101: 4890 | G101: 4121 | H101: 14830 | I101: 0.2051088461 | J101: 0.1728534877 | K101: 0.6220376662 | L101: 0.6220376662 | M101: 極小規模 | N101: 0.4078769567 | O101: -1.442813267 | P101: 0.6793771355 | Q101: 0.6793771355 | T101: 〇 | U101: 0.4276183542 | V101: -1.880458887 | W101: 0.5249240039 | X101: 0 | Y101: 0 | Z101: 1 | AA101: =_xlfn.IFS(AND(M101="大規模", R101="〇"), 1, AND(M101="大規模", S101="〇"), 4, AND(M101="大規模", T101="〇"), 7, AND(M101="中小規模", R101="〇"), 2, AND(M101="中小規模", S101="〇"), 5, AND(M101="中小規模", T101="〇"), 8, AND(M101="極小規模", R101="〇"), 3, AND(M101="極小規模", S101="〇"), 6, AND(M101="極小規模", T101="〇"), 9) -> 9
B102: 1454 | C102: 北海道 当麻町 | D102: 6319 | E102: 20490 | F102: 5090 | G102: 7166 | H102: 9767 | I102: 0.2311220088 | J102: 0.3253870953 | K102: 0.4434908959 | L102: 0.4434908959 | M102: 極小規模 | N102: 0.5541493576 | O102: -1.079679104 | P102: 1.128211834 | Q102: 1.128211834 | T102: 〇 | U102: 0.5230435092 | V102: -0.8162227601 | W102: -0.08784689288 | X102: 1 | Y102: 0 | Z102: 0 | AA102: =_xlfn.IFS(AND(M102="大規模", R102="〇"), 1, AND(M102="大規模", S102="〇"), 4, AND(M102="大規模", T102="〇"), 7, AND(M102="中小規模", R102="〇"), 2, AND(M102="中小規模", S102="〇"), 5, AND(M102="中小規模", T102="〇"), 8, AND(M102="極小規模", R102="〇"), 3, AND(M102="極小規模", S102="〇"), 6, AND(M102="極小規模", T102="〇"), 9) -> 9
B103: 1455 | C103: 北海道 比布町 | D103: 3520 | E103: 8690 | F103: 2780 | G103: 1563 | H103: 2841 | I103: 0.3869710468 | J103: 0.2175668151 | K103: 0.3954621381 | L103: 0.3954621381 | M103: 極小規模 | N103: 1.430490817 | O103: -1.048966251 | P103: 0.9353355447 | Q103: 1.430490817 | R103: 〇 | U103: 1.094750947 | V103: -1.56849132 | W103: -0.2526811541 | X103: 1 | Y103: 0 | Z103: 0 | AA103: =_xlfn.IFS(AND(M103="大規模", R103="〇"), 1, AND(M103="大規模", S103="〇"), 4, AND(M103="大規模", T103="〇"), 7, AND(M103="中小規模", R103="〇"), 2, AND(M103="中小規模", S103="〇"), 5, AND(M103="中小規模", T103="〇"), 8, AND(M103="極小規模", R103="〇"), 3, AND(M103="極小規模", S103="〇"), 6, AND(M103="極小規模", T103="〇"), 9) -> 3
B104: 1456 | C104: 北海道 愛別町 | D104: 2605 | E104: 25013 | F104: 2480 | G104: 1470 | H104: 2989 | I104: 0.3574002018 | J104: 0.2118460873 | K104: 0.4307537109 | L104: 0.4307537109 | M104: 極小規模 | N104: 1.264213516 | O104: -0.4805773417 | P104: 0.136152913 | Q104: 1.264213516 | R104: 〇 | U104: 0.9862749999 | V104: -1.608405181 | W104: -0.1315607962 | X104: 1 | Y104: 0 | Z104: 0 | AA104: =_xlfn.IFS(AND(M104="大規模", R104="〇"), 1, AND(M104="大規模", S104="〇"), 4, AND(M104="大規模", T104="〇"), 7, AND(M104="中小規模", R104="〇"), 2, AND(M104="中小規模", S104="〇"), 5, AND(M104="中小規模", T104="〇"), 8, AND(M104="極小規模", R104="〇"), 3, AND(M104="極小規模", S104="〇"), 6, AND(M104="極小規模", T104="〇"), 9) -> 3
B105: 1457 | C105: 北海道 上川町 | D105: 3500 | E105: 104947 | F105: 1740 | G105: 1023 | H105: 3762 | I105: 0.2666666667 | J105: 0.1567816092 | K105: 0.5765517241 | L105: 0.5765517241 | M105: 極小規模 | N105: 0.7540174977 | O105: -0.8823501209 | P105: -0.07882576733 | Q105: 0.7540174977 | R105: 〇 | U105: 0.65343344 | V105: -1.992593347 | W105: 0.3688166632 | X105: 1 | Y105: 0 | Z105: 0 | AA105: =_xlfn.IFS(AND(M105="大規模", R105="〇"), 1, AND(M105="大規模", S105="〇"), 4, AND(M105="大規模", T105="〇"), 7, AND(M105="中小規模", R105="〇"), 2, AND(M105="中小規模", S105="〇"), 5, AND(M105="中小規模", T105="〇"), 8, AND(M105="極小規模", R105="〇"), 3, AND(M105="極小規模", S105="〇"), 6, AND(M105="極小規模", T105="〇"), 9) -> 3
B106: 1458 | C106: 北海道 東川町 | D106: 8314 | E106: 24730 | F106: 4800 | G106: 12223 | H106: 7436 | I106: 0.1962467803 | J106: 0.4997342492 | K106: 0.3040189705 | L106: 0.4997342492 | M106: 極小規模 | N106: 0.3580454289 | O106: -0.9036673787 | P106: 0.07914075314 | Q106: 0.3580454289 | R106: 〇 | U106: 0.3951092737 | V106: 0.4002077869 | W106: -0.5665132761 | X106: 0 | Y106: 1 | Z106: 0 | AA106: =_xlfn.IFS(AND(M106="大規模", R106="〇"), 1, AND(M106="大規模", S106="〇"), 4, AND(M106="大規模", T106="〇"), 7, AND(M106="中小規模", R106="〇"), 2, AND(M106="中小規模", S106="〇"), 5, AND(M106="中小規模", T106="〇"), 8, AND(M106="極小規模", R106="〇"), 3, AND(M106="極小規模", S106="〇"), 6, AND(M106="極小規模", T106="〇"), 9) -> 3
B107: 1459 | C107: 北海道 美瑛町 | D107: 9668 | E107: 67678 | F107: 13830 | G107: 6445 | H107: 14071 | I107: 0.4026669772 | J107: 0.1876492168 | K107: 0.409683806 | L107: 0.409683806 | M107: 極小規模 | N107: 1.518749268 | O107: -1.1088552 | P107: 0.7317386114 | Q107: 1.518749268 | R107: 〇 | U107: 1.152328975 | V107: -1.777228198 | W107: -0.2038725189 | X107: 1 | Y107: 0 | Z107: 0 | AA107: =_xlfn.IFS(AND(M107="大規模", R107="〇"), 1, AND(M107="大規模", S107="〇"), 4, AND(M107="大規模", T107="〇"), 7, AND(M107="中小規模", R107="〇"), 2, AND(M107="中小規模", S107="〇"), 5, AND(M107="中小規模", T107="〇"), 8, AND(M107="極小規模", R107="〇"), 3, AND(M107="極小規模", S107="〇"), 6, AND(M107="極小規模", T107="〇"), 9) -> 3
B108: 1460 | C108: 北海道 上富良野町 | D108: 10348 | E108: 23710 | F108: 8630 | G108: 5888 | H108: 8540 | I108: 0.374273571 | J108: 0.2553560586 | K108: 0.3703703704 | L108: 0.374273571 | M108: 極小規模 | N108: 1.359092722 | O108: 0.1690958037 | P108: -0.4881291178 | Q108: 1.359092722 | R108: 〇 | U108: 1.048172274 | V108: -1.304833502 | W108: -0.3387958734 | X108: 1 | Y108: 0 | Z108: 0 | AA108: =_xlfn.IFS(AND(M108="大規模", R108="〇"), 1, AND(M108="大規模", S108="〇"), 4, AND(M108="大規模", T108="〇"), 7, AND(M108="中小規模", R108="〇"), 2, AND(M108="中小規模", S108="〇"), 5, AND(M108="中小規模", T108="〇"), 8, AND(M108="極小規模", R108="〇"), 3, AND(M108="極小規模", S108="〇"), 6, AND(M108="極小規模", T108="〇"), 9) -> 3
B109: 1461 | C109: 北海道 中富良野町 | D109: 4733 | E109: 10865 | F109: 7860 | G109: 1570 | H109: 8189 | I109: 0.4461093138 | J109: 0.08910834894 | K109: 0.4647823372 | L109: 0.4647823372 | M109: 極小規模 | N109: 1.763026173 | O109: -0.9938326418 | P109: -0.01516900136 | Q109: 1.763026173 | R109: 〇 | U109: 1.311690285 | V109: -2.464753742 | W109: -0.01477485917 | X109: 1 | Y109: 0 | Z109: 0 | AA109: =_xlfn.IFS(AND(M109="大規模", R109="〇"), 1, AND(M109="大規模", S109="〇"), 4, AND(M109="大規模", T109="〇"), 7, AND(M109="中小規模", R109="〇"), 2, AND(M109="中小規模", S109="〇"), 5, AND(M109="中小規模", T109="〇"), 8, AND(M109="極小規模", R109="〇"), 3, AND(M109="極小規模", S109="〇"), 6, AND(M109="極小規模", T109="〇"), 9) -> 3
B110: 1462 | C110: 北海道 南富良野町 | D110: 2376 | E110: 66554 | F110: 3230 | G110: 313 | H110: 1710 | I110: 0.6148867314 | J110: 0.05958499905 | K110: 0.3255282696 | L110: 0.6148867314 | M110: 極小規模 | N110: 2.712064103 | O110: -0.7415353376 | P110: -0.1911375438 | Q110: 2.712064103 | R110: 〇 | U110: 1.93082343 | V110: -2.670739924 | W110: -0.4926935568 | X110: 1 | Y110: 0 | Z110: 0 | AA110: =_xlfn.IFS(AND(M110="大規模", R110="〇"), 1, AND(M110="大規模", S110="〇"), 4, AND(M110="大規模", T110="〇"), 7, AND(M110="中小規模", R110="〇"), 2, AND(M110="中小規模", S110="〇"), 5, AND(M110="中小規模", T110="〇"), 8, AND(M110="極小規模", R110="〇"), 3, AND(M110="極小規模", S110="〇"), 6, AND(M110="極小規模", T110="〇"), 9) -> 3
B111: 1463 | C111: 北海道 占冠村 | D111: 1306 | E111: 57141 | F111: 340 | H111: 543 | I111: 0.3850509626 | J111: 0 | K111: 0.6149490374 | L111: 0.6149490374 | M111: 極小規模 | N111: 1.419694155 | O111: -1.361027369 | P111: 0.2314542736 | Q111: 1.419694155 | R111: 〇 | U111: 1.087707424 | V111: -3.086468036 | W111: 0.500595894 | AA111: =_xlfn.IFS(AND(M111="大規模", R111="〇"), 1, AND(M111="大規模", S111="〇"), 4, AND(M111="大規模", T111="〇"), 7, AND(M111="中小規模", R111="〇"), 2, AND(M111="中小規模", S111="〇"), 5, AND(M111="中小規模", T111="〇"), 8, AND(M111="極小規模", R111="〇"), 3, AND(M111="極小規模", S111="〇"), 6, AND(M111="極小規模", T111="〇"), 9) -> 3
B112: 1464 | C112: 北海道 和寒町 | D112: 3192 | E112: 22511 | F112: 3330 | G112: 1360 | H112: 3087 | I112: 0.4281856757 | J112: 0.1748746303 | K112: 0.396939694 | L112: 0.4281856757 | M112: 極小規模 | N112: =STANDARDIZE(I112,$AI$15,$AI$16) -> 1.662241289 | O112: =STANDARDIZE(J110,$AJ$15,$AJ$16) -> -1.471040794 | P112: =STANDARDIZE(K110,$AK$15,$AK$16) -> -0.3918526174 | Q112: 1.662241289 | R112: 〇 | U112: 1.245940266 | V112: -1.866357254 | W112: -0.2476101957 | X112: 1 | Y112: 0 | Z112: 0 | AA112: =_xlfn.IFS(AND(M112="大規模", R112="〇"), 1, AND(M112="大規模", S112="〇"), 4, AND(M112="大規模", T112="〇"), 7, AND(M112="中小規模", R112="〇"), 2, AND(M112="中小規模", S112="〇"), 5, AND(M112="中小規模", T112="〇"), 8, AND(M112="極小規模", R112="〇"), 3, AND(M112="極小規模", S112="〇"), 6, AND(M112="極小規模", T112="〇"), 9) -> 3
B113: 1465 | C113: 北海道 剣淵町 | D113: 2926 | E113: 13099 | F113: 4110 | G113: 388 | H113: 4710 | I113: 0.4463509991 | J113: 0.04213727194 | K113: 0.5115117289 | L113: 0.5115117289 | M113: 極小規模 | N113: 1.764385173 | O113: -1.69307352 | P113: 0.9036065527 | Q113: 1.764385173 | R113: 〇 | U113: 1.31257687 | V113: -2.792473763 | W113: 0.1455999894 | X113: 1 | Y113: 0 | Z113: 0 | AA113: =_xlfn.IFS(AND(M113="大規模", R113="〇"), 1, AND(M113="大規模", S113="〇"), 4, AND(M113="大規模", T113="〇"), 7, AND(M113="中小規模", R113="〇"), 2, AND(M113="中小規模", S113="〇"), 5, AND(M113="中小規模", T113="〇"), 8, AND(M113="極小規模", R113="〇"), 3, AND(M113="極小規模", S113="〇"), 6, AND(M113="極小規模", T113="〇"), 9) -> 3
B114: 1468 | C114: 北海道 下川町 | D114: 3126 | E114: 64420 | F114: 2020 | G114: 2934 | H114: 3054 | I114: 0.2522477522 | J114: 0.3663836164 | K114: 0.3813686314 | L114: 0.3813686314 | M114: 極小規模 | N114: 0.6729397274 | O114: -1.041434829 | P114: -0.07221216688 | Q114: 0.6729397274 | R114: 〇 | U114: 0.600539943 | V114: -0.5301875742 | W114: -0.3010499414 | X114: 1 | Y114: 0 | Z114: 0 | AA114: =_xlfn.IFS(AND(M114="大規模", R114="〇"), 1, AND(M114="大規模", S114="〇"), 4, AND(M114="大規模", T114="〇"), 7, AND(M114="中小規模", R114="〇"), 2, AND(M114="中小規模", S114="〇"), 5, AND(M114="中小規模", T114="〇"), 8, AND(M114="極小規模", R114="〇"), 3, AND(M114="極小規模", S114="〇"), 6, AND(M114="極小規模", T114="〇"), 9) -> 3
B115: 1469 | C115: 北海道 美深町 | D115: 4145 | E115: 67209 | F115: 4070 | G115: 717 | H115: 5451 | I115: 0.3975385818 | J115: 0.07003320961 | K115: 0.5324282086 | L115: 0.5324282086 | M115: 極小規模 | N115: 1.489912224 | O115: -1.536056595 | P115: 0.4406169381 | Q115: 1.489912224 | R115: 〇 | U115: 1.133516271 | V115: -2.597842133 | W115: 0.2173851581 | X115: 1 | Y115: 0 | Z115: 0 | AA115: =_xlfn.IFS(AND(M115="大規模", R115="〇"), 1, AND(M115="大規模", S115="〇"), 4, AND(M115="大規模", T115="〇"), 7, AND(M115="中小規模", R115="〇"), 2, AND(M115="中小規模", S115="〇"), 5, AND(M115="中小規模", T115="〇"), 8, AND(M115="極小規模", R115="〇"), 3, AND(M115="極小規模", S115="〇"), 6, AND(M115="極小規模", T115="〇"), 9) -> 3
B116: 1470 | C116: 北海道 音威子府村 | D116: 706 | E116: 27563 | F116: 390 | H116: 868 | I116: 0.3100158983 | J116: 0 | K116: 0.6899841017 | L116: 0.6899841017 | M116: 極小規模 | N116: 0.9977708719 | O116: -0.3278112184 | P116: -0.1419088786 | Q116: 0.9977708719 | R116: 〇 | U116: 0.8124532098 | V116: -3.086468036 | W116: 0.7581155546 | AA116: =_xlfn.IFS(AND(M116="大規模", R116="〇"), 1, AND(M116="大規模", S116="〇"), 4, AND(M116="大規模", T116="〇"), 7, AND(M116="中小規模", R116="〇"), 2, AND(M116="中小規模", S116="〇"), 5, AND(M116="中小規模", T116="〇"), 8, AND(M116="極小規模", R116="〇"), 3, AND(M116="極小規模", S116="〇"), 6, AND(M116="極小規模", T116="〇"), 9) -> 3
B117: 1471 | C117: 北海道 中川町 | D117: 1528 | E117: 59474 | F117: 1410 | G117: 883 | H117: 1550 | I117: 0.3669008587 | J117: 0.2297684101 | K117: 0.4033307312 | L117: 0.4033307312 | M117: 極小規模 | N117: 1.317635851 | O117: -1.432107427 | P117: 0.534239955 | Q117: 1.317635851 | R117: 〇 | U117: 1.021126651 | V117: -1.48336006 | W117: -0.2256762139 | X117: 1 | Y117: 0 | Z117: 0 | AA117: =_xlfn.IFS(AND(M117="大規模", R117="〇"), 1, AND(M117="大規模", S117="〇"), 4, AND(M117="大規模", T117="〇"), 7, AND(M117="中小規模", R117="〇"), 2, AND(M117="中小規模", S117="〇"), 5, AND(M117="中小規模", T117="〇"), 8, AND(M117="極小規模", R117="〇"), 3, AND(M117="極小規模", S117="〇"), 6, AND(M117="極小規模", T117="〇"), 9) -> 3
B118: 1472 | C118: 北海道 幌加内町 | D118: 1370 | E118: 76704 | F118: 1840 | G118: 1012 | H118: 1455 | I118: 0.4272115161 | J118: 0.2349663339 | K118: 0.33782215 | L118: 0.4272115161 | M118: 極小規模 | N118: 1.656763575 | O118: -1.69307352 | P118: 1.239466564 | Q118: 1.656763575 | R118: 〇 | U118: 1.242366717 | V118: -1.447093835 | W118: -0.4505010707 | X118: 1 | Y118: 0 | Z118: 0 | AA118: =_xlfn.IFS(AND(M118="大規模", R118="〇"), 1, AND(M118="大規模", S118="〇"), 4, AND(M118="大規模", T118="〇"), 7, AND(M118="中小規模", R118="〇"), 2, AND(M118="中小規模", S118="〇"), 5, AND(M118="中小規模", T118="〇"), 8, AND(M118="極小規模", R118="〇"), 3, AND(M118="極小規模", S118="〇"), 6, AND(M118="極小規模", T118="〇"), 9) -> 3
B119: 1481 | C119: 北海道 増毛町 | D119: 3908 | E119: 36971 | F119: 710 | G119: 11012 | H119: 7142 | I119: 0.03763782867 | J119: 0.5837574215 | K119: 0.3786047498 | L119: 0.5837574215 | M119: 極小規模 | N119: -0.5338150663 | O119: -0.8368830835 | P119: -0.04360562337 | Q119: -0.04360562337 | T119: 〇 | U119: -0.1867224693 | V119: 0.986442499 | W119: -0.3105355579 | X119: 0 | Y119: 1 | Z119: 0 | AA119: =_xlfn.IFS(AND(M119="大規模", R119="〇"), 1, AND(M119="大規模", S119="〇"), 4, AND(M119="大規模", T119="〇"), 7, AND(M119="中小規模", R119="〇"), 2, AND(M119="中小規模", S119="〇"), 5, AND(M119="中小規模", T119="〇"), 8, AND(M119="極小規模", R119="〇"), 3, AND(M119="極小規模", S119="〇"), 6, AND(M119="極小規模", T119="〇"), 9) -> 9
B120: 1482 | C120: 北海道 小平町 | D120: 2994 | E120: 62722 | F120: 1640 | H120: 1721 | I120: 0.4879500149 | J120: 0 | K120: 0.5120499851 | L120: 0.5120499851 | M120: 極小規模 | N120: 1.998297057 | O120: -0.8175139603 | P120: -0.3368247068 | Q120: 1.998297057 | R120: 〇 | U120: 1.465176251 | V120: -3.086468036 | W120: 0.1474472797 | AA120: =_xlfn.IFS(AND(M120="大規模", R120="〇"), 1, AND(M120="大規模", S120="〇"), 4, AND(M120="大規模", T120="〇"), 7, AND(M120="中小規模", R120="〇"), 2, AND(M120="中小規模", S120="〇"), 5, AND(M120="中小規模", T120="〇"), 8, AND(M120="極小規模", R120="〇"), 3, AND(M120="極小規模", S120="〇"), 6, AND(M120="極小規模", T120="〇"), 9) -> 3
B121: 1483 | C121: 北海道 苫前町 | D121: 2936 | E121: 45460 | F121: 2500 | G121: 1107 | H121: 1221 | I121: 0.5178127589 | J121: 0.2292874896 | K121: 0.2528997514 | L121: 0.5178127589 | M121: 極小規模 | N121: 2.166215711 | O121: 0.4821929636 | P121: -0.1542801254 | Q121: 2.166215711 | R121: 〇 | U121: 1.574722983 | V121: -1.486715471 | W121: -0.7419539724 | X121: 1 | Y121: 0 | Z121: 0 | AA121: =_xlfn.IFS(AND(M121="大規模", R121="〇"), 1, AND(M121="大規模", S121="〇"), 4, AND(M121="大規模", T121="〇"), 7, AND(M121="中小規模", R121="〇"), 2, AND(M121="中小規模", S121="〇"), 5, AND(M121="中小規模", T121="〇"), 8, AND(M121="極小規模", R121="〇"), 3, AND(M121="極小規模", S121="〇"), 6, AND(M121="極小規模", T121="〇"), 9) -> 3
B122: 1484 | C122: 北海道 羽幌町 | D122: 6548 | E122: 47265 | F122: 1790 | G122: 3717 | H122: 12107 | I122: 0.1016237084 | J122: 0.2110253208 | K122: 0.6873509708 | L122: 0.6873509708 | M122: 極小規模 | N122: -0.1740215124 | O122: -1.69307352 | P122: 0.4430261948 | Q122: 0.4430261948 | T122: 〇 | U122: 0.04799956591 | V122: -1.614131719 | W122: 0.7490786731 | X122: 0 | Y122: 0 | Z122: 1 | AA122: =_xlfn.IFS(AND(M122="大規模", R122="〇"), 1, AND(M122="大規模", S122="〇"), 4, AND(M122="大規模", T122="〇"), 7, AND(M122="中小規模", R122="〇"), 2, AND(M122="中小規模", S122="〇"), 5, AND(M122="中小規模", T122="〇"), 8, AND(M122="極小規模", R122="〇"), 3, AND(M122="極小規模", S122="〇"), 6, AND(M122="極小規模", T122="〇"), 9) -> 9
B123: 1485 | C123: 北海道 初山別村 | D123: 1080 | E123: 27952 | F123: 980 | H123: 987 | I123: 0.4982206406 | J123: 0 | K123: 0.5017793594 | L123: 0.5017793594 | M123: 極小規模 | N123: 2.056048938 | O123: -0.8386751466 | P123: -0.7169408289 | Q123: 2.056048938 | R123: 〇 | U123: 1.502852409 | V123: -3.086468036 | W123: 0.1121985855 | AA123: =_xlfn.IFS(AND(M123="大規模", R123="〇"), 1, AND(M123="大規模", S123="〇"), 4, AND(M123="大規模", T123="〇"), 7, AND(M123="中小規模", R123="〇"), 2, AND(M123="中小規模", S123="〇"), 5, AND(M123="中小規模", T123="〇"), 8, AND(M123="極小規模", R123="〇"), 3, AND(M123="極小規模", S123="〇"), 6, AND(M123="極小規模", T123="〇"), 9) -> 3
B124: 1486 | C124: 北海道 遠別町 | D124: 2520 | E124: 59080 | F124: 2340 | G124: 1250 | H124: 3764 | I124: 0.31819418 | J124: 0.1699755235 | K124: 0.5118302964 | L124: 0.5118302964 | M124: 極小規模 | N124: 1.043757472 | O124: -0.9067258169 | P124: 1.227680562 | Q124: 1.227680562 | T124: 〇 | U124: 0.8424539373 | V124: -1.900538616 | W124: 0.1466933102 | X124: 1 | Y124: 0 | Z124: 0 | AA124: =_xlfn.IFS(AND(M124="大規模", R124="〇"), 1, AND(M124="大規模", S124="〇"), 4, AND(M124="大規模", T124="〇"), 7, AND(M124="中小規模", R124="〇"), 2, AND(M124="中小規模", S124="〇"), 5, AND(M124="中小規模", T124="〇"), 8, AND(M124="極小規模", R124="〇"), 3, AND(M124="極小規模", S124="〇"), 6, AND(M124="極小規模", T124="〇"), 9) -> 9
B125: 1487 | C125: 北海道 天塩町 | D125: 2950 | E125: 35356 | F125: 4610 | H125: 3643 | I125: 0.5585847571 | J125: 0 | K125: 0.4414152429 | L125: 0.5585847571 | M125: 極小規模 | N125: 2.395477264 | O125: -1.69307352 | P125: 0.397054455 | Q125: 2.395477264 | R125: 〇 | U125: 1.724288581 | V125: -3.086468036 | W125: -0.09497051495 | AA125: =_xlfn.IFS(AND(M125="大規模", R125="〇"), 1, AND(M125="大規模", S125="〇"), 4, AND(M125="大規模", T125="〇"), 7, AND(M125="中小規模", R125="〇"), 2, AND(M125="中小規模", S125="〇"), 5, AND(M125="中小規模", T125="〇"), 8, AND(M125="極小規模", R125="〇"), 3, AND(M125="極小規模", S125="〇"), 6, AND(M125="極小規模", T125="〇"), 9) -> 3
B126: 1511 | C126: 北海道 猿払村 | D126: 2611 | E126: 58999 | F126: 3220 | G126: 10069 | H126: 4060 | I126: 0.1856014756 | J126: 0.5803792726 | K126: 0.2340192518 | L126: 0.5803792726 | M126: 極小規模 | N126: 0.298186722 | O126: -1.059690464 | P126: 0.4420428593 | Q126: 0.4420428593 | T126: 〇 | U126: 0.3560586643 | V126: 0.9628729511 | W126: -0.8067516759 | X126: 0 | Y126: 1 | Z126: 0 | AA126: =_xlfn.IFS(AND(M126="大規模", R126="〇"), 1, AND(M126="大規模", S126="〇"), 4, AND(M126="大規模", T126="〇"), 7, AND(M126="中小規模", R126="〇"), 2, AND(M126="中小規模", S126="〇"), 5, AND(M126="中小規模", T126="〇"), 8, AND(M126="極小規模", R126="〇"), 3, AND(M126="極小規模", S126="〇"), 6, AND(M126="極小規模", T126="〇"), 9) -> 9
B127: 1512 | C127: 北海道 浜頓別町 | D127: 3448 | E127: 40164 | F127: 2590 | G127: 9060 | H127: 6481 | I127: 0.1428492637 | J127: 0.4996966521 | K127: 0.3574540842 | L127: 0.4996966521 | M127: 極小規模 | N127: 0.05779039836 | O127: -1.69307352 | P127: 0.1268622057 | Q127: 0.1268622057 | T127: 〇 | U127: 0.1992289665 | V127: 0.3999454703 | W127: -0.3831244506 | X127: 0 | Y127: 1 | Z127: 0 | AA127: =_xlfn.IFS(AND(M127="大規模", R127="〇"), 1, AND(M127="大規模", S127="〇"), 4, AND(M127="大規模", T127="〇"), 7, AND(M127="中小規模", R127="〇"), 2, AND(M127="中小規模", S127="〇"), 5, AND(M127="中小規模", T127="〇"), 8, AND(M127="極小規模", R127="〇"), 3, AND(M127="極小規模", S127="〇"), 6, AND(M127="極小規模", T127="〇"), 9) -> 9
B128: 1513 | C128: 北海道 中頓別町 | D128: 1637 | E128: 39851 | F128: 1620 | G128: 169 | H128: 2202 | I128: 0.4059133049 | J128: 0.04234527687 | K128: 0.5517414182 | L128: 0.5517414182 | M128: 極小規模 | N128: 1.537003417 | O128: 0.4696049023 | P128: -0.8014507159 | Q128: 1.537003417 | R128: 〇 | U128: 1.164237612 | V128: -2.7910225 | W128: 0.2836679181 | X128: 1 | Y128: 0 | Z128: 0 | AA128: =_xlfn.IFS(AND(M128="大規模", R128="〇"), 1, AND(M128="大規模", S128="〇"), 4, AND(M128="大規模", T128="〇"), 7, AND(M128="中小規模", R128="〇"), 2, AND(M128="中小規模", S128="〇"), 5, AND(M128="中小規模", T128="〇"), 8, AND(M128="極小規模", R128="〇"), 3, AND(M128="極小規模", S128="〇"), 6, AND(M128="極小規模", T128="〇"), 9) -> 3
B129: 1514 | C129: 北海道 枝幸町 | D129: 7565 | E129: 111593 | F129: 4830 | G129: 20286 | H129: 14660 | I129: 0.121430008 | J129: 0.5100060338 | K129: 0.3685639582 | L129: 0.5100060338 | M129: 極小規模 | N129: -0.06265039486 | O129: 0.1689557053 | P129: -0.2489513681 | Q129: 0.1689557053 | S129: 〇 | U129: 0.1206558297 | V129: 0.4718746442 | W129: -0.3449954637 | X129: 0 | Y129: 1 | Z129: 0 | AA129: =_xlfn.IFS(AND(M129="大規模", R129="〇"), 1, AND(M129="大規模", S129="〇"), 4, AND(M129="大規模", T129="〇"), 7, AND(M129="中小規模", R129="〇"), 2, AND(M129="中小規模", S129="〇"), 5, AND(M129="中小規模", T129="〇"), 8, AND(M129="極小規模", R129="〇"), 3, AND(M129="極小規模", S129="〇"), 6, AND(M129="極小規模", T129="〇"), 9) -> 6
B130: 1516 | C130: 北海道 豊富町 | D130: 3974 | E130: 52069 | F130: 6660 | G130: 7715 | H130: 14589 | I130: 0.2299406159 | J130: 0.2663651429 | K130: 0.5036942411 | L130: 0.5036942411 | M130: 極小規模 | N130: 0.5475063679 | O130: -1.535281502 | P130: 0.6206866693 | Q130: 0.6206866693 | T130: 〇 | U130: 0.5187097571 | V130: -1.228022461 | W130: 0.1187704421 | X130: 1 | Y130: 0 | Z130: 0 | AA130: =_xlfn.IFS(AND(M130="大規模", R130="〇"), 1, AND(M130="大規模", S130="〇"), 4, AND(M130="大規模", T130="〇"), 7, AND(M130="中小規模", R130="〇"), 2, AND(M130="中小規模", S130="〇"), 5, AND(M130="中小規模", T130="〇"), 8, AND(M130="極小規模", R130="〇"), 3, AND(M130="極小規模", S130="〇"), 6, AND(M130="極小規模", T130="〇"), 9) -> 9
B131: 1517 | C131: 北海道 礼文町 | D131: 2509 | E131: 8164 | F131: 0 | G131: 2188 | H131: 4222 | I131: 0 | J131: 0.3413416537 | K131: 0.6586583463 | L131: 0.6586583463 | M131: 極小規模 | N131: -0.745453137 | O131: 0.207371752 | P131: -0.1992231186 | Q131: 0.207371752 | S131: 〇 | U131: -0.3247908648 | V131: -0.7049068497 | W131: 0.6506058461 | X131: 0 | Y131: 0 | Z131: 1 | AA131: =_xlfn.IFS(AND(M131="大規模", R131="〇"), 1, AND(M131="大規模", S131="〇"), 4, AND(M131="大規模", T131="〇"), 7, AND(M131="中小規模", R131="〇"), 2, AND(M131="中小規模", S131="〇"), 5, AND(M131="中小規模", T131="〇"), 8, AND(M131="極小規模", R131="〇"), 3, AND(M131="極小規模", S131="〇"), 6, AND(M131="極小規模", T131="〇"), 9) -> 6
B132: 1518 | C132: 北海道 利尻町 | D132: 2004 | E132: 7650 | F132: 0 | G132: 958 | H132: 3524 | I132: 0 | J132: 0.2137438643 | K132: 0.7862561357 | L132: 0.7862561357 | M132: 極小規模 | N132: -0.745453137 | O132: -0.7005119755 | P132: 0.4056255436 | Q132: 0.4056255436 | T132: 〇 | U132: =STANDARDIZE(I132,I$1,I$2) -> -0.3247908648 | V132: -1.595164277 | W132: 1.088520302 | X132: 0 | Y132: 0 | Z132: 1 | AA132: =_xlfn.IFS(AND(M132="大規模", R132="〇"), 1, AND(M132="大規模", S132="〇"), 4, AND(M132="大規模", T132="〇"), 7, AND(M132="中小規模", R132="〇"), 2, AND(M132="中小規模", S132="〇"), 5, AND(M132="中小規模", T132="〇"), 8, AND(M132="極小規模", R132="〇"), 3, AND(M132="極小規模", S132="〇"), 6, AND(M132="極小規模", T132="〇"), 9) -> 9
B133: 1519 | C133: 北海道 利尻富士町 | D133: 2458 | E133: 10562 | F133: 0 | G133: 2232 | H133: 3077 | I133: =F133/SUM($F133:$H133) -> 0 | J133: 0.4204181578 | K133: 0.5795818422 | L133: =MAX(I133:K133) -> 0.5795818422 | M133: =IF(D133>500000,"大規模",IF(D133>50000,"中小規模","極小規模")) -> 極小規模 | N133: -0.745453137 | O133: -0.4211255647 | P133: 1.099251204 | Q133: =MAX(N133:P133) -> 1.099251204 | R133: =IF(Q133=N133,"〇","") ->  | S133: =IF(Q133=O133,"〇","") ->  | T133: =IF(Q133=P133,"〇","") -> 〇 | U133: -0.3247908648 | V133: -0.1531853383 | W133: 0.3792160007 | X133: =IF(COUNTBLANK($F133:$H133)>0,"",IF(U133>V133,IF(U133>W133,1,0),0)) -> 0 | Y133: =IF(COUNTBLANK($F133:$H133)>0,"",IF(V133>W133,IF(V133>U133,1,0),0)) -> 0 | Z133: =IF(COUNTBLANK($F133:$H133)>0,"",IF(W133>U133,IF(W133>V133,1,0),0)) -> 1 | AA133: =_xlfn.IFS(AND(M133="大規模", R133="〇"), 1, AND(M133="大規模", S133="〇"), 4, AND(M133="大規模", T133="〇"), 7, AND(M133="中小規模", R133="〇"), 2, AND(M133="中小規模", S133="〇"), 5, AND(M133="中小規模", T133="〇"), 8, AND(M133="極小規模", R133="〇"), 3, AND(M133="極小規模", S133="〇"), 6, AND(M133="極小規模", T133="〇"), 9) -> 9
B134: 1520 | C134: 北海道 幌延町 | D134: 2371 | E134: 57410 | F134: 3920 | H134: 1703 | I134: 0.6971367597 | J134: 0 | K134: 0.3028632403 | L134: 0.6971367597 | M134: 極小規模 | N134: 3.174557236 | O134: -0.8965956558 | P134: 1.670384117 | Q134: 3.174557236 | R134: 〇 | U134: 2.232544593 | V134: -3.086468036 | W134: -0.5704797318 | AA134: =_xlfn.IFS(AND(M134="大規模", R134="〇"), 1, AND(M134="大規模", S134="〇"), 4, AND(M134="大規模", T134="〇"), 7, AND(M134="中小規模", R134="〇"), 2, AND(M134="中小規模", S134="〇"), 5, AND(M134="中小規模", T134="〇"), 8, AND(M134="極小規模", R134="〇"), 3, AND(M134="極小規模", S134="〇"), 6, AND(M134="極小規模", T134="〇"), 9) -> 3
B135: 1543 | C135: 北海道 美幌町 | D135: 18697 | E135: 43841 | F135: 11700 | G135: 21940 | H135: 31671 | I135: 0.1791428703 | J135: 0.3359311601 | K135: 0.4849259696 | L135: 0.4849259696 | M135: 極小規模 | N135: 0.2618698882 | O135: -0.1264612695 | P135: 0.7453015434 | Q135: 0.7453015434 | T135: 〇 | U135: 0.3323662967 | V135: -0.7426561875 | W135: 0.05435790438 | X135: 1 | Y135: 0 | Z135: 0 | AA135: =_xlfn.IFS(AND(M135="大規模", R135="〇"), 1, AND(M135="大規模", S135="〇"), 4, AND(M135="大規模", T135="〇"), 7, AND(M135="中小規模", R135="〇"), 2, AND(M135="中小規模", S135="〇"), 5, AND(M135="中小規模", T135="〇"), 8, AND(M135="極小規模", R135="〇"), 3, AND(M135="極小規模", S135="〇"), 6, AND(M135="極小規模", T135="〇"), 9) -> 9
B136: 1544 | C136: 北海道 津別町 | D136: 4373 | E136: 71680 | F136: 5520 | G136: 24338 | H136: 6815 | I136: 0.1505194557 | J136: 0.6636490061 | K136: 0.1858315382 | L136: 0.6636490061 | M136: 極小規模 | N136: 0.1009200023 | O136: -1.69307352 | P136: -0.4933022136 | Q136: 0.1009200023 | R136: 〇 | U136: 0.2273658475 | V136: 1.543850875 | W136: -0.9721314722 | X136: 0 | Y136: 1 | Z136: 0 | AA136: =_xlfn.IFS(AND(M136="大規模", R136="〇"), 1, AND(M136="大規模", S136="〇"), 4, AND(M136="大規模", T136="〇"), 7, AND(M136="中小規模", R136="〇"), 2, AND(M136="中小規模", S136="〇"), 5, AND(M136="中小規模", T136="〇"), 8, AND(M136="極小規模", R136="〇"), 3, AND(M136="極小規模", S136="〇"), 6, AND(M136="極小規模", T136="〇"), 9) -> 3
B137: 1545 | C137: 北海道 斜里町 | D137: 11418 | E137: 73713 | F137: 9980 | G137: 33484 | H137: 24265 | I137: 0.1473519467 | J137: 0.4943820225 | K137: 0.3582660308 | L137: 0.4943820225 | M137: 極小規模 | N137: 0.08310905208 | O137: -0.4412867905 | P137: 0.3216179942 | Q137: 0.3216179942 | T137: 〇 | U137: 0.2157463439 | V137: 0.3628649804 | W137: -0.3803378571 | X137: 0 | Y137: 1 | Z137: 0 | AA137: =_xlfn.IFS(AND(M137="大規模", R137="〇"), 1, AND(M137="大規模", S137="〇"), 4, AND(M137="大規模", T137="〇"), 7, AND(M137="中小規模", R137="〇"), 2, AND(M137="中小規模", S137="〇"), 5, AND(M137="中小規模", T137="〇"), 8, AND(M137="極小規模", R137="〇"), 3, AND(M137="極小規模", S137="〇"), 6, AND(M137="極小規模", T137="〇"), 9) -> 9
B138: 1546 | C138: 北海道 清里町 | D138: 3883 | E138: 40276 | F138: 8160 | G138: 3221 | H138: 4927 | I138: 0.5003679176 | J138: 0.1975104243 | K138: 0.3021216581 | L138: 0.5003679176 | M138: 極小規模 | N138: 2.068123109 | O138: 0.7798945083 | P138: -1.017140889 | Q138: 2.068123109 | R138: 〇 | U138: 1.510729354 | V138: -1.708425961 | W138: -0.5730248352 | X138: 1 | Y138: 0 | Z138: 0 | AA138: =_xlfn.IFS(AND(M138="大規模", R138="〇"), 1, AND(M138="大規模", S138="〇"), 4, AND(M138="大規模", T138="〇"), 7, AND(M138="中小規模", R138="〇"), 2, AND(M138="中小規模", S138="〇"), 5, AND(M138="中小規模", T138="〇"), 8, AND(M138="極小規模", R138="〇"), 3, AND(M138="極小規模", S138="〇"), 6, AND(M138="極小規模", T138="〇"), 9) -> 3
B139: 1547 | C139: 北海道 小清水町 | D139: 4623 | E139: 28689 | F139: 11060 | G139: 3364 | H139: 6301 | I139: 0.533655006 | J139: 0.1623160434 | K139: 0.3040289505 | L139: 0.533655006 | M139: 極小規模 | N139: 2.255296903 | O139: 0.1491516987 | P139: -0.2453170618 | Q139: 2.255296903 | R139: 〇 | U139: 1.63283775 | V139: -1.953979267 | W139: -0.5664790247 | X139: 1 | Y139: 0 | Z139: 0 | AA139: =_xlfn.IFS(AND(M139="大規模", R139="〇"), 1, AND(M139="大規模", S139="〇"), 4, AND(M139="大規模", T139="〇"), 7, AND(M139="中小規模", R139="〇"), 2, AND(M139="中小規模", S139="〇"), 5, AND(M139="中小規模", T139="〇"), 8, AND(M139="極小規模", R139="〇"), 3, AND(M139="極小規模", S139="〇"), 6, AND(M139="極小規模", T139="〇"), 9) -> 3
B140: 1549 | C140: 北海道 訓子府町 | D140: 4677 | E140: 19095 | F140: 10750 | G140: 5219 | H140: 14588 | I140: 0.3518015512 | J140: 0.1707955624 | K140: 0.4774028864 | L140: 0.4774028864 | M140: 極小規模 | N140: 1.23273222 | O140: -0.9570866349 | P140: -0.4966215657 | Q140: 1.23273222 | R140: 〇 | U140: 0.9657372397 | V140: -1.894817155 | W140: 0.02853875111 | X140: 1 | Y140: 0 | Z140: 0 | AA140: =_xlfn.IFS(AND(M140="大規模", R140="〇"), 1, AND(M140="大規模", S140="〇"), 4, AND(M140="大規模", T140="〇"), 7, AND(M140="中小規模", R140="〇"), 2, AND(M140="中小規模", S140="〇"), 5, AND(M140="中小規模", T140="〇"), 8, AND(M140="極小規模", R140="〇"), 3, AND(M140="極小規模", S140="〇"), 6, AND(M140="極小規模", T140="〇"), 9) -> 3
B141: 1550 | C141: 北海道 置戸町 | D141: 2775 | E141: 52727 | F141: 4290 | G141: 523 | H141: 5452 | I141: 0.4179249878 | J141: 0.05094982952 | K141: 0.5311251827 | L141: 0.5311251827 | M141: 極小規模 | N141: 1.604545288 | O141: -1.088232132 | P141: -0.4880844468 | Q141: 1.604545288 | R141: 〇 | U141: 1.208300563 | V141: -2.73098802 | W141: 0.2129131847 | X141: 1 | Y141: 0 | Z141: 0 | AA141: =_xlfn.IFS(AND(M141="大規模", R141="〇"), 1, AND(M141="大規模", S141="〇"), 4, AND(M141="大規模", T141="〇"), 7, AND(M141="中小規模", R141="〇"), 2, AND(M141="中小規模", S141="〇"), 5, AND(M141="中小規模", T141="〇"), 8, AND(M141="極小規模", R141="〇"), 3, AND(M141="極小規模", S141="〇"), 6, AND(M141="極小規模", T141="〇"), 9) -> 3
B142: 1552 | C142: 北海道 佐呂間町 | D142: 4875 | E142: 40494 | F142: 7840 | G142: 47524 | H142: 5554 | I142: 0.1286975935 | J142: 0.7801306675 | K142: 0.09117173906 | L142: 0.7801306675 | M142: 極小規模 | N142: -0.02178465378 | O142: -1.056634738 | P142: 0.2879443668 | Q142: 0.2879443668 | T142: 〇 | U142: 0.1473158124 | V142: 2.356550411 | W142: -1.297003044 | X142: 0 | Y142: 1 | Z142: 0 | AA142: =_xlfn.IFS(AND(M142="大規模", R142="〇"), 1, AND(M142="大規模", S142="〇"), 4, AND(M142="大規模", T142="〇"), 7, AND(M142="中小規模", R142="〇"), 2, AND(M142="中小規模", S142="〇"), 5, AND(M142="中小規模", T142="〇"), 8, AND(M142="極小規模", R142="〇"), 3, AND(M142="極小規模", S142="〇"), 6, AND(M142="極小規模", T142="〇"), 9) -> 9
B143: 1555 | C143: 北海道 遠軽町 | D143: 19241 | E143: 133245 | F143: 5830 | G143: 9972 | H143: 41562 | I143: 0.1016316854 | J143: 0.1738372498 | K143: 0.7245310648 | L143: 0.7245310648 | M143: 極小規模 | N143: -0.1739766578 | O143: -1.503218192 | P143: 0.5284075576 | Q143: 0.5284075576 | T143: 〇 | U143: 0.04802882814 | V143: -1.873595119 | W143: 0.8766804185 | X143: 0 | Y143: 0 | Z143: 1 | AA143: =_xlfn.IFS(AND(M143="大規模", R143="〇"), 1, AND(M143="大規模", S143="〇"), 4, AND(M143="大規模", T143="〇"), 7, AND(M143="中小規模", R143="〇"), 2, AND(M143="中小規模", S143="〇"), 5, AND(M143="中小規模", T143="〇"), 8, AND(M143="極小規模", R143="〇"), 3, AND(M143="極小規模", S143="〇"), 6, AND(M143="極小規模", T143="〇"), 9) -> 9
B144: 1559 | C144: 北海道 湧別町 | D144: 8270 | E144: 50579 | F144: 11950 | G144: 17435 | H144: 17420 | I144: 0.2553146031 | J144: 0.3725029377 | K144: 0.3721824591 | L144: 0.3725029377 | M144: 極小規模 | N144: =STANDARDIZE(I144,$AI$15,$AI$16) -> 0.6901846756 | O144: =STANDARDIZE(J142,$AJ$15,$AJ$16) -> 1.213942359 | P144: =STANDARDIZE(K142,$AK$15,$AK$16) -> -1.440842014 | Q144: 1.213942359 | S144: 〇 | U144: 0.6117901983 | V144: -0.4874927023 | W144: -0.3325768012 | X144: 1 | Y144: 0 | Z144: 0 | AA144: =_xlfn.IFS(AND(M144="大規模", R144="〇"), 1, AND(M144="大規模", S144="〇"), 4, AND(M144="大規模", T144="〇"), 7, AND(M144="中小規模", R144="〇"), 2, AND(M144="中小規模", S144="〇"), 5, AND(M144="中小規模", T144="〇"), 8, AND(M144="極小規模", R144="〇"), 3, AND(M144="極小規模", S144="〇"), 6, AND(M144="極小規模", T144="〇"), 9) -> 6
B145: 1560 | C145: 北海道 滝上町 | D145: 2421 | E145: 76689 | F145: 2410 | G145: 868 | H145: 7039 | I145: 0.2335950373 | J145: 0.08413298439 | K145: 0.6822719783 | L145: 0.6822719783 | M145: 極小規模 | N145: 0.5680552337 | O145: -1.045300439 | P145: 1.39410018 | Q145: 1.39410018 | T145: 〇 | U145: 0.5321154214 | V145: -2.499467159 | W145: 0.7316476168 | X145: 0 | Y145: 0 | Z145: 1 | AA145: =_xlfn.IFS(AND(M145="大規模", R145="〇"), 1, AND(M145="大規模", S145="〇"), 4, AND(M145="大規模", T145="〇"), 7, AND(M145="中小規模", R145="〇"), 2, AND(M145="中小規模", S145="〇"), 5, AND(M145="中小規模", T145="〇"), 8, AND(M145="極小規模", R145="〇"), 3, AND(M145="極小規模", S145="〇"), 6, AND(M145="極小規模", T145="〇"), 9) -> 9
B146: 1561 | C146: 北海道 興部町 | D146: 3628 | E146: 36254 | F146: 4460 | G146: 9182 | H146: 4039 | I146: 0.252248176 | J146: 0.5193145184 | K146: 0.2284373056 | L146: 0.5193145184 | M146: 極小規模 | N146: 0.6729421102 | O146: -0.3050086738 | P146: -0.1830265605 | Q146: 0.6729421102 | R146: 〇 | U146: 0.6005414975 | V146: 0.5368204996 | W146: -0.8259088648 | X146: 1 | Y146: 0 | Z146: 0 | AA146: =_xlfn.IFS(AND(M146="大規模", R146="〇"), 1, AND(M146="大規模", S146="〇"), 4, AND(M146="大規模", T146="〇"), 7, AND(M146="中小規模", R146="〇"), 2, AND(M146="中小規模", S146="〇"), 5, AND(M146="中小規模", T146="〇"), 8, AND(M146="極小規模", R146="〇"), 3, AND(M146="極小規模", S146="〇"), 6, AND(M146="極小規模", T146="〇"), 9) -> 3
B147: 1562 | C147: 北海道 西興部村 | D147: 1053 | E147: 30808 | F147: 1040 | G147: 1120 | H147: 462 | I147: 0.3966437834 | J147: 0.4271548436 | K147: 0.176201373 | L147: 0.4271548436 | M147: 極小規模 | N147: 1.484880759 | O147: -1.379567165 | P147: 1.204946784 | Q147: 1.484880759 | R147: 〇 | U147: 1.130233845 | V147: -0.1061830776 | W147: -1.005182112 | X147: 1 | Y147: 0 | Z147: 0 | AA147: =_xlfn.IFS(AND(M147="大規模", R147="〇"), 1, AND(M147="大規模", S147="〇"), 4, AND(M147="大規模", T147="〇"), 7, AND(M147="中小規模", R147="〇"), 2, AND(M147="中小規模", S147="〇"), 5, AND(M147="中小規模", T147="〇"), 8, AND(M147="極小規模", R147="〇"), 3, AND(M147="極小規模", S147="〇"), 6, AND(M147="極小規模", T147="〇"), 9) -> 3
B148: 1563 | C148: 北海道 雄武町 | D148: 4199 | E148: 63689 | F148: 4020 | G148: 12626 | H148: 4777 | I148: 0.1876487887 | J148: 0.5893665686 | K148: 0.2229846427 | L148: 0.5893665686 | M148: 極小規模 | N148: 0.309698794 | O148: 0.2420581369 | P148: -0.8264357351 | Q148: 0.309698794 | R148: 〇 | U148: 0.3635689072 | V148: 1.025577855 | W148: -0.8446223545 | X148: 0 | Y148: 1 | Z148: 0 | AA148: =_xlfn.IFS(AND(M148="大規模", R148="〇"), 1, AND(M148="大規模", S148="〇"), 4, AND(M148="大規模", T148="〇"), 7, AND(M148="中小規模", R148="〇"), 2, AND(M148="中小規模", S148="〇"), 5, AND(M148="中小規模", T148="〇"), 8, AND(M148="極小規模", R148="〇"), 3, AND(M148="極小規模", S148="〇"), 6, AND(M148="極小規模", T148="〇"), 9) -> 3
B149: 1564 | C149: 北海道 大空町 | D149: 6775 | E149: 34366 | F149: 14580 | G149: 1908 | H149: 11793 | I149: 0.5155404689 | J149: 0.06746578975 | K149: 0.4169937414 | L149: 0.5155404689 | M149: 極小規模 | N149: 2.153438591 | O149: -0.101358228 | P149: -1.060245901 | Q149: 2.153438591 | R149: 〇 | U149: 1.566387448 | V149: -2.615755175 | W149: -0.1787848869 | X149: 1 | Y149: 0 | Z149: 0 | AA149: =_xlfn.IFS(AND(M149="大規模", R149="〇"), 1, AND(M149="大規模", S149="〇"), 4, AND(M149="大規模", T149="〇"), 7, AND(M149="中小規模", R149="〇"), 2, AND(M149="中小規模", S149="〇"), 5, AND(M149="中小規模", T149="〇"), 8, AND(M149="極小規模", R149="〇"), 3, AND(M149="極小規模", S149="〇"), 6, AND(M149="極小規模", T149="〇"), 9) -> 3
B150: 1571 | C150: 北海道 豊浦町 | D150: 3821 | E150: 23357 | F150: 1990 | G150: 110 | H150: 3313 | I150: 0.367633475 | J150: 0.02032144837 | K150: 0.6120450767 | L150: 0.6120450767 | M150: 極小規模 | N150: 1.321755363 | O150: 0.5030944361 | P150: -0.8508420769 | Q150: 1.321755363 | R150: 〇 | U150: 1.023814137 | V150: -2.944684072 | W150: 0.4906295272 | X150: 1 | Y150: 0 | Z150: 0 | AA150: =_xlfn.IFS(AND(M150="大規模", R150="〇"), 1, AND(M150="大規模", S150="〇"), 4, AND(M150="大規模", T150="〇"), 7, AND(M150="中小規模", R150="〇"), 2, AND(M150="中小規模", S150="〇"), 5, AND(M150="中小規模", T150="〇"), 8, AND(M150="極小規模", R150="〇"), 3, AND(M150="極小規模", S150="〇"), 6, AND(M150="極小規模", T150="〇"), 9) -> 3
B151: 1575 | C151: 北海道 壮瞥町 | D151: 2743 | E151: 20501 | F151: 1300 | G151: 430 | H151: 3666 | I151: 0.2409191994 | J151: 0.07968865827 | K151: 0.6793921423 | L151: 0.6793921423 | M151: 極小規模 | N151: 0.6092391062 | O151: -1.441674453 | P151: 0.01755056789 | Q151: 0.6092391062 | R151: 〇 | U151: 0.5589829466 | V151: -2.530475488 | W151: 0.7217640459 | X151: 0 | Y151: 0 | Z151: 1 | AA151: =_xlfn.IFS(AND(M151="大規模", R151="〇"), 1, AND(M151="大規模", S151="〇"), 4, AND(M151="大規模", T151="〇"), 7, AND(M151="中小規模", R151="〇"), 2, AND(M151="中小規模", S151="〇"), 5, AND(M151="中小規模", T151="〇"), 8, AND(M151="極小規模", R151="〇"), 3, AND(M151="極小規模", S151="〇"), 6, AND(M151="極小規模", T151="〇"), 9) -> 3
B152: 1578 | C152: 北海道 白老町 | D152: 16212 | E152: 42564 | F152: 4670 | G152: 65486 | H152: 19760 | I152: 0.05193736376 | J152: 0.7283019707 | K152: 0.2197606655 | L152: 0.7283019707 | M152: 極小規模 | N152: -0.4534085677 | O152: -1.617349317 | P152: 0.8906083061 | Q152: 0.8906083061 | T152: 〇 | U152: -0.1342668964 | V152: 1.994938486 | W152: -0.8556870149 | X152: 0 | Y152: 1 | Z152: 0 | AA152: =_xlfn.IFS(AND(M152="大規模", R152="〇"), 1, AND(M152="大規模", S152="〇"), 4, AND(M152="大規模", T152="〇"), 7, AND(M152="中小規模", R152="〇"), 2, AND(M152="中小規模", S152="〇"), 5, AND(M152="中小規模", T152="〇"), 8, AND(M152="極小規模", R152="〇"), 3, AND(M152="極小規模", S152="〇"), 6, AND(M152="極小規模", T152="〇"), 9) -> 9
B153: 1581 | C153: 北海道 厚真町 | D153: 4432 | E153: 40461 | F153: 6620 | G153: 9591 | H153: 6916 | I153: 0.2862455139 | J153: 0.4147100791 | K153: 0.299044407 | L153: 0.4147100791 | M153: 極小規模 | N153: 0.864109647 | O153: -1.396128143 | P153: 1.192056521 | Q153: 1.192056521 | T153: 〇 | U153: 0.7252553309 | V153: -0.1930109458 | W153: -0.5835859331 | X153: 1 | Y153: 0 | Z153: 0 | AA153: =_xlfn.IFS(AND(M153="大規模", R153="〇"), 1, AND(M153="大規模", S153="〇"), 4, AND(M153="大規模", T153="〇"), 7, AND(M153="中小規模", R153="〇"), 2, AND(M153="中小規模", S153="〇"), 5, AND(M153="中小規模", T153="〇"), 8, AND(M153="極小規模", R153="〇"), 3, AND(M153="極小規模", S153="〇"), 6, AND(M153="極小規模", T153="〇"), 9) -> 9
B154: 1584 | C154: 北海道 洞爺湖町 | D154: 8442 | E154: 18087 | F154: 3120 | G154: 6898 | H154: 9802 | I154: 0.1574167508 | J154: 0.3480322906 | K154: 0.4945509586 | L154: 0.4945509586 | M154: 極小規模 | N154: 0.1397035949 | O154: 1.020812091 | P154: -0.8652727302 | Q154: 1.020812091 | S154: 〇 | U154: 0.2526674786 | V154: -0.6582258745 | W154: 0.08739077948 | X154: 1 | Y154: 0 | Z154: 0 | AA154: =_xlfn.IFS(AND(M154="大規模", R154="〇"), 1, AND(M154="大規模", S154="〇"), 4, AND(M154="大規模", T154="〇"), 7, AND(M154="中小規模", R154="〇"), 2, AND(M154="中小規模", S154="〇"), 5, AND(M154="中小規模", T154="〇"), 8, AND(M154="極小規模", R154="〇"), 3, AND(M154="極小規模", S154="〇"), 6, AND(M154="極小規模", T154="〇"), 9) -> 6
B155: 1585 | C155: 北海道 安平町 | D155: 7340 | E155: 23716 | F155: 8400 | G155: 20241 | H155: 6874 | I155: 0.2365197804 | J155: 0.5699281994 | K155: 0.1935520203 | L155: 0.5699281994 | M155: 極小規模 | N155: 0.5845011075 | O155: -0.1477313928 | P155: -0.5103954673 | Q155: 0.5845011075 | R155: 〇 | U155: 0.5428443767 | V155: 0.8899551865 | W155: -0.9456348477 | X155: 0 | Y155: 1 | Z155: 0 | AA155: =_xlfn.IFS(AND(M155="大規模", R155="〇"), 1, AND(M155="大規模", S155="〇"), 4, AND(M155="大規模", T155="〇"), 7, AND(M155="中小規模", R155="〇"), 2, AND(M155="中小規模", S155="〇"), 5, AND(M155="中小規模", T155="〇"), 8, AND(M155="極小規模", R155="〇"), 3, AND(M155="極小規模", S155="〇"), 6, AND(M155="極小規模", T155="〇"), 9) -> 3
B156: 1586 | C156: 北海道 むかわ町 | D156: 7651 | E156: 71136 | F156: 6150 | G156: 2199 | H156: 10607 | I156: 0.3244355349 | J156: 0.1160054864 | K156: 0.5595589787 | L156: 0.5595589787 | M156: 極小規模 | N156: 1.078852703 | O156: -0.3961941158 | P156: 0.364699838 | Q156: 1.078852703 | R156: 〇 | U156: 0.8653493563 | V156: -2.277090801 | W156: 0.3104977149 | X156: 1 | Y156: 0 | Z156: 0 | AA156: =_xlfn.IFS(AND(M156="大規模", R156="〇"), 1, AND(M156="大規模", S156="〇"), 4, AND(M156="大規模", T156="〇"), 7, AND(M156="中小規模", R156="〇"), 2, AND(M156="中小規模", S156="〇"), 5, AND(M156="中小規模", T156="〇"), 8, AND(M156="極小規模", R156="〇"), 3, AND(M156="極小規模", S156="〇"), 6, AND(M156="極小規模", T156="〇"), 9) -> 3
B157: 1601 | C157: 北海道 日高町 | D157: 11279 | E157: 99214 | F157: 11140 | G157: 12026 | H157: 19059 | I157: 0.2638247484 | J157: 0.2848075784 | K157: 0.4513676732 | L157: 0.4513676732 | M157: 極小規模 | N157: 0.7380373488 | O157: 0.4306608675 | P157: -0.9825836961 | Q157: 0.7380373488 | R157: 〇 | U157: 0.6430083142 | V157: -1.099348483 | W157: -0.06081386462 | X157: 1 | Y157: 0 | Z157: 0 | AA157: =_xlfn.IFS(AND(M157="大規模", R157="〇"), 1, AND(M157="大規模", S157="〇"), 4, AND(M157="大規模", T157="〇"), 7, AND(M157="中小規模", R157="〇"), 2, AND(M157="中小規模", S157="〇"), 5, AND(M157="中小規模", T157="〇"), 8, AND(M157="極小規模", R157="〇"), 3, AND(M157="極小規模", S157="〇"), 6, AND(M157="極小規模", T157="〇"), 9) -> 3
B158: 1602 | C158: 北海道 平取町 | D158: 4776 | E158: 74309 | F158: 6210 | G158: 480 | H158: 5551 | I158: 0.5073114942 | J158: 0.03921248264 | K158: 0.4534760232 | L158: 0.5073114942 | M158: 極小規模 | N158: 2.107166943 | O158: -1.260800049 | P158: 0.6556783892 | Q158: 2.107166943 | R158: 〇 | U158: 1.536200762 | V158: -2.812880193 | W158: -0.05357802646 | X158: 1 | Y158: 0 | Z158: 0 | AA158: =_xlfn.IFS(AND(M158="大規模", R158="〇"), 1, AND(M158="大規模", S158="〇"), 4, AND(M158="大規模", T158="〇"), 7, AND(M158="中小規模", R158="〇"), 2, AND(M158="中小規模", S158="〇"), 5, AND(M158="中小規模", T158="〇"), 8, AND(M158="極小規模", R158="〇"), 3, AND(M158="極小規模", S158="〇"), 6, AND(M158="極小規模", T158="〇"), 9) -> 3
B159: 1604 | C159: 北海道 新冠町 | D159: 5309 | E159: 58581 | F159: 7710 | G159: 2053 | H159: 3263 | I159: 0.5918931368 | J159: 0.1576078612 | K159: 0.250499002 | L159: 0.5918931368 | M159: 極小規模 | N159: 2.582770779 | O159: -0.6317895741 | P159: 0.1714096897 | Q159: 2.582770779 | R159: 〇 | U159: 1.846475081 | V159: -1.986828537 | W159: -0.7501933228 | X159: 1 | Y159: 0 | Z159: 0 | AA159: =_xlfn.IFS(AND(M159="大規模", R159="〇"), 1, AND(M159="大規模", S159="〇"), 4, AND(M159="大規模", T159="〇"), 7, AND(M159="中小規模", R159="〇"), 2, AND(M159="中小規模", S159="〇"), 5, AND(M159="中小規模", T159="〇"), 8, AND(M159="極小規模", R159="〇"), 3, AND(M159="極小規模", S159="〇"), 6, AND(M159="極小規模", T159="〇"), 9) -> 3
B160: 1607 | C160: 北海道 浦河町 | D160: 12074 | E160: 69426 | F160: 7160 | G160: 3183 | H160: 35131 | I160: 0.1574526103 | J160: 0.06999604169 | K160: 0.772551348 | L160: 0.772551348 | M160: 極小規模 | N160: 0.1399052335 | O160: -1.546955293 | P160: 0.1808467504 | Q160: 0.1808467504 | T160: 〇 | U160: 0.2527990236 | V160: -2.598101455 | W160: 1.041485595 | X160: 0 | Y160: 0 | Z160: 1 | AA160: =_xlfn.IFS(AND(M160="大規模", R160="〇"), 1, AND(M160="大規模", S160="〇"), 4, AND(M160="大規模", T160="〇"), 7, AND(M160="中小規模", R160="〇"), 2, AND(M160="中小規模", S160="〇"), 5, AND(M160="中小規模", T160="〇"), 8, AND(M160="極小規模", R160="〇"), 3, AND(M160="極小規模", S160="〇"), 6, AND(M160="極小規模", T160="〇"), 9) -> 9
B161: 1608 | C161: 北海道 様似町 | D161: 4043 | E161: 36430 | F161: 780 | G161: 5847 | H161: 5044 | I161: 0.06683231942 | J161: 0.5009853483 | K161: 0.4321823323 | L161: 0.5009853483 | M161: 極小規模 | N161: -0.3696540104 | O161: -1.105776322 | P161: -0.7276866815 | Q161: -0.3696540104 | R161: 〇 | U161: -0.07962711774 | V161: 0.4089367806 | W161: -0.1266577806 | X161: 0 | Y161: 1 | Z161: 0 | AA161: =_xlfn.IFS(AND(M161="大規模", R161="〇"), 1, AND(M161="大規模", S161="〇"), 4, AND(M161="大規模", T161="〇"), 7, AND(M161="中小規模", R161="〇"), 2, AND(M161="中小規模", S161="〇"), 5, AND(M161="中小規模", T161="〇"), 8, AND(M161="極小規模", R161="〇"), 3, AND(M161="極小規模", S161="〇"), 6, AND(M161="極小規模", T161="〇"), 9) -> 3
B162: 1609 | C162: 北海道 えりも町 | D162: 4374 | E162: 28400 | F162: 780 | G162: 3255 | H162: 5187 | I162: 0.08458035133 | J162: 0.3529603123 | K162: 0.5624593364 | L162: 0.5624593364 | M162: 極小規模 | N162: -0.2698565629 | O162: -1.432245926 | P162: 1.609040928 | Q162: 1.609040928 | T162: 〇 | U162: -0.01452128208 | V162: -0.6238427717 | W162: 0.3204517161 | X162: 0 | Y162: 0 | Z162: 1 | AA162: =_xlfn.IFS(AND(M162="大規模", R162="〇"), 1, AND(M162="大規模", S162="〇"), 4, AND(M162="大規模", T162="〇"), 7, AND(M162="中小規模", R162="〇"), 2, AND(M162="中小規模", S162="〇"), 5, AND(M162="中小規模", T162="〇"), 8, AND(M162="極小規模", R162="〇"), 3, AND(M162="極小規模", S162="〇"), 6, AND(M162="極小規模", T162="〇"), 9) -> 9
B163: 1610 | C163: 北海道 新ひだか町 | D163: 21517 | E163: 114755 | F163: 13120 | G163: 3294 | H163: 40539 | I163: 0.230365389 | J163: 0.05783716398 | K163: 0.711797447 | L163: 0.711797447 | M163: 極小規模 | N163: 0.5498948732 | O163: 0.1737577985 | P163: 0.08553532069 | Q163: 0.5498948732 | R163: 〇 | U163: 0.5202679696 | V163: -2.682934674 | W163: 0.8329787578 | X163: 0 | Y163: 0 | Z163: 1 | AA163: =_xlfn.IFS(AND(M163="大規模", R163="〇"), 1, AND(M163="大規模", S163="〇"), 4, AND(M163="大規模", T163="〇"), 7, AND(M163="中小規模", R163="〇"), 2, AND(M163="中小規模", S163="〇"), 5, AND(M163="中小規模", T163="〇"), 8, AND(M163="極小規模", R163="〇"), 3, AND(M163="極小規模", S163="〇"), 6, AND(M163="極小規模", T163="〇"), 9) -> 3
B164: 1631 | C164: 北海道 音更町 | D164: 43576 | E164: 46602 | F164: 21310 | G164: 73828 | H164: 65743 | I164: 0.1324581523 | J164: 0.4588981918 | K164: 0.4086436559 | L164: 0.4588981918 | M164: 極小規模 | N164: -0.0006389756196 | O164: -0.377830734 | P164: 0.6686605086 | Q164: 0.6686605086 | T164: 〇 | U164: 0.161110825 | V164: 0.1152921662 | W164: -0.2074423046 | X164: 1 | Y164: 0 | Z164: 0 | AA164: =_xlfn.IFS(AND(M164="大規模", R164="〇"), 1, AND(M164="大規模", S164="〇"), 4, AND(M164="大規模", T164="〇"), 7, AND(M164="中小規模", R164="〇"), 2, AND(M164="中小規模", S164="〇"), 5, AND(M164="中小規模", T164="〇"), 8, AND(M164="極小規模", R164="〇"), 3, AND(M164="極小規模", S164="〇"), 6, AND(M164="極小規模", T164="〇"), 9) -> 9
B165: 1632 | C165: 北海道 士幌町 | D165: 5848 | E165: 25919 | F165: 20520 | G165: 22019 | H165: 3471 | I165: 0.4459900022 | J165: 0.4785698761 | K165: 0.07544012171 | L165: 0.4785698761 | M165: 極小規模 | N165: 1.762355282 | O165: -1.477553786 | P165: 1.337103987 | Q165: 1.762355282 | R165: 〇 | U165: 1.31125261 | V165: 0.2525426871 | W165: -1.350993813 | X165: 1 | Y165: 0 | Z165: 0 | AA165: =_xlfn.IFS(AND(M165="大規模", R165="〇"), 1, AND(M165="大規模", S165="〇"), 4, AND(M165="大規模", T165="〇"), 7, AND(M165="中小規模", R165="〇"), 2, AND(M165="中小規模", S165="〇"), 5, AND(M165="中小規模", T165="〇"), 8, AND(M165="極小規模", R165="〇"), 3, AND(M165="極小規模", S165="〇"), 6, AND(M165="極小規模", T165="〇"), 9) -> 3
B166: 1633 | C166: 北海道 上士幌町 | D166: 4778 | E166: 69423 | F166: 10210 | G166: 1812 | H166: 9847 | I166: 0.4668709132 | J166: 0.08285701221 | K166: 0.4502720746 | L166: 0.4668709132 | M166: 極小規模 | N166: 1.879768955 | O166: 0.01692761963 | P166: -0.01982475569 | Q166: 1.879768955 | R166: 〇 | U166: 1.387850914 | V166: -2.508369693 | W166: -0.06457394892 | X166: 1 | Y166: 0 | Z166: 0 | AA166: =_xlfn.IFS(AND(M166="大規模", R166="〇"), 1, AND(M166="大規模", S166="〇"), 4, AND(M166="大規模", T166="〇"), 7, AND(M166="中小規模", R166="〇"), 2, AND(M166="中小規模", S166="〇"), 5, AND(M166="中小規模", T166="〇"), 8, AND(M166="極小規模", R166="〇"), 3, AND(M166="極小規模", S166="〇"), 6, AND(M166="極小規模", T166="〇"), 9) -> 3
B167: 1634 | C167: 北海道 鹿追町 | D167: 5266 | E167: 40288 | F167: 13070 | G167: 769 | H167: 4085 | I167: 0.729189913 | J167: 0.04290336978 | K167: 0.2279067173 | L167: 0.729189913 | M167: 極小規模 | N167: 3.354792594 | O167: 0.09023059431 | P167: -1.511257375 | Q167: 3.354792594 | R167: 〇 | U167: 2.350126494 | V167: -2.787128652 | W167: -0.8277298392 | X167: 1 | Y167: 0 | Z167: 0 | AA167: =_xlfn.IFS(AND(M167="大規模", R167="〇"), 1, AND(M167="大規模", S167="〇"), 4, AND(M167="大規模", T167="〇"), 7, AND(M167="中小規模", R167="〇"), 2, AND(M167="中小規模", S167="〇"), 5, AND(M167="中小規模", T167="〇"), 8, AND(M167="極小規模", R167="〇"), 3, AND(M167="極小規模", S167="〇"), 6, AND(M167="極小規模", T167="〇"), 9) -> 3
B168: 1635 | C168: 北海道 新得町 | D168: 5817 | E168: 106383 | F168: 7640 | G168: 3812 | H168: 7563 | I168: 0.4017880621 | J168: 0.2004733105 | K168: 0.3977386274 | L168: 0.4017880621 | M168: 極小規模 | N168: 1.513807115 | O168: -1.384321845 | P168: 0.1665057458 | Q168: 1.513807115 | R168: 〇 | U168: 1.149104814 | V168: -1.687753727 | W168: -0.2448682635 | X168: 1 | Y168: 0 | Z168: 0 | AA168: =_xlfn.IFS(AND(M168="大規模", R168="〇"), 1, AND(M168="大規模", S168="〇"), 4, AND(M168="大規模", T168="〇"), 7, AND(M168="中小規模", R168="〇"), 2, AND(M168="中小規模", S168="〇"), 5, AND(M168="中小規模", T168="〇"), 8, AND(M168="極小規模", R168="〇"), 3, AND(M168="極小規模", S168="〇"), 6, AND(M168="極小規模", T168="〇"), 9) -> 3
B169: 1636 | C169: 北海道 清水町 | D169: 9094 | E169: 40225 | F169: 18280 | G169: 26322 | H169: 16877 | I169: 0.2973373022 | J169: 0.4281461963 | K169: 0.2745165016 | L169: 0.4281461963 | M169: 極小規模 | N169: 0.9264789375 | O169: -1.533201869 | P169: -0.8288106701 | Q169: 0.9264789375 | R169: 〇 | U169: 0.7659437941 | V169: -0.09926635086 | W169: -0.667765482 | X169: 1 | Y169: 0 | Z169: 0 | AA169: =_xlfn.IFS(AND(M169="大規模", R169="〇"), 1, AND(M169="大規模", S169="〇"), 4, AND(M169="大規模", T169="〇"), 7, AND(M169="中小規模", R169="〇"), 2, AND(M169="中小規模", S169="〇"), 5, AND(M169="中小規模", T169="〇"), 8, AND(M169="極小規模", R169="〇"), 3, AND(M169="極小規模", S169="〇"), 6, AND(M169="極小規模", T169="〇"), 9) -> 3
B170: 1637 | C170: 北海道 芽室町 | D170: 18048 | E170: 51376 | F170: 22620 | G170: 73193 | H170: 79498 | I170: 0.1290278419 | J170: 0.4175037505 | K170: 0.4534684076 | L170: 0.4534684076 | M170: 極小規模 | N170: -0.01992766176 | O170: -0.9460459751 | P170: -0.06863610824 | Q170: -0.01992766176 | R170: 〇 | U170: 0.1485272765 | V170: -0.1735193333 | W170: -0.05360416323 | X170: 1 | Y170: 0 | Z170: 0 | AA170: =_xlfn.IFS(AND(M170="大規模", R170="〇"), 1, AND(M170="大規模", S170="〇"), 4, AND(M170="大規模", T170="〇"), 7, AND(M170="中小規模", R170="〇"), 2, AND(M170="中小規模", S170="〇"), 5, AND(M170="中小規模", T170="〇"), 8, AND(M170="極小規模", R170="〇"), 3, AND(M170="極小規模", S170="〇"), 6, AND(M170="極小規模", T170="〇"), 9) -> 3
B171: 1638 | C171: 北海道 中札内村 | D171: 3884 | E171: 29258 | F171: 8740 | G171: 14583 | H171: 9308 | I171: 0.2678434617 | J171: 0.4469063161 | K171: 0.2852502222 | L171: 0.4469063161 | M171: 極小規模 | N171: 0.7606346339 | O171: -0.09766413165 | P171: -0.620183373 | Q171: 0.7606346339 | R171: 〇 | U171: 0.6577503258 | V171: 0.03162413005 | W171: -0.6309274502 | X171: 1 | Y171: 0 | Z171: 0 | AA171: =_xlfn.IFS(AND(M171="大規模", R171="〇"), 1, AND(M171="大規模", S171="〇"), 4, AND(M171="大規模", T171="〇"), 7, AND(M171="中小規模", R171="〇"), 2, AND(M171="中小規模", S171="〇"), 5, AND(M171="中小規模", T171="〇"), 8, AND(M171="極小規模", R171="〇"), 3, AND(M171="極小規模", S171="〇"), 6, AND(M171="極小規模", T171="〇"), 9) -> 3
B172: 1639 | C172: 北海道 更別村 | D172: 3080 | E172: 17690 | F172: 9270 | H172: 3026 | I172: 0.7539037085 | J172: 0 | K172: 0.2460962915 | L172: 0.7539037085 | M172: 極小規模 | N172: 3.493758634 | O172: -0.1373212816 | P172: 0.1808126626 | Q172: 3.493758634 | R172: 〇 | U172: 2.440785127 | V172: -3.086468036 | W172: -0.7653033854 | AA172: =_xlfn.IFS(AND(M172="大規模", R172="〇"), 1, AND(M172="大規模", S172="〇"), 4, AND(M172="大規模", T172="〇"), 7, AND(M172="中小規模", R172="〇"), 2, AND(M172="中小規模", S172="〇"), 5, AND(M172="中小規模", T172="〇"), 8, AND(M172="極小規模", R172="〇"), 3, AND(M172="極小規模", S172="〇"), 6, AND(M172="極小規模", T172="〇"), 9) -> 3
B173: 1641 | C173: 北海道 大樹町 | D173: 5420 | E173: 81568 | F173: 10630 | G173: 22812 | H173: 14860 | I173: 0.220073703 | J173: 0.4722785806 | K173: 0.3076477165 | L173: 0.4722785806 | M173: 極小規模 | N173: 0.4920245694 | O173: -0.02775793713 | P173: -0.5721388015 | Q173: 0.4920245694 | R173: 〇 | U173: 0.4825145543 | V173: 0.208647941 | W173: -0.554059453 | X173: 1 | Y173: 0 | Z173: 0 | AA173: =_xlfn.IFS(AND(M173="大規模", R173="〇"), 1, AND(M173="大規模", S173="〇"), 4, AND(M173="大規模", T173="〇"), 7, AND(M173="中小規模", R173="〇"), 2, AND(M173="中小規模", S173="〇"), 5, AND(M173="中小規模", T173="〇"), 8, AND(M173="極小規模", R173="〇"), 3, AND(M173="極小規模", S173="〇"), 6, AND(M173="極小規模", T173="〇"), 9) -> 3
B174: 1642 | C174: 北海道 広尾町 | D174: 6387 | E174: 59654 | F174: 4540 | G174: 8901 | H174: 8348 | I174: 0.2083620175 | J174: 0.4085088806 | K174: 0.3831291018 | L174: 0.4085088806 | M174: 極小規模 | N174: 0.426169588 | O174: -1.69307352 | P174: -0.7473933935 | Q174: 0.426169588 | R174: 〇 | U174: 0.4395520968 | V174: -0.2362770796 | W174: -0.2950080227 | X174: 1 | Y174: 0 | Z174: 0 | AA174: =_xlfn.IFS(AND(M174="大規模", R174="〇"), 1, AND(M174="大規模", S174="〇"), 4, AND(M174="大規模", T174="〇"), 7, AND(M174="中小規模", R174="〇"), 2, AND(M174="中小規模", S174="〇"), 5, AND(M174="中小規模", T174="〇"), 8, AND(M174="極小規模", R174="〇"), 3, AND(M174="極小規模", S174="〇"), 6, AND(M174="極小規模", T174="〇"), 9) -> 3
B175: 1643 | C175: 北海道 幕別町 | D175: 25766 | E175: 47764 | F175: 21890 | G175: 16952 | H175: 46240 | I175: 0.2572812111 | J175: 0.1992430831 | K175: 0.5434757058 | L175: 0.5434757058 | M175: 極小規模 | N175: 0.7012429412 | O175: 0.06678721908 | P175: -0.4718867029 | Q175: 0.7012429412 | R175: 〇 | U175: 0.6190043871 | V175: -1.696337097 | W175: 0.2553000681 | X175: 1 | Y175: 0 | Z175: 0 | AA175: =_xlfn.IFS(AND(M175="大規模", R175="〇"), 1, AND(M175="大規模", S175="〇"), 4, AND(M175="大規模", T175="〇"), 7, AND(M175="中小規模", R175="〇"), 2, AND(M175="中小規模", S175="〇"), 5, AND(M175="中小規模", T175="〇"), 8, AND(M175="極小規模", R175="〇"), 3, AND(M175="極小規模", S175="〇"), 6, AND(M175="極小規模", T175="〇"), 9) -> 3
B176: 1644 | C176: 北海道 池田町 | D176: 6294 | E176: 37179 | F176: 6740 | G176: 13579 | H176: 7582 | I176: 0.2415684026 | J176: 0.4866850651 | K176: 0.2717465324 | L176: 0.4866850651 | M176: 極小規模 | N176: =STANDARDIZE(I176,$AI$15,$AI$16) -> 0.6128895852 | O176: =STANDARDIZE(J174,$AJ$15,$AJ$16) -> -0.1708390378 | P176: =STANDARDIZE(K174,$AK$15,$AK$16) -> -0.134028941 | Q176: 0.6128895852 | R176: 〇 | U176: 0.5613644452 | V176: 0.3091628469 | W176: -0.6772719911 | X176: 1 | Y176: 0 | Z176: 0 | AA176: =_xlfn.IFS(AND(M176="大規模", R176="〇"), 1, AND(M176="大規模", S176="〇"), 4, AND(M176="大規模", T176="〇"), 7, AND(M176="中小規模", R176="〇"), 2, AND(M176="中小規模", S176="〇"), 5, AND(M176="中小規模", T176="〇"), 8, AND(M176="極小規模", R176="〇"), 3, AND(M176="極小規模", S176="〇"), 6, AND(M176="極小規模", T176="〇"), 9) -> 3
B177: 1645 | C177: 北海道 豊頃町 | D177: 3022 | E177: 53671 | F177: 8800 | G177: 579 | H177: 4753 | I177: 0.6227002547 | J177: 0.04097084631 | K177: 0.336328899 | L177: 0.6227002547 | M177: 極小規模 | N177: 2.755999661 | O177: -0.9506301951 | P177: 0.5836890032 | Q177: 2.755999661 | R177: 〇 | U177: 1.959486099 | V177: -2.800611984 | W177: -0.4556258947 | X177: 1 | Y177: 0 | Z177: 0 | AA177: =_xlfn.IFS(AND(M177="大規模", R177="〇"), 1, AND(M177="大規模", S177="〇"), 4, AND(M177="大規模", T177="〇"), 7, AND(M177="中小規模", R177="〇"), 2, AND(M177="中小規模", S177="〇"), 5, AND(M177="中小規模", T177="〇"), 8, AND(M177="極小規模", R177="〇"), 3, AND(M177="極小規模", S177="〇"), 6, AND(M177="極小規模", T177="〇"), 9) -> 3
B178: 1646 | C178: 北海道 本別町 | D178: 6618 | E178: 39191 | F178: 9520 | G178: 31702 | H178: 15107 | I178: 0.1690070834 | J178: 0.5628006888 | K178: 0.2681922278 | L178: 0.5628006888 | M178: 極小規模 | N178: 0.2048762077 | O178: 0.1204703786 | P178: -0.6325818682 | Q178: 0.2048762077 | R178: 〇 | U178: 0.2951847727 | V178: 0.8402261181 | W178: -0.6894703322 | X178: 0 | Y178: 1 | Z178: 0 | AA178: =_xlfn.IFS(AND(M178="大規模", R178="〇"), 1, AND(M178="大規模", S178="〇"), 4, AND(M178="大規模", T178="〇"), 7, AND(M178="中小規模", R178="〇"), 2, AND(M178="中小規模", S178="〇"), 5, AND(M178="中小規模", T178="〇"), 8, AND(M178="極小規模", R178="〇"), 3, AND(M178="極小規模", S178="〇"), 6, AND(M178="極小規模", T178="〇"), 9) -> 3
B179: 1647 | C179: 北海道 足寄町 | D179: 6563 | E179: 140804 | F179: 8880 | G179: 3362 | H179: 11603 | I179: 0.3724051164 | J179: 0.1409939191 | K179: 0.4866009646 | L179: 0.4866009646 | M179: 極小規模 | N179: 1.348586374 | O179: -1.540403069 | P179: -0.3435085593 | Q179: 1.348586374 | R179: 〇 | U179: 1.041318146 | V179: -2.102745008 | W179: 0.06010647193 | X179: 1 | Y179: 0 | Z179: 0 | AA179: =_xlfn.IFS(AND(M179="大規模", R179="〇"), 1, AND(M179="大規模", S179="〇"), 4, AND(M179="大規模", T179="〇"), 7, AND(M179="中小規模", R179="〇"), 2, AND(M179="中小規模", S179="〇"), 5, AND(M179="中小規模", T179="〇"), 8, AND(M179="極小規模", R179="〇"), 3, AND(M179="極小規模", S179="〇"), 6, AND(M179="極小規模", T179="〇"), 9) -> 3
B180: 1648 | C180: 北海道 陸別町 | D180: 2264 | E180: 60890 | F180: 3370 | H180: 3708 | I180: 0.4761231986 | J180: 0 | K180: 0.5238768014 | L180: 0.5238768014 | M180: 極小規模 | N180: 1.931794694 | O180: 0.4041014882 | P180: -0.6484910806 | Q180: 1.931794694 | R180: 〇 | U180: 1.421791454 | V180: -3.086468036 | W180: 0.1880368058 | AA180: =_xlfn.IFS(AND(M180="大規模", R180="〇"), 1, AND(M180="大規模", S180="〇"), 4, AND(M180="大規模", T180="〇"), 7, AND(M180="中小規模", R180="〇"), 2, AND(M180="中小規模", S180="〇"), 5, AND(M180="中小規模", T180="〇"), 8, AND(M180="極小規模", R180="〇"), 3, AND(M180="極小規模", S180="〇"), 6, AND(M180="極小規模", T180="〇"), 9) -> 3
B181: 1649 | C181: 北海道 浦幌町 | D181: 4387 | E181: 72985 | F181: 8090 | G181: 17056 | H181: 3106 | I181: 0.2863514087 | J181: 0.6037094719 | K181: 0.1099391194 | L181: 0.6037094719 | M181: 極小規模 | N181: 0.8647050953 | O181: -1.167685173 | P181: 0.32911534 | Q181: 0.8647050953 | R181: 〇 | U181: 0.7256437893 | V181: 1.125649151 | W181: -1.232593565 | X181: 0 | Y181: 1 | Z181: 0 | AA181: =_xlfn.IFS(AND(M181="大規模", R181="〇"), 1, AND(M181="大規模", S181="〇"), 4, AND(M181="大規模", T181="〇"), 7, AND(M181="中小規模", R181="〇"), 2, AND(M181="中小規模", S181="〇"), 5, AND(M181="中小規模", T181="〇"), 8, AND(M181="極小規模", R181="〇"), 3, AND(M181="極小規模", S181="〇"), 6, AND(M181="極小規模", T181="〇"), 9) -> 3
B182: 1661 | C182: 北海道 釧路町 | D182: 19105 | E182: 25266 | F182: 940 | G182: 11369 | H182: 66185 | I182: 0.01197543761 | J182: 0.144839096 | K182: 0.8431854664 | L182: 0.8431854664 | M182: 極小規模 | N182: -0.6781150731 | O182: -1.69307352 | P182: 0.495963507 | Q182: 0.495963507 | T182: 〇 | U182: -0.2808608743 | V182: -2.075916978 | W182: 1.283901249 | X182: 0 | Y182: 0 | Z182: 1 | AA182: =_xlfn.IFS(AND(M182="大規模", R182="〇"), 1, AND(M182="大規模", S182="〇"), 4, AND(M182="大規模", T182="〇"), 7, AND(M182="中小規模", R182="〇"), 2, AND(M182="中小規模", S182="〇"), 5, AND(M182="中小規模", T182="〇"), 8, AND(M182="極小規模", R182="〇"), 3, AND(M182="極小規模", S182="〇"), 6, AND(M182="極小規模", T182="〇"), 9) -> 9
B183: 1662 | C183: 北海道 厚岸町 | D183: 8892 | E183: 73927 | F183: 5850 | G183: 18008 | H183: 23413 | I183: 0.1237545218 | J183: 0.380952381 | K183: 0.4952930972 | L183: 0.4952930972 | M183: 極小規模 | N183: -0.04957961943 | O183: 0.5565406717 | P183: -1.356838453 | Q183: 0.5565406717 | S183: 〇 | U183: 0.1291829392 | V183: -0.4285404302 | W183: 0.08993779249 | X183: 1 | Y183: 0 | Z183: 0 | AA183: =_xlfn.IFS(AND(M183="大規模", R183="〇"), 1, AND(M183="大規模", S183="〇"), 4, AND(M183="大規模", T183="〇"), 7, AND(M183="中小規模", R183="〇"), 2, AND(M183="中小規模", S183="〇"), 5, AND(M183="中小規模", T183="〇"), 8, AND(M183="極小規模", R183="〇"), 3, AND(M183="極小規模", S183="〇"), 6, AND(M183="極小規模", T183="〇"), 9) -> 6
B184: 1663 | C184: 北海道 浜中町 | D184: 5507 | E184: 42363 | F184: 8690 | G184: 42867 | H184: 10912 | I184: 0.1391089981 | J184: 0.6862123613 | K184: 0.1746786406 | L184: 0.6862123613 | M184: 極小規模 | N184: 0.03675882908 | O184: -1.153356817 | P184: 1.925202125 | Q184: 1.925202125 | T184: 〇 | U184: 0.1855083962 | V184: 1.701276758 | W184: -1.010408116 | X184: 0 | Y184: 1 | Z184: 0 | AA184: =_xlfn.IFS(AND(M184="大規模", R184="〇"), 1, AND(M184="大規模", S184="〇"), 4, AND(M184="大規模", T184="〇"), 7, AND(M184="中小規模", R184="〇"), 2, AND(M184="中小規模", S184="〇"), 5, AND(M184="中小規模", T184="〇"), 8, AND(M184="極小規模", R184="〇"), 3, AND(M184="極小規模", S184="〇"), 6, AND(M184="極小規模", T184="〇"), 9) -> 9
B185: 1664 | C185: 北海道 標茶町 | D185: 7230 | E185: 109937 | F185: 15750 | G185: 28806 | H185: 24392 | I185: 0.228433022 | J185: 0.4177931195 | K185: 0.3537738586 | L185: 0.4177931195 | M185: 極小規模 | N185: 0.5390291447 | O185: -0.2735233514 | P185: 0.3680216807 | Q185: 0.5390291447 | R185: 〇 | U185: 0.5131793882 | V185: -0.1715003886 | W185: -0.3957549515 | X185: 1 | Y185: 0 | Z185: 0 | AA185: =_xlfn.IFS(AND(M185="大規模", R185="〇"), 1, AND(M185="大規模", S185="〇"), 4, AND(M185="大規模", T185="〇"), 7, AND(M185="中小規模", R185="〇"), 2, AND(M185="中小規模", S185="〇"), 5, AND(M185="中小規模", T185="〇"), 8, AND(M185="極小規模", R185="〇"), 3, AND(M185="極小規模", S185="〇"), 6, AND(M185="極小規模", T185="〇"), 9) -> 3
B186: 1665 | C186: 北海道 弟子屈町 | D186: 6955 | E186: 77433 | F186: 6050 | G186: 1738 | H186: 8818 | I186: 0.3643261472 | J186: 0.1046609659 | K186: 0.5310128869 | L186: 0.5310128869 | M186: 極小規模 | N186: 1.30315821 | O186: 0.863972772 | P186: -1.067061714 | Q186: 1.30315821 | R186: 〇 | U186: 1.01168173 | V186: -2.3562422 | W186: 0.2125277867 | X186: 1 | Y186: 0 | Z186: 0 | AA186: =_xlfn.IFS(AND(M186="大規模", R186="〇"), 1, AND(M186="大規模", S186="〇"), 4, AND(M186="大規模", T186="〇"), 7, AND(M186="中小規模", R186="〇"), 2, AND(M186="中小規模", S186="〇"), 5, AND(M186="中小規模", T186="〇"), 8, AND(M186="極小規模", R186="〇"), 3, AND(M186="極小規模", S186="〇"), 6, AND(M186="極小規模", T186="〇"), 9) -> 3
B187: 1667 | C187: 北海道 鶴居村 | D187: 2558 | E187: 57180 | F187: 5440 | G187: 535 | H187: 5763 | I187: 0.4634520361 | J187: 0.04557846311 | K187: 0.4909695008 | L187: 0.4909695008 | M187: 極小規模 | N187: 1.860544558 | O187: -0.1362430005 | P187: -0.2654242081 | Q187: 1.860544558 | R187: 〇 | U187: 1.375309307 | V187: -2.768464365 | W187: 0.07509924858 | X187: 1 | Y187: 0 | Z187: 0 | AA187: =_xlfn.IFS(AND(M187="大規模", R187="〇"), 1, AND(M187="大規模", S187="〇"), 4, AND(M187="大規模", T187="〇"), 7, AND(M187="中小規模", R187="〇"), 2, AND(M187="中小規模", S187="〇"), 5, AND(M187="中小規模", T187="〇"), 8, AND(M187="極小規模", R187="〇"), 3, AND(M187="極小規模", S187="〇"), 6, AND(M187="極小規模", T187="〇"), 9) -> 3
B188: 1668 | C188: 北海道 白糠町 | D188: 7289 | E188: 77313 | F188: 3210 | G188: 45771 | H188: 9187 | I188: 0.05518498143 | J188: 0.7868759455 | K188: 0.157939073 | L188: 0.7868759455 | M188: 極小規模 | N188: -0.4351471652 | O188: -1.303073354 | P188: 0.5279049172 | Q188: 0.5279049172 | T188: 〇 | U188: -0.1223535269 | V188: 2.403612621 | W188: -1.06785816 | X188: 0 | Y188: 1 | Z188: 0 | AA188: =_xlfn.IFS(AND(M188="大規模", R188="〇"), 1, AND(M188="大規模", S188="〇"), 4, AND(M188="大規模", T188="〇"), 7, AND(M188="中小規模", R188="〇"), 2, AND(M188="中小規模", S188="〇"), 5, AND(M188="中小規模", T188="〇"), 8, AND(M188="極小規模", R188="〇"), 3, AND(M188="極小規模", S188="〇"), 6, AND(M188="極小規模", T188="〇"), 9) -> 9
B189: 1691 | C189: 北海道 別海町 | D189: 14380 | E189: 131963 | F189: 42650 | G189: 76511 | H189: 19008 | I189: 0.3086799499 | J189: 0.5537493939 | K189: 0.1375706562 | L189: 0.5537493939 | M189: 極小規模 | N189: 0.9902588145 | O189: -1.523233618 | P189: 0.3486690864 | Q189: 0.9902588145 | R189: 〇 | U189: 0.8075524955 | V189: 0.7770746905 | W189: -1.137762381 | X189: 1 | Y189: 0 | Z189: 0 | AA189: =_xlfn.IFS(AND(M189="大規模", R189="〇"), 1, AND(M189="大規模", S189="〇"), 4, AND(M189="大規模", T189="〇"), 7, AND(M189="中小規模", R189="〇"), 2, AND(M189="中小規模", S189="〇"), 5, AND(M189="中小規模", T189="〇"), 8, AND(M189="極小規模", R189="〇"), 3, AND(M189="極小規模", S189="〇"), 6, AND(M189="極小規模", T189="〇"), 9) -> 3
B190: 1692 | C190: 北海道 中標津町 | D190: 23010 | E190: 68487 | F190: 17390 | G190: 18687 | H190: 82919 | I190: 0.146139366 | J190: 0.1570388921 | K190: 0.6968217419 | L190: 0.6968217419 | M190: 極小規模 | N190: 0.07629069276 | O190: 1.239077418 | P190: -1.141988702 | Q190: 1.239077418 | S190: 〇 | U190: 0.2112981843 | V190: -1.990798269 | W190: 0.7815822736 | X190: 0 | Y190: 0 | Z190: 1 | AA190: =_xlfn.IFS(AND(M190="大規模", R190="〇"), 1, AND(M190="大規模", S190="〇"), 4, AND(M190="大規模", T190="〇"), 7, AND(M190="中小規模", R190="〇"), 2, AND(M190="中小規模", S190="〇"), 5, AND(M190="中小規模", T190="〇"), 8, AND(M190="極小規模", R190="〇"), 3, AND(M190="極小規模", S190="〇"), 6, AND(M190="極小規模", T190="〇"), 9) -> 6
B191: 1693 | C191: 北海道 標津町 | D191: 5023 | E191: 62469 | F191: 8950 | G191: 7046 | H191: 11883 | I191: 0.3210301661 | J191: 0.2527350335 | K191: 0.4262348004 | L191: 0.4262348004 | M191: 極小規模 | N191: 1.059704264 | O191: 0.3703734741 | P191: -1.233158567 | Q191: 1.059704264 | R191: 〇 | U191: 0.8528573016 | V191: -1.323120552 | W191: -0.1470696562 | X191: 1 | Y191: 0 | Z191: 0 | AA191: =_xlfn.IFS(AND(M191="大規模", R191="〇"), 1, AND(M191="大規模", S191="〇"), 4, AND(M191="大規模", T191="〇"), 7, AND(M191="中小規模", R191="〇"), 2, AND(M191="中小規模", S191="〇"), 5, AND(M191="中小規模", T191="〇"), 8, AND(M191="極小規模", R191="〇"), 3, AND(M191="極小規模", S191="〇"), 6, AND(M191="極小規模", T191="〇"), 9) -> 3
B192: 1694 | C192: 北海道 羅臼町 | D192: 4722 | E192: 39772 | F192: 280 | G192: 14813 | H192: 16028 | I192: 0.008997140195 | J192: 0.4759808489 | K192: 0.5150220109 | L192: 0.5150220109 | M192: 極小規模 | N192: -0.6948620838 | O192: -1.107896482 | P192: 1.27007212 | Q192: 1.27007212 | T192: 〇 | U192: -0.2917862852 | V192: 0.2344788893 | W192: 0.1576472451 | X192: 0 | Y192: 1 | Z192: 0 | AA192: =_xlfn.IFS(AND(M192="大規模", R192="〇"), 1, AND(M192="大規模", S192="〇"), 4, AND(M192="大規模", T192="〇"), 7, AND(M192="中小規模", R192="〇"), 2, AND(M192="中小規模", S192="〇"), 5, AND(M192="中小規模", T192="〇"), 8, AND(M192="極小規模", R192="〇"), 3, AND(M192="極小規模", S192="〇"), 6, AND(M192="極小規模", T192="〇"), 9) -> 9
B193: 2201 | C193: 青森県 青森市 | D193: 275192 | E193: 82461 | F193: 13890 | G193: 112932 | H193: 1100686 | I193: 0.01131560853 | J193: 0.09200102973 | K193: 0.8966833617 | L193: 0.8966833617 | M193: 中小規模 | N193: =STANDARDIZE(I192,$AF$15,$AF$16) -> -0.1339161308 | O193: =STANDARDIZE(J192,$AG$15,$AG$16) -> 0.1859949254 | P193: =STANDARDIZE(K192,$AH$15,$AH$16) -> -0.1729446289 | Q193: 0.1859949254 | S193: 〇 | U193: -0.2832813524 | V193: -2.444571334 | W193: 1.467505541 | X193: 0 | Y193: 0 | Z193: 1 | AA193: =_xlfn.IFS(AND(M193="大規模", R193="〇"), 1, AND(M193="大規模", S193="〇"), 4, AND(M193="大規模", T193="〇"), 7, AND(M193="中小規模", R193="〇"), 2, AND(M193="中小規模", S193="〇"), 5, AND(M193="中小規模", T193="〇"), 8, AND(M193="極小規模", R193="〇"), 3, AND(M193="極小規模", S193="〇"), 6, AND(M193="極小規模", T193="〇"), 9) -> 5
B194: 2202 | C194: 青森県 弘前市 | D194: 168466 | E194: 52420 | F194: 38380 | G194: 312377 | H194: 492637 | I194: 0.04550660783 | J194: 0.3703808659 | K194: 0.5841125263 | L194: 0.5841125263 | M194: 中小規模 | N194: =STANDARDIZE(I193,$AF$15,$AF$16) -> -0.02392996254 | O194: =STANDARDIZE(J193,$AG$15,$AG$16) -> -1.37530128 | P194: =STANDARDIZE(K193,$AH$15,$AH$16) -> 1.364944589 | Q194: 1.364944589 | T194: 〇 | U194: -0.157857103 | V194: -0.5022985248 | W194: 0.3947652676 | X194: 0 | Y194: 0 | Z194: 1 | AA194: =_xlfn.IFS(AND(M194="大規模", R194="〇"), 1, AND(M194="大規模", S194="〇"), 4, AND(M194="大規模", T194="〇"), 7, AND(M194="中小規模", R194="〇"), 2, AND(M194="中小規模", S194="〇"), 5, AND(M194="中小規模", T194="〇"), 8, AND(M194="極小規模", R194="〇"), 3, AND(M194="極小規模", S194="〇"), 6, AND(M194="極小規模", T194="〇"), 9) -> 8
B195: 2203 | C195: 青森県 八戸市 | D195: 223415 | E195: 30556 | F195: 14910 | G195: 569086 | H195: 750967 | I195: 0.01116884887 | J195: 0.4262934628 | K195: 0.5625376883 | L195: 0.5625376883 | M195: 中小規模 | N195: =STANDARDIZE(I194,$AF$15,$AF$16) -> 1.598061996 | O195: =STANDARDIZE(J194,$AG$15,$AG$16) -> -0.2433840278 | P195: =STANDARDIZE(K194,$AH$15,$AH$16) -> 0.1054528522 | Q195: 1.598061996 | R195: 〇 | U195: -0.2838197169 | V195: -0.1121929832 | W195: 0.3207206193 | X195: 0 | Y195: 0 | Z195: 1 | AA195: =_xlfn.IFS(AND(M195="大規模", R195="〇"), 1, AND(M195="大規模", S195="〇"), 4, AND(M195="大規模", T195="〇"), 7, AND(M195="中小規模", R195="〇"), 2, AND(M195="中小規模", S195="〇"), 5, AND(M195="中小規模", T195="〇"), 8, AND(M195="極小規模", R195="〇"), 3, AND(M195="極小規模", S195="〇"), 6, AND(M195="極小規模", T195="〇"), 9) -> 2
B196: 2204 | C196: 青森県 黒石市 | D196: 31946 | E196: 21705 | F196: 8690 | G196: 61888 | H196: 46755 | I196: 0.07406271041 | J196: 0.5274560439 | K196: 0.3984812457 | L196: 0.5274560439 | M196: 極小規模 | N196: =STANDARDIZE(I196,$AI$15,$AI$16) -> -0.3289974143 | O196: =STANDARDIZE(J194,$AJ$15,$AJ$16) -> -0.3129161909 | P196: =STANDARDIZE(K194,$AK$15,$AK$16) -> 0.7655810705 | Q196: 0.7655810705 | T196: 〇 | U196: =STANDARDIZE(I196,I$1,I$2) -> -0.05310357703 | V196: 0.5936244112 | W196: -0.2423196042 | X196: 0 | Y196: 1 | Z196: 0 | AA196: =_xlfn.IFS(AND(M196="大規模", R196="〇"), 1, AND(M196="大規模", S196="〇"), 4, AND(M196="大規模", T196="〇"), 7, AND(M196="中小規模", R196="〇"), 2, AND(M196="中小規模", S196="〇"), 5, AND(M196="中小規模", T196="〇"), 8, AND(M196="極小規模", R196="〇"), 3, AND(M196="極小規模", S196="〇"), 6, AND(M196="極小規模", T196="〇"), 9) -> 9
B197: 2205 | C197: 青森県 五所川原市 | D197: 51415 | E197: 40420 | F197: 12060 | G197: 26146 | H197: 109096 | I197: =F197/SUM($F197:$H197) -> 0.08187261544 | J197: 0.1774992872 | K197: 0.7406280974 | L197: =MAX(I197:K197) -> 0.7406280974 | M197: =IF(D197>500000,"大規模",IF(D197>50000,"中小規模","極小規模")) -> 中小規模 | N197: =STANDARDIZE(I196,$AF$15,$AF$16) -> 2.952739241 | O197: =STANDARDIZE(J196,$AG$15,$AG$16) -> 0.395297661 | P197: =STANDARDIZE(K196,$AH$15,$AH$16) -> -0.6425410021 | Q197: =MAX(N197:P197) -> 2.952739241 | R197: =IF(Q197=N197,"〇","") -> 〇 | S197: =IF(Q197=O197,"〇","") ->  | T197: =IF(Q197=P197,"〇","") ->  | U197: -0.02445418105 | V197: -1.848044865 | W197: 0.9319252884 | X197: =IF(COUNTBLANK($F197:$H197)>0,"",IF(U197>V197,IF(U197>W197,1,0),0)) -> 0 | Y197: =IF(COUNTBLANK($F197:$H197)>0,"",IF(V197>W197,IF(V197>U197,1,0),0)) -> 0 | Z197: =IF(COUNTBLANK($F197:$H197)>0,"",IF(W197>U197,IF(W197>V197,1,0),0)) -> 1 | AA197: =_xlfn.IFS(AND(M197="大規模", R197="〇"), 1, AND(M197="大規模", S197="〇"), 4, AND(M197="大規模", T197="〇"), 7, AND(M197="中小規模", R197="〇"), 2, AND(M197="中小規模", S197="〇"), 5, AND(M197="中小規模", T197="〇"), 8, AND(M197="極小規模", R197="〇"), 3, AND(M197="極小規模", S197="〇"), 6, AND(M197="極小規模", T197="〇"), 9) -> 2
B198: 2206 | C198: 青森県 十和田市 | D198: 60378 | E198: 72565 | F198: 17460 | G198: 66945 | H198: 158449 | I198: 0.07189504805 | J198: 0.2756594497 | K198: 0.6524455022 | L198: 0.6524455022 | M198: 中小規模 | N198: =STANDARDIZE(I197,$AF$15,$AF$16) -> 3.323234501 | O198: =STANDARDIZE(J197,$AG$15,$AG$16) -> -1.027657736 | P198: =STANDARDIZE(K197,$AH$15,$AH$16) -> 0.7361261143 | Q198: 3.323234501 | R198: 〇 | U198: -0.06105530202 | V198: -1.163175525 | W198: 0.6292834215 | X198: 0 | Y198: 0 | Z198: 1 | AA198: =_xlfn.IFS(AND(M198="大規模", R198="〇"), 1, AND(M198="大規模", S198="〇"), 4, AND(M198="大規模", T198="〇"), 7, AND(M198="中小規模", R198="〇"), 2, AND(M198="中小規模", S198="〇"), 5, AND(M198="中小規模", T198="〇"), 8, AND(M198="極小規模", R198="〇"), 3, AND(M198="極小規模", S198="〇"), 6, AND(M198="極小規模", T198="〇"), 9) -> 2
B199: 2207 | C199: 青森県 三沢市 | D199: 39152 | E199: 11987 | F199: 14180 | G199: 88409 | H199: 63136 | I199: 0.0855634334 | J199: 0.5334680947 | K199: 0.3809684719 | L199: 0.5334680947 | M199: 極小規模 | N199: =STANDARDIZE(I199,$AI$15,$AI$16) -> -0.2643286778 | O199: =STANDARDIZE(J197,$AJ$15,$AJ$16) -> -1.031654519 | P199: =STANDARDIZE(K197,$AK$15,$AK$16) -> 1.466151155 | Q199: 1.466151155 | T199: 〇 | U199: -0.01091500169 | V199: 0.6355708503 | W199: -0.3024232852 | X199: 0 | Y199: 1 | Z199: 0 | AA199: =_xlfn.IFS(AND(M199="大規模", R199="〇"), 1, AND(M199="大規模", S199="〇"), 4, AND(M199="大規模", T199="〇"), 7, AND(M199="中小規模", R199="〇"), 2, AND(M199="中小規模", S199="〇"), 5, AND(M199="中小規模", T199="〇"), 8, AND(M199="極小規模", R199="〇"), 3, AND(M199="極小規模", S199="〇"), 6, AND(M199="極小規模", T199="〇"), 9) -> 9
B200: 2208 | C200: 青森県 むつ市 | D200: 54103 | E200: 86412 | F200: 3960 | G200: 13371 | H200: 126525 | I200: 0.02752752753 | J200: 0.09294711378 | K200: 0.8795253587 | L200: 0.8795253587 | M200: 中小規模 | N200: =STANDARDIZE(I199,$AF$15,$AF$16) -> 3.498323769 | O200: =STANDARDIZE(J199,$AG$15,$AG$16) -> 0.4197431961 | P200: =STANDARDIZE(K199,$AH$15,$AH$16) -> -0.7131080269 | Q200: 3.498323769 | R200: 〇 | U200: -0.223810503 | V200: -2.437970449 | W200: 1.40861943 | X200: 0 | Y200: 0 | Z200: 1 | AA200: =_xlfn.IFS(AND(M200="大規模", R200="〇"), 1, AND(M200="大規模", S200="〇"), 4, AND(M200="大規模", T200="〇"), 7, AND(M200="中小規模", R200="〇"), 2, AND(M200="中小規模", S200="〇"), 5, AND(M200="中小規模", T200="〇"), 8, AND(M200="極小規模", R200="〇"), 3, AND(M200="極小規模", S200="〇"), 6, AND(M200="極小規模", T200="〇"), 9) -> 2
... 1721 more rows

Sheet 市区町村_現在_カテゴリ_単位換算 (hidden)
B1: 入口の循環利用率 | C1: 入口の循環利用率 | D1: 入口の循環利用率 | E1: 出口の循環利用率 | F1: 出口の循環利用率 | G1: 出口の循環利用率 | H1: 出口の循環利用率 | I1: 出口の循環利用率 | J1: 出口の循環利用率 | K1: 出口の循環利用率 | L1: 出口の循環利用率 | M1: 資源生産性 | N1: 資源生産性 | O1: 資源生産性 | P1: 最終処分量 | Q1: 最終処分量 | R1: エネルギー使用量 | S1: エネルギー使用量 | T1: CO2排出量 | U1: 26.CO2排出量 | V1: エコロジカルフットプリント | W1: 水の循環利用率 | X1: 自然資本 | Y1: 自然資本 | Z1: CE関連売上高 | AA1: CE関連雇用創出数 | AB1: CE関連への投資額 | AC1: CE関連への投資額 | AD1: CE関連事業の地域経済付加価値 | AE1: 自治体でのCE取り組み度 | AF1: 自治体でのCE取り組み度 | AG1: 自治体でのCE取り組み度 | AH1: 自治体でのCE取り組み度 | AI1: 自治体でのCE取り組み度 | AJ1: 自治体でのCE取り組み度 | AK1: 環境配慮意識・行動の浸透度 | AL1: 環境配慮意識・行動の浸透度 | AM1: 人工資本 | AN1: 人工資本 | AO1: 人的資本 | AP1: 人的資本 | AQ1: 地域コミュニティの成熟度 | AR1: 地域住民の生活満足度 | AS1: 地域愛着度
A2: カテゴリID | B2: 入口の循環利用率<%> | C2: 循環資源の利用量 <t/地域GDP(百万円)> | D2: 利用資源量<t/地域GDP(百万円)> | E2: 出口の循環利用率<%> | F2: リサイクル量 （一般廃棄物）<t/人> | G2: リファブ量<t/人> | H2: リペア量（一般廃棄物）<t/人> | I2: リペア量（一般廃棄物）<個数/人> | J2: リユース量 （一般廃棄物）<t/人> | K2: 一般廃棄物量<t/人> | L2: 産業廃棄物量 <t/地域GDP(百万円)> | M2: 資源生産性<百万円/t> | N2: 利用資源量<t/人> | O2: 地域GDP<百万円/人> | P2: 一般廃棄物最終処分量 <t/人> | Q2: 産業廃棄物最終処分量 <t/地域GDP(百万円)> | R2: エネルギー使用量 <TJ/人> | S2: エネルギー使用量 <TJ/地域GDP(百万円)> | T2: CO2排出量 <tCO2/人> | U2: CO2排出量 <tCO2/地域GDP(百万円)> | V2: エコロジカルフットプリント<gha/人> | W2: 水の循環利用率<%> | X2: 自然資本 <百万円/人> | Y2: 自然資本 <百万円/km2> | Z2: CE関連売上高 <円/人> | AA2: CE関連雇用創出数 <人/労働人口> | AB2: CE関連への民間投資額 <円/地域GDP(百万円)> | AC2: CE関連への公共投資額 <円/地域GDP(百万円)> | AD2: CE関連事業の地域経済付加価値 <円/地域GDP(百万円)> | AE2: 自治体でのCE取り組み度<%> | AF2: CE取り組み度（中長期立案）<-> | AG2: CE取り組み度（地域住民）<-> | AH2: CE取り組み度（地域企業）<-> | AI2: CE取り組み度（外部発信）<-> | AJ2: CE取り組み度（インフラ） | AK2: 環境配慮への意識度<%> | AL2: 日常生活における環境配慮行動<-> | AM2: 人工資本 <百万円/人> | AN2: 人工資本 <百万円/km2> | AO2: 人的資本 <百万円/人> | AP2: 人的資本 <百万円/km2> | AQ2: 地域コミュニティの成熟度<-> | AR2: 地域住民の生活満足度<-> | AS2: 地域愛着度<->
A3: 全国 | B3: 15.62078167 | C3: 0.3686522386 | D3: 2.360011465 | E3: 50.81876034 | F3: 0.06466007615 | J3: 1.6148957 | K3: 0.3251173377 | L3: 0.6618791555 | M3: 0.423726755 | N3: 10.62510798 | O3: 4.502142526 | P3: 0.02714100133 | Q3: 0.01553753193 | R3: 0.1008570388 | S3: 0.02240200931 | T3: 7.350936658 | U3: 1.632764093 | W3: 79.31820255 | X3: 0.1937549176 | Y3: 64.66699457 | AK3: 50 | AM3: 21.21025808 | AN3: 7079.064941 | AO3: 32.08768192 | AP3: 10709.47762 | AQ3: 50 | AR3: 50 | AS3: 50
A4: 1 | B4: 21.24903447 | C4: 0.2971487007 | D4: 1.398410366 | E4: 42.93313 | F4: 0.06226079481 | J4: 1.27733725 | K4: 0.3217626826 | L4: 0.6141375332 | M4: 0.7150976739 | N4: 6.203812165 | O4: 4.436331648 | P4: 0.02223537524 | Q4: 0.0152520474 | R4: 0.0831481731 | S4: 0.01874255121 | T4: 6.425347726 | U4: 1.448347021 | W4: 79.4378208 | X4: 0.05669330077 | Y4: 51.75727696 | AK4: 49.91366951 | AM4: 20.71400686 | AN4: 18910.53396 | AO4: 29.72026365 | AP4: 27132.65758 | AQ4: 49.80431733 | AR4: 49.65902283 | AS4: 49.96504417
A5: 2 | B5: 14.69696442 | C5: 0.5121793133 | D5: 3.484932663 | E5: 53.57673851 | F5: 0.06003017751 | J5: 2.085446469 | K5: 0.3394536672 | L5: 0.9163123451 | M5: 0.2869495904 | N5: 14.39987132 | O5: 4.132037176 | P5: 0.02927466856 | Q5: 0.02292498566 | R5: 0.1441814437 | S5: 0.03489354949 | T5: 9.045839114 | U5: 2.189195966 | W5: 41.70393858 | X5: 0.1684734922 | Y5: 62.01708604 | AK5: 50.05942803 | AM5: 21.40912089 | AN5: 7880.950733 | AO5: 30.67749238 | AP5: 11292.74795 | AQ5: 49.86399614 | AR5: 49.81899628 | AS5: 50.00495406
A6: 3 | B6: 75.20873497 | C6: 3.086104758 | D6: 4.103386075 | E6: 78.64538255 | F6: 0.0667312057 | J6: 10.60225595 | K6: 0.322657758 | L6: 3.572463349 | M6: 0.243701173 | N6: 14.16089528 | O6: 3.45102679 | P6: 0.04507607 | Q6: 0.02208387954 | R6: 0.1082821642 | S6: 0.03137679619 | T6: 8.737784194 | U6: 2.531937514 | W6: 37.90306212 | X6: 2.913783509 | Y6: 71.36869304 | AK6: 50.04548343 | AM6: 34.81441667 | AN6: 852.726158 | AO6: 32.90700974 | AP6: 806.0071278 | AQ6: 50.52283552 | AR6: 50.94299791 | AS6: 50.54369823
A7: 4 | B7: 11.78169131 | C7: 0.2566683242 | D7: 2.178535471 | E7: 40.72763643 | F7: 0.06231135317 | J7: 1.000655279 | K7: 0.3160295528 | L7: 0.5613178207 | M7: 0.4590239696 | N7: 8.872684226 | O7: 4.072774734 | P7: 0.0310330755 | Q7: 0.0155543154 | R7: 0.09427351717 | S7: 0.02314724563 | T7: 6.383793002 | U7: 1.567430908 | W7: 77.07715823 | X7: 0.0199021912 | Y7: 47.97566602 | AK7: 49.83547314 | AM7: 17.02282155 | AN7: 41034.738 | AO7: 32.35051041 | AP7: 77983.23652 | AQ7: 49.53992532 | AR7: 49.34621526 | AS7: 49.77062133
A8: 5 | B8: 9.760214332 | C8: 0.3003777742 | D8: 3.077573544 | E8: 45.64241982 | F8: 0.06522443627 | J8: 1.249019724 | K8: 0.3237889729 | L8: 0.5742345301 | M8: 0.3249313089 | N8: 13.27335261 | O8: 4.312927837 | P8: 0.02407943683 | Q8: 0.01624519065 | R8: 0.1053455238 | S8: 0.02442552432 | T8: 7.77333763 | U8: 1.802334267 | W8: 61.4734949 | X8: 0.08982757797 | Y8: 58.57017971 | AK8: 50.03228159 | AM8: 21.05990273 | AN8: 13731.66588 | AO8: 32.28630114 | AP8: 21051.60245 | AQ8: 49.75608041 | AR8: 49.62452012 | AS8: 49.91356282
A9: 6 | B9: 20.4936187 | C9: 0.6810528803 | D9: 3.32324364 | E9: 58.96236566 | F9: 0.06477391468 | J9: 2.512412577 | K9: 0.3308513505 | L9: 1.066100414 | M9: 0.3009108294 | N9: 12.46958222 | O9: 3.752232327 | P9: 0.02906986905 | Q9: 0.0212924827 | R9: 0.1086375147 | S9: 0.02895276871 | T9: 9.015206274 | U9: 2.402624755 | W9: 45.50532072 | X9: 0.6194800615 | Y9: 68.2626819 | AK9: 50.03285998 | AM9: 25.35783141 | AN9: 2794.268431 | AO9: 33.15732845 | AP9: 3653.72238 | AQ9: 50.15017443 | AR9: 50.1419833 | AS9: 49.97879822
A10: 7 | B10: 20.72664387 | C10: 0.163459705 | D10: 0.7886453108 | E10: 37.76689813 | F10: 0.06147499755 | J10: 0.859704051 | K10: 0.3204419786 | L10: 0.3604432454 | M10: 1.267997142 | N10: 4.378388176 | O10: 5.551783694 | P10: 0.0278979653 | Q10: 0.008769184907 | R10: 0.06039583972 | S10: 0.01087863704 | T10: 4.393822396 | U10: 0.7914253577 | W10: 63.17792301 | X10: 0.008987690729 | Y10: 38.77308121 | AK10: 49.90371424 | AM10: 18.80208187 | AN10: 81112.56486 | AO10: 31.38314122 | AP10: 135387.5116 | AQ10: 49.56698756 | AR10: 49.60358123 | AS10: 49.95610786
A11: 8 | B11: 14.17962536 | C11: 0.2402544799 | D11: 1.694364089 | E11: 43.6742187 | F11: 0.07100031397 | J11: 1.251110118 | K11: 0.3178721021 | L11: 0.4878955936 | M11: 0.5901919231 | N11: 9.198867379 | O11: 5.429097229 | P11: 0.02222639966 | Q11: 0.01162413623 | R11: 0.09443087156 | S11: 0.01739347585 | T11: 7.126338595 | U11: 1.312619446 | W11: 57.53873275 | X11: 0.07080253742 | Y11: 59.66981061 | AK11: 50.0032841 | AM11: 21.98429395 | AN11: 18527.5656 | AO11: 33.14238789 | AP11: 27931.20248 | AQ11: 49.78483723 | AR11: 49.7213212 | AS11: 50.01983344
A12: 9 | B12: 26.07048163 | C12: 0.8757730598 | D12: 3.359251555 | E12: 62.66763521 | F12: 0.06958752036 | J12: 3.006246737 | K12: 0.3381620568 | L12: 1.270038238 | M12: 0.2976853574 | N12: 11.71031405 | O12: 3.485989025 | P12: 0.03294185869 | Q12: 0.02204520606 | R12: 0.09947335807 | S12: 0.02853518969 | T12: 8.879894727 | U12: 2.547310007 | W12: 44.3426767 | X12: 0.7008026249 | Y12: 69.27483466 | AK12: 49.84683252 | AM12: 25.31167037 | AN12: 2502.076502 | AO12: 32.49092012 | AP12: 3211.750412 | AQ12: 50.00391644 | AR12: 50.03915959 | AS12: 49.94197541

Sheet カテゴリ_基礎指標 (hidden)
A1: カテゴリID | B1: 人口＜人＞ | C1: 総面積＜km2＞ | D1: 人口密度＜人/km2＞ | E1: 労働人口＜人＞ | F1: 地域GDP＜百万円＞ | G1: 第一次産業算出額＜百万円＞ | H1: 第二次産業算出額＜百万円＞ | I1: 第三次産業算出額＜百万円＞
A2: 1 | B2: 710948.2 | C2: 778.7504 | D2: 912.9346194 | E2: 347174 | F2: 3154002 | G2: 41024 | H2: 1024974.2 | I2: 2644641
A3: 2 | B3: 137690.5299 | C3: 374.0453784 | D3: 368.111833 | E3: 67123.95522 | F3: 568942.3881 | G3: 11017.89474 | H3: 346225.806 | I3: 743629.0373
A4: 3 | B4: 6285.583333 | C4: 256.5386081 | D4: 24.50151024 | E4: 3308.320833 | F4: 21684.60559 | G4: 4952.365145 | H4: 9475.414508 | I4: 8016.864035
A5: 4 | B5: 1139345.571 | C5: 472.6453071 | D5: 2410.572059 | E5: 525284.9286 | F5: 4640297.857 | G5: 9041.428571 | H5: 2446025.286 | I5: 3675633.5
A6: 5 | B6: 135060.56 | C6: 207.1389066 | D6: 652.0289318 | E6: 64953.28 | F6: 582506.4489 | G6: 6422.232143 | H6: 534374.1244 | I6: 313017.6444
A7: 6 | B7: 19465.89533 | C7: 176.6519231 | D7: 110.1935093 | E7: 9903.351402 | F7: 73040.56172 | G7: 3578.71028 | H7: 76860.92424 | I7: 31603.59813
A8: 7 | B8: 1112551 | C8: 257.8919188 | D8: 4314.020406 | E8: 499020.3125 | F8: 6176642.5 | G8: 5660 | H8: 802866.375 | I8: 8127047.812
A9: 8 | B9: 152858.3435 | C9: 181.3774583 | D9: 842.7637311 | E9: 69952.46565 | F9: 829882.8092 | G9: 6488.888889 | H9: 336634.313 | I9: 1119725.527
A10: 9 | B10: 18302.97727 | C10: 185.1577789 | D10: 98.8507066 | E10: 9114.595455 | F10: 63803.97789 | G10: 3378.47032 | H10: 62030.93647 | I10: 33028.29773
A11: 全国 | B11: 72497.75805 | C11: 214.2043911 | D11: 338.451316 | E11: 34453.88908 | F11: 326222.7339 | G11: 5030.927114 | H11: 198514.1167 | I11: 315244.4242
A14: カテゴリID | B14: 人口_現在 | C14: 労働人口_現在 | D14: 地域GDP_現在(百万円) | E14: 人口_過去 | F14: 労働人口_過去 | G14: 地域GDP_過去(百万円) | H14: 総面積（km2）
A15: 1 | B15: 710948.2 | C15: 347174 | D15: 3154002 | E15: 716659.6 | F15: 357244 | G15: 3069774 | H15: 778.7504
A16: 2 | B16: 137690.5299 | C16: 67123.95522 | D16: 568942.3881 | E16: 140271.7537 | F16: 69607.31818 | G16: 557602.6045 | H16: 374.0453784
A17: 3 | B17: 6283.522822 | C17: 3308.320833 | D17: 21684.60559 | E17: 6747.020747 | F17: 3569.720339 | G17: 21749.9639 | H17: 256.5386081
A18: 4 | B18: 1139345.571 | C18: 525284.9286 | D18: 4640297.857 | E18: 1132860.929 | F18: 536362.7857 | G18: 4573183.571 | H18: 472.6453071
A19: 5 | B19: 135060.56 | C19: 64953.28 | D19: 582506.4489 | E19: 135723.3511 | F19: 66664.36 | G19: 575689.5111 | H19: 207.1389066
A20: 6 | B20: 19465.89533 | C20: 9903.351402 | D20: 73040.56172 | E20: 20500.73271 | F20: 10436.6972 | G20: 73006.37276 | H20: 176.6519231
A21: 7 | B21: 1112551 | C21: 499020.3125 | D21: 6176642.5 | E21: 1082432.312 | F21: 495841.1875 | G21: 6139775 | H21: 257.8919188
A22: 8 | B22: 152858.3435 | C22: 69952.46565 | D22: 829882.8092 | E22: 152294.5954 | F22: 71775.69466 | G22: 829090.4885 | H22: 181.3774583
A23: 9 | B23: 18302.97727 | C23: 9114.595455 | D23: 63803.97789 | E23: 19227.34545 | F23: 9608.652273 | G23: 64619.84064 | H23: 185.1577789
A24: 全国 | B24: 72459.4417 | C24: 34453.88908 | D24: 326222.7339 | E24: 73004.58644 | F24: 35451.50807 | G24: 323493.6609 | H24: 214.2043911

Sheet 市区町村_現在_カテゴリ (hidden)
B1: 2021 | C1: 2021 | D1: 2021 | E1: 2021 | F1: 2021 | G1: 2021 | H1: 2021 | I1: 2021 | J1: 2021 | K1: 2021 | L1: 2021 | M1: 2021 | N1: 2021 | O1: 2021 | P1: 2021 | Q1: 2021 | R1: 2021 | S1: 2021 | U1: 2014 | V1: 2020 | W1: 2021 | X1: 2021 | Z1: 2020 | AB1: 2020 | AJ1: 推計(2015) | AL1: 2020 | AM1: 2020 | AN1: 推計(2015) | AO1: 推計(2015) | AP1: 推計(2015)
B2: 入口の循環利用率 | C2: 入口の循環利用率 | D2: 入口の循環利用率 | E2: 出口の循環利用率 | F2: 出口の循環利用率 | G2: 出口の循環利用率 | H2: 出口の循環利用率 | I2: 出口の循環利用率 | J2: 出口の循環利用率 | K2: 出口の循環利用率 | L2: 出口の循環利用率 | M2: 資源生産性 | N2: 資源生産性 | O2: 資源生産性 | P2: 最終処分量 | Q2: 最終処分量 | R2: エネルギー使用量 | S2: CO2排出量 | T2: エコロジカルフットプリント | U2: 水の循環利用率 | V2: 自然資本 | W2: CE関連売上高 | X2: CE関連雇用創出数 | Y2: CE関連への投資額 | Z2: CE関連への投資額 | AA2: CE関連への投資額 | AB2: CE関連への投資額 | AC2: CE関連事業の地域経済付加価値 | AD2: 自治体でのCE取り組み度 | AE2: 自治体でのCE取り組み度 | AF2: 自治体でのCE取り組み度 | AG2: 自治体でのCE取り組み度 | AH2: 自治体でのCE取り組み度 | AI2: 自治体でのCE取り組み度 | AJ2: 環境配慮意識・行動の浸透度 | AK2: 環境配慮意識・行動の浸透度 | AL2: 人工資本 | AM2: 人的資本 | AN2: 地域コミュニティの成熟度 | AO2: 地域住民の生活満足度 | AP2: 地域愛着度
A3: カテゴリID | B3: 入口の循環利用率<%> | C3: 循環資源の利用量<t> | D3: 利用資源量<t> | E3: 出口の循環利用率<%> | F3: リサイクル量（一般廃棄物）<t> | G3: リファブ量<t> | H3: リペア量（一般廃棄物）<t> | I3: リペア量（一般廃棄物）<個数> | J3: リユース量（一般廃棄物）<t> | K3: 一般廃棄物量<t> | L3: 産業廃棄物量<t> | M3: 資源生産性<百万円/t> | N3: 利用資源量<t> | O3: 地域GDP<百万円> | P3: 一般廃棄物最終処分量<t> | Q3: 産業廃棄物最終処分量<t> | R3: エネルギー使用量<TJ> | S3: CO2排出量<tCO2> | T3: エコロジカルフットプリント<gha> | U3: 水の循環利用率<%> | V3: 自然資本<百万円> | W3: CE関連売上高<円> | X3: CE関連雇用創出数<人> | Y3: CE関連への民間投資額<円> | Z3: CE関連への公共投資額<円> | AA3: 廃棄物処理施設への設備投資費<千円> | AB3: CE実現へ向けた取り組み費用<千円> | AC3: CE関連事業の地域経済付加価値<円> | AD3: 自治体でのCE取り組み度<%> | AE3: CE取り組み度（中長期立案）<-> | AF3: CE取り組み度（地域住民）<-> | AG3: CE取り組み度（地域企業）<-> | AH3: CE取り組み度（外部発信）<-> | AI3: CE取り組み度（インフラ） | AJ3: 環境配慮への意識度<%> | AK3: 日常生活における環境配慮行動<-> | AL3: 人工資本<百万円> | AM3: 人的資本<百万円> | AN3: 地域コミュニティの成熟度<-> | AO3: 地域住民の生活満足度<-> | AP3: 地域愛着度<->
A4: 全国 | B4: 15.62078167 | C4: 209377432.3 | D4: 1340377432 | E4: 50.81876034 | F4: 8156990.685 | J4: 203722141.5 | K4: 41014165.97 | L4: 375916768.1 | M4: 0.423726755 | N4: 1340377432 | O4: 567953779.7 | P4: 3423888.56 | Q4: 8824599.99 | R4: 12723305.86 | S4: 927334538 | U4: 79.31820255 | V4: 24442548.66 | AJ4: 50 | AL4: 2675714102 | AM4: 4047921656 | AN4: 50 | AO4: 50 | AP4: 50
A5: 1 | B5: 21.24903447 | C5: 937207.5964 | D5: 4410589.092 | E5: 42.93313 | F5: 44264.2 | J5: 908120.619 | K5: 228756.6 | L5: 1936991.008 | M5: 0.7150976739 | N5: 4410589.092 | O5: 3154002 | P5: 15808.2 | Q5: 48104.988 | R5: 59114.044 | S5: 4568089.4 | U5: 79.4378208 | V5: 40306.00013 | AJ5: 49.91366951 | AL5: 14726585.89 | AM5: 21129567.94 | AN5: 49.80431733 | AO5: 49.65902283 | AP5: 49.96504417
A6: 2 | B6: 14.69696442 | C6: 291400.5216 | D6: 1982725.911 | E6: 53.57673851 | F6: 8265.586948 | J6: 287146.2293 | K6: 46739.5553 | L6: 521328.9338 | M6: 0.2869495904 | N6: 1982725.911 | O6: 568942.3881 | P6: 4030.844626 | Q6: 13042.99609 | R6: 19852.41937 | S6: 1245526.381 | U6: 41.70393858 | V6: 23197.20441 | AJ6: 50.05942803 | AL6: 2947833.199 | AM6: 4224000.18 | AN6: 49.86399614 | AO6: 49.81899628 | AP6: 50.00495406
A7: 3 | B7: 75.20873497 | C7: 66920.96451 | D7: 88980.30864 | E7: 78.64538255 | F7: 419.3070539 | J7: 66619.51725 | K7: 2027.427386 | L7: 77467.45873 | M7: 0.243701173 | N7: 88980.30864 | O7: 21684.60559 | P7: 283.2365145 | Q7: 478.8802179 | R7: 680.3934502 | S7: 54904.06639 | U7: 37.90306212 | V7: 18308.82517 | AJ7: 50.04548343 | AL7: 218757.1817 | AM7: 206771.9467 | AN7: 50.52283552 | AO7: 50.94299791 | AP7: 50.54369823
A8: 4 | B8: 11.78169131 | C8: 1191017.475 | D8: 10109053.48 | E8: 40.72763643 | F8: 70994.16429 | J8: 1140092.16 | K8: 360066.8714 | L8: 2604681.881 | M8: 0.4590239696 | N8: 10109053.48 | O8: 4640297.857 | P8: 35357.39714 | Q8: 72176.65643 | R8: 107410.1143 | S8: 7273346.286 | U8: 77.07715823 | V8: 22675.4734 | AJ8: 49.83547314 | AL8: 19394876.34 | AM8: 36858410.77 | AN8: 49.53992532 | AO8: 49.34621526 | AP8: 49.77062133
A9: 5 | B9: 9.760214332 | C9: 174971.9905 | D9: 1792706.436 | E9: 45.64241982 | F9: 8809.248889 | J9: 168693.3033 | K9: 43731.12 | L9: 334495.317 | M9: 0.3249313089 | N9: 1792706.436 | O9: 582506.4489 | P9: 3252.182222 | Q9: 9462.928314 | R9: 14228.02544 | S9: 1049871.333 | U9: 61.4734949 | V9: 12132.16298 | AJ9: 50.03228159 | AL9: 2844362.256 | AM9: 4360605.912 | AN9: 49.75608041 | AO9: 49.62452012 | AP9: 49.91356282
A10: 6 | B10: 20.4936187 | C10: 49744.48494 | D10: 242731.5822 | E10: 58.96236566 | F10: 1260.882243 | J10: 48906.36025 | K10: 6440.317757 | L10: 77868.57306 | M10: 0.3009108294 | N10: 242731.5822 | O10: 73040.56172 | P10: 565.871028 | Q10: 1555.214896 | R10: 2114.72649 | S10: 175489.0617 | U10: 45.50532072 | V10: 12058.73403 | AJ10: 50.03285998 | AL10: 493612.8919 | AM10: 645437.085 | AN10: 50.15017443 | AO10: 50.1419833 | AP10: 49.97879822
A11: 7 | B11: 20.72664387 | C11: 1009632.161 | D11: 4871180.144 | E11: 37.76689813 | F11: 68394.07 | J11: 956464.6017 | K11: 356508.0437 | L11: 2226329.068 | M11: 1.267997142 | N11: 4871180.144 | O11: 6176642.5 | P11: 31037.90919 | Q11: 54164.12019 | R11: 67193.45187 | S11: 4888351.5 | U11: 63.17792301 | V11: 9999.264308 | AJ11: 49.90371424 | AL11: 20918274.99 | AM11: 34915345.15 | AN11: 49.56698756 | AO11: 49.60358123 | AP11: 49.95610786
A12: 8 | B12: 14.17962536 | C12: 199383.0627 | D12: 1406123.63 | E12: 43.6742187 | F12: 10852.99038 | J12: 191242.6202 | K12: 48589.40298 | L12: 404896.1658 | M12: 0.5901919231 | N12: 1406123.63 | O12: 829882.8092 | P12: 3397.490635 | Q12: 9646.670825 | R12: 14434.5466 | S12: 1089320.313 | U12: 57.53873275 | V12: 10822.75859 | AJ12: 50.0032841 | AL12: 3360482.757 | AM12: 5066090.513 | AN12: 49.78483723 | AO12: 49.7213212 | AP12: 50.01983344
A13: 9 | B13: 26.07048163 | C13: 55877.80494 | D13: 214333.612 | E13: 62.66763521 | F13: 1273.658804 | J13: 55023.26571 | K13: 6189.372441 | L13: 81033.49166 | M13: 0.2976853574 | N13: 214333.612 | O13: 63803.97789 | P13: 602.9340909 | Q13: 1406.57184 | R13: 1820.658612 | S13: 162528.5114 | U13: 44.3426767 | V13: 12826.77452 | AJ13: 49.84683252 | AL13: 463278.9276 | AM13: 594680.5726 | AN13: 50.00391644 | AO13: 50.03915959 | AP13: 49.94197541

Sheet 市区町村_過去_カテゴリ (hidden)
B1: 2021 | C1: 2021 | D1: 2021 | E1: 2021 | F1: 2021 | G1: 2021 | H1: 2021 | I1: 2021 | J1: 2021 | K1: 2021 | L1: 2021 | M1: 2021 | N1: 2021 | O1: 2021 | P1: 2021 | Q1: 2021 | R1: 2021 | S1: 2021 | U1: 2014 | V1: 2020 | W1: 2021 | X1: 2021 | Z1: 2020 | AB1: 2020 | AJ1: 推計(2015) | AL1: 2020 | AM1: 2020 | AN1: 推計(2015) | AO1: 推計(2015) | AP1: 推計(2015)
B2: 入口の循環利用率 | C2: 入口の循環利用率 | D2: 入口の循環利用率 | E2: 出口の循環利用率 | F2: 出口の循環利用率 | G2: 出口の循環利用率 | H2: 出口の循環利用率 | I2: 出口の循環利用率 | J2: 出口の循環利用率 | K2: 出口の循環利用率 | L2: 出口の循環利用率 | M2: 資源生産性 | N2: 資源生産性 | O2: 資源生産性 | P2: 最終処分量 | Q2: 最終処分量 | R2: エネルギー使用量 | S2: CO2排出量 | T2: エコロジカルフットプリント | U2: 水の循環利用率 | V2: 自然資本 | W2: CE関連売上高 | X2: CE関連雇用創出数 | Y2: CE関連への投資額 | Z2: CE関連への投資額 | AA2: CE関連への投資額 | AB2: CE関連への投資額 | AC2: CE関連事業の地域経済付加価値 | AD2: 自治体でのCE取り組み度 | AE2: 自治体でのCE取り組み度 | AF2: 自治体でのCE取り組み度 | AG2: 自治体でのCE取り組み度 | AH2: 自治体でのCE取り組み度 | AI2: 自治体でのCE取り組み度 | AJ2: 環境配慮意識・行動の浸透度 | AK2: 環境配慮意識・行動の浸透度 | AL2: 人工資本 | AM2: 人的資本 | AN2: 地域コミュニティの成熟度 | AO2: 地域住民の生活満足度 | AP2: 地域愛着度
A3: カテゴリID | B3: 入口の循環利用率<%> | C3: 循環資源の利用量<t> | D3: 利用資源量<t> | E3: 出口の循環利用率<%> | F3: リサイクル量（一般廃棄物）<t> | G3: リファブ量<t> | H3: リペア量（一般廃棄物）<t> | I3: リペア量（一般廃棄物）<個数> | J3: リユース量（一般廃棄物）<t> | K3: 一般廃棄物量<t> | L3: 産業廃棄物量<t> | M3: 資源生産性<百万円/t> | N3: 利用資源量<t> | O3: 地域GDP<百万円> | P3: 一般廃棄物最終処分量<t> | Q3: 産業廃棄物最終処分量<t> | R3: エネルギー使用量<TJ> | S3: CO2排出量<tCO2> | T3: エコロジカルフットプリント<gha> | U3: 水の循環利用率<%> | V3: 自然資本<百万円> | W3: CE関連売上高<円> | X3: CE関連雇用創出数<人> | Y3: CE関連への民間投資額<円> | Z3: CE関連への公共投資額<円> | AA3: 廃棄物処理施設への設備投資費<千円> | AB3: CE実現へ向けた取り組み費用<千円> | AC3: CE関連事業の地域経済付加価値<円> | AD3: 自治体でのCE取り組み度<%> | AE3: CE取り組み度（中長期立案）<-> | AF3: CE取り組み度（地域住民）<-> | AG3: CE取り組み度（地域企業）<-> | AH3: CE取り組み度（外部発信）<-> | AI3: CE取り組み度（インフラ） | AJ3: 環境配慮への意識度<%> | AK3: 日常生活における環境配慮行動<-> | AL3: 人工資本<百万円> | AM3: 人的資本<百万円> | AN3: 地域コミュニティの成熟度<-> | AO3: 地域住民の生活満足度<-> | AP3: 地域愛着度<->
A4: 全国 | B4: 14.27985759 | C4: 216563042.8 | D4: 1516563043 | E4: 49.75263712 | F4: 9002141.628 | J4: 207560901.2 | K4: 44094840.9 | L4: 391184684.6 | M4: 0.3713676568 | N4: 1516563043 | O4: 563202463.6 | P4: 4158084.67 | Q4: 10085234.52 | R4: 14899735.4 | S4: 1144842640 | V4: 24691684.72 | AJ4: 50 | AL4: 2475335605 | AM4: 4027281682 | AN4: 50 | AO4: 50 | AP4: 50
A5: 1 | B5: 18.2366217 | C5: 927015.0292 | D5: 5083260.728 | E5: 42.337006 | F5: 52176.8 | J5: 874838.2292 | K5: 246322 | L5: 1954462.6 | M5: 0.6038985927 | N5: 5083260.728 | O5: 3069774 | P5: 15685.4 | Q5: 53434.326 | R5: 65168.484 | S5: 5716172.762 | V5: 41605.70272 | AJ5: 49.88882792 | AL5: 13134329.15 | AM5: 20852493.34 | AN5: 49.664325 | AO5: 49.7034 | AP5: 49.9864152
A6: 2 | B6: 13.78036732 | C6: 304724.0443 | D6: 2211291.16 | E6: 54.39204493 | F6: 9346.063843 | J6: 295377.9804 | K6: 50126.80664 | L6: 536563.1664 | M6: 0.2521615492 | N6: 2211291.16 | O6: 557602.6045 | P6: 4844.248329 | Q6: 14696.88373 | R6: 23048.86086 | S6: 1514363.544 | V6: 23558.84422 | AJ6: 50.04659438 | AL6: 2700574.877 | AM6: 4117715.722 | AN6: 49.85508134 | AO6: 49.81238806 | AP6: 50.00497469
A7: 3 | B7: 71.64259563 | C7: 66557.14576 | D7: 92901.63928 | E7: 77.50846747 | F7: 430.3298755 | J7: 66126.81588 | K7: 2200.921162 | L7: 77249.9479 | M7: 0.2341181929 | N7: 92901.63928 | O7: 21749.9639 | P7: 370.153527 | Q7: 450.7823002 | R7: 720.9605386 | S7: 67255.76207 | V7: 18384.71361 | AJ7: 50.04707224 | AL7: 242765.5729 | AM7: 183330.7335 | AN7: 50.52852418 | AO7: 50.93682308 | AP7: 50.52719925
A8: 4 | B8: 10.70189835 | C8: 1299012.539 | D8: 12138150.6 | E8: 40.16503071 | F8: 80204.21429 | J8: 1218808.325 | K8: 390980 | L8: 2903016.293 | M8: 0.3767611494 | N8: 12138150.6 | O8: 4573183.571 | P8: 39681.35714 | Q8: 90921.10357 | R8: 129963.05 | S8: 9001077.137 | V8: 23275.33099 | AJ8: 49.89920729 | AL8: 17827466.65 | AM8: 37820638.33 | AN8: 49.65802857 | AO8: 49.44206429 | AP8: 49.79934067
A9: 5 | B9: 9.208274601 | C9: 187787.3901 | D9: 2039333.081 | E9: 45.5735596 | F9: 9910.444484 | J9: 177876.9456 | K9: 46671.29809 | L9: 358140.8907 | M9: 0.2822930283 | N9: 2039333.081 | O9: 575689.5111 | P9: 3944.315556 | Q9: 11129.81753 | R9: 16864.9772 | S9: 1260231.134 | V9: 12380.09154 | AJ9: 50.03451908 | AL9: 2612411.992 | AM9: 4343875.251 | AN9: 49.75863511 | AO9: 49.64424933 | AP9: 49.92178231
A10: 6 | B10: 18.99718151 | C10: 50471.91054 | D10: 265681.0459 | E10: 59.25477254 | F10: 1422.343879 | J10: 49049.56667 | K10: 6946.748729 | L10: 78146.90214 | M10: 0.2747895414 | N10: 265681.0459 | O10: 73006.37276 | P10: 658.6576121 | Q10: 1691.665268 | R10: 2255.532656 | S10: 219590.9124 | V10: 12141.82524 | AJ10: 50.02586508 | AL10: 493276.4948 | AM10: 598699.2998 | AN10: 50.13874357 | AO10: 50.13101874 | AP10: 49.97675825
A11: 7 | B11: 18.67813441 | C11: 999791.9537 | D11: 5352739.902 | E11: 36.39358062 | F11: 69378.20375 | J11: 930413.75 | K11: 386164.3937 | L11: 2275718.95 | M11: 1.147034063 | N11: 5352739.902 | O11: 6139775 | P11: 42367.85621 | Q11: 58106.80013 | R11: 80352.51875 | S11: 6255395.786 | V11: 10320.34737 | AJ11: 49.85749445 | AL11: 18336711.62 | AM11: 36587045.23 | AN11: 49.62549375 | AO11: 49.6675125 | AP11: 49.93893558
A12: 8 | B12: 12.91727341 | C12: 204834.7763 | D12: 1585743.136 | E12: 43.38992588 | F12: 11561.31969 | J12: 193273.4569 | K12: 52225.07191 | L12: 422033.6094 | M12: 0.5228403453 | N12: 1585743.136 | O12: 829090.4885 | P12: 4358.786461 | Q12: 10945.45379 | R12: 17814.82702 | S12: 1371019.293 | V12: 11020.62204 | AJ12: 50.02778474 | AL12: 2980326.878 | AM12: 5134190.441 | AN12: 49.7953145 | AO12: 49.73311679 | AP12: 50.00549091
A13: 9 | B13: 22.91726429 | C13: 56326.9003 | D13: 245783.7008 | E13: 62.61802511 | F13: 1470.291932 | J13: 54856.60837 | K13: 6600.976023 | L13: 82193.73339 | M13: 0.2629134496 | N13: 245783.7008 | O13: 64619.84064 | P13: 698.6136364 | Q13: 1578.030388 | R13: 1980.452179 | S13: 205432.5892 | V13: 12909.0371 | AJ13: 49.85205623 | AL13: 464068.3177 | AM13: 549831.6755 | AN13: 50.00907135 | AO13: 50.03266345 | AP13: 49.94846405

Sheet 市町村リスト (hidden)
A1: 地域 | B1: 地域 コード | C1: 都道府県名 | D1: 市区町村名
A2: 北海道 札幌市 | B2: 1100 | C2: 北海道 | D2: 札幌市
A3: 北海道 函館市 | B3: 1202 | C3: 北海道 | D3: 函館市
A4: 北海道 小樽市 | B4: 1203 | C4: 北海道 | D4: 小樽市
A5: 北海道 旭川市 | B5: 1204 | C5: 北海道 | D5: 旭川市
A6: 北海道 室蘭市 | B6: 1205 | C6: 北海道 | D6: 室蘭市
A7: 北海道 釧路市 | B7: 1206 | C7: 北海道 | D7: 釧路市
A8: 北海道 帯広市 | B8: 1207 | C8: 北海道 | D8: 帯広市
A9: 北海道 北見市 | B9: 1208 | C9: 北海道 | D9: 北見市
A10: 北海道 夕張市 | B10: 1209 | C10: 北海道 | D10: 夕張市
A11: 北海道 岩見沢市 | B11: 1210 | C11: 北海道 | D11: 岩見沢市
A12: 北海道 網走市 | B12: 1211 | C12: 北海道 | D12: 網走市
A13: 北海道 留萌市 | B13: 1212 | C13: 北海道 | D13: 留萌市
A14: 北海道 苫小牧市 | B14: 1213 | C14: 北海道 | D14: 苫小牧市
A15: 北海道 稚内市 | B15: 1214 | C15: 北海道 | D15: 稚内市
A16: 北海道 美唄市 | B16: 1215 | C16: 北海道 | D16: 美唄市
A17: 北海道 芦別市 | B17: 1216 | C17: 北海道 | D17: 芦別市
A18: 北海道 江別市 | B18: 1217 | C18: 北海道 | D18: 江別市
A19: 北海道 赤平市 | B19: 1218 | C19: 北海道 | D19: 赤平市
A20: 北海道 紋別市 | B20: 1219 | C20: 北海道 | D20: 紋別市
A21: 北海道 士別市 | B21: 1220 | C21: 北海道 | D21: 士別市
A22: 北海道 名寄市 | B22: 1221 | C22: 北海道 | D22: 名寄市
A23: 北海道 三笠市 | B23: 1222 | C23: 北海道 | D23: 三笠市
A24: 北海道 根室市 | B24: 1223 | C24: 北海道 | D24: 根室市
A25: 北海道 千歳市 | B25: 1224 | C25: 北海道 | D25: 千歳市
A26: 北海道 滝川市 | B26: 1225 | C26: 北海道 | D26: 滝川市
A27: 北海道 砂川市 | B27: 1226 | C27: 北海道 | D27: 砂川市
A28: 北海道 歌志内市 | B28: 1227 | C28: 北海道 | D28: 歌志内市
A29: 北海道 深川市 | B29: 1228 | C29: 北海道 | D29: 深川市
A30: 北海道 富良野市 | B30: 1229 | C30: 北海道 | D30: 富良野市
A31: 北海道 登別市 | B31: 1230 | C31: 北海道 | D31: 登別市
A32: 北海道 恵庭市 | B32: 1231 | C32: 北海道 | D32: 恵庭市
A33: 北海道 伊達市 | B33: 1233 | C33: 北海道 | D33: 伊達市
A34: 北海道 北広島市 | B34: 1234 | C34: 北海道 | D34: 北広島市
A35: 北海道 石狩市 | B35: 1235 | C35: 北海道 | D35: 石狩市
A36: 北海道 北斗市 | B36: 1236 | C36: 北海道 | D36: 北斗市
A37: 北海道 当別町 | B37: 1303 | C37: 北海道 | D37: 当別町
A38: 北海道 新篠津村 | B38: 1304 | C38: 北海道 | D38: 新篠津村
A39: 北海道 松前町 | B39: 1331 | C39: 北海道 | D39: 松前町
A40: 北海道 福島町 | B40: 1332 | C40: 北海道 | D40: 福島町
A41: 北海道 知内町 | B41: 1333 | C41: 北海道 | D41: 知内町
A42: 北海道 木古内町 | B42: 1334 | C42: 北海道 | D42: 木古内町
A43: 北海道 七飯町 | B43: 1337 | C43: 北海道 | D43: 七飯町
A44: 北海道 鹿部町 | B44: 1343 | C44: 北海道 | D44: 鹿部町
A45: 北海道 森町 | B45: 1345 | C45: 北海道 | D45: 森町
A46: 北海道 八雲町 | B46: 1346 | C46: 北海道 | D46: 八雲町
A47: 北海道 長万部町 | B47: 1347 | C47: 北海道 | D47: 長万部町
A48: 北海道 江差町 | B48: 1361 | C48: 北海道 | D48: 江差町
A49: 北海道 上ノ国町 | B49: 1362 | C49: 北海道 | D49: 上ノ国町
A50: 北海道 厚沢部町 | B50: 1363 | C50: 北海道 | D50: 厚沢部町
A51: 北海道 乙部町 | B51: 1364 | C51: 北海道 | D51: 乙部町
A52: 北海道 奥尻町 | B52: 1367 | C52: 北海道 | D52: 奥尻町
A53: 北海道 今金町 | B53: 1370 | C53: 北海道 | D53: 今金町
A54: 北海道 せたな町 | B54: 1371 | C54: 北海道 | D54: せたな町
A55: 北海道 島牧村 | B55: 1391 | C55: 北海道 | D55: 島牧村
A56: 北海道 寿都町 | B56: 1392 | C56: 北海道 | D56: 寿都町
A57: 北海道 黒松内町 | B57: 1393 | C57: 北海道 | D57: 黒松内町
A58: 北海道 蘭越町 | B58: 1394 | C58: 北海道 | D58: 蘭越町
A59: 北海道 ニセコ町 | B59: 1395 | C59: 北海道 | D59: ニセコ町
A60: 北海道 真狩村 | B60: 1396 | C60: 北海道 | D60: 真狩村
A61: 北海道 留寿都村 | B61: 1397 | C61: 北海道 | D61: 留寿都村
A62: 北海道 喜茂別町 | B62: 1398 | C62: 北海道 | D62: 喜茂別町
A63: 北海道 京極町 | B63: 1399 | C63: 北海道 | D63: 京極町
A64: 北海道 倶知安町 | B64: 1400 | C64: 北海道 | D64: 倶知安町
A65: 北海道 共和町 | B65: 1401 | C65: 北海道 | D65: 共和町
A66: 北海道 岩内町 | B66: 1402 | C66: 北海道 | D66: 岩内町
A67: 北海道 泊村 | B67: 1403 | C67: 北海道 | D67: 泊村
A68: 北海道 神恵内村 | B68: 1404 | C68: 北海道 | D68: 神恵内村
A69: 北海道 積丹町 | B69: 1405 | C69: 北海道 | D69: 積丹町
A70: 北海道 古平町 | B70: 1406 | C70: 北海道 | D70: 古平町
A71: 北海道 仁木町 | B71: 1407 | C71: 北海道 | D71: 仁木町
A72: 北海道 余市町 | B72: 1408 | C72: 北海道 | D72: 余市町
A73: 北海道 赤井川村 | B73: 1409 | C73: 北海道 | D73: 赤井川村
A74: 北海道 南幌町 | B74: 1423 | C74: 北海道 | D74: 南幌町
A75: 北海道 奈井江町 | B75: 1424 | C75: 北海道 | D75: 奈井江町
A76: 北海道 上砂川町 | B76: 1425 | C76: 北海道 | D76: 上砂川町
A77: 北海道 由仁町 | B77: 1427 | C77: 北海道 | D77: 由仁町
A78: 北海道 長沼町 | B78: 1428 | C78: 北海道 | D78: 長沼町
A79: 北海道 栗山町 | B79: 1429 | C79: 北海道 | D79: 栗山町
A80: 北海道 月形町 | B80: 1430 | C80: 北海道 | D80: 月形町
A81: 北海道 浦臼町 | B81: 1431 | C81: 北海道 | D81: 浦臼町
A82: 北海道 新十津川町 | B82: 1432 | C82: 北海道 | D82: 新十津川町
A83: 北海道 妹背牛町 | B83: 1433 | C83: 北海道 | D83: 妹背牛町
A84: 北海道 秩父別町 | B84: 1434 | C84: 北海道 | D84: 秩父別町
A85: 北海道 雨竜町 | B85: 1436 | C85: 北海道 | D85: 雨竜町
A86: 北海道 北竜町 | B86: 1437 | C86: 北海道 | D86: 北竜町
A87: 北海道 沼田町 | B87: 1438 | C87: 北海道 | D87: 沼田町
A88: 北海道 鷹栖町 | B88: 1452 | C88: 北海道 | D88: 鷹栖町
A89: 北海道 東神楽町 | B89: 1453 | C89: 北海道 | D89: 東神楽町
A90: 北海道 当麻町 | B90: 1454 | C90: 北海道 | D90: 当麻町
A91: 北海道 比布町 | B91: 1455 | C91: 北海道 | D91: 比布町
A92: 北海道 愛別町 | B92: 1456 | C92: 北海道 | D92: 愛別町
A93: 北海道 上川町 | B93: 1457 | C93: 北海道 | D93: 上川町
A94: 北海道 東川町 | B94: 1458 | C94: 北海道 | D94: 東川町
A95: 北海道 美瑛町 | B95: 1459 | C95: 北海道 | D95: 美瑛町
A96: 北海道 上富良野町 | B96: 1460 | C96: 北海道 | D96: 上富良野町
A97: 北海道 中富良野町 | B97: 1461 | C97: 北海道 | D97: 中富良野町
A98: 北海道 南富良野町 | B98: 1462 | C98: 北海道 | D98: 南富良野町
A99: 北海道 占冠村 | B99: 1463 | C99: 北海道 | D99: 占冠村
A100: 北海道 和寒町 | B100: 1464 | C100: 北海道 | D100: 和寒町
A101: 北海道 剣淵町 | B101: 1465 | C101: 北海道 | D101: 剣淵町
A102: 北海道 下川町 | B102: 1468 | C102: 北海道 | D102: 下川町
A103: 北海道 美深町 | B103: 1469 | C103: 北海道 | D103: 美深町
A104: 北海道 音威子府村 | B104: 1470 | C104: 北海道 | D104: 音威子府村
A105: 北海道 中川町 | B105: 1471 | C105: 北海道 | D105: 中川町
A106: 北海道 幌加内町 | B106: 1472 | C106: 北海道 | D106: 幌加内町
A107: 北海道 増毛町 | B107: 1481 | C107: 北海道 | D107: 増毛町
A108: 北海道 小平町 | B108: 1482 | C108: 北海道 | D108: 小平町
A109: 北海道 苫前町 | B109: 1483 | C109: 北海道 | D109: 苫前町
A110: 北海道 羽幌町 | B110: 1484 | C110: 北海道 | D110: 羽幌町
A111: 北海道 初山別村 | B111: 1485 | C111: 北海道 | D111: 初山別村
A112: 北海道 遠別町 | B112: 1486 | C112: 北海道 | D112: 遠別町
A113: 北海道 天塩町 | B113: 1487 | C113: 北海道 | D113: 天塩町
A114: 北海道 猿払村 | B114: 1511 | C114: 北海道 | D114: 猿払村
A115: 北海道 浜頓別町 | B115: 1512 | C115: 北海道 | D115: 浜頓別町
A116: 北海道 中頓別町 | B116: 1513 | C116: 北海道 | D116: 中頓別町
A117: 北海道 枝幸町 | B117: 1514 | C117: 北海道 | D117: 枝幸町
A118: 北海道 豊富町 | B118: 1516 | C118: 北海道 | D118: 豊富町
A119: 北海道 礼文町 | B119: 1517 | C119: 北海道 | D119: 礼文町
A120: 北海道 利尻町 | B120: 1518 | C120: 北海道 | D120: 利尻町
A121: 北海道 利尻富士町 | B121: 1519 | C121: 北海道 | D121: 利尻富士町
A122: 北海道 幌延町 | B122: 1520 | C122: 北海道 | D122: 幌延町
A123: 北海道 美幌町 | B123: 1543 | C123: 北海道 | D123: 美幌町
A124: 北海道 津別町 | B124: 1544 | C124: 北海道 | D124: 津別町
A125: 北海道 斜里町 | B125: 1545 | C125: 北海道 | D125: 斜里町
A126: 北海道 清里町 | B126: 1546 | C126: 北海道 | D126: 清里町
A127: 北海道 小清水町 | B127: 1547 | C127: 北海道 | D127: 小清水町
A128: 北海道 訓子府町 | B128: 1549 | C128: 北海道 | D128: 訓子府町
A129: 北海道 置戸町 | B129: 1550 | C129: 北海道 | D129: 置戸町
A130: 北海道 佐呂間町 | B130: 1552 | C130: 北海道 | D130: 佐呂間町
A131: 北海道 遠軽町 | B131: 1555 | C131: 北海道 | D131: 遠軽町
A132: 北海道 湧別町 | B132: 1559 | C132: 北海道 | D132: 湧別町
A133: 北海道 滝上町 | B133: 1560 | C133: 北海道 | D133: 滝上町
A134: 北海道 興部町 | B134: 1561 | C134: 北海道 | D134: 興部町
A135: 北海道 西興部村 | B135: 1562 | C135: 北海道 | D135: 西興部村
A136: 北海道 雄武町 | B136: 1563 | C136: 北海道 | D136: 雄武町
A137: 北海道 大空町 | B137: 1564 | C137: 北海道 | D137: 大空町
A138: 北海道 豊浦町 | B138: 1571 | C138: 北海道 | D138: 豊浦町
A139: 北海道 壮瞥町 | B139: 1575 | C139: 北海道 | D139: 壮瞥町
A140: 北海道 白老町 | B140: 1578 | C140: 北海道 | D140: 白老町
A141: 北海道 厚真町 | B141: 1581 | C141: 北海道 | D141: 厚真町
A142: 北海道 洞爺湖町 | B142: 1584 | C142: 北海道 | D142: 洞爺湖町
A143: 北海道 安平町 | B143: 1585 | C143: 北海道 | D143: 安平町
A144: 北海道 むかわ町 | B144: 1586 | C144: 北海道 | D144: むかわ町
A145: 北海道 日高町 | B145: 1601 | C145: 北海道 | D145: 日高町
A146: 北海道 平取町 | B146: 1602 | C146: 北海道 | D146: 平取町
A147: 北海道 新冠町 | B147: 1604 | C147: 北海道 | D147: 新冠町
A148: 北海道 浦河町 | B148: 1607 | C148: 北海道 | D148: 浦河町
A149: 北海道 様似町 | B149: 1608 | C149: 北海道 | D149: 様似町
A150: 北海道 えりも町 | B150: 1609 | C150: 北海道 | D150: えりも町
A151: 北海道 新ひだか町 | B151: 1610 | C151: 北海道 | D151: 新ひだか町
A152: 北海道 音更町 | B152: 1631 | C152: 北海道 | D152: 音更町
A153: 北海道 士幌町 | B153: 1632 | C153: 北海道 | D153: 士幌町
A154: 北海道 上士幌町 | B154: 1633 | C154: 北海道 | D154: 上士幌町
A155: 北海道 鹿追町 | B155: 1634 | C155: 北海道 | D155: 鹿追町
A156: 北海道 新得町 | B156: 1635 | C156: 北海道 | D156: 新得町
A157: 北海道 清水町 | B157: 1636 | C157: 北海道 | D157: 清水町
A158: 北海道 芽室町 | B158: 1637 | C158: 北海道 | D158: 芽室町
A159: 北海道 中札内村 | B159: 1638 | C159: 北海道 | D159: 中札内村
A160: 北海道 更別村 | B160: 1639 | C160: 北海道 | D160: 更別村
A161: 北海道 大樹町 | B161: 1641 | C161: 北海道 | D161: 大樹町
A162: 北海道 広尾町 | B162: 1642 | C162: 北海道 | D162: 広尾町
A163: 北海道 幕別町 | B163: 1643 | C163: 北海道 | D163: 幕別町
A164: 北海道 池田町 | B164: 1644 | C164: 北海道 | D164: 池田町
A165: 北海道 豊頃町 | B165: 1645 | C165: 北海道 | D165: 豊頃町
A166: 北海道 本別町 | B166: 1646 | C166: 北海道 | D166: 本別町
A167: 北海道 足寄町 | B167: 1647 | C167: 北海道 | D167: 足寄町
A168: 北海道 陸別町 | B168: 1648 | C168: 北海道 | D168: 陸別町
A169: 北海道 浦幌町 | B169: 1649 | C169: 北海道 | D169: 浦幌町
A170: 北海道 釧路町 | B170: 1661 | C170: 北海道 | D170: 釧路町
A171: 北海道 厚岸町 | B171: 1662 | C171: 北海道 | D171: 厚岸町
A172: 北海道 浜中町 | B172: 1663 | C172: 北海道 | D172: 浜中町
A173: 北海道 標茶町 | B173: 1664 | C173: 北海道 | D173: 標茶町
A174: 北海道 弟子屈町 | B174: 1665 | C174: 北海道 | D174: 弟子屈町
A175: 北海道 鶴居村 | B175: 1667 | C175: 北海道 | D175: 鶴居村
A176: 北海道 白糠町 | B176: 1668 | C176: 北海道 | D176: 白糠町
A177: 北海道 別海町 | B177: 1691 | C177: 北海道 | D177: 別海町
A178: 北海道 中標津町 | B178: 1692 | C178: 北海道 | D178: 中標津町
A179: 北海道 標津町 | B179: 1693 | C179: 北海道 | D179: 標津町
A180: 北海道 羅臼町 | B180: 1694 | C180: 北海道 | D180: 羅臼町
A181: 青森県 青森市 | B181: 2201 | C181: 青森県 | D181: 青森市
A182: 青森県 弘前市 | B182: 2202 | C182: 青森県 | D182: 弘前市
A183: 青森県 八戸市 | B183: 2203 | C183: 青森県 | D183: 八戸市
A184: 青森県 黒石市 | B184: 2204 | C184: 青森県 | D184: 黒石市
A185: 青森県 五所川原市 | B185: 2205 | C185: 青森県 | D185: 五所川原市
A186: 青森県 十和田市 | B186: 2206 | C186: 青森県 | D186: 十和田市
A187: 青森県 三沢市 | B187: 2207 | C187: 青森県 | D187: 三沢市
A188: 青森県 むつ市 | B188: 2208 | C188: 青森県 | D188: むつ市
A189: 青森県 つがる市 | B189: 2209 | C189: 青森県 | D189: つがる市
A190: 青森県 平川市 | B190: 2210 | C190: 青森県 | D190: 平川市
A191: 青森県 平内町 | B191: 2301 | C191: 青森県 | D191: 平内町
A192: 青森県 今別町 | B192: 2303 | C192: 青森県 | D192: 今別町
A193: 青森県 蓬田村 | B193: 2304 | C193: 青森県 | D193: 蓬田村
A194: 青森県 外ヶ浜町 | B194: 2307 | C194: 青森県 | D194: 外ヶ浜町
A195: 青森県 鰺ヶ沢町 | B195: 2321 | C195: 青森県 | D195: 鰺ヶ沢町
A196: 青森県 深浦町 | B196: 2323 | C196: 青森県 | D196: 深浦町
A197: 青森県 西目屋村 | B197: 2343 | C197: 青森県 | D197: 西目屋村
A198: 青森県 藤崎町 | B198: 2361 | C198: 青森県 | D198: 藤崎町
A199: 青森県 大鰐町 | B199: 2362 | C199: 青森県 | D199: 大鰐町
A200: 青森県 田舎館村 | B200: 2367 | C200: 青森県 | D200: 田舎館村
... 1542 more rows
